Workbook

Sheet Daily Briefing
I2: Calculated Dispatch PL (Today) | J2: > than 50% committed resources? | K2: Actual PL
I3: =ROUND(AVERAGE(I8,I19,I30,I41,I52),0) -> 2 | J3: No | K3: =IF(J3="Yes", MIN(I3+1, 5), I3) -> 2
C6: Casper Interagency Dispatch Current Fire Danger | M6: FDOP Reference Data
C7: WEST FDRA | D7: ERC | E7: BI | F7: IC | G7: ADJ RATING (DAILY) | H7: ADJ RATING (POSTED) | I7: PREPAREDNESS | J7: RESPONSE | K7: STAFFING | N7: WEST RESPONSE LEVEL | U7: WEST FIRE DANGER RATING | AB7: PL / SL (ERCs)
B8: Today | C8: =TODAY() -> 2025-05-01 | D8: =AVERAGE('WXML WEST_Y24'!R38:R42) -> 21.1 | E8: =AVERAGE('WXML WEST_Y24'!S38:S42) -> 16.06 | F8: =AVERAGE('WXML WEST_Y24'!O38:O42) -> 6.3 | G8: =INDEX($V$11:$Z$15,MATCH($K$8,$U$11:$U$15),MATCH($F$8,$V$10:$Z$10)) -> 1 | H8: =ROUND(AVERAGE(G8:G14),0) -> 1 | I8: =VLOOKUP(D8,$AB$10:$AC$14,2) -> 2 | J8: =INDEX($O$10:$S$12,MATCH($E$8,$N$10:$N$12),MATCH($D$8,$O$9:$S$9)) -> 1 | K8: =VLOOKUP($D$8,$AB$10:$AC$14,2) -> 2 | O8: ERC | U8: ADJECTIVE FIRE DANGER RATING | AB8: WEST
B9: Forecasted | C9: =TODAY()+1 -> 2025-05-02 | D9: =AVERAGE('WXML WEST_Y24'!R32:R36) -> 18.78 | E9: =AVERAGE('WXML WEST_Y24'!S32:S36) -> 13.88 | F9: =AVERAGE('WXML WEST_Y24'!O32:O36) -> 3.32 | G9: =INDEX($V$11:$Z$15,MATCH($K9,$U$11:$U$15),MATCH($F9,$V$10:$Z$10)) -> 1 | I9: =VLOOKUP($D$9,$AB$10:$AC$14,2) -> 2 | J9: =INDEX($O$10:$S$12,MATCH($E$9,$N$10:$N$12),MATCH($D$9,$O$9:$S$9)) -> 1 | K9: =VLOOKUP($D$9,$AB$10:$AC$14,2) -> 2 | N9: BI | O9: 0 | P9: 18 | Q9: 36 | R9: 48 | S9: 62 | V9: IGNITION COMPONENT | AB9: FM X
C10: =TODAY()+2 -> 2025-05-03 | D10: =AVERAGE('WXML WEST_Y24'!R26:R30) -> 21.26 | E10: =AVERAGE('WXML WEST_Y24'!S26:S30) -> 13.8 | F10: =AVERAGE('WXML WEST_Y24'!O26:O30) -> 6.92 | G10: =INDEX(V11:Z15,MATCH($K$10,$U$11:$U$15),MATCH($F$10,$V$10:$Z$10)) -> 1 | I10: =VLOOKUP($D$10,$AB$10:$AC$14,2) -> 2 | J10: =INDEX(O10:$S$12,MATCH($E$10,$N$10:$N$12),MATCH($D$10,$O$9:$S$9)) -> 1 | K10: =VLOOKUP($D$10,$AB$10:$AC$14,2) -> 2 | N10: 0 | O10: 1 | P10: 1 | Q10: 1 | R10: 2 | S10: 2 | U10: STAFFING LEVEL (ERC) | V10: 0 | W10: 9 | X10: 27 | Y10: 43 | Z10: 59 | AB10: 0 | AC10: 1
C11: =TODAY()+3 -> 2025-05-04 | D11: =AVERAGE('WXML WEST_Y24'!R20:R24) -> 22.48 | E11: =AVERAGE('WXML WEST_Y24'!S20:S24) -> 17.18 | F11: =AVERAGE('WXML WEST_Y24'!O20:O24) -> 12.28 | G11: =INDEX($V$11:$Z$15,MATCH($K$11,$U$11:$U$15),MATCH($F$11,$V$10:$Z$10)) -> 2 | I11: =VLOOKUP(D$11,$AB$10:$AC$14,2) -> 2 | J11: =INDEX($O$10:S$12,MATCH($E$11,$N$10:$N$12),MATCH($D$11,$O$9:$S$9)) -> 1 | K11: =VLOOKUP($D11,$AB$10:$AC$14,2) -> 2 | N11: 22 | O11: 1 | P11: 1 | Q11: 2 | R11: 2 | S11: 3 | U11: 1 | V11: 1 | W11: 1 | X11: 1 | Y11: 2 | Z11: 2 | AB11: 18 | AC11: 2
C12: =TODAY()+4 -> 2025-05-05 | D12: =AVERAGE('WXML WEST_Y24'!R14:R18) -> 22.16 | E12: =AVERAGE('WXML WEST_Y24'!S14:S18) -> 18.16 | F12: =AVERAGE('WXML WEST_Y24'!O14:O18) -> 11.04 | G12: =INDEX($V$11:$Z$15,MATCH($K$12,$U$11:$U$15),MATCH($F$12,$V$10:$Z$10)) -> 2 | I12: =VLOOKUP($D12,$AB$10:$AC$14,2) -> 2 | J12: =INDEX($O$10:$S$12,MATCH($E$12,$N$10:$N$12),MATCH($D$12,$O$9:$S$9)) -> 1 | K12: =VLOOKUP($D12,$AB$10:$AC$14,2) -> 2 | N12: 36 | O12: 1 | P12: 2 | Q12: 3 | R12: 3 | S12: 3 | U12: 2 | V12: 1 | W12: 2 | X12: 2 | Y12: 2 | Z12: 3 | AB12: 36 | AC12: 3
C13: =TODAY()+5 -> 2025-05-06 | D13: =AVERAGE('WXML WEST_Y24'!R8:R12) -> 21.1 | E13: =AVERAGE('WXML WEST_Y24'!S8:S12) -> 17.92 | F13: =AVERAGE('WXML WEST_Y24'!O8:O12) -> 8.72 | G13: =INDEX($V$11:$Z$15,MATCH($K$13,$U$11:$U$15),MATCH($F$13,$V$10:$Z$10)) -> 1 | I13: =VLOOKUP($D13,$AB$10:$AC$14,2) -> 2 | J13: =INDEX($O$10:$S$12,MATCH($E$13,$N$10:$N$12),MATCH($D$13,$O$9:$S$9)) -> 1 | K13: =VLOOKUP($D13,$AB$10:$AC$14,2) -> 2 | O13: 0-17 | P13: 18-35 | Q13: 36-48 | R13: 49-58 | S13: 59+ | U13: 3 | V13: 2 | W13: 2 | X13: 3 | Y13: 3 | Z13: 4 | AB13: 49 | AC13: 4
C14: =TODAY()+6 -> 2025-05-07 | D14: =AVERAGE('WXML WEST_Y24'!R2:R6) -> 19.88 | E14: =AVERAGE('WXML WEST_Y24'!S2:S6) -> 15.9 | F14: =AVERAGE('WXML WEST_Y24'!O2:O6) -> 5.24 | G14: =INDEX($V$11:$Z$15,MATCH($K$14,$U$11:$U$15),MATCH($F$14,$V$10:$Z$10)) -> 1 | I14: =VLOOKUP($D14,$AB$10:$AC$14,2) -> 2 | J14: =INDEX($O$10:$S$12,MATCH($E$14,$N$10:$N$12),MATCH($D$14,$O$9:$S$9)) -> 1 | K14: =VLOOKUP($D14,$AB$10:$AC$14,2) -> 2 | U14: 4 | V14: 2 | W14: 3 | X14: 4 | Y14: 4 | Z14: 5 | AB14: 59 | AC14: 5
U15: 5 | V15: 3 | W15: 4 | X15: 4 | Y15: 5 | Z15: 5
C18: EAST FDRA | D18: ERC | E18: BI | F18: IC | G18: ADJ RATING (DAILY) | H18: ADJ RATING (POSTED) | I18: PREPAREDNESS | J18: RESPONSE | K18: STAFFING | N18: EAST RESPONSE LEVEL | U18: EAST FIRE DANGER RATING | AB18: PL / SL (ERCs)
B19: Today | C19: =TODAY() -> 2025-05-01 | D19: =AVERAGE('WXML EAST_V4'!R26:R29) -> 17.9 | E19: =AVERAGE('WXML EAST_V4'!S26:S29) -> 18.575 | F19: =AVERAGE('WXML EAST_V4'!O26:O29) -> 7.525 | G19: =INDEX($V$22:$Z$26,MATCH($K19,$U$22:$U$26),MATCH($F19,$V$21:$Z$21)) -> 1 | H19: =ROUND(AVERAGE(G19:G25),0) -> 1 | I19: =VLOOKUP($D19,$AB$21:$AC$25,2) -> 2 | J19: =INDEX($O$21:$S$23,MATCH($E$19,$N$21:$N$23),MATCH($D$19,$O$20:$S$20)) -> 1 | K19: =VLOOKUP($D19,$AB$21:$AC$25,2) -> 2 | O19: ERC | U19: ADJECTIVE FIRE DANGER RATING | AB19: EAST
B20: Forecasted | C20: =TODAY()+1 -> 2025-05-02 | D20: =AVERAGE('WXML EAST_V4'!R22:R25) -> 17.4 | E20: =AVERAGE('WXML EAST_V4'!S22:S25) -> 18.175 | F20: =AVERAGE('WXML EAST_V4'!O22:O25) -> 6.8 | G20: 1 | I20: 2 | J20: =INDEX($O$21:$S$23,MATCH($E$20,$N$21:$N$23),MATCH($D$20,$O$20:$S$20)) -> 1 | K20: 2 | N20: BI | O20: 0 | P20: 13 | Q20: 29 | R20: 41 | S20: 50 | V20: IGNITION COMPONENT | AB20: FM Y
C21: =TODAY()+2 -> 2025-05-03 | D21: =AVERAGE('WXML EAST_V4'!R18:R21) -> 19.975 | E21: =AVERAGE('WXML EAST_V4'!S18:S21) -> 15.475 | F21: =AVERAGE('WXML EAST_V4'!O18:O21) -> 9.6 | G21: 1 | I21: 2 | J21: =INDEX($O$21:$S$23,MATCH($E$21,$N$21:$N$23),MATCH($D$21,$O$20:$S$20)) -> 1 | K21: 2 | N21: 0 | O21: 1 | P21: 1 | Q21: 1 | R21: 2 | S21: 2 | U21: STAFFING LEVEL (ERC) | V21: 0 | W21: 10 | X21: 22 | Y21: 39 | Z21: 50 | AB21: 0 | AC21: 1
C22: =TODAY()+3 -> 2025-05-04 | D22: =AVERAGE('WXML EAST_V4'!R14:R17) -> 22.175 | E22: =AVERAGE('WXML EAST_V4'!S14:S17) -> 18.4 | F22: =AVERAGE('WXML EAST_V4'!O14:O17) -> 16.4 | G22: 2 | I22: 2 | J22: =INDEX($O$21:$S$23,MATCH($E22,$N$21:$N$23),MATCH($D22,$O$20:$S$20)) -> 1 | K22: 2 | N22: 24 | O22: 1 | P22: 1 | Q22: 2 | R22: 2 | S22: 3 | U22: 1 | V22: 1 | W22: 1 | X22: 1 | Y22: 2 | Z22: 2 | AB22: 13 | AC22: 2
C23: =TODAY()+4 -> 2025-05-05 | D23: =AVERAGE('WXML EAST_V4'!R10:R13) -> 23.725 | E23: =AVERAGE('WXML EAST_V4'!S10:S13) -> 22.5 | F23: =AVERAGE('WXML EAST_V4'!O10:O13) -> 18.5 | G23: 2 | I23: 2 | J23: =INDEX($O$21:$S$23,MATCH($E23,$N$21:$N$23),MATCH($D23,$O$20:$S$20)) -> 1 | K23: 2 | N23: 34 | O23: 1 | P23: 2 | Q23: 3 | R23: 3 | S23: 3 | U23: 2 | V23: 1 | W23: 2 | X23: 2 | Y23: 2 | Z23: 3 | AB23: 29 | AC23: 3
C24: =TODAY()+5 -> 2025-05-06 | D24: =AVERAGE('WXML EAST_V4'!R6:R9) -> 23.8 | E24: =AVERAGE('WXML EAST_V4'!S6:S9) -> 22.75 | F24: =AVERAGE('WXML EAST_V4'!O6:O9) -> 13.25 | G24: 2 | I24: 2 | J24: =INDEX($O$21:$S$23,MATCH($E24,$N$21:$N$23),MATCH($D24,$O$20:$S$20)) -> 1 | K24: 2 | U24: 3 | V24: 2 | W24: 2 | X24: 3 | Y24: 3 | Z24: 4 | AB24: 41 | AC24: 4
C25: =TODAY()+6 -> 2025-05-07 | D25: =AVERAGE('WXML EAST_V4'!R2:R5) -> 22.75 | E25: =AVERAGE('WXML EAST_V4'!S2:S5) -> 19.3 | F25: =AVERAGE('WXML EAST_V4'!O2:O5) -> 7.075 | G25: 1 | I25: 2 | J25: =INDEX($O$21:$S$23,MATCH($E25,$N$21:$N$23),MATCH($D25,$O$20:$S$20)) -> 1 | K25: 2 | U25: 4 | V25: 2 | W25: 3 | X25: 4 | Y25: 4 | Z25: 5 | AB25: 50 | AC25: 5
U26: 5 | V26: 3 | W26: 4 | X26: 4 | Y26: 5 | Z26: 5
C29: LAR FDRA | D29: ERC | E29: BI | F29: IC | G29: ADJ RATING (DAILY) | H29: ADJ RATING (POSTED) | I29: PREPAREDNESS | J29: RESPONSE | K29: STAFFING | N29: LARAMIE RANGE RESPONSE LEVEL | U29: LARAMIE RANGE FIRE DANGER RATING | AB29: PL / SL (ERCs)
B30: Today | C30: =TODAY() -> 2025-05-01 | D30: =AVERAGE('WXML LAR_V4'!R26:R28) -> 20 | E30: =AVERAGE('WXML LAR_V4'!S26:S28) -> 15.53333333 | F30: =AVERAGE('WXML LAR_V4'!O26:O28) -> 6.7 | G30: =INDEX($V$33:$Z$37,MATCH($K30,$U$33:$U$37),MATCH($F30,$V$32:$Z$32)) -> 1 | H30: =ROUND(AVERAGE(G30:G36),0) -> 1 | I30: =VLOOKUP($D30,$AB$32:$AC$36,2) -> 2 | J30: =INDEX($O$32:$S$34,MATCH($E30,$N$32:$N$34),MATCH($D30,$O$31:$S$31)) -> 1 | K30: =VLOOKUP($D30,$AB$32:$AC$36,2) -> 2 | O30: ERC | U30: ADJECTIVE FIRE DANGER RATING | AB30: LARAMIE RANGE
B31: Forecasted | C31: =TODAY()+1 -> 2025-05-02 | D31: =AVERAGE('WXML LAR_V4'!R22:R24) -> 17.8 | E31: =AVERAGE('WXML LAR_V4'!S22:S24) -> 14.16666667 | F31: =AVERAGE('WXML LAR_V4'!O22:O24) -> 3.833333333 | G31: 1 | I31: 2 | J31: 1 | K31: 2 | N31: BI | O31: 0 | P31: 15 | Q31: 25 | R31: 40 | S31: 49 | V31: IGNITION COMPONENT | AB31: FM Y
C32: =TODAY()+2 -> 2025-05-03 | D32: =AVERAGE('WXML LAR_V4'!R18:R20) -> 20.43333333 | E32: =AVERAGE('WXML LAR_V4'!S18:S20) -> 13.56666667 | F32: =AVERAGE('WXML LAR_V4'!O18:O20) -> 7.066666667 | G32: 1 | I32: 2 | J32: 1 | K32: 2 | N32: 0 | O32: 1 | P32: 1 | Q32: 1 | R32: 2 | S32: 2 | U32: STAFFING LEVEL (ERC) | V32: 0 | W32: 9 | X32: 22 | Y32: 42 | Z32: 53 | AB32: 0 | AC32: 1
C33: =TODAY()+3 -> 2025-05-04 | D33: =AVERAGE('WXML LAR_V4'!R14:R16) -> 21.9 | E33: =AVERAGE('WXML LAR_V4'!S14:S16) -> 14.93333333 | F33: =AVERAGE('WXML LAR_V4'!O14:O16) -> 10.33333333 | G33: 2 | I33: 2 | J33: 1 | K33: 2 | N33: 21 | O33: 1 | P33: 1 | Q33: 2 | R33: 2 | S33: 3 | U33: 1 | V33: 1 | W33: 1 | X33: 1 | Y33: 2 | Z33: 2 | AB33: 15 | AC33: 2
C34: =TODAY()+4 -> 2025-05-05 | D34: =AVERAGE('WXML LAR_V4'!R10:R12) -> 22.63333333 | E34: =AVERAGE('WXML LAR_V4'!S10:S12) -> 17.4 | F34: =AVERAGE('WXML LAR_V4'!O10:O12) -> 11.96666667 | G34: 2 | I34: 2 | J34: 1 | K34: 2 | N34: 32 | O34: 1 | P34: 2 | Q34: 3 | R34: 3 | S34: 3 | U34: 2 | V34: 1 | W34: 2 | X34: 2 | Y34: 2 | Z34: 3 | AB34: 25 | AC34: 3
C35: =TODAY()+5 -> 2025-05-06 | D35: =AVERAGE('WXML LAR_V4'!R6:R8) -> 22.66666667 | E35: =AVERAGE('WXML LAR_V4'!S6:S8) -> 18.7 | F35: =AVERAGE('WXML LAR_V4'!O6:O8) -> 10.46666667 | G35: 2 | I35: 2 | J35: 1 | K35: 2 | U35: 3 | V35: 2 | W35: 2 | X35: 3 | Y35: 3 | Z35: 4 | AB35: 40 | AC35: 4
C36: =TODAY()+6 -> 2025-05-07 | D36: =AVERAGE('WXML LAR_V4'!R2:R4) -> 21.83333333 | E36: =AVERAGE('WXML LAR_V4'!S2:S4) -> 16.03333333 | F36: =AVERAGE('WXML LAR_V4'!O2:O4) -> 5.866666667 | G36: 1 | I36: 2 | J36: 1 | K36: 2 | U36: 4 | V36: 2 | W36: 3 | X36: 4 | Y36: 4 | Z36: 5 | AB36: 49 | AC36: 5
U37: 5 | V37: 3 | W37: 4 | X37: 4 | Y37: 5 | Z37: 5
C40: SOUTHERN BIG FDRA | D40: ERC | E40: BI | F40: IC | G40: ADJ RATING (DAILY) | H40: ADJ RATING (POSTED) | I40: PREPAREDNESS | J40: RESPONSE | K40: STAFFING | N40: SOUTH BIG HORNS RESPONSE LEVEL | U40: SOUTH BIG HORNS FIRE DANGER RATING | AB40: PL / SL (ERCs)
B41: Today | C41: =TODAY() -> 2025-05-01 | D41: =AVERAGE('WXML S_BIG_V4'!R14:R15) -> 0 | E41: =AVERAGE('WXML S_BIG_V4'!S14:S15) -> 0 | F41: =AVERAGE('WXML S_BIG_V4'!O14:O15) -> 0 | G41: =INDEX($V$44:$Z$48,MATCH($K41,$U$44:$U$48),MATCH($F41,$V$43:$Z$43)) -> 1 | H41: =ROUND(AVERAGE(G41:G47),0) -> 1 | I41: =VLOOKUP($D41,$AB$43:$AC$47,2) -> 1 | J41: =INDEX($O$43:$S$45,MATCH($E41,$N$43:$N$45),MATCH($D41,$O$42:$S$42)) -> 1 | K41: =VLOOKUP($D41,$AB$43:$AC$47,2) -> 1 | O41: ERC | U41: ADJECTIVE FIRE DANGER RATING | AB41: SOUTH BIG HORNS
B42: Forecasted | C42: =TODAY()+1 -> 2025-05-02 | D42: =AVERAGE('WXML S_BIG_V4'!R12:R13) -> 0 | E42: =AVERAGE('WXML S_BIG_V4'!S12:S13) -> 0 | F42: =AVERAGE('WXML S_BIG_V4'!O12:O13) -> 0 | G42: 1 | I42: 1 | J42: 1 | K42: 1 | N42: BI | O42: 0 | P42: 16 | Q42: 28 | R42: 42 | S42: 51 | V42: IGNITION COMPONENT | AB42: FM Y
C43: =TODAY()+2 -> 2025-05-03 | D43: =AVERAGE('WXML S_BIG_V4'!R10:R11) -> 0 | E43: =AVERAGE('WXML S_BIG_V4'!S10:S11) -> 0 | F43: =AVERAGE('WXML S_BIG_V4'!O10:O11) -> 0 | G43: 1 | I43: 1 | J43: 1 | K43: 1 | N43: 0 | O43: 1 | P43: 1 | Q43: 1 | R43: 2 | S43: 2 | U43: STAFFING LEVEL (ERC) | V43: 0 | W43: 9 | X43: 20 | Y43: 36 | Z43: 49 | AB43: 0 | AC43: 1
C44: =TODAY()+3 -> 2025-05-04 | D44: =AVERAGE('WXML S_BIG_V4'!R8:R9) -> 0 | E44: =AVERAGE('WXML S_BIG_V4'!S8:S9) -> 0 | F44: =AVERAGE('WXML S_BIG_V4'!O8:O9) -> 0 | G44: 1 | I44: 1 | J44: 1 | K44: 1 | N44: 24 | O44: 1 | P44: 1 | Q44: 2 | R44: 2 | S44: 3 | U44: 1 | V44: 1 | W44: 1 | X44: 1 | Y44: 2 | Z44: 2 | AB44: 16 | AC44: 2
C45: =TODAY()+4 -> 2025-05-05 | D45: =AVERAGE('WXML S_BIG_V4'!R6:R7) -> 0 | E45: =AVERAGE('WXML S_BIG_V4'!S6:S7) -> 0 | F45: =AVERAGE('WXML S_BIG_V4'!O6:O7) -> 0 | G45: 1 | I45: 1 | J45: 1 | K45: 1 | N45: 33 | O45: 1 | P45: 2 | Q45: 3 | R45: 3 | S45: 3 | U45: 2 | V45: 1 | W45: 2 | X45: 2 | Y45: 2 | Z45: 3 | AB45: 28 | AC45: 3
C46: =TODAY()+5 -> 2025-05-06 | D46: =AVERAGE('WXML S_BIG_V4'!R4:R5) -> 0 | E46: =AVERAGE('WXML S_BIG_V4'!S4:S5) -> 0 | F46: =AVERAGE('WXML S_BIG_V4'!O4:O5) -> 0 | G46: 1 | I46: 1 | J46: 1 | K46: 1 | U46: 3 | V46: 2 | W46: 2 | X46: 3 | Y46: 3 | Z46: 4 | AB46: 42 | AC46: 4
C47: =TODAY()+6 -> 2025-05-07 | D47: =AVERAGE('WXML S_BIG_V4'!R2:R3) -> 0 | E47: =AVERAGE('WXML S_BIG_V4'!S2:S3) -> 0 | F47: =AVERAGE('WXML S_BIG_V4'!O2:O3) -> 0 | G47: 1 | I47: 1 | J47: 1 | K47: 1 | U47: 4 | V47: 2 | W47: 3 | X47: 4 | Y47: 4 | Z47: 5 | AB47: 51 | AC47: 5
U48: 5 | V48: 3 | W48: 4 | X48: 4 | Y48: 5 | Z48: 5
C51: MEDBOW FDRA | D51: ERC | E51: BI | F51: IC | G51: ADJ RATING (DAILY) | H51: ADJ RATING (POSTED) | I51: PREPAREDNESS | J51: RESPONSE | K51: STAFFING | N51: MEDICINE BOW RESPONSE LEVEL | U51: MEDICINE BOW FIRE DANGER RATING | AB51: PL / SL (ERCs)
B52: Today | C52: =TODAY() -> 2025-05-01 | D52: =AVERAGE(WXML_MedBow_V4!R26:R29) -> 0 | E52: =AVERAGE(WXML_MedBow_V4!S26:S29) -> 0 | F52: =AVERAGE(WXML_MedBow_V4!O26:O29) -> 0 | G52: =INDEX($V$55:$Z$59,MATCH($K52,$U$55:$U$59),MATCH($F52,$V$54:$Z$54)) -> 1 | H52: =ROUND(AVERAGE(G52:G58),0) -> 1 | I52: =VLOOKUP($D52,$AB$54:$AC$58,2) -> 1 | J52: =INDEX($O$54:$S$56,MATCH(E52,$N$54:$N$56),MATCH($D52,$O$53:$S$53)) -> 1 | K52: =VLOOKUP($D52,$AB$54:$AC$58,2) -> 1 | O52: ERC | U52: ADJECTIVE FIRE DANGER RATING | AB52: MEDICINE BOW
B53: Forecasted | C53: =TODAY()+1 -> 2025-05-02 | D53: =AVERAGE(WXML_MedBow_V4!R22:R25) -> 0 | E53: =AVERAGE(WXML_MedBow_V4!S22:S25) -> 0 | F53: =AVERAGE(WXML_MedBow_V4!O22:O25) -> 0 | G53: 1 | I53: 1 | J53: 1 | K53: 1 | N53: BI | O53: 0 | P53: 46 | Q53: 66 | R53: 91 | S53: 111 | V53: IGNITION COMPONENT | AB53: FM Z
C54: =TODAY()+2 -> 2025-05-03 | D54: =AVERAGE(WXML_MedBow_V4!R18:R21) -> 0 | E54: =AVERAGE(WXML_MedBow_V4!S18:S21) -> 0 | F54: =AVERAGE(WXML_MedBow_V4!O18:O21) -> 0 | G54: 1 | I54: 1 | J54: 1 | K54: 1 | N54: 0 | O54: 1 | P54: 1 | Q54: 1 | R54: 2 | S54: 2 | U54: STAFFING LEVEL (ERC) | V54: 0 | W54: 8 | X54: 18 | Y54: 30 | Z54: 39 | AB54: 0 | AC54: 1
C55: =TODAY()+3 -> 2025-05-04 | D55: =AVERAGE(WXML_MedBow_V4!R14:R17) -> 0 | E55: =AVERAGE(WXML_MedBow_V4!S14:S17) -> 0 | F55: =AVERAGE(WXML_MedBow_V4!O14:O17) -> 0 | G55: 1 | I55: 1 | J55: 1 | K55: 1 | N55: 45 | O55: 1 | P55: 1 | Q55: 2 | R55: 2 | S55: 3 | U55: 1 | V55: 1 | W55: 1 | X55: 1 | Y55: 2 | Z55: 2 | AB55: 46 | AC55: 2
C56: =TODAY()+4 -> 2025-05-05 | D56: =AVERAGE(WXML_MedBow_V4!R10:R13) -> 0 | E56: =AVERAGE(WXML_MedBow_V4!S10:S13) -> 0 | F56: =AVERAGE(WXML_MedBow_V4!O10:O13) -> 0 | G56: 1 | I56: 1 | J56: 1 | K56: 1 | N56: 71 | O56: 1 | P56: 2 | Q56: 3 | R56: 3 | S56: 3 | U56: 2 | V56: 1 | W56: 2 | X56: 2 | Y56: 2 | Z56: 3 | AB56: 66 | AC56: 3
C57: =TODAY()+5 -> 2025-05-06 | D57: =AVERAGE(WXML_MedBow_V4!R6:R9) -> 0 | E57: =AVERAGE(WXML_MedBow_V4!S6:S9) -> 0 | F57: =AVERAGE(WXML_MedBow_V4!O6:O9) -> 0 | G57: 1 | I57: 1 | J57: 1 | K57: 1 | U57: 3 | V57: 2 | W57: 2 | X57: 3 | Y57: 3 | Z57: 4 | AB57: 91 | AC57: 4
C58: =TODAY()+6 -> 2025-05-07 | D58: =AVERAGE(WXML_MedBow_V4!R2:R5) -> 0 | E58: =AVERAGE(WXML_MedBow_V4!S2:S5) -> 0 | F58: =AVERAGE(WXML_MedBow_V4!O2:O5) -> 0 | G58: 1 | I58: 1 | J58: 1 | K58: 1 | U58: 4 | V58: 2 | W58: 3 | X58: 4 | Y58: 4 | Z58: 5 | AB58: 111 | AC58: 5
U59: 5 | V59: 3 | W59: 4 | X59: 4 | Y59: 5 | Z59: 5

Sheet FDRA Map

Sheet WXML WEST_Y24
A1: sta_id | B1: sta_nm | C1: latitude | D1: longitude | E1: nfdr_dt | F1: nfdr_tm | G1: nfdr_type | H1: mp | I1: msgc | J1: one_hr | K1: ten_hr | L1: hu_hr | M1: th_hr | N1: xh_hr | O1: ic | P1: kbdi | Q1: sc | R1: ec | S1: bi | T1: sl | U1: lr | V1: lo | W1: hr | X1: ho | Y1: fl | Z1: hrb | AA1: wdy | AB1: herb_gsi | AC1: woody_gsi | AD1: fueltemp | AE1: adj | AF1: Attribute:num
A2: 481801 | B2: MUDDY CREEK | C2: 41.4003 | D2: -110.5514 | E2: 2025-05-06 | F2: 13 | G2: F | H2: 2 | I2: 16Y1P | J2: 32.64 | K2: 25.24 | L2: 23.31 | M2: 23.39 | N2: -99.99 | O2: 0 | P2: 308 | Q2: 0 | R2: 0.4 | S2: 0 | T2: 1 | U2: 0 | V2: 0 | W2: 0 | X2: 0 | Y2: 0 | Z2: 30 | AA2: 60 | AB2: 0.37 | AC2: 0.37 | AD2: 0 | AE2: L | AF2: 2
A3: 481903 | B3: ANDERSON RIDGE | C3: 42.4372 | D3: -108.9456 | E3: 2025-05-06 | F3: 13 | G3: F | H3: 3 | I3: 16Y1P | J3: 32.64 | K3: 25.76 | L3: 23.66 | M3: 23.22 | N3: -99.99 | O3: 0 | P3: 320 | Q3: 0 | R3: 0.3 | S3: 0 | T3: 1 | U3: 0 | V3: 0 | W3: 0 | X3: 0 | Y3: 0 | Z3: 30 | AA3: 60 | AB3: 0.27 | AC3: 0.27 | AD3: 0 | AE3: L | AF3: 9
A4: 481904 | B4: SNOW SPRING CREEK | C4: 41.4175 | D4: -109.0361 | E4: 2025-05-06 | F4: 13 | G4: F | H4: 2 | I4: 16Y1P | J4: 12.36 | K4: 18.04 | L4: 15.16 | M4: 13.52 | N4: -99.99 | O4: 9.4 | P4: 229 | Q4: 4 | R4: 32.3 | S4: 26.7 | T4: 3 | U4: 0 | V4: 0 | W4: 0 | X4: 0 | Y4: 19 | Z4: 30 | AA4: 60 | AB4: 0.42 | AC4: 0.42 | AD4: 9 | AE4: M | AF4: 13
A5: 482011 | B5: COW CREEK | C5: 41.3091 | D5: -107.5738 | E5: 2025-05-06 | F5: 13 | G5: F | H5: 2 | I5: 16Y2P | J5: 13.49 | K5: 16.88 | L5: 14.9 | M5: 14.2 | N5: -99.99 | O5: 7.4 | P5: 383 | Q5: 4 | R5: 32.8 | S5: 27.2 | T5: 3 | U5: 0 | V5: 0 | W5: 0 | X5: 0 | Y5: 19 | Z5: 30 | AA5: 60 | AB5: 0.5 | AC5: 0.5 | AD5: 10 | AE5: M | AF5: 18
A6: 482106 | B6: DODGE CREEK | C6: 41.9672 | D6: -105.5192 | E6: 2025-05-06 | F6: 13 | G6: F | H6: 2 | I6: 16Y1P | J6: 12.18 | K6: 13.61 | L6: 13.98 | M6: 14.49 | N6: -99.99 | O6: 9.4 | P6: 248 | Q6: 3 | R6: 33.6 | S6: 25.6 | T6: 2 | U6: 0 | V6: 0 | W6: 0 | X6: 0 | Y6: 18 | Z6: 30 | AA6: 60 | AB6: 0.34 | AC6: 0.34 | AD6: 11 | AE6: L | AF6: 23
A7: 482106 | B7: DODGE CREEK | C7: 41.9672 | D7: -105.5192 | E7: 2025-05-06 | F7: 13 | G7: F | H7: 5 | I7: 16Y1P | J7: 12.18 | K7: 13.61 | L7: 13.98 | M7: 14.49 | N7: -99.99 | O7: 9.4 | P7: 248 | Q7: 3 | R7: 33.6 | S7: 25.6 | U7: 0 | V7: 0 | W7: 0 | X7: 0 | Y7: 18 | Z7: 30 | AA7: 60 | AB7: 0.34 | AC7: 0.34 | AD7: 11 | AF7: 26
A8: 481801 | B8: MUDDY CREEK | C8: 41.4003 | D8: -110.5514 | E8: 2025-05-05 | F8: 13 | G8: F | H8: 2 | I8: 16Y1P | J8: 32.64 | K8: 25.24 | L8: 23.31 | M8: 23.39 | N8: -99.99 | O8: 0 | P8: 308 | Q8: 0 | R8: 0.4 | S8: 0 | T8: 1 | U8: 0 | V8: 0 | W8: 0 | X8: 0 | Y8: 0 | Z8: 30 | AA8: 60 | AB8: 0.34 | AC8: 0.34 | AD8: 0 | AE8: L | AF8: 29
A9: 481903 | B9: ANDERSON RIDGE | C9: 42.4372 | D9: -108.9456 | E9: 2025-05-05 | F9: 13 | G9: F | H9: 3 | I9: 16Y1P | J9: 32.64 | K9: 25.76 | L9: 23.66 | M9: 23.22 | N9: -99.99 | O9: 0 | P9: 320 | Q9: 0 | R9: 0.3 | S9: 0 | T9: 1 | U9: 0 | V9: 0 | W9: 0 | X9: 0 | Y9: 0 | Z9: 30 | AA9: 60 | AB9: 0.25 | AC9: 0.25 | AD9: 0 | AE9: L | AF9: 36
A10: 481904 | B10: SNOW SPRING CREEK | C10: 41.4175 | D10: -109.0361 | E10: 2025-05-05 | F10: 13 | G10: F | H10: 2 | I10: 16Y1P | J10: 10.53 | K10: 15.87 | L10: 13.44 | M10: 13.51 | N10: -99.99 | O10: 16.1 | P10: 229 | Q10: 4 | R10: 35.8 | S10: 30.8 | T10: 3 | U10: 0 | V10: 0 | W10: 0 | X10: 0 | Y10: 22 | Z10: 30 | AA10: 60 | AB10: 0.41 | AC10: 0.41 | AD10: 11 | AE10: M | AF10: 40
A11: 482011 | B11: COW CREEK | C11: 41.3091 | D11: -107.5738 | E11: 2025-05-05 | F11: 13 | G11: F | H11: 2 | I11: 16Y2P | J11: 12.24 | K11: 16.14 | L11: 14.83 | M11: 14.16 | N11: -99.99 | O11: 10.8 | P11: 383 | Q11: 4 | R11: 34 | S11: 28.2 | T11: 3 | U11: 0 | V11: 0 | W11: 0 | X11: 0 | Y11: 20 | Z11: 30 | AA11: 60 | AB11: 0.49 | AC11: 0.49 | AD11: 14 | AE11: M | AF11: 45
A12: 482106 | B12: DODGE CREEK | C12: 41.9672 | D12: -105.5192 | E12: 2025-05-05 | F12: 13 | G12: F | H12: 2 | I12: 16Y1P | J12: 10.61 | K12: 12.42 | L12: 14.02 | M12: 14.46 | N12: -99.99 | O12: 16.7 | P12: 248 | Q12: 4 | R12: 35 | S12: 30.6 | T12: 3 | U12: 0 | V12: 0 | W12: 0 | X12: 0 | Y12: 22 | Z12: 30 | AA12: 60 | AB12: 0.31 | AC12: 0.31 | AD12: 16 | AE12: M | AF12: 50
A13: 482106 | B13: DODGE CREEK | C13: 41.9672 | D13: -105.5192 | E13: 2025-05-05 | F13: 13 | G13: F | H13: 5 | I13: 16Y1P | J13: 10.61 | K13: 12.42 | L13: 14.02 | M13: 14.46 | N13: -99.99 | O13: 16.7 | P13: 248 | Q13: 4 | R13: 35 | S13: 30.6 | U13: 0 | V13: 0 | W13: 0 | X13: 0 | Y13: 22 | Z13: 30 | AA13: 60 | AB13: 0.31 | AC13: 0.31 | AD13: 16 | AF13: 53
A14: 481801 | B14: MUDDY CREEK | C14: 41.4003 | D14: -110.5514 | E14: 2025-05-04 | F14: 13 | G14: F | H14: 2 | I14: 16Y1P | J14: 32.64 | K14: 25.24 | L14: 23.31 | M14: 23.39 | N14: -99.99 | O14: 0 | P14: 308 | Q14: 0 | R14: 0.4 | S14: 0 | T14: 1 | U14: 0 | V14: 0 | W14: 0 | X14: 0 | Y14: 0 | Z14: 30 | AA14: 60 | AB14: 0.31 | AC14: 0.31 | AD14: 0 | AE14: L | AF14: 56
A15: 481903 | B15: ANDERSON RIDGE | C15: 42.4372 | D15: -108.9456 | E15: 2025-05-04 | F15: 13 | G15: F | H15: 3 | I15: 16Y1P | J15: 32.64 | K15: 25.76 | L15: 23.66 | M15: 23.22 | N15: -99.99 | O15: 0 | P15: 320 | Q15: 0 | R15: 0.3 | S15: 0 | T15: 1 | U15: 0 | V15: 0 | W15: 0 | X15: 0 | Y15: 0 | Z15: 30 | AA15: 60 | AB15: 0.21 | AC15: 0.21 | AD15: 0 | AE15: L | AF15: 63
A16: 481904 | B16: SNOW SPRING CREEK | C16: 41.4175 | D16: -109.0361 | E16: 2025-05-04 | F16: 13 | G16: F | H16: 2 | I16: 16Y1P | J16: 9.23 | K16: 10.98 | L16: 12.61 | M16: 13.55 | N16: -99.99 | O16: 23.7 | P16: 229 | Q16: 5 | R16: 39.7 | S16: 35.3 | T16: 3 | U16: 0 | V16: 0 | W16: 0 | X16: 0 | Y16: 25 | Z16: 30 | AA16: 60 | AB16: 0.37 | AC16: 0.37 | AD16: 17 | AE16: M | AF16: 67
A17: 482011 | B17: COW CREEK | C17: 41.3091 | D17: -107.5738 | E17: 2025-05-04 | F17: 13 | G17: F | H17: 2 | I17: 16Y2P | J17: 11.18 | K17: 14.96 | L17: 14.91 | M17: 14.11 | N17: -99.99 | O17: 13.9 | P17: 383 | Q17: 4 | R17: 35.2 | S17: 28.3 | T17: 3 | U17: 0 | V17: 0 | W17: 0 | X17: 0 | Y17: 20 | Z17: 30 | AA17: 60 | AB17: 0.45 | AC17: 0.45 | AD17: 18 | AE17: M | AF17: 72
A18: 482106 | B18: DODGE CREEK | C18: 41.9672 | D18: -105.5192 | E18: 2025-05-04 | F18: 13 | G18: F | H18: 2 | I18: 16Y1P | J18: 9.88 | K18: 12.15 | L18: 14.26 | M18: 14.56 | N18: -99.99 | O18: 17.6 | P18: 248 | Q18: 3 | R18: 35.2 | S18: 27.2 | T18: 3 | U18: 0 | V18: 0 | W18: 0 | X18: 0 | Y18: 19 | Z18: 30 | AA18: 60 | AB18: 0.26 | AC18: 0.26 | AD18: 18 | AE18: M | AF18: 77
A19: 482106 | B19: DODGE CREEK | C19: 41.9672 | D19: -105.5192 | E19: 2025-05-04 | F19: 13 | G19: F | H19: 5 | I19: 16Y1P | J19: 9.88 | K19: 12.15 | L19: 14.26 | M19: 14.56 | N19: -99.99 | O19: 17.6 | P19: 248 | Q19: 3 | R19: 35.2 | S19: 27.2 | U19: 0 | V19: 0 | W19: 0 | X19: 0 | Y19: 19 | Z19: 30 | AA19: 60 | AB19: 0.26 | AC19: 0.26 | AD19: 18 | AF19: 80
A20: 481801 | B20: MUDDY CREEK | C20: 41.4003 | D20: -110.5514 | E20: 2025-05-03 | F20: 13 | G20: F | H20: 2 | I20: 16Y1P | J20: 32.64 | K20: 25.24 | L20: 23.31 | M20: 23.39 | N20: -99.99 | O20: 0 | P20: 308 | Q20: 0 | R20: 0.4 | S20: 0 | T20: 1 | U20: 0 | V20: 0 | W20: 0 | X20: 0 | Y20: 0 | Z20: 30 | AA20: 60 | AB20: 0.29 | AC20: 0.29 | AD20: 0 | AE20: L | AF20: 83
A21: 481903 | B21: ANDERSON RIDGE | C21: 42.4372 | D21: -108.9456 | E21: 2025-05-03 | F21: 13 | G21: F | H21: 3 | I21: 16Y1P | J21: 32.64 | K21: 25.76 | L21: 23.66 | M21: 23.22 | N21: -99.99 | O21: 0 | P21: 320 | Q21: 0 | R21: 0.3 | S21: 0 | T21: 1 | U21: 0 | V21: 0 | W21: 0 | X21: 0 | Y21: 0 | Z21: 30 | AA21: 60 | AB21: 0.17 | AC21: 0.17 | AD21: 0 | AE21: L | AF21: 90
A22: 481904 | B22: SNOW SPRING CREEK | C22: 41.4175 | D22: -109.0361 | E22: 2025-05-03 | F22: 13 | G22: F | H22: 2 | I22: 16Y1P | J22: 8.14 | K22: 10.17 | L22: 13.06 | M22: 13.62 | N22: -99.99 | O22: 27.6 | P22: 229 | Q22: 4 | R22: 40.2 | S22: 32.2 | T22: 3 | U22: 0 | V22: 0 | W22: 0 | X22: 0 | Y22: 23 | Z22: 30 | AA22: 60 | AB22: 0.34 | AC22: 0.34 | AD22: 19 | AE22: M | AF22: 94
A23: 482011 | B23: COW CREEK | C23: 41.3091 | D23: -107.5738 | E23: 2025-05-03 | F23: 13 | G23: F | H23: 2 | I23: 16Y2P | J23: 10.01 | K23: 12.63 | L23: 15.36 | M23: 13.97 | N23: -99.99 | O23: 18.4 | P23: 383 | Q23: 4 | R23: 37.1 | S23: 29.7 | T23: 3 | U23: 0 | V23: 0 | W23: 0 | X23: 0 | Y23: 21 | Z23: 30 | AA23: 60 | AB23: 0.44 | AC23: 0.44 | AD23: 19 | AE23: M | AF23: 99
A24: 482106 | B24: DODGE CREEK | C24: 41.9672 | D24: -105.5192 | E24: 2025-05-03 | F24: 13 | G24: F | H24: 2 | I24: 16Y1P | J24: 9.96 | K24: 12.45 | L24: 14.75 | M24: 14.64 | N24: -99.99 | O24: 15.4 | P24: 248 | Q24: 3 | R24: 34.4 | S24: 24 | T24: 2 | U24: 0 | V24: 0 | W24: 0 | X24: 0 | Y24: 17 | Z24: 30 | AA24: 60 | AB24: 0.26 | AC24: 0.26 | AD24: 19 | AE24: L | AF24: 104
A25: 482106 | B25: DODGE CREEK | C25: 41.9672 | D25: -105.5192 | E25: 2025-05-03 | F25: 13 | G25: F | H25: 5 | I25: 16Y1P | J25: 9.96 | K25: 12.45 | L25: 14.75 | M25: 14.64 | N25: -99.99 | O25: 15.4 | P25: 248 | Q25: 3 | R25: 34.4 | S25: 24 | U25: 0 | V25: 0 | W25: 0 | X25: 0 | Y25: 17 | Z25: 30 | AA25: 60 | AB25: 0.26 | AC25: 0.26 | AD25: 19 | AF25: 107
A26: 481801 | B26: MUDDY CREEK | C26: 41.4003 | D26: -110.5514 | E26: 2025-05-02 | F26: 13 | G26: F | H26: 2 | I26: 16Y1P | J26: 32.64 | K26: 25.24 | L26: 23.31 | M26: 23.39 | N26: -99.99 | O26: 0 | P26: 308 | Q26: 0 | R26: 0.4 | S26: 0 | T26: 1 | U26: 0 | V26: 0 | W26: 0 | X26: 0 | Y26: 0 | Z26: 30 | AA26: 60 | AB26: 0.3 | AC26: 0.3 | AD26: 0 | AE26: L | AF26: 110
A27: 481903 | B27: ANDERSON RIDGE | C27: 42.4372 | D27: -108.9456 | E27: 2025-05-02 | F27: 13 | G27: F | H27: 3 | I27: 16Y1P | J27: 32.64 | K27: 25.76 | L27: 23.66 | M27: 23.22 | N27: -99.99 | O27: 0 | P27: 320 | Q27: 0 | R27: 0.3 | S27: 0 | T27: 1 | U27: 0 | V27: 0 | W27: 0 | X27: 0 | Y27: 0 | Z27: 30 | AA27: 60 | AB27: 0.17 | AC27: 0.17 | AD27: 0 | AE27: L | AF27: 117
A28: 481904 | B28: SNOW SPRING CREEK | C28: 41.4175 | D28: -109.0361 | E28: 2025-05-02 | F28: 13 | G28: F | H28: 2 | I28: 16Y1P | J28: 9.82 | K28: 12.29 | L28: 13.46 | M28: 13.62 | N28: -99.99 | O28: 13.9 | P28: 229 | Q28: 2 | R28: 37.7 | S28: 23.1 | T28: 3 | U28: 0 | V28: 0 | W28: 0 | X28: 0 | Y28: 16 | Z28: 30 | AA28: 60 | AB28: 0.34 | AC28: 0.34 | AD28: 16 | AE28: M | AF28: 121
A29: 482011 | B29: COW CREEK | C29: 41.3091 | D29: -107.5738 | E29: 2025-05-02 | F29: 13 | G29: F | H29: 2 | I29: 16Y2P | J29: 11.76 | K29: 14.88 | L29: 15.44 | M29: 13.81 | N29: -99.99 | O29: 9.9 | P29: 383 | Q29: 3 | R29: 35.2 | S29: 23.8 | T29: 3 | U29: 0 | V29: 0 | W29: 0 | X29: 0 | Y29: 17 | Z29: 30 | AA29: 60 | AB29: 0.45 | AC29: 0.45 | AD29: 15 | AE29: M | AF29: 126
A30: 482106 | B30: DODGE CREEK | C30: 41.9672 | D30: -105.5192 | E30: 2025-05-02 | F30: 13 | G30: F | H30: 2 | I30: 16Y1P | J30: 11.09 | K30: 14.17 | L30: 15.09 | M30: 14.62 | N30: -99.99 | O30: 10.8 | P30: 248 | Q30: 2 | R30: 32.7 | S30: 22.1 | T30: 2 | U30: 0 | V30: 0 | W30: 0 | X30: 0 | Y30: 16 | Z30: 30 | AA30: 60 | AB30: 0.27 | AC30: 0.27 | AD30: 15 | AE30: L | AF30: 131
A31: 482106 | B31: DODGE CREEK | C31: 41.9672 | D31: -105.5192 | E31: 2025-05-02 | F31: 13 | G31: F | H31: 5 | I31: 16Y1P | J31: 11.09 | K31: 14.17 | L31: 15.09 | M31: 14.62 | N31: -99.99 | O31: 10.8 | P31: 248 | Q31: 2 | R31: 32.7 | S31: 22.1 | U31: 0 | V31: 0 | W31: 0 | X31: 0 | Y31: 16 | Z31: 30 | AA31: 60 | AB31: 0.27 | AC31: 0.27 | AD31: 15 | AF31: 134
A32: 481801 | B32: MUDDY CREEK | C32: 41.4003 | D32: -110.5514 | E32: 2025-05-01 | F32: 13 | G32: F | H32: 2 | I32: 16Y1P | J32: 32.64 | K32: 25.24 | L32: 23.31 | M32: 23.39 | N32: -99.99 | O32: 0 | P32: 308 | Q32: 0 | R32: 0.4 | S32: 0 | T32: 1 | U32: 0 | V32: 0 | W32: 0 | X32: 0 | Y32: 0 | Z32: 30 | AA32: 60 | AB32: 0.32 | AC32: 0.32 | AD32: 0 | AE32: L | AF32: 137
A33: 481903 | B33: ANDERSON RIDGE | C33: 42.4372 | D33: -108.9456 | E33: 2025-05-01 | F33: 13 | G33: F | H33: 3 | I33: 16Y1P | J33: 32.64 | K33: 25.76 | L33: 23.66 | M33: 23.22 | N33: -99.99 | O33: 0 | P33: 320 | Q33: 0 | R33: 0.3 | S33: 0 | T33: 1 | U33: 0 | V33: 0 | W33: 0 | X33: 0 | Y33: 0 | Z33: 30 | AA33: 60 | AB33: 0.19 | AC33: 0.19 | AD33: 0 | AE33: L | AF33: 144
A34: 481904 | B34: SNOW SPRING CREEK | C34: 41.4175 | D34: -109.0361 | E34: 2025-05-01 | F34: 13 | G34: F | H34: 2 | I34: 16Y1P | J34: 12.84 | K34: 16.82 | L34: 13.36 | M34: 13.62 | N34: -99.99 | O34: 7.4 | P34: 229 | Q34: 3 | R34: 33.8 | S34: 23.5 | T34: 3 | U34: 0 | V34: 0 | W34: 0 | X34: 0 | Y34: 17 | Z34: 30 | AA34: 60 | AB34: 0.36 | AC34: 0.36 | AD34: 11 | AE34: M | AF34: 148
A35: 482011 | B35: COW CREEK | C35: 41.3091 | D35: -107.5738 | E35: 2025-05-01 | F35: 13 | G35: F | H35: 2 | I35: 16Y2P | J35: 15.63 | K35: 21.76 | L35: 14.13 | M35: 13.81 | N35: -99.99 | O35: 3.8 | P35: 383 | Q35: 3 | R35: 30.7 | S35: 23.7 | T35: 3 | U35: 0 | V35: 0 | W35: 0 | X35: 0 | Y35: 17 | Z35: 30 | AA35: 60 | AB35: 0.48 | AC35: 0.48 | AD35: 11 | AE35: M | AF35: 153
A36: 482106 | B36: DODGE CREEK | C36: 41.9672 | D36: -105.5192 | E36: 2025-05-01 | F36: 13 | G36: F | H36: 2 | I36: 16Y1P | J36: 14.06 | K36: 20.09 | L36: 14.61 | M36: 14.67 | N36: -99.99 | O36: 5.4 | P36: 248 | Q36: 3 | R36: 28.7 | S36: 22.2 | T36: 2 | U36: 0 | V36: 0 | W36: 0 | X36: 0 | Y36: 16 | Z36: 30 | AA36: 60 | AB36: 0.3 | AC36: 0.3 | AD36: 10 | AE36: L | AF36: 158
A37: 482106 | B37: DODGE CREEK | C37: 41.9672 | D37: -105.5192 | E37: 2025-05-01 | F37: 13 | G37: F | H37: 5 | I37: 16Y1P | J37: 14.06 | K37: 20.09 | L37: 14.61 | M37: 14.67 | N37: -99.99 | O37: 5.4 | P37: 248 | Q37: 3 | R37: 28.7 | S37: 22.2 | U37: 0 | V37: 0 | W37: 0 | X37: 0 | Y37: 16 | Z37: 30 | AA37: 60 | AB37: 0.3 | AC37: 0.3 | AD37: 10 | AF37: 161
A38: 481801 | B38: MUDDY CREEK | C38: 41.4003 | D38: -110.5514 | E38: 2025-04-30 | F38: 13 | G38: F | H38: 2 | I38: 16Y1P | J38: 32.64 | K38: 25.24 | L38: 23.31 | M38: 23.39 | N38: -99.99 | O38: 0 | P38: 308 | Q38: 0 | R38: 0.4 | S38: 0 | T38: 1 | U38: 0 | V38: 0 | W38: 0 | X38: 0 | Y38: 0 | Z38: 30 | AA38: 60 | AB38: 0.31 | AC38: 0.31 | AD38: 0 | AE38: L | AF38: 164
A39: 481903 | B39: ANDERSON RIDGE | C39: 42.4372 | D39: -108.9456 | E39: 2025-04-30 | F39: 13 | G39: F | H39: 3 | I39: 16Y1P | J39: 32.64 | K39: 25.76 | L39: 23.66 | M39: 23.22 | N39: -99.99 | O39: 0 | P39: 320 | Q39: 0 | R39: 0.3 | S39: 0 | T39: 1 | U39: 0 | V39: 0 | W39: 0 | X39: 0 | Y39: 0 | Z39: 30 | AA39: 60 | AB39: 0.19 | AC39: 0.19 | AD39: 0 | AE39: L | AF39: 171
A40: 481904 | B40: SNOW SPRING CREEK | C40: 41.4175 | D40: -109.0361 | E40: 2025-04-30 | F40: 13 | G40: F | H40: 2 | I40: 16Y1P | J40: 11.8 | K40: 15.68 | L40: 13.31 | M40: 13.61 | N40: -99.99 | O40: 10.5 | P40: 229 | Q40: 3 | R40: 35 | S40: 27.1 | T40: 3 | U40: 0 | V40: 0 | W40: 0 | X40: 0 | Y40: 19 | Z40: 30 | AA40: 60 | AB40: 0.37 | AC40: 0.37 | AD40: 10 | AE40: M | AF40: 175
A41: 482011 | B41: COW CREEK | C41: 41.3091 | D41: -107.5738 | E41: 2025-04-30 | F41: 13 | G41: F | H41: 2 | I41: 16Y2P | J41: 12.87 | K41: 14.83 | L41: 13.26 | M41: 13.82 | N41: -99.99 | O41: 8.3 | P41: 383 | Q41: 4 | R41: 36.4 | S41: 28 | T41: 3 | U41: 0 | V41: 0 | W41: 0 | X41: 0 | Y41: 20 | Z41: 30 | AA41: 60 | AB41: 0.49 | AC41: 0.49 | AD41: 9 | AE41: M | AF41: 180
A42: 482106 | B42: DODGE CREEK | C42: 41.9672 | D42: -105.5192 | E42: 2025-04-30 | F42: 13 | G42: F | H42: 2 | I42: 16Y1P | J42: 10.71 | K42: 14.5 | L42: 14.57 | M42: 14.54 | N42: -99.99 | O42: 12.7 | P42: 248 | Q42: 3 | R42: 33.4 | S42: 25.2 | T42: 2 | U42: 0 | V42: 0 | W42: 0 | X42: 0 | Y42: 18 | Z42: 30 | AA42: 60 | AB42: 0.3 | AC42: 0.3 | AD42: 10 | AE42: L | AF42: 185
A43: 482106 | B43: DODGE CREEK | C43: 41.9672 | D43: -105.5192 | E43: 2025-04-30 | F43: 13 | G43: F | H43: 5 | I43: 16Y1P | J43: 10.71 | K43: 14.5 | L43: 14.57 | M43: 14.54 | N43: -99.99 | O43: 12.7 | P43: 248 | Q43: 3 | R43: 33.4 | S43: 25.2 | U43: 0 | V43: 0 | W43: 0 | X43: 0 | Y43: 18 | Z43: 30 | AA43: 60 | AB43: 0.3 | AC43: 0.3 | AD43: 10 | AF43: 188
A44: 481801 | B44: MUDDY CREEK | C44: 41.4003 | D44: -110.5514 | E44: 2025-04-29 | F44: 13 | G44: F | H44: 2 | I44: 16Y1P | J44: 32.64 | K44: 25.25 | L44: 23.33 | M44: 23.41 | N44: -99.99 | O44: 0 | P44: 308 | Q44: 0 | R44: 0.3 | S44: 0 | T44: 1 | U44: 0 | V44: 0 | W44: 0 | X44: 0 | Y44: 0 | Z44: 30 | AA44: 60 | AB44: 0.31 | AC44: 0.31 | AD44: 0 | AE44: L | AF44: 191
A45: 481903 | B45: ANDERSON RIDGE | C45: 42.4372 | D45: -108.9456 | E45: 2025-04-29 | F45: 13 | G45: F | H45: 3 | I45: 16Y1P | J45: 32.64 | K45: 25.25 | L45: 23.63 | M45: 23.21 | N45: -99.99 | O45: 0 | P45: 320 | Q45: 0 | R45: 0.5 | S45: 0 | T45: 1 | U45: 0 | V45: 0 | W45: 0 | X45: 0 | Y45: 0 | Z45: 30 | AA45: 60 | AB45: 0.18 | AC45: 0.18 | AD45: 0 | AE45: L | AF45: 198
A46: 481904 | B46: SNOW SPRING CREEK | C46: 41.4175 | D46: -109.0361 | E46: 2025-04-29 | F46: 13 | G46: F | H46: 2 | I46: 16Y1P | J46: 11.97 | K46: 13.16 | L46: 13.15 | M46: 13.55 | N46: -99.99 | O46: 8.5 | P46: 229 | Q46: 2 | R46: 36.5 | S46: 22.8 | T46: 3 | U46: 0 | V46: 0 | W46: 0 | X46: 0 | Y46: 16 | Z46: 30 | AA46: 60 | AB46: 0.37 | AC46: 0.37 | AD46: 13 | AE46: M | AF46: 202
A47: 482011 | B47: COW CREEK | C47: 41.3091 | D47: -107.5738 | E47: 2025-04-29 | F47: 13 | G47: F | H47: 2 | I47: 16Y2P | J47: 13.77 | K47: 15.91 | L47: 13.19 | M47: 13.82 | N47: -99.99 | O47: 6.5 | P47: 383 | Q47: 3 | R47: 35.4 | S47: 25.5 | T47: 3 | U47: 0 | V47: 0 | W47: 0 | X47: 0 | Y47: 18 | Z47: 33 | AA47: 61 | AB47: 0.5 | AC47: 0.5 | AD47: 13 | AE47: M | AF47: 207
A48: 482106 | B48: DODGE CREEK | C48: 41.9672 | D48: -105.5192 | E48: 2025-04-29 | F48: 13 | G48: F | H48: 2 | I48: 16Y1P | J48: 12.63 | K48: 14.02 | L48: 14.75 | M48: 14.54 | N48: -99.99 | O48: 7.4 | P48: 248 | Q48: 2 | R48: 32.4 | S48: 21.4 | T48: 2 | U48: 0 | V48: 0 | W48: 0 | X48: 0 | Y48: 15 | Z48: 30 | AA48: 60 | AB48: 0.32 | AC48: 0.32 | AD48: 13 | AE48: L | AF48: 212
A49: 482106 | B49: DODGE CREEK | C49: 41.9672 | D49: -105.5192 | E49: 2025-04-29 | F49: 13 | G49: F | H49: 5 | I49: 16Y1P | J49: 12.63 | K49: 14.02 | L49: 14.75 | M49: 14.54 | N49: -99.99 | O49: 7.4 | P49: 248 | Q49: 2 | R49: 32.4 | S49: 21.4 | U49: 0 | V49: 0 | W49: 0 | X49: 0 | Y49: 15 | Z49: 30 | AA49: 60 | AB49: 0.32 | AC49: 0.32 | AD49: 13 | AF49: 215
A50: 481801 | B50: MUDDY CREEK | C50: 41.4003 | D50: -110.5514 | E50: 2025-04-28 | F50: 13 | G50: F | H50: 2 | I50: 16Y1P | J50: 32.64 | K50: 25.28 | L50: 23.35 | M50: 23.44 | N50: -99.99 | O50: 0 | P50: 308 | Q50: 0 | R50: 0.3 | S50: 0 | T50: 1 | U50: 0 | V50: 0 | W50: 0 | X50: 0 | Y50: 0 | Z50: 30 | AA50: 60 | AB50: 0.34 | AC50: 0.34 | AD50: 0 | AE50: L | AF50: 218
A51: 481903 | B51: ANDERSON RIDGE | C51: 42.4372 | D51: -108.9456 | E51: 2025-04-28 | F51: 13 | G51: F | H51: 3 | I51: 16Y1P | J51: 32.64 | K51: 25.32 | L51: 23.69 | M51: 23.18 | N51: -99.99 | O51: 0 | P51: 320 | Q51: 0 | R51: 0.5 | S51: 0 | T51: 1 | U51: 0 | V51: 0 | W51: 0 | X51: 0 | Y51: 0 | Z51: 30 | AA51: 60 | AB51: 0.19 | AC51: 0.19 | AD51: 0 | AE51: L | AF51: 225
A52: 481904 | B52: SNOW SPRING CREEK | C52: 41.4175 | D52: -109.0361 | E52: 2025-04-28 | F52: 13 | G52: F | H52: 2 | I52: 16Y1P | J52: 9.82 | K52: 9.88 | L52: 13.34 | M52: 13.46 | N52: -99.99 | O52: 16.6 | P52: 229 | Q52: 4 | R52: 39.5 | S52: 29.7 | T52: 3 | U52: 0 | V52: 0 | W52: 0 | X52: 0 | Y52: 21 | Z52: 30 | AA52: 60 | AB52: 0.41 | AC52: 0.41 | AD52: 9 | AE52: M | AF52: 229
A53: 482011 | B53: COW CREEK | C53: 41.3091 | D53: -107.5738 | E53: 2025-04-28 | F53: 13 | G53: F | H53: 2 | I53: 16Y2P | J53: 11.55 | K53: 12.2 | L53: 12.95 | M53: 13.81 | N53: -99.99 | O53: 13.8 | P53: 382 | Q53: 5 | R53: 38.8 | S53: 34.1 | T53: 3 | U53: 0 | V53: 0 | W53: 0 | X53: 0 | Y53: 24 | Z53: 46 | AA53: 70 | AB53: 0.54 | AC53: 0.54 | AD53: 11 | AE53: M | AF53: 234
A54: 482106 | B54: DODGE CREEK | C54: 41.9672 | D54: -105.5192 | E54: 2025-04-28 | F54: 13 | G54: F | H54: 2 | I54: 16Y1P | J54: 9.55 | K54: 11.33 | L54: 15.04 | M54: 14.47 | N54: -99.99 | O54: 21 | P54: 247 | Q54: 8 | R54: 35.3 | S54: 39.8 | T54: 3 | U54: 0 | V54: 0 | W54: 0 | X54: 0 | Y54: 28 | Z54: 30 | AA54: 60 | AB54: 0.34 | AC54: 0.34 | AD54: 11 | AE54: M | AF54: 239
A55: 482106 | B55: DODGE CREEK | C55: 41.9672 | D55: -105.5192 | E55: 2025-04-28 | F55: 13 | G55: F | H55: 5 | I55: 16Y1P | J55: 9.55 | K55: 11.33 | L55: 15.04 | M55: 14.47 | N55: -99.99 | O55: 21 | P55: 247 | Q55: 8 | R55: 35.3 | S55: 39.8 | U55: 0 | V55: 0 | W55: 0 | X55: 0 | Y55: 28 | Z55: 30 | AA55: 60 | AB55: 0.34 | AC55: 0.34 | AD55: 11 | AF55: 242
A56: 481801 | B56: MUDDY CREEK | C56: 41.4003 | D56: -110.5514 | E56: 2025-04-27 | F56: 13 | G56: F | H56: 2 | I56: 16Y1P | J56: 32.64 | K56: 25.53 | L56: 23.38 | M56: 23.46 | N56: -99.99 | O56: 0 | P56: 307 | Q56: 0 | R56: 0.2 | S56: 0 | T56: 1 | U56: 0 | V56: 0 | W56: 0 | X56: 0 | Y56: 0 | Z56: 30 | AA56: 60 | AB56: 0.33 | AC56: 0.33 | AD56: 0 | AE56: L | AF56: 245
A57: 481903 | B57: ANDERSON RIDGE | C57: 42.4372 | D57: -108.9456 | E57: 2025-04-27 | F57: 13 | G57: F | H57: 3 | I57: 16Y1P | J57: 32.64 | K57: 25.91 | L57: 23.61 | M57: 23.16 | N57: -99.99 | O57: 0 | P57: 319 | Q57: 0 | R57: 0.4 | S57: 0 | T57: 1 | U57: 0 | V57: 0 | W57: 0 | X57: 0 | Y57: 0 | Z57: 30 | AA57: 60 | AB57: 0.18 | AC57: 0.18 | AD57: 0 | AE57: L | AF57: 252
A58: 481904 | B58: SNOW SPRING CREEK | C58: 41.4175 | D58: -109.0361 | E58: 2025-04-27 | F58: 13 | G58: F | H58: 2 | I58: 16Y1P | J58: 7.01 | K58: 10.46 | L58: 13.5 | M58: 13.4 | N58: -99.99 | O58: 34.9 | P58: 228 | Q58: 8 | R58: 40.8 | S58: 43.1 | T58: 3 | U58: 0 | V58: 0 | W58: 0 | X58: 0 | Y58: 31 | Z58: 30 | AA58: 60 | AB58: 0.42 | AC58: 0.42 | AD58: 14 | AE58: M | AF58: 256
A59: 482011 | B59: COW CREEK | C59: 41.3091 | D59: -107.5738 | E59: 2025-04-27 | F59: 13 | G59: F | H59: 2 | I59: 16Y2P | J59: 8.64 | K59: 10.35 | L59: 13.69 | M59: 13.81 | N59: -99.99 | O59: 26 | P59: 381 | Q59: 7 | R59: 40.9 | S59: 41.1 | T59: 3 | U59: 0 | V59: 0 | W59: 0 | X59: 0 | Y59: 29 | Z59: 46 | AA59: 70 | AB59: 0.54 | AC59: 0.54 | AD59: 15 | AE59: M | AF59: 261
A60: 482106 | B60: DODGE CREEK | C60: 41.9672 | D60: -105.5192 | E60: 2025-04-27 | F60: 13 | G60: F | H60: 2 | I60: 16Y1P | J60: 11.62 | K60: 15.74 | L60: 15.7 | M60: 14.03 | N60: -99.99 | O60: 11.4 | P60: 246 | Q60: 3 | R60: 32.5 | S60: 24.5 | T60: 2 | U60: 0 | V60: 0 | W60: 0 | X60: 0 | Y60: 17 | Z60: 30 | AA60: 60 | AB60: 0.3 | AC60: 0.3 | AD60: 18 | AE60: L | AF60: 266
A61: 482106 | B61: DODGE CREEK | C61: 41.9672 | D61: -105.5192 | E61: 2025-04-27 | F61: 13 | G61: F | H61: 5 | I61: 16Y1P | J61: 11.62 | K61: 15.74 | L61: 15.7 | M61: 14.03 | N61: -99.99 | O61: 11.4 | P61: 246 | Q61: 3 | R61: 32.5 | S61: 24.5 | U61: 0 | V61: 0 | W61: 0 | X61: 0 | Y61: 17 | Z61: 30 | AA61: 60 | AB61: 0.3 | AC61: 0.3 | AD61: 18 | AF61: 269
A62: 481801 | B62: MUDDY CREEK | C62: 41.4003 | D62: -110.5514 | E62: 2025-04-26 | F62: 13 | G62: F | H62: 2 | I62: 16Y1P | J62: 32.64 | K62: 25.24 | L62: 23.4 | M62: 23.49 | N62: -99.99 | O62: 0 | P62: 306 | Q62: 0 | R62: 0.2 | S62: 0 | T62: 1 | U62: 0 | V62: 0 | W62: 0 | X62: 0 | Y62: 0 | Z62: 30 | AA62: 60 | AB62: 0.32 | AC62: 0.32 | AD62: 0 | AE62: L | AF62: 272
A63: 481903 | B63: ANDERSON RIDGE | C63: 42.4372 | D63: -108.9456 | E63: 2025-04-26 | F63: 13 | G63: F | H63: 3 | I63: 16Y1P | J63: 33.56 | K63: 28.39 | L63: 23.52 | M63: 23.16 | N63: -99.99 | O63: 0 | P63: 319 | Q63: 0 | R63: 0 | S63: 0 | T63: 1 | U63: 0 | V63: 0 | W63: 0 | X63: 0 | Y63: 0 | Z63: 30 | AA63: 60 | AB63: 0.15 | AC63: 0.14 | AD63: 0 | AE63: L | AF63: 279
A64: 481904 | B64: SNOW SPRING CREEK | C64: 41.4175 | D64: -109.0361 | E64: 2025-04-26 | F64: 13 | G64: F | H64: 2 | I64: 16Y1P | J64: 9.58 | K64: 12.77 | L64: 12.4 | M64: 13.44 | N64: -99.99 | O64: 22.3 | P64: 227 | Q64: 7 | R64: 38.9 | S64: 38.6 | T64: 3 | U64: 0 | V64: 0 | W64: 0 | X64: 0 | Y64: 27 | Z64: 30 | AA64: 60 | AB64: 0.4 | AC64: 0.4 | AD64: 17 | AE64: M | AF64: 283
A65: 482011 | B65: COW CREEK | C65: 41.3091 | D65: -107.5738 | E65: 2025-04-26 | F65: 13 | G65: F | H65: 2 | I65: 16Y2P | J65: 8.29 | K65: 11.6 | L65: 13.56 | M65: 13.83 | N65: -99.99 | O65: 28.7 | P65: 380 | Q65: 7 | R65: 40.5 | S65: 40.2 | T65: 3 | U65: 0 | V65: 0 | W65: 0 | X65: 0 | Y65: 28 | Z65: 31 | AA65: 60 | AB65: 0.5 | AC65: 0.5 | AD65: 18 | AE65: M | AF65: 288
A66: 482106 | B66: DODGE CREEK | C66: 41.9672 | D66: -105.5192 | E66: 2025-04-26 | F66: 13 | G66: F | H66: 2 | I66: 16Y1P | J66: 12.08 | K66: 16.04 | L66: 14.74 | M66: 13.83 | N66: -99.99 | O66: 11.1 | P66: 245 | Q66: 3 | R66: 33.3 | S66: 26.4 | T66: 2 | U66: 0 | V66: 0 | W66: 0 | X66: 0 | Y66: 19 | Z66: 30 | AA66: 60 | AB66: 0.29 | AC66: 0.29 | AD66: 18 | AE66: L | AF66: 293
A67: 482106 | B67: DODGE CREEK | C67: 41.9672 | D67: -105.5192 | E67: 2025-04-26 | F67: 13 | G67: F | H67: 5 | I67: 16Y1P | J67: 12.08 | K67: 16.04 | L67: 14.74 | M67: 13.83 | N67: -99.99 | O67: 11.1 | P67: 245 | Q67: 3 | R67: 33.3 | S67: 26.4 | U67: 0 | V67: 0 | W67: 0 | X67: 0 | Y67: 19 | Z67: 30 | AA67: 60 | AB67: 0.29 | AC67: 0.29 | AD67: 18 | AF67: 296
A68: 481801 | B68: MUDDY CREEK | C68: 41.4003 | D68: -110.5514 | E68: 2025-04-25 | F68: 13 | G68: F | H68: 2 | I68: 16Y1P | J68: 32.64 | K68: 25.25 | L68: 23.45 | M68: 23.49 | N68: -99.99 | O68: 0 | P68: 305 | Q68: 0 | R68: 0.2 | S68: 0 | T68: 1 | U68: 0 | V68: 0 | W68: 0 | X68: 0 | Y68: 0 | Z68: 30 | AA68: 60 | AB68: 0.29 | AC68: 0.29 | AD68: 0 | AE68: L | AF68: 299
A69: 481903 | B69: ANDERSON RIDGE | C69: 42.4372 | D69: -108.9456 | E69: 2025-04-25 | F69: 13 | G69: F | H69: 3 | I69: 16Y1P | J69: 34.72 | K69: 27.15 | L69: 23.32 | M69: 23.16 | N69: -99.99 | O69: 0 | P69: 329 | Q69: 0 | R69: 0 | S69: 0 | T69: 1 | U69: 0 | V69: 0 | W69: 0 | X69: 0 | Y69: 0 | Z69: 30 | AA69: 60 | AB69: 0.13 | AC69: 0.13 | AD69: 0 | AE69: L | AF69: 306
A70: 481904 | B70: SNOW SPRING CREEK | C70: 41.4175 | D70: -109.0361 | E70: 2025-04-25 | F70: 13 | G70: F | H70: 2 | I70: 16Y1P | J70: 13.24 | K70: 17 | L70: 11.03 | M70: 13.3 | N70: -99.99 | O70: 7.2 | P70: 230 | Q70: 3 | R70: 36.1 | S70: 25 | T70: 3 | U70: 0 | V70: 0 | W70: 0 | X70: 0 | Y70: 18 | Z70: 30 | AA70: 60 | AB70: 0.37 | AC70: 0.37 | AD70: 13 | AE70: M | AF70: 310
A71: 482011 | B71: COW CREEK | C71: 41.3091 | D71: -107.5738 | E71: 2025-04-25 | F71: 13 | G71: F | H71: 2 | I71: 16Y2P | J71: 13.1 | K71: 18.36 | L71: 12.26 | M71: 13.83 | N71: -99.99 | O71: 8.4 | P71: 379 | Q71: 3 | R71: 35.2 | S71: 26.5 | T71: 3 | U71: 0 | V71: 0 | W71: 0 | X71: 0 | Y71: 19 | Z71: 30 | AA71: 60 | AB71: 0.47 | AC71: 0.47 | AD71: 17 | AE71: M | AF71: 315
A72: 482106 | B72: DODGE CREEK | C72: 41.9672 | D72: -105.5192 | E72: 2025-04-25 | F72: 13 | G72: F | H72: 2 | I72: 16Y1P | J72: 18.6 | K72: 21.76 | L72: 13.72 | M72: 13.86 | N72: -99.99 | O72: 1.1 | P72: 245 | Q72: 3 | R72: 28 | S72: 23.5 | T72: 2 | U72: 0 | V72: 0 | W72: 0 | X72: 0 | Y72: 17 | Z72: 30 | AA72: 60 | AB72: 0.27 | AC72: 0.27 | AD72: 2 | AE72: L | AF72: 320
A73: 482106 | B73: DODGE CREEK | C73: 41.9672 | D73: -105.5192 | E73: 2025-04-25 | F73: 13 | G73: F | H73: 5 | I73: 16Y1P | J73: 18.6 | K73: 21.76 | L73: 13.72 | M73: 13.86 | N73: -99.99 | O73: 1.1 | P73: 245 | Q73: 3 | R73: 28 | S73: 23.5 | U73: 0 | V73: 0 | W73: 0 | X73: 0 | Y73: 17 | Z73: 30 | AA73: 60 | AB73: 0.27 | AC73: 0.27 | AD73: 2 | AF73: 323
A74: 481801 | B74: MUDDY CREEK | C74: 41.4003 | D74: -110.5514 | E74: 2025-04-24 | F74: 13 | G74: F | H74: 2 | I74: 16Y1P | J74: 32.64 | K74: 25.27 | L74: 23.52 | M74: 23.48 | N74: -99.99 | O74: 0 | P74: 304 | Q74: 0 | R74: 0.2 | S74: 0 | T74: 1 | U74: 0 | V74: 0 | W74: 0 | X74: 0 | Y74: 0 | Z74: 30 | AA74: 60 | AB74: 0.27 | AC74: 0.27 | AD74: 0 | AE74: L | AF74: 326
A75: 481903 | B75: ANDERSON RIDGE | C75: 42.4372 | D75: -108.9456 | E75: 2025-04-24 | F75: 13 | G75: F | H75: 3 | I75: 16Y1P | J75: 32.64 | K75: 25.26 | L75: 23.27 | M75: 23.15 | N75: -99.99 | O75: 0 | P75: 329 | Q75: 0 | R75: 0.8 | S75: 0 | T75: 1 | U75: 0 | V75: 0 | W75: 0 | X75: 0 | Y75: 0 | Z75: 30 | AA75: 60 | AB75: 0.13 | AC75: 0.13 | AD75: 0 | AE75: L | AF75: 333
A76: 481904 | B76: SNOW SPRING CREEK | C76: 41.4175 | D76: -109.0361 | E76: 2025-04-24 | F76: 13 | G76: F | H76: 2 | I76: 16Y1P | J76: 12.08 | K76: 15.01 | L76: 10.45 | M76: 13.19 | N76: -99.99 | O76: 8.2 | P76: 229 | Q76: 2 | R76: 38.6 | S76: 23.3 | T76: 3 | U76: 0 | V76: 0 | W76: 0 | X76: 0 | Y76: 17 | Z76: 30 | AA76: 60 | AB76: 0.36 | AC76: 0.36 | AD76: 11 | AE76: M | AF76: 337
A77: 482011 | B77: COW CREEK | C77: 41.3091 | D77: -107.5738 | E77: 2025-04-24 | F77: 13 | G77: F | H77: 2 | I77: 16Y2P | J77: 11.48 | K77: 13.96 | L77: 11.61 | M77: 13.63 | N77: -99.99 | O77: 12.3 | P77: 378 | Q77: 3 | R77: 39.5 | S77: 28.8 | T77: 3 | U77: 0 | V77: 0 | W77: 0 | X77: 0 | Y77: 20 | Z77: 30 | AA77: 60 | AB77: 0.45 | AC77: 0.45 | AD77: 16 | AE77: M | AF77: 342
A78: 482106 | B78: DODGE CREEK | C78: 41.9672 | D78: -105.5192 | E78: 2025-04-24 | F78: 13 | G78: F | H78: 2 | I78: 16Y1P | J78: 14.93 | K78: 15.89 | L78: 10.88 | M78: 13.79 | N78: -99.99 | O78: 4.4 | P78: 245 | Q78: 3 | R78: 34.9 | S78: 23.9 | T78: 2 | U78: 0 | V78: 0 | W78: 0 | X78: 0 | Y78: 17 | Z78: 30 | AA78: 60 | AB78: 0.27 | AC78: 0.27 | AD78: 12 | AE78: L | AF78: 347
A79: 482106 | B79: DODGE CREEK | C79: 41.9672 | D79: -105.5192 | E79: 2025-04-24 | F79: 13 | G79: F | H79: 5 | I79: 16Y1P | J79: 14.93 | K79: 15.89 | L79: 10.88 | M79: 13.79 | N79: -99.99 | O79: 4.4 | P79: 245 | Q79: 3 | R79: 34.9 | S79: 23.9 | U79: 0 | V79: 0 | W79: 0 | X79: 0 | Y79: 17 | Z79: 30 | AA79: 60 | AB79: 0.27 | AC79: 0.27 | AD79: 12 | AF79: 350
A80: 481801 | B80: MUDDY CREEK | C80: 41.4003 | D80: -110.5514 | E80: 2025-04-23 | F80: 13 | G80: F | H80: 2 | I80: 16Y1P | J80: 32.64 | K80: 25.46 | L80: 23.59 | M80: 23.47 | N80: -99.99 | O80: 0 | P80: 303 | Q80: 0 | R80: 0.1 | S80: 0 | T80: 1 | U80: 0 | V80: 0 | W80: 0 | X80: 0 | Y80: 0 | Z80: 30 | AA80: 60 | AB80: 0.25 | AC80: 0.25 | AD80: 0 | AE80: L | AF80: 353
A81: 481903 | B81: ANDERSON RIDGE | C81: 42.4372 | D81: -108.9456 | E81: 2025-04-23 | F81: 13 | G81: F | H81: 3 | I81: 16Y1P | J81: 32.64 | K81: 25.37 | L81: 23.27 | M81: 23.15 | N81: -99.99 | O81: 0 | P81: 329 | Q81: 0 | R81: 0.7 | S81: 0 | T81: 1 | U81: 0 | V81: 0 | W81: 0 | X81: 0 | Y81: 0 | Z81: 30 | AA81: 60 | AB81: 0.1 | AC81: 0.1 | AD81: 0 | AE81: L | AF81: 360
A82: 481904 | B82: SNOW SPRING CREEK | C82: 41.4175 | D82: -109.0361 | E82: 2025-04-23 | F82: 13 | G82: F | H82: 2 | I82: 16Y1P | J82: 8.71 | K82: 10.14 | L82: 10.47 | M82: 13.36 | N82: -99.99 | O82: 19.1 | P82: 229 | Q82: 3 | R82: 42.8 | S82: 27.3 | T82: 3 | U82: 0 | V82: 0 | W82: 0 | X82: 0 | Y82: 19 | Z82: 30 | AA82: 60 | AB82: 0.34 | AC82: 0.34 | AD82: 14 | AE82: M | AF82: 364
A83: 482011 | B83: COW CREEK | C83: 41.3091 | D83: -107.5738 | E83: 2025-04-23 | F83: 13 | G83: F | H83: 2 | I83: 16Y2P | J83: 9.83 | K83: 11.21 | L83: 11.7 | M83: 13.75 | N83: -99.99 | O83: 17.4 | P83: 377 | Q83: 3 | R83: 41.6 | S83: 29.5 | T83: 3 | U83: 0 | V83: 0 | W83: 0 | X83: 0 | Y83: 21 | Z83: 30 | AA83: 60 | AB83: 0.41 | AC83: 0.41 | AD83: 17 | AE83: M | AF83: 369
A84: 482106 | B84: DODGE CREEK | C84: 41.9672 | D84: -105.5192 | E84: 2025-04-23 | F84: 13 | G84: F | H84: 2 | I84: 16Y1P | J84: 10.93 | K84: 11.49 | L84: 10.71 | M84: 13.61 | N84: -99.99 | O84: 12.2 | P84: 244 | Q84: 3 | R84: 40.1 | S84: 27.4 | T84: 3 | U84: 0 | V84: 0 | W84: 0 | X84: 0 | Y84: 19 | Z84: 30 | AA84: 60 | AB84: 0.24 | AC84: 0.24 | AD84: 11 | AE84: M | AF84: 374
A85: 482106 | B85: DODGE CREEK | C85: 41.9672 | D85: -105.5192 | E85: 2025-04-23 | F85: 13 | G85: F | H85: 5 | I85: 16Y1P | J85: 10.93 | K85: 11.49 | L85: 10.71 | M85: 13.61 | N85: -99.99 | O85: 12.2 | P85: 244 | Q85: 3 | R85: 40.1 | S85: 27.4 | U85: 0 | V85: 0 | W85: 0 | X85: 0 | Y85: 19 | Z85: 30 | AA85: 60 | AB85: 0.24 | AC85: 0.24 | AD85: 11 | AF85: 377
A86: 481801 | B86: MUDDY CREEK | C86: 41.4003 | D86: -110.5514 | E86: 2025-04-22 | F86: 13 | G86: F | H86: 2 | I86: 16Y1P | J86: 32.69 | K86: 26.87 | L86: 23.65 | M86: 23.49 | N86: -99.99 | O86: 0 | P86: 303 | Q86: 0 | R86: 0 | S86: 0 | T86: 1 | U86: 0 | V86: 0 | W86: 0 | X86: 0 | Y86: 0 | Z86: 30 | AA86: 60 | AB86: 0.23 | AC86: 0.23 | AD86: 0 | AE86: L | AF86: 380
A87: 481903 | B87: ANDERSON RIDGE | C87: 42.4372 | D87: -108.9456 | E87: 2025-04-22 | F87: 13 | G87: F | H87: 3 | I87: 16Y1P | J87: 32.72 | K87: 26.04 | L87: 23.27 | M87: 23.16 | N87: -99.99 | O87: 0 | P87: 329 | Q87: 0 | R87: 0.5 | S87: 0 | T87: 1 | U87: 0 | V87: 0 | W87: 0 | X87: 0 | Y87: 0 | Z87: 30 | AA87: 60 | AB87: 0.1 | AC87: 0.1 | AD87: 0 | AE87: L | AF87: 387
A88: 481904 | B88: SNOW SPRING CREEK | C88: 41.4175 | D88: -109.0361 | E88: 2025-04-22 | F88: 13 | G88: F | H88: 2 | I88: 16Y1P | J88: 9.51 | K88: 11.31 | L88: 10.48 | M88: 13.52 | N88: -99.99 | O88: 17.8 | P88: 229 | Q88: 4 | R88: 41.2 | S88: 29.5 | T88: 3 | U88: 0 | V88: 0 | W88: 0 | X88: 0 | Y88: 21 | Z88: 30 | AA88: 60 | AB88: 0.32 | AC88: 0.32 | AD88: 13 | AE88: M | AF88: 391
A89: 482011 | B89: COW CREEK | C89: 41.3091 | D89: -107.5738 | E89: 2025-04-22 | F89: 13 | G89: F | H89: 2 | I89: 16Y2P | J89: 10.7 | K89: 12.27 | L89: 11.52 | M89: 13.82 | N89: -99.99 | O89: 14.9 | P89: 377 | Q89: 4 | R89: 40.5 | S89: 30.5 | T89: 3 | U89: 0 | V89: 0 | W89: 0 | X89: 0 | Y89: 22 | Z89: 30 | AA89: 60 | AB89: 0.37 | AC89: 0.37 | AD89: 14 | AE89: M | AF89: 396
A90: 482106 | B90: DODGE CREEK | C90: 41.9672 | D90: -105.5192 | E90: 2025-04-22 | F90: 13 | G90: F | H90: 2 | I90: 16Y1P | J90: 10.09 | K90: 11.02 | L90: 10.7 | M90: 13.76 | N90: -99.99 | O90: 18.3 | P90: 244 | Q90: 4 | R90: 40.5 | S90: 33 | T90: 3 | U90: 0 | V90: 0 | W90: 0 | X90: 0 | Y90: 23 | Z90: 30 | AA90: 60 | AB90: 0.23 | AC90: 0.23 | AD90: 14 | AE90: M | AF90: 401
A91: 482106 | B91: DODGE CREEK | C91: 41.9672 | D91: -105.5192 | E91: 2025-04-22 | F91: 13 | G91: F | H91: 5 | I91: 16Y1P | J91: 10.09 | K91: 11.02 | L91: 10.7 | M91: 13.76 | N91: -99.99 | O91: 18.3 | P91: 244 | Q91: 4 | R91: 40.5 | S91: 33 | U91: 0 | V91: 0 | W91: 0 | X91: 0 | Y91: 23 | Z91: 30 | AA91: 60 | AB91: 0.23 | AC91: 0.23 | AD91: 14 | AF91: 404
A92: 481801 | B92: MUDDY CREEK | C92: 41.4003 | D92: -110.5514 | E92: 2025-04-21 | F92: 13 | G92: F | H92: 2 | I92: 16Y1P | J92: 32.64 | K92: 25.25 | L92: 23.68 | M92: 23.44 | N92: -99.99 | O92: 0 | P92: 303 | Q92: 0 | R92: 0.1 | S92: 0 | T92: 1 | U92: 0 | V92: 0 | W92: 0 | X92: 0 | Y92: 0 | Z92: 30 | AA92: 60 | AB92: 0.22 | AC92: 0.22 | AD92: 0 | AE92: L | AF92: 407
A93: 481903 | B93: ANDERSON RIDGE | C93: 42.4372 | D93: -108.9456 | E93: 2025-04-21 | F93: 13 | G93: F | H93: 3 | I93: 16Y1P | J93: 32.64 | K93: 25.27 | L93: 23.26 | M93: 23.16 | N93: -99.99 | O93: 0 | P93: 329 | Q93: 0 | R93: 0.8 | S93: 0 | T93: 1 | U93: 0 | V93: 0 | W93: 0 | X93: 0 | Y93: 0 | Z93: 30 | AA93: 60 | AB93: 0.11 | AC93: 0.11 | AD93: 0 | AE93: L | AF93: 414
A94: 481904 | B94: SNOW SPRING CREEK | C94: 41.4175 | D94: -109.0361 | E94: 2025-04-21 | F94: 13 | G94: F | H94: 2 | I94: 16Y1P | J94: 10.72 | K94: 14.47 | L94: 10.32 | M94: 13.61 | N94: -99.99 | O94: 16.1 | P94: 229 | Q94: 6 | R94: 38.8 | S94: 35.7 | T94: 3 | U94: 0 | V94: 0 | W94: 0 | X94: 0 | Y94: 25 | Z94: 30 | AA94: 60 | AB94: 0.32 | AC94: 0.32 | AD94: 9 | AE94: M | AF94: 418
A95: 482011 | B95: COW CREEK | C95: 41.3091 | D95: -107.5738 | E95: 2025-04-21 | F95: 13 | G95: F | H95: 2 | I95: 16Y2P | J95: 12.93 | K95: 14.07 | L95: 11.36 | M95: 13.87 | N95: -99.99 | O95: 9.9 | P95: 377 | Q95: 5 | R95: 38.2 | S95: 33.9 | T95: 3 | U95: 0 | V95: 0 | W95: 0 | X95: 0 | Y95: 24 | Z95: 30 | AA95: 60 | AB95: 0.35 | AC95: 0.35 | AD95: 10 | AE95: M | AF95: 423
A96: 482106 | B96: DODGE CREEK | C96: 41.9672 | D96: -105.5192 | E96: 2025-04-21 | F96: 13 | G96: F | H96: 2 | I96: 16Y1P | J96: 12.1 | K96: 12.82 | L96: 10.56 | M96: 13.89 | N96: -99.99 | O96: 12 | P96: 244 | Q96: 6 | R96: 38.1 | S96: 37.5 | T96: 3 | U96: 0 | V96: 0 | W96: 0 | X96: 0 | Y96: 27 | Z96: 30 | AA96: 60 | AB96: 0.21 | AC96: 0.21 | AD96: 10 | AE96: M | AF96: 428
A97: 482106 | B97: DODGE CREEK | C97: 41.9672 | D97: -105.5192 | E97: 2025-04-21 | F97: 13 | G97: F | H97: 5 | I97: 16Y1P | J97: 12.1 | K97: 12.82 | L97: 10.56 | M97: 13.89 | N97: -99.99 | O97: 12 | P97: 244 | Q97: 6 | R97: 38.1 | S97: 37.5 | U97: 0 | V97: 0 | W97: 0 | X97: 0 | Y97: 27 | Z97: 30 | AA97: 60 | AB97: 0.21 | AC97: 0.21 | AD97: 10 | AF97: 431
A98: 481801 | B98: MUDDY CREEK | C98: 41.4003 | D98: -110.5514 | E98: 2025-04-20 | F98: 13 | G98: F | H98: 2 | I98: 16Y1P | J98: 32.64 | K98: 25.34 | L98: 23.69 | M98: 23.42 | N98: -99.99 | O98: 0 | P98: 303 | Q98: 0 | R98: 0.1 | S98: 0 | T98: 1 | U98: 0 | V98: 0 | W98: 0 | X98: 0 | Y98: 0 | Z98: 30 | AA98: 60 | AB98: 0.2 | AC98: 0.2 | AD98: 0 | AE98: L | AF98: 434
A99: 481903 | B99: ANDERSON RIDGE | C99: 42.4372 | D99: -108.9456 | E99: 2025-04-20 | F99: 13 | G99: F | H99: 3 | I99: 16Y1P | J99: 32.64 | K99: 25.44 | L99: 23.26 | M99: 23.16 | N99: -99.99 | O99: 0 | P99: 329 | Q99: 0 | R99: 0.7 | S99: 0 | T99: 1 | U99: 0 | V99: 0 | W99: 0 | X99: 0 | Y99: 0 | Z99: 30 | AA99: 60 | AB99: 0.1 | AC99: 0.1 | AD99: 0 | AE99: L | AF99: 441
A100: 481904 | B100: SNOW SPRING CREEK | C100: 41.4175 | D100: -109.0361 | E100: 2025-04-20 | F100: 13 | G100: F | H100: 2 | I100: 16Y1P | J100: 11.78 | K100: 13.48 | L100: 10.2 | M100: 13.76 | N100: -99.99 | O100: 11.2 | P100: 229 | Q100: 4 | R100: 38.4 | S100: 30.2 | T100: 3 | U100: 0 | V100: 0 | W100: 0 | X100: 0 | Y100: 21 | Z100: 30 | AA100: 60 | AB100: 0.29 | AC100: 0.29 | AD100: 9 | AE100: M | AF100: 445
A101: 482011 | B101: COW CREEK | C101: 41.3091 | D101: -107.5738 | E101: 2025-04-20 | F101: 13 | G101: F | H101: 2 | I101: 16Y2P | J101: 13.65 | K101: 13.78 | L101: 10.98 | M101: 13.95 | N101: -99.99 | O101: 6.7 | P101: 377 | Q101: 4 | R101: 38 | S101: 29 | T101: 3 | U101: 0 | V101: 0 | W101: 0 | X101: 0 | Y101: 21 | Z101: 30 | AA101: 60 | AB101: 0.34 | AC101: 0.34 | AD101: 7 | AE101: M | AF101: 450
A102: 482106 | B102: DODGE CREEK | C102: 41.9672 | D102: -105.5192 | E102: 2025-04-20 | F102: 13 | G102: F | H102: 2 | I102: 16Y1P | J102: 12.16 | K102: 13.29 | L102: 10.47 | M102: 14.03 | N102: -99.99 | O102: 11.5 | P102: 244 | Q102: 5 | R102: 37.6 | S102: 34.5 | T102: 3 | U102: 0 | V102: 0 | W102: 0 | X102: 0 | Y102: 24 | Z102: 30 | AA102: 60 | AB102: 0.21 | AC102: 0.21 | AD102: 8 | AE102: M | AF102: 455
A103: 482106 | B103: DODGE CREEK | C103: 41.9672 | D103: -105.5192 | E103: 2025-04-20 | F103: 13 | G103: F | H103: 5 | I103: 16Y1P | J103: 12.16 | K103: 13.29 | L103: 10.47 | M103: 14.03 | N103: -99.99 | O103: 11.5 | P103: 244 | Q103: 5 | R103: 37.6 | S103: 34.5 | U103: 0 | V103: 0 | W103: 0 | X103: 0 | Y103: 24 | Z103: 30 | AA103: 60 | AB103: 0.21 | AC103: 0.21 | AD103: 8 | AF103: 458
A104: 481801 | B104: MUDDY CREEK | C104: 41.4003 | D104: -110.5514 | E104: 2025-04-19 | F104: 13 | G104: F | H104: 2 | I104: 16Y1P | J104: 32.64 | K104: 26.12 | L104: 23.64 | M104: 23.44 | N104: -99.99 | O104: 0 | P104: 303 | Q104: 0 | R104: 0 | S104: 0 | T104: 1 | U104: 0 | V104: 0 | W104: 0 | X104: 0 | Y104: 0 | Z104: 30 | AA104: 60 | AB104: 0.2 | AC104: 0.2 | AD104: 0 | AE104: L | AF104: 461
A105: 481903 | B105: ANDERSON RIDGE | C105: 42.4372 | D105: -108.9456 | E105: 2025-04-19 | F105: 13 | G105: F | H105: 3 | I105: 16Y1P | J105: 34.08 | K105: 25.27 | L105: 23.26 | M105: 23.17 | N105: -99.99 | O105: 0 | P105: 329 | Q105: 0 | R105: 0.2 | S105: 0 | T105: 1 | U105: 0 | V105: 0 | W105: 0 | X105: 0 | Y105: 0 | Z105: 30 | AA105: 60 | AB105: 0.1 | AC105: 0.1 | AD105: 0 | AE105: L | AF105: 468
A106: 481904 | B106: SNOW SPRING CREEK | C106: 41.4175 | D106: -109.0361 | E106: 2025-04-19 | F106: 13 | G106: F | H106: 2 | I106: 16Y1P | J106: 15 | K106: 14.21 | L106: 9.99 | M106: 13.9 | N106: -99.99 | O106: 3.5 | P106: 229 | Q106: 2 | R106: 36 | S106: 23.2 | T106: 3 | U106: 0 | V106: 0 | W106: 0 | X106: 0 | Y106: 16 | Z106: 30 | AA106: 60 | AB106: 0.29 | AC106: 0.29 | AD106: 2 | AE106: M | AF106: 472
A107: 482011 | B107: COW CREEK | C107: 41.3091 | D107: -107.5738 | E107: 2025-04-19 | F107: 13 | G107: F | H107: 2 | I107: 16Y2P | J107: 15.78 | K107: 15.02 | L107: 10.53 | M107: 13.97 | N107: -99.99 | O107: 2.7 | P107: 377 | Q107: 2 | R107: 36.4 | S107: 22.5 | T107: 3 | U107: 0 | V107: 0 | W107: 0 | X107: 0 | Y107: 16 | Z107: 30 | AA107: 60 | AB107: 0.34 | AC107: 0.34 | AD107: 3 | AE107: M | AF107: 477
A108: 482106 | B108: DODGE CREEK | C108: 41.9672 | D108: -105.5192 | E108: 2025-04-19 | F108: 13 | G108: F | H108: 2 | I108: 16Y1P | J108: 14.86 | K108: 15.34 | L108: 10.36 | M108: 14.15 | N108: -99.99 | O108: 3.1 | P108: 244 | Q108: 2 | R108: 34.8 | S108: 19.5 | T108: 2 | U108: 0 | V108: 0 | W108: 0 | X108: 0 | Y108: 14 | Z108: 30 | AA108: 60 | AB108: 0.21 | AC108: 0.21 | AD108: 4 | AE108: L | AF108: 482
A109: 482106 | B109: DODGE CREEK | C109: 41.9672 | D109: -105.5192 | E109: 2025-04-19 | F109: 13 | G109: F | H109: 5 | I109: 16Y1P | J109: 14.86 | K109: 15.34 | L109: 10.36 | M109: 14.15 | N109: -99.99 | O109: 3.1 | P109: 244 | Q109: 2 | R109: 34.8 | S109: 19.5 | U109: 0 | V109: 0 | W109: 0 | X109: 0 | Y109: 14 | Z109: 30 | AA109: 60 | AB109: 0.21 | AC109: 0.21 | AD109: 4 | AF109: 485
A110: 481801 | B110: MUDDY CREEK | C110: 41.4003 | D110: -110.5514 | E110: 2025-04-18 | F110: 13 | G110: F | H110: 2 | I110: 16Y1P | J110: 34.38 | K110: 28.76 | L110: 23.29 | M110: 23.43 | N110: -99.99 | O110: 0 | P110: 305 | Q110: 0 | R110: 0 | S110: 0 | T110: 1 | U110: 0 | V110: 0 | W110: 0 | X110: 0 | Y110: 0 | Z110: 30 | AA110: 60 | AB110: 0.2 | AC110: 0.2 | AD110: 0 | AE110: L | AF110: 488
A111: 481903 | B111: ANDERSON RIDGE | C111: 42.4372 | D111: -108.9456 | E111: 2025-04-18 | F111: 13 | G111: F | H111: 3 | I111: 16Y1P | J111: 32.64 | K111: 25.24 | L111: 23.26 | M111: 23.17 | N111: -99.99 | O111: 0 | P111: 329 | Q111: 0 | R111: 0.7 | S111: 0 | T111: 1 | U111: 0 | V111: 0 | W111: 0 | X111: 0 | Y111: 0 | Z111: 30 | AA111: 60 | AB111: 0.1 | AC111: 0.1 | AD111: 0 | AE111: L | AF111: 495
A112: 481904 | B112: SNOW SPRING CREEK | C112: 41.4175 | D112: -109.0361 | E112: 2025-04-18 | F112: 13 | G112: F | H112: 2 | I112: 16Y1P | J112: 20.46 | K112: 27.05 | L112: 10.05 | M112: 14.44 | N112: -99.99 | O112: 0.3 | P112: 229 | Q112: 3 | R112: 26.1 | S112: 23.7 | T112: 3 | U112: 0 | V112: 0 | W112: 0 | X112: 0 | Y112: 17 | Z112: 30 | AA112: 60 | AB112: 0.3 | AC112: 0.3 | AD112: -3 | AE112: M | AF112: 499
A113: 482011 | B113: COW CREEK | C113: 41.3091 | D113: -107.5738 | E113: 2025-04-18 | F113: 13 | G113: F | H113: 2 | I113: 16Y2P | J113: 15.74 | K113: 24.48 | L113: 11.13 | M113: 14.42 | N113: -99.99 | O113: 3.6 | P113: 377 | Q113: 4 | R113: 30.3 | S113: 28 | T113: 3 | U113: 0 | V113: 0 | W113: 0 | X113: 0 | Y113: 20 | Z113: 30 | AA113: 60 | AB113: 0.36 | AC113: 0.36 | AD113: 0 | AE113: M | AF113: 504
A114: 482106 | B114: DODGE CREEK | C114: 41.9672 | D114: -105.5192 | E114: 2025-04-18 | F114: 13 | G114: F | H114: 2 | I114: 16Y1P | J114: 20.26 | K114: 29.48 | L114: 10.69 | M114: 14.69 | N114: -99.99 | O114: 0.3 | P114: 244 | Q114: 2 | R114: 24.4 | S114: 16.8 | T114: 2 | U114: 0 | V114: 0 | W114: 0 | X114: 0 | Y114: 12 | Z114: 30 | AA114: 60 | AB114: 0.24 | AC114: 0.24 | AD114: -2 | AE114: L | AF114: 509
A115: 482106 | B115: DODGE CREEK | C115: 41.9672 | D115: -105.5192 | E115: 2025-04-18 | F115: 13 | G115: F | H115: 5 | I115: 16Y1P | J115: 20.26 | K115: 29.48 | L115: 10.69 | M115: 14.69 | N115: -99.99 | O115: 0.3 | P115: 244 | Q115: 2 | R115: 24.4 | S115: 16.8 | U115: 0 | V115: 0 | W115: 0 | X115: 0 | Y115: 12 | Z115: 30 | AA115: 60 | AB115: 0.24 | AC115: 0.24 | AD115: -2 | AF115: 512
A116: 481801 | B116: MUDDY CREEK | C116: 41.4003 | D116: -110.5514 | E116: 2025-04-17 | F116: 13 | G116: F | H116: 2 | I116: 16Y1P | J116: 32.64 | K116: 25.24 | L116: 23.29 | M116: 23.38 | N116: -99.99 | O116: 0 | P116: 304 | Q116: 0 | R116: 0.4 | S116: 0 | T116: 1 | U116: 0 | V116: 0 | W116: 0 | X116: 0 | Y116: 0 | Z116: 30 | AA116: 60 | AB116: 0.22 | AC116: 0.22 | AD116: 0 | AE116: L | AF116: 515
A117: 481903 | B117: ANDERSON RIDGE | C117: 42.4372 | D117: -108.9456 | E117: 2025-04-17 | F117: 13 | G117: F | H117: 3 | I117: 16Y1P | J117: 32.64 | K117: 25.24 | L117: 23.26 | M117: 23.17 | N117: -99.99 | O117: 0 | P117: 328 | Q117: 0 | R117: 0.7 | S117: 0 | T117: 1 | U117: 0 | V117: 0 | W117: 0 | X117: 0 | Y117: 0 | Z117: 30 | AA117: 60 | AB117: 0.11 | AC117: 0.11 | AD117: 0 | AE117: L | AF117: 522
A118: 481904 | B118: SNOW SPRING CREEK | C118: 41.4175 | D118: -109.0361 | E118: 2025-04-17 | F118: 13 | G118: F | H118: 2 | I118: 16Y1P | J118: 12.84 | K118: 21.68 | L118: 11.96 | M118: 14.44 | N118: -99.99 | O118: 8.2 | P118: 228 | Q118: 4 | R118: 30.8 | S118: 28.4 | T118: 3 | U118: 0 | V118: 0 | W118: 0 | X118: 0 | Y118: 20 | Z118: 30 | AA118: 60 | AB118: 0.33 | AC118: 0.33 | AD118: 1 | AE118: M | AF118: 526
A119: 482011 | B119: COW CREEK | C119: 41.3091 | D119: -107.5738 | E119: 2025-04-17 | F119: 13 | G119: F | H119: 2 | I119: 16Y2P | J119: 10.53 | K119: 16.4 | L119: 12.41 | M119: 13.98 | N119: -99.99 | O119: 16.7 | P119: 376 | Q119: 6 | R119: 37.2 | S119: 35.8 | T119: 3 | U119: 0 | V119: 0 | W119: 0 | X119: 0 | Y119: 25 | Z119: 30 | AA119: 60 | AB119: 0.4 | AC119: 0.4 | AD119: 9 | AE119: M | AF119: 531
A120: 482106 | B120: DODGE CREEK | C120: 41.9672 | D120: -105.5192 | E120: 2025-04-17 | F120: 13 | G120: F | H120: 2 | I120: 16Y1P | J120: 11.01 | K120: 15.45 | L120: 10.42 | M120: 14.2 | N120: -99.99 | O120: 11.6 | P120: 243 | Q120: 3 | R120: 36.8 | S120: 27.2 | T120: 3 | U120: 0 | V120: 0 | W120: 0 | X120: 0 | Y120: 19 | Z120: 30 | AA120: 60 | AB120: 0.32 | AC120: 0.32 | AD120: 5 | AE120: M | AF120: 536
A121: 482106 | B121: DODGE CREEK | C121: 41.9672 | D121: -105.5192 | E121: 2025-04-17 | F121: 13 | G121: F | H121: 5 | I121: 16Y1P | J121: 11.01 | K121: 15.45 | L121: 10.42 | M121: 14.2 | N121: -99.99 | O121: 11.6 | P121: 243 | Q121: 3 | R121: 36.8 | S121: 27.2 | U121: 0 | V121: 0 | W121: 0 | X121: 0 | Y121: 19 | Z121: 30 | AA121: 60 | AB121: 0.32 | AC121: 0.32 | AD121: 5 | AF121: 539
A122: 481801 | B122: MUDDY CREEK | C122: 41.4003 | D122: -110.5514 | E122: 2025-04-16 | F122: 13 | G122: F | H122: 2 | I122: 16Y1P | J122: 32.64 | K122: 25.24 | L122: 23.3 | M122: 23.41 | N122: -99.99 | O122: 0 | P122: 303 | Q122: 0 | R122: 0.4 | S122: 0 | T122: 1 | U122: 0 | V122: 0 | W122: 0 | X122: 0 | Y122: 0 | Z122: 30 | AA122: 60 | AB122: 0.23 | AC122: 0.23 | AD122: 0 | AE122: L | AF122: 542
A123: 481903 | B123: ANDERSON RIDGE | C123: 42.4372 | D123: -108.9456 | E123: 2025-04-16 | F123: 13 | G123: F | H123: 3 | I123: 16Y1P | J123: 32.64 | K123: 25.24 | L123: 23.26 | M123: 23.17 | N123: -99.99 | O123: 0 | P123: 327 | Q123: 0 | R123: 0.7 | S123: 0 | T123: 1 | U123: 0 | V123: 0 | W123: 0 | X123: 0 | Y123: 0 | Z123: 30 | AA123: 60 | AB123: 0.15 | AC123: 0.15 | AD123: 0 | AE123: L | AF123: 549
A124: 481904 | B124: SNOW SPRING CREEK | C124: 41.4175 | D124: -109.0361 | E124: 2025-04-16 | F124: 13 | G124: F | H124: 2 | I124: 16Y1P | J124: 7.36 | K124: 7.83 | L124: 9.9 | M124: 14.22 | N124: -99.99 | O124: 33.3 | P124: 227 | Q124: 6 | R124: 43.2 | S124: 37.4 | T124: 3 | U124: 0 | V124: 0 | W124: 0 | X124: 0 | Y124: 27 | Z124: 30 | AA124: 60 | AB124: 0.36 | AC124: 0.36 | AD124: 16 | AE124: M | AF124: 553
A125: 482011 | B125: COW CREEK | C125: 41.3091 | D125: -107.5738 | E125: 2025-04-16 | F125: 13 | G125: F | H125: 2 | I125: 16Y2P | J125: 7.41 | K125: 8.1 | L125: 9.98 | M125: 14.37 | N125: -99.99 | O125: 33.3 | P125: 375 | Q125: 5 | R125: 44.9 | S125: 35.7 | T125: 3 | U125: 0 | V125: 0 | W125: 0 | X125: 0 | Y125: 25 | Z125: 30 | AA125: 60 | AB125: 0.39 | AC125: 0.39 | AD125: 19 | AE125: M | AF125: 558
A126: 482106 | B126: DODGE CREEK | C126: 41.9672 | D126: -105.5192 | E126: 2025-04-16 | F126: 13 | G126: F | H126: 2 | I126: 16Y1P | J126: 7.27 | K126: 8.6 | L126: 10.42 | M126: 14.58 | N126: -99.99 | O126: 34.6 | P126: 242 | Q126: 6 | R126: 41.7 | S126: 38.1 | T126: 3 | U126: 0 | V126: 0 | W126: 0 | X126: 0 | Y126: 27 | Z126: 30 | AA126: 60 | AB126: 0.31 | AC126: 0.31 | AD126: 18 | AE126: M | AF126: 563
A127: 482106 | B127: DODGE CREEK | C127: 41.9672 | D127: -105.5192 | E127: 2025-04-16 | F127: 13 | G127: F | H127: 5 | I127: 16Y1P | J127: 7.27 | K127: 8.6 | L127: 10.42 | M127: 14.58 | N127: -99.99 | O127: 34.6 | P127: 242 | Q127: 6 | R127: 41.7 | S127: 38.1 | U127: 0 | V127: 0 | W127: 0 | X127: 0 | Y127: 27 | Z127: 30 | AA127: 60 | AB127: 0.31 | AC127: 0.31 | AD127: 18 | AF127: 566
A128: 481801 | B128: MUDDY CREEK | C128: 41.4003 | D128: -110.5514 | E128: 2025-04-15 | F128: 13 | G128: F | H128: 2 | I128: 16Y1P | J128: 32.64 | K128: 25.24 | L128: 23.32 | M128: 23.43 | N128: -99.99 | O128: 0 | P128: 302 | Q128: 0 | R128: 0.3 | S128: 0 | T128: 1 | U128: 0 | V128: 0 | W128: 0 | X128: 0 | Y128: 0 | Z128: 30 | AA128: 60 | AB128: 0.22 | AC128: 0.22 | AD128: 0 | AE128: L | AF128: 569
A129: 481903 | B129: ANDERSON RIDGE | C129: 42.4372 | D129: -108.9456 | E129: 2025-04-15 | F129: 13 | G129: F | H129: 3 | I129: 16Y1P | J129: 32.64 | K129: 25.24 | L129: 23.27 | M129: 23.18 | N129: -99.99 | O129: 0 | P129: 327 | Q129: 0 | R129: 0.7 | S129: 0 | T129: 1 | U129: 0 | V129: 0 | W129: 0 | X129: 0 | Y129: 0 | Z129: 30 | AA129: 60 | AB129: 0.14 | AC129: 0.14 | AD129: 0 | AE129: L | AF129: 576
A130: 481904 | B130: SNOW SPRING CREEK | C130: 41.4175 | D130: -109.0361 | E130: 2025-04-15 | F130: 13 | G130: F | H130: 2 | I130: 16Y1P | J130: 6.93 | K130: 7.89 | L130: 10.25 | M130: 14.51 | N130: -99.99 | O130: 31.4 | P130: 226 | Q130: 4 | R130: 42.4 | S130: 30.8 | T130: 3 | U130: 0 | V130: 0 | W130: 0 | X130: 0 | Y130: 22 | Z130: 30 | AA130: 60 | AB130: 0.35 | AC130: 0.35 | AD130: 17 | AE130: M | AF130: 580
A131: 482011 | B131: COW CREEK | C131: 41.3091 | D131: -107.5738 | E131: 2025-04-15 | F131: 13 | G131: F | H131: 2 | I131: 16Y2P | J131: 7.17 | K131: 8.25 | L131: 10.38 | M131: 14.74 | N131: -99.99 | O131: 33.4 | P131: 375 | Q131: 5 | R131: 43.6 | S131: 34.3 | T131: 3 | U131: 0 | V131: 0 | W131: 0 | X131: 0 | Y131: 24 | Z131: 30 | AA131: 60 | AB131: 0.38 | AC131: 0.38 | AD131: 17 | AE131: M | AF131: 585
A132: 482106 | B132: DODGE CREEK | C132: 41.9672 | D132: -105.5192 | E132: 2025-04-15 | F132: 13 | G132: F | H132: 2 | I132: 16Y1P | J132: 8.57 | K132: 9.04 | L132: 10.7 | M132: 14.88 | N132: -99.99 | O132: 24.9 | P132: 241 | Q132: 4 | R132: 39.7 | S132: 31.8 | T132: 3 | U132: 0 | V132: 0 | W132: 0 | X132: 0 | Y132: 23 | Z132: 30 | AA132: 60 | AB132: 0.3 | AC132: 0.3 | AD132: 17 | AE132: M | AF132: 590
A133: 482106 | B133: DODGE CREEK | C133: 41.9672 | D133: -105.5192 | E133: 2025-04-15 | F133: 13 | G133: F | H133: 5 | I133: 16Y1P | J133: 8.57 | K133: 9.04 | L133: 10.7 | M133: 14.88 | N133: -99.99 | O133: 24.9 | P133: 241 | Q133: 4 | R133: 39.7 | S133: 31.8 | U133: 0 | V133: 0 | W133: 0 | X133: 0 | Y133: 23 | Z133: 30 | AA133: 60 | AB133: 0.3 | AC133: 0.3 | AD133: 17 | AF133: 593
A134: 481801 | B134: MUDDY CREEK | C134: 41.4003 | D134: -110.5514 | E134: 2025-04-14 | F134: 13 | G134: F | H134: 2 | I134: 16Y1P | J134: 32.64 | K134: 25.24 | L134: 23.34 | M134: 23.46 | N134: -99.99 | O134: 0 | P134: 302 | Q134: 0 | R134: 0.3 | S134: 0 | T134: 1 | U134: 0 | V134: 0 | W134: 0 | X134: 0 | Y134: 0 | Z134: 30 | AA134: 60 | AB134: 0.24 | AC134: 0.24 | AD134: 0 | AE134: L | AF134: 596
A135: 481903 | B135: ANDERSON RIDGE | C135: 42.4372 | D135: -108.9456 | E135: 2025-04-14 | F135: 13 | G135: F | H135: 3 | I135: 16Y1P | J135: 32.64 | K135: 25.24 | L135: 23.28 | M135: 23.19 | N135: -99.99 | O135: 0 | P135: 327 | Q135: 0 | R135: 0.7 | S135: 0 | T135: 1 | U135: 0 | V135: 0 | W135: 0 | X135: 0 | Y135: 0 | Z135: 30 | AA135: 60 | AB135: 0.16 | AC135: 0.16 | AD135: 0 | AE135: L | AF135: 603
A136: 481904 | B136: SNOW SPRING CREEK | C136: 41.4175 | D136: -109.0361 | E136: 2025-04-14 | F136: 13 | G136: F | H136: 2 | I136: 16Y1P | J136: 9.56 | K136: 9.04 | L136: 10.53 | M136: 14.82 | N136: -99.99 | O136: 14.5 | P136: 226 | Q136: 2 | R136: 39.1 | S136: 24.7 | T136: 3 | U136: 0 | V136: 0 | W136: 0 | X136: 0 | Y136: 17 | Z136: 30 | AA136: 60 | AB136: 0.36 | AC136: 0.36 | AD136: 10 | AE136: M | AF136: 607
A137: 482011 | B137: COW CREEK | C137: 41.3091 | D137: -107.5738 | E137: 2025-04-14 | F137: 13 | G137: F | H137: 2 | I137: 16Y2P | J137: 9.55 | K137: 8.96 | L137: 10.59 | M137: 15.02 | N137: -99.99 | O137: 15.7 | P137: 375 | Q137: 3 | R137: 40.8 | S137: 26.6 | T137: 3 | U137: 0 | V137: 0 | W137: 0 | X137: 0 | Y137: 19 | Z137: 30 | AA137: 60 | AB137: 0.4 | AC137: 0.4 | AD137: 11 | AE137: M | AF137: 612
A138: 482106 | B138: DODGE CREEK | C138: 41.9672 | D138: -105.5192 | E138: 2025-04-14 | F138: 13 | G138: F | H138: 2 | I138: 16Y1P | J138: 10.8 | K138: 9.34 | L138: 10.93 | M138: 15.13 | N138: -99.99 | O138: 14.8 | P138: 241 | Q138: 4 | R138: 37.4 | S138: 31.4 | T138: 3 | U138: 0 | V138: 0 | W138: 0 | X138: 0 | Y138: 22 | Z138: 30 | AA138: 60 | AB138: 0.32 | AC138: 0.32 | AD138: 9 | AE138: M | AF138: 617
A139: 482106 | B139: DODGE CREEK | C139: 41.9672 | D139: -105.5192 | E139: 2025-04-14 | F139: 13 | G139: F | H139: 5 | I139: 16Y1P | J139: 10.8 | K139: 9.34 | L139: 10.93 | M139: 15.13 | N139: -99.99 | O139: 14.8 | P139: 241 | Q139: 4 | R139: 37.4 | S139: 31.4 | U139: 0 | V139: 0 | W139: 0 | X139: 0 | Y139: 22 | Z139: 30 | AA139: 60 | AB139: 0.32 | AC139: 0.32 | AD139: 9 | AF139: 620
A140: 481801 | B140: MUDDY CREEK | C140: 41.4003 | D140: -110.5514 | E140: 2025-04-13 | F140: 13 | G140: F | H140: 2 | I140: 16Y1P | J140: 32.64 | K140: 25.24 | L140: 23.37 | M140: 23.49 | N140: -99.99 | O140: 0 | P140: 301 | Q140: 0 | R140: 0.2 | S140: 0 | T140: 1 | U140: 0 | V140: 0 | W140: 0 | X140: 0 | Y140: 0 | Z140: 30 | AA140: 60 | AB140: 0.27 | AC140: 0.27 | AD140: 0 | AE140: L | AF140: 623
A141: 481903 | B141: ANDERSON RIDGE | C141: 42.4372 | D141: -108.9456 | E141: 2025-04-13 | F141: 13 | G141: F | H141: 3 | I141: 16Y1P | J141: 32.64 | K141: 25.24 | L141: 23.29 | M141: 23.19 | N141: -99.99 | O141: 0 | P141: 326 | Q141: 0 | R141: 0.7 | S141: 0 | T141: 1 | U141: 0 | V141: 0 | W141: 0 | X141: 0 | Y141: 0 | Z141: 30 | AA141: 60 | AB141: 0.16 | AC141: 0.16 | AD141: 0 | AE141: L | AF141: 630
A142: 481904 | B142: SNOW SPRING CREEK | C142: 41.4175 | D142: -109.0361 | E142: 2025-04-13 | F142: 13 | G142: F | H142: 2 | I142: 16Y1P | J142: 9.38 | K142: 9.14 | L142: 10.59 | M142: 15 | N142: -99.99 | O142: 19.7 | P142: 225 | Q142: 4 | R142: 38.7 | S142: 31.8 | T142: 3 | U142: 0 | V142: 0 | W142: 0 | X142: 0 | Y142: 23 | Z142: 30 | AA142: 60 | AB142: 0.39 | AC142: 0.39 | AD142: 9 | AE142: M | AF142: 634
A143: 482011 | B143: COW CREEK | C143: 41.3091 | D143: -107.5738 | E143: 2025-04-13 | F143: 13 | G143: F | H143: 2 | I143: 16Y2P | J143: 8.44 | K143: 9.14 | L143: 10.65 | M143: 15.17 | N143: -99.99 | O143: 25.5 | P143: 374 | Q143: 5 | R143: 40.9 | S143: 34.2 | T143: 3 | U143: 0 | V143: 0 | W143: 0 | X143: 0 | Y143: 24 | Z143: 30 | AA143: 60 | AB143: 0.42 | AC143: 0.42 | AD143: 11 | AE143: M | AF143: 639
A144: 482106 | B144: DODGE CREEK | C144: 41.9672 | D144: -105.5192 | E144: 2025-04-13 | F144: 13 | G144: F | H144: 2 | I144: 16Y1P | J144: 8.57 | K144: 9.58 | L144: 11.1 | M144: 15.32 | N144: -99.99 | O144: 24.8 | P144: 239 | Q144: 6 | R144: 37.9 | S144: 37.2 | T144: 3 | U144: 0 | V144: 0 | W144: 0 | X144: 0 | Y144: 26 | Z144: 30 | AA144: 60 | AB144: 0.34 | AC144: 0.34 | AD144: 9 | AE144: M | AF144: 644
A145: 482106 | B145: DODGE CREEK | C145: 41.9672 | D145: -105.5192 | E145: 2025-04-13 | F145: 13 | G145: F | H145: 5 | I145: 16Y1P | J145: 8.57 | K145: 9.58 | L145: 11.1 | M145: 15.32 | N145: -99.99 | O145: 24.8 | P145: 239 | Q145: 6 | R145: 37.9 | S145: 37.2 | U145: 0 | V145: 0 | W145: 0 | X145: 0 | Y145: 26 | Z145: 30 | AA145: 60 | AB145: 0.34 | AC145: 0.34 | AD145: 9 | AF145: 647
A146: 481801 | B146: MUDDY CREEK | C146: 41.4003 | D146: -110.5514 | E146: 2025-04-12 | F146: 13 | G146: F | H146: 2 | I146: 16Y1P | J146: 32.64 | K146: 25.24 | L146: 23.41 | M146: 23.52 | N146: -99.99 | O146: 0 | P146: 299 | Q146: 0 | R146: 0.2 | S146: 0 | T146: 1 | U146: 0 | V146: 0 | W146: 0 | X146: 0 | Y146: 0 | Z146: 30 | AA146: 60 | AB146: 0.26 | AC146: 0.26 | AD146: 0 | AE146: L | AF146: 650
A147: 481903 | B147: ANDERSON RIDGE | C147: 42.4372 | D147: -108.9456 | E147: 2025-04-12 | F147: 13 | G147: F | H147: 3 | I147: 16Y1P | J147: 32.64 | K147: 25.24 | L147: 23.3 | M147: 23.2 | N147: -99.99 | O147: 0 | P147: 325 | Q147: 0 | R147: 0.7 | S147: 0 | T147: 1 | U147: 0 | V147: 0 | W147: 0 | X147: 0 | Y147: 0 | Z147: 30 | AA147: 60 | AB147: 0.16 | AC147: 0.16 | AD147: 0 | AE147: L | AF147: 657
A148: 481904 | B148: SNOW SPRING CREEK | C148: 41.4175 | D148: -109.0361 | E148: 2025-04-12 | F148: 13 | G148: F | H148: 2 | I148: 16Y1P | J148: 6.03 | K148: 7.55 | L148: 10.85 | M148: 15.27 | N148: -99.99 | O148: 43.6 | P148: 224 | Q148: 9 | R148: 40.6 | S148: 44.6 | T148: 3 | U148: 0 | V148: 0 | W148: 0 | X148: 0 | Y148: 32 | Z148: 30 | AA148: 60 | AB148: 0.36 | AC148: 0.36 | AD148: 20 | AE148: M | AF148: 661
A149: 482011 | B149: COW CREEK | C149: 41.3091 | D149: -107.5738 | E149: 2025-04-12 | F149: 13 | G149: F | H149: 2 | I149: 16Y2P | J149: 6.36 | K149: 7.66 | L149: 11.14 | M149: 15.61 | N149: -99.99 | O149: 41.8 | P149: 373 | Q149: 10 | R149: 41.5 | S149: 47.3 | T149: 3 | U149: 0 | V149: 0 | W149: 0 | X149: 0 | Y149: 34 | Z149: 30 | AA149: 60 | AB149: 0.39 | AC149: 0.39 | AD149: 22 | AE149: M | AF149: 666
A150: 482106 | B150: DODGE CREEK | C150: 41.9672 | D150: -105.5192 | E150: 2025-04-12 | F150: 13 | G150: F | H150: 2 | I150: 16Y1P | J150: 7.19 | K150: 8.76 | L150: 11.59 | M150: 15.76 | N150: -99.99 | O150: 36.1 | P150: 237 | Q150: 8 | R150: 37.7 | S150: 42.5 | T150: 3 | U150: 0 | V150: 0 | W150: 0 | X150: 0 | Y150: 30 | Z150: 30 | AA150: 60 | AB150: 0.3 | AC150: 0.3 | AD150: 22 | AE150: M | AF150: 671
A151: 482106 | B151: DODGE CREEK | C151: 41.9672 | D151: -105.5192 | E151: 2025-04-12 | F151: 13 | G151: F | H151: 5 | I151: 16Y1P | J151: 7.19 | K151: 8.76 | L151: 11.59 | M151: 15.76 | N151: -99.99 | O151: 36.1 | P151: 237 | Q151: 8 | R151: 37.7 | S151: 42.5 | U151: 0 | V151: 0 | W151: 0 | X151: 0 | Y151: 30 | Z151: 30 | AA151: 60 | AB151: 0.3 | AC151: 0.3 | AD151: 22 | AF151: 674
A152: 481801 | B152: MUDDY CREEK | C152: 41.4003 | D152: -110.5514 | E152: 2025-04-11 | F152: 13 | G152: F | H152: 2 | I152: 16Y1P | J152: 32.64 | K152: 25.24 | L152: 23.47 | M152: 23.55 | N152: -99.99 | O152: 0 | P152: 297 | Q152: 0 | R152: 0.1 | S152: 0 | T152: 1 | U152: 0 | V152: 0 | W152: 0 | X152: 0 | Y152: 0 | Z152: 30 | AA152: 60 | AB152: 0.23 | AC152: 0.23 | AD152: 0 | AE152: L | AF152: 677
A153: 481903 | B153: ANDERSON RIDGE | C153: 42.4372 | D153: -108.9456 | E153: 2025-04-11 | F153: 13 | G153: F | H153: 3 | I153: 16Y1P | J153: 32.64 | K153: 25.24 | L153: 23.32 | M153: 23.2 | N153: -99.99 | O153: 0 | P153: 324 | Q153: 0 | R153: 0.7 | S153: 0 | T153: 1 | U153: 0 | V153: 0 | W153: 0 | X153: 0 | Y153: 0 | Z153: 30 | AA153: 60 | AB153: 0.12 | AC153: 0.12 | AD153: 0 | AE153: L | AF153: 684
A154: 481904 | B154: SNOW SPRING CREEK | C154: 41.4175 | D154: -109.0361 | E154: 2025-04-11 | F154: 13 | G154: F | H154: 2 | I154: 16Y1P | J154: 6.01 | K154: 7.98 | L154: 11.4 | M154: 15.75 | N154: -99.99 | O154: 42.4 | P154: 223 | Q154: 5 | R154: 38.8 | S154: 32.7 | T154: 3 | U154: 0 | V154: 0 | W154: 0 | X154: 0 | Y154: 23 | Z154: 30 | AA154: 60 | AB154: 0.32 | AC154: 0.32 | AD154: 21 | AE154: M | AF154: 688
A155: 482011 | B155: COW CREEK | C155: 41.3091 | D155: -107.5738 | E155: 2025-04-11 | F155: 13 | G155: F | H155: 2 | I155: 16Y2P | J155: 7.16 | K155: 8.34 | L155: 11.92 | M155: 16.2 | N155: -99.99 | O155: 36.2 | P155: 372 | Q155: 6 | R155: 38.4 | S155: 35.4 | T155: 3 | U155: 0 | V155: 0 | W155: 0 | X155: 0 | Y155: 25 | Z155: 30 | AA155: 60 | AB155: 0.35 | AC155: 0.35 | AD155: 21 | AE155: M | AF155: 693
A156: 482106 | B156: DODGE CREEK | C156: 41.9672 | D156: -105.5192 | E156: 2025-04-11 | F156: 13 | G156: F | H156: 2 | I156: 16Y1P | J156: 7.89 | K156: 9.07 | L156: 12.2 | M156: 16.24 | N156: -99.99 | O156: 29.7 | P156: 236 | Q156: 4 | R156: 35.5 | S156: 30.7 | T156: 3 | U156: 0 | V156: 0 | W156: 0 | X156: 0 | Y156: 22 | Z156: 30 | AA156: 60 | AB156: 0.25 | AC156: 0.25 | AD156: 21 | AE156: M | AF156: 698
A157: 482106 | B157: DODGE CREEK | C157: 41.9672 | D157: -105.5192 | E157: 2025-04-11 | F157: 13 | G157: F | H157: 5 | I157: 16Y1P | J157: 7.89 | K157: 9.07 | L157: 12.2 | M157: 16.24 | N157: -99.99 | O157: 29.7 | P157: 236 | Q157: 4 | R157: 35.5 | S157: 30.7 | U157: 0 | V157: 0 | W157: 0 | X157: 0 | Y157: 22 | Z157: 30 | AA157: 60 | AB157: 0.25 | AC157: 0.25 | AD157: 21 | AF157: 701
A158: 481801 | B158: MUDDY CREEK | C158: 41.4003 | D158: -110.5514 | E158: 2025-04-10 | F158: 13 | G158: F | H158: 2 | I158: 16Y1P | J158: 32.64 | K158: 25.24 | L158: 23.63 | M158: 23.52 | N158: -99.99 | O158: 0 | P158: 295 | Q158: 0 | R158: 0 | S158: 0 | T158: 1 | U158: 0 | V158: 0 | W158: 0 | X158: 0 | Y158: 0 | Z158: 30 | AA158: 60 | AB158: 0.21 | AC158: 0.21 | AD158: 0 | AE158: L | AF158: 704
A159: 481903 | B159: ANDERSON RIDGE | C159: 42.4372 | D159: -108.9456 | E159: 2025-04-10 | F159: 13 | G159: F | H159: 3 | I159: 16Y1P | J159: 32.64 | K159: 25.24 | L159: 23.37 | M159: 23.21 | N159: -99.99 | O159: 0 | P159: 324 | Q159: 0 | R159: 0.6 | S159: 0 | T159: 1 | U159: 0 | V159: 0 | W159: 0 | X159: 0 | Y159: 0 | Z159: 30 | AA159: 60 | AB159: 0.08 | AC159: 0.08 | AD159: 0 | AE159: L | AF159: 711
A160: 481904 | B160: SNOW SPRING CREEK | C160: 41.4175 | D160: -109.0361 | E160: 2025-04-10 | F160: 13 | G160: F | H160: 2 | I160: 16Y1P | J160: 10.07 | K160: 11.54 | L160: 12.2 | M160: 16.44 | N160: -99.99 | O160: 13.6 | P160: 222 | Q160: 2 | R160: 32.5 | S160: 22.4 | T160: 3 | U160: 0 | V160: 0 | W160: 0 | X160: 0 | Y160: 16 | Z160: 30 | AA160: 60 | AB160: 0.27 | AC160: 0.27 | AD160: 14 | AE160: M | AF160: 715
A161: 482011 | B161: COW CREEK | C161: 41.3091 | D161: -107.5738 | E161: 2025-04-10 | F161: 13 | G161: F | H161: 2 | I161: 16Y2P | J161: 10.3 | K161: 11.58 | L161: 13.15 | M161: 17.01 | N161: -99.99 | O161: 15.2 | P161: 372 | Q161: 3 | R161: 32.1 | S161: 25.9 | T161: 3 | U161: 0 | V161: 0 | W161: 0 | X161: 0 | Y161: 18 | Z161: 30 | AA161: 60 | AB161: 0.3 | AC161: 0.3 | AD161: 14 | AE161: M | AF161: 720
A162: 482106 | B162: DODGE CREEK | C162: 41.9672 | D162: -105.5192 | E162: 2025-04-10 | F162: 13 | G162: F | H162: 2 | I162: 16Y1P | J162: 11.25 | K162: 12.21 | L162: 13.15 | M162: 16.89 | N162: -99.99 | O162: 11.6 | P162: 235 | Q162: 3 | R162: 30 | S162: 23.8 | T162: 2 | U162: 0 | V162: 0 | W162: 0 | X162: 0 | Y162: 17 | Z162: 30 | AA162: 60 | AB162: 0.21 | AC162: 0.21 | AD162: 13 | AE162: L | AF162: 725
A163: 482106 | B163: DODGE CREEK | C163: 41.9672 | D163: -105.5192 | E163: 2025-04-10 | F163: 13 | G163: F | H163: 5 | I163: 16Y1P | J163: 11.25 | K163: 12.21 | L163: 13.15 | M163: 16.89 | N163: -99.99 | O163: 11.6 | P163: 235 | Q163: 3 | R163: 30 | S163: 23.8 | U163: 0 | V163: 0 | W163: 0 | X163: 0 | Y163: 17 | Z163: 30 | AA163: 60 | AB163: 0.21 | AC163: 0.21 | AD163: 13 | AF163: 728
A164: 481801 | B164: MUDDY CREEK | C164: 41.4003 | D164: -110.5514 | E164: 2025-04-09 | F164: 13 | G164: F | H164: 2 | I164: 16Y1P | J164: 32.64 | K164: 25.24 | L164: 23.63 | M164: 23.52 | N164: -99.99 | O164: 0 | P164: 295 | Q164: 0 | R164: 0 | S164: 0 | T164: 1 | U164: 0 | V164: 0 | W164: 0 | X164: 0 | Y164: 0 | Z164: 30 | AA164: 60 | AB164: 0.19 | AC164: 0.19 | AD164: 0 | AE164: L | AF164: 731
A165: 481903 | B165: ANDERSON RIDGE | C165: 42.4372 | D165: -108.9456 | E165: 2025-04-09 | F165: 13 | G165: F | H165: 3 | I165: 16Y1P | J165: 32.64 | K165: 25.24 | L165: 23.37 | M165: 23.21 | N165: -99.99 | O165: 0 | P165: 324 | Q165: 0 | R165: 0.6 | S165: 0 | T165: 1 | U165: 0 | V165: 0 | W165: 0 | X165: 0 | Y165: 0 | Z165: 30 | AA165: 60 | AB165: 0.08 | AC165: 0.08 | AD165: 0 | AE165: L | AF165: 738
A166: 481904 | B166: SNOW SPRING CREEK | C166: 41.4175 | D166: -109.0361 | E166: 2025-04-09 | F166: 13 | G166: F | H166: 2 | I166: 16Y1P | J166: 11.28 | K166: 12.74 | L166: 12.59 | M166: 16.6 | N166: -99.99 | O166: 14.2 | P166: 222 | Q166: 5 | R166: 30.7 | S166: 29.2 | T166: 3 | U166: 0 | V166: 0 | W166: 0 | X166: 0 | Y166: 21 | Z166: 30 | AA166: 60 | AB166: 0.24 | AC166: 0.24 | AD166: 12 | AE166: M | AF166: 742
A167: 482011 | B167: COW CREEK | C167: 41.3091 | D167: -107.5738 | E167: 2025-04-09 | F167: 13 | G167: F | H167: 2 | I167: 16Y2P | J167: 10.76 | K167: 11.62 | L167: 13.3 | M167: 17.14 | N167: -99.99 | O167: 16.9 | P167: 372 | Q167: 6 | R167: 31.4 | S167: 33.9 | T167: 3 | U167: 0 | V167: 0 | W167: 0 | X167: 0 | Y167: 24 | Z167: 30 | AA167: 60 | AB167: 0.28 | AC167: 0.28 | AD167: 14 | AE167: M | AF167: 747
A168: 482106 | B168: DODGE CREEK | C168: 41.9672 | D168: -105.5192 | E168: 2025-04-09 | F168: 13 | G168: F | H168: 2 | I168: 16Y1P | J168: 10.22 | K168: 11.38 | L168: 13.21 | M168: 16.97 | N168: -99.99 | O168: 18.6 | P168: 235 | Q168: 8 | R168: 30.7 | S168: 37.6 | T168: 2 | U168: 0 | V168: 0 | W168: 0 | X168: 0 | Y168: 27 | Z168: 30 | AA168: 60 | AB168: 0.21 | AC168: 0.21 | AD168: 13 | AE168: L | AF168: 752
A169: 482106 | B169: DODGE CREEK | C169: 41.9672 | D169: -105.5192 | E169: 2025-04-09 | F169: 13 | G169: F | H169: 5 | I169: 16Y1P | J169: 10.22 | K169: 11.38 | L169: 13.21 | M169: 16.97 | N169: -99.99 | O169: 18.6 | P169: 235 | Q169: 8 | R169: 30.7 | S169: 37.6 | U169: 0 | V169: 0 | W169: 0 | X169: 0 | Y169: 27 | Z169: 30 | AA169: 60 | AB169: 0.21 | AC169: 0.21 | AD169: 13 | AF169: 755
A170: 481801 | B170: MUDDY CREEK | C170: 41.4003 | D170: -110.5514 | E170: 2025-04-08 | F170: 13 | G170: F | H170: 2 | I170: 16Y1P | J170: 32.64 | K170: 25.24 | L170: 23.76 | M170: 23.51 | N170: -99.99 | O170: 0 | P170: 294 | Q170: 0 | R170: 0 | S170: 0 | T170: 1 | U170: 0 | V170: 0 | W170: 0 | X170: 0 | Y170: 0 | Z170: 30 | AA170: 60 | AB170: 0.17 | AC170: 0.17 | AD170: 0 | AE170: L | AF170: 758
A171: 481903 | B171: ANDERSON RIDGE | C171: 42.4372 | D171: -108.9456 | E171: 2025-04-08 | F171: 13 | G171: F | H171: 3 | I171: 16Y1P | J171: 32.64 | K171: 25.24 | L171: 23.41 | M171: 23.21 | N171: -99.99 | O171: 0 | P171: 324 | Q171: 0 | R171: 0.6 | S171: 0 | T171: 1 | U171: 0 | V171: 0 | W171: 0 | X171: 0 | Y171: 0 | Z171: 30 | AA171: 60 | AB171: 0.08 | AC171: 0.08 | AD171: 0 | AE171: L | AF171: 765
A172: 481904 | B172: SNOW SPRING CREEK | C172: 41.4175 | D172: -109.0361 | E172: 2025-04-08 | F172: 13 | G172: F | H172: 2 | I172: 16Y1P | J172: 9.11 | K172: 10.53 | L172: 12.71 | M172: 16.93 | N172: -99.99 | O172: 23.2 | P172: 221 | Q172: 7 | R172: 32 | S172: 35.6 | T172: 3 | U172: 0 | V172: 0 | W172: 0 | X172: 0 | Y172: 25 | Z172: 30 | AA172: 60 | AB172: 0.22 | AC172: 0.22 | AD172: 12 | AE172: M | AF172: 769
A173: 482011 | B173: COW CREEK | C173: 41.3091 | D173: -107.5738 | E173: 2025-04-08 | F173: 13 | G173: F | H173: 2 | I173: 16Y2P | J173: 8.47 | K173: 9.9 | L173: 13.9 | M173: 17.51 | N173: -99.99 | O173: 27.1 | P173: 372 | Q173: 6 | R173: 32.2 | S173: 35.1 | T173: 3 | U173: 0 | V173: 0 | W173: 0 | X173: 0 | Y173: 25 | Z173: 30 | AA173: 60 | AB173: 0.25 | AC173: 0.25 | AD173: 16 | AE173: M | AF173: 774
A174: 482106 | B174: DODGE CREEK | C174: 41.9672 | D174: -105.5192 | E174: 2025-04-08 | F174: 13 | G174: F | H174: 2 | I174: 16Y1P | J174: 9.03 | K174: 10.65 | L174: 13.8 | M174: 17.35 | N174: -99.99 | O174: 24.2 | P174: 234 | Q174: 10 | R174: 30.4 | S174: 40.8 | T174: 2 | U174: 0 | V174: 0 | W174: 0 | X174: 0 | Y174: 29 | Z174: 30 | AA174: 60 | AB174: 0.19 | AC174: 0.19 | AD174: 15 | AE174: M | AF174: 779
A175: 482106 | B175: DODGE CREEK | C175: 41.9672 | D175: -105.5192 | E175: 2025-04-08 | F175: 13 | G175: F | H175: 5 | I175: 16Y1P | J175: 9.03 | K175: 10.65 | L175: 13.8 | M175: 17.35 | N175: -99.99 | O175: 24.2 | P175: 234 | Q175: 10 | R175: 30.4 | S175: 40.8 | U175: 0 | V175: 0 | W175: 0 | X175: 0 | Y175: 29 | Z175: 30 | AA175: 60 | AB175: 0.19 | AC175: 0.19 | AD175: 15 | AF175: 782
A176: 481801 | B176: MUDDY CREEK | C176: 41.4003 | D176: -110.5514 | E176: 2025-04-07 | F176: 13 | G176: F | H176: 2 | I176: 16Y1P | J176: 32.64 | K176: 25.24 | L176: 23.92 | M176: 23.51 | N176: -99.99 | O176: 0 | P176: 293 | Q176: 0 | R176: 0 | S176: 0 | T176: 1 | U176: 0 | V176: 0 | W176: 0 | X176: 0 | Y176: 0 | Z176: 30 | AA176: 60 | AB176: 0.14 | AC176: 0.14 | AD176: 0 | AE176: L | AF176: 785
A177: 481903 | B177: ANDERSON RIDGE | C177: 42.4372 | D177: -108.9456 | E177: 2025-04-07 | F177: 13 | G177: F | H177: 3 | I177: 16Y1P | J177: 32.64 | K177: 25.24 | L177: 23.47 | M177: 23.2 | N177: -99.99 | O177: 0 | P177: 324 | Q177: 0 | R177: 0.6 | S177: 0 | T177: 1 | U177: 0 | V177: 0 | W177: 0 | X177: 0 | Y177: 0 | Z177: 30 | AA177: 60 | AB177: 0.07 | AC177: 0.07 | AD177: 0 | AE177: L | AF177: 792
A178: 481904 | B178: SNOW SPRING CREEK | C178: 41.4175 | D178: -109.0361 | E178: 2025-04-07 | F178: 13 | G178: F | H178: 2 | I178: 16Y1P | J178: 10.57 | K178: 11.29 | L178: 13.35 | M178: 17.38 | N178: -99.99 | O178: 16 | P178: 221 | Q178: 4 | R178: 29.5 | S178: 28.2 | T178: 3 | U178: 0 | V178: 0 | W178: 0 | X178: 0 | Y178: 20 | Z178: 30 | AA178: 60 | AB178: 0.17 | AC178: 0.17 | AD178: 11 | AE178: M | AF178: 796
A179: 482011 | B179: COW CREEK | C179: 41.3091 | D179: -107.5738 | E179: 2025-04-07 | F179: 13 | G179: F | H179: 2 | I179: 16Y2P | J179: 10.12 | K179: 11.23 | L179: 14.8 | M179: 17.94 | N179: -99.99 | O179: 19.4 | P179: 372 | Q179: 5 | R179: 29.1 | S179: 30.6 | T179: 3 | U179: 0 | V179: 0 | W179: 0 | X179: 0 | Y179: 22 | Z179: 30 | AA179: 60 | AB179: 0.21 | AC179: 0.21 | AD179: 15 | AE179: M | AF179: 801
A180: 482106 | B180: DODGE CREEK | C180: 41.9672 | D180: -105.5192 | E180: 2025-04-07 | F180: 13 | G180: F | H180: 2 | I180: 16Y1P | J180: 10.17 | K180: 10.76 | L180: 14.48 | M180: 17.73 | N180: -99.99 | O180: 19 | P180: 234 | Q180: 5 | R180: 28.5 | S180: 30.6 | T180: 2 | U180: 0 | V180: 0 | W180: 0 | X180: 0 | Y180: 22 | Z180: 30 | AA180: 60 | AB180: 0.18 | AC180: 0.18 | AD180: 13 | AE180: L | AF180: 806
A181: 482106 | B181: DODGE CREEK | C181: 41.9672 | D181: -105.5192 | E181: 2025-04-07 | F181: 13 | G181: F | H181: 5 | I181: 16Y1P | J181: 10.17 | K181: 10.76 | L181: 14.48 | M181: 17.73 | N181: -99.99 | O181: 19 | P181: 234 | Q181: 5 | R181: 28.5 | S181: 30.6 | U181: 0 | V181: 0 | W181: 0 | X181: 0 | Y181: 22 | Z181: 30 | AA181: 60 | AB181: 0.18 | AC181: 0.18 | AD181: 13 | AF181: 809
A182: 481801 | B182: MUDDY CREEK | C182: 41.4003 | D182: -110.5514 | E182: 2025-04-06 | F182: 13 | G182: F | H182: 2 | I182: 16Y1P | J182: 32.64 | K182: 25.25 | L182: 24.14 | M182: 23.46 | N182: -99.99 | O182: 0 | P182: 293 | Q182: 0 | R182: 0 | S182: 0 | T182: 1 | U182: 0 | V182: 0 | W182: 0 | X182: 0 | Y182: 0 | Z182: 30 | AA182: 60 | AB182: 0.17 | AC182: 0.17 | AD182: 0 | AE182: L | AF182: 812
A183: 481903 | B183: ANDERSON RIDGE | C183: 42.4372 | D183: -108.9456 | E183: 2025-04-06 | F183: 13 | G183: F | H183: 3 | I183: 16Y1P | J183: 32.64 | K183: 25.24 | L183: 23.54 | M183: 23.2 | N183: -99.99 | O183: 0 | P183: 324 | Q183: 0 | R183: 0.5 | S183: 0 | T183: 1 | U183: 0 | V183: 0 | W183: 0 | X183: 0 | Y183: 0 | Z183: 30 | AA183: 60 | AB183: 0.07 | AC183: 0.07 | AD183: 0 | AE183: L | AF183: 819
A184: 481904 | B184: SNOW SPRING CREEK | C184: 41.4175 | D184: -109.0361 | E184: 2025-04-06 | F184: 13 | G184: F | H184: 2 | I184: 16Y1P | J184: 11.14 | K184: 11.76 | L184: 13.87 | M184: 17.7 | N184: -99.99 | O184: 11.3 | P184: 221 | Q184: 3 | R184: 28 | S184: 23 | T184: 3 | U184: 0 | V184: 0 | W184: 0 | X184: 0 | Y184: 16 | Z184: 30 | AA184: 60 | AB184: 0.18 | AC184: 0.18 | AD184: 9 | AE184: M | AF184: 823
A185: 482011 | B185: COW CREEK | C185: 41.3091 | D185: -107.5738 | E185: 2025-04-06 | F185: 13 | G185: F | H185: 2 | I185: 16Y2P | J185: 10.42 | K185: 11.67 | L185: 15.62 | M185: 18.27 | N185: -99.99 | O185: 13.6 | P185: 372 | Q185: 3 | R185: 27.4 | S185: 23.2 | T185: 2 | U185: 0 | V185: 0 | W185: 0 | X185: 0 | Y185: 16 | Z185: 30 | AA185: 60 | AB185: 0.23 | AC185: 0.23 | AD185: 10 | AE185: L | AF185: 828
A186: 482106 | B186: DODGE CREEK | C186: 41.9672 | D186: -105.5192 | E186: 2025-04-06 | F186: 13 | G186: F | H186: 2 | I186: 16Y1P | J186: 10.51 | K186: 11.31 | L186: 15.22 | M186: 18.05 | N186: -99.99 | O186: 14.2 | P186: 234 | Q186: 4 | R186: 26.9 | S186: 24.6 | T186: 2 | U186: 0 | V186: 0 | W186: 0 | X186: 0 | Y186: 17 | Z186: 30 | AA186: 60 | AB186: 0.2 | AC186: 0.2 | AD186: 9 | AE186: L | AF186: 833
A187: 482106 | B187: DODGE CREEK | C187: 41.9672 | D187: -105.5192 | E187: 2025-04-06 | F187: 13 | G187: F | H187: 5 | I187: 16Y1P | J187: 10.51 | K187: 11.31 | L187: 15.22 | M187: 18.05 | N187: -99.99 | O187: 14.2 | P187: 234 | Q187: 4 | R187: 26.9 | S187: 24.6 | U187: 0 | V187: 0 | W187: 0 | X187: 0 | Y187: 17 | Z187: 30 | AA187: 60 | AB187: 0.2 | AC187: 0.2 | AD187: 9 | AF187: 836
A188: 481801 | B188: MUDDY CREEK | C188: 41.4003 | D188: -110.5514 | E188: 2025-04-05 | F188: 13 | G188: F | H188: 2 | I188: 16Y1P | J188: 32.64 | K188: 25.26 | L188: 24.43 | M188: 23.46 | N188: -99.99 | O188: 0 | P188: 293 | Q188: 0 | R188: 0 | S188: 0 | T188: 1 | U188: 0 | V188: 0 | W188: 0 | X188: 0 | Y188: 0 | Z188: 30 | AA188: 60 | AB188: 0.17 | AC188: 0.17 | AD188: 0 | AE188: L | AF188: 839
A189: 481903 | B189: ANDERSON RIDGE | C189: 42.4372 | D189: -108.9456 | E189: 2025-04-05 | F189: 13 | G189: F | H189: 3 | I189: 16Y1P | J189: 32.64 | K189: 25.25 | L189: 23.64 | M189: 23.19 | N189: -99.99 | O189: 0 | P189: 324 | Q189: 0 | R189: 0.5 | S189: 0 | T189: 1 | U189: 0 | V189: 0 | W189: 0 | X189: 0 | Y189: 0 | Z189: 30 | AA189: 60 | AB189: 0.07 | AC189: 0.07 | AD189: 0 | AE189: L | AF189: 846
A190: 481904 | B190: SNOW SPRING CREEK | C190: 41.4175 | D190: -109.0361 | E190: 2025-04-05 | F190: 13 | G190: F | H190: 2 | I190: 16Y1P | J190: 13.84 | K190: 12.84 | L190: 14.34 | M190: 17.97 | N190: -99.99 | O190: 4.7 | P190: 221 | Q190: 2 | R190: 25.3 | S190: 19.4 | T190: 2 | U190: 0 | V190: 0 | W190: 0 | X190: 0 | Y190: 14 | Z190: 30 | AA190: 60 | AB190: 0.18 | AC190: 0.18 | AD190: 2 | AE190: L | AF190: 850
A191: 482011 | B191: COW CREEK | C191: 41.3091 | D191: -107.5738 | E191: 2025-04-05 | F191: 13 | G191: F | H191: 2 | I191: 16Y2P | J191: 12.81 | K191: 13.52 | L191: 16.33 | M191: 18.52 | N191: -99.99 | O191: 7.6 | P191: 372 | Q191: 3 | R191: 24.5 | S191: 22.6 | T191: 2 | U191: 0 | V191: 0 | W191: 0 | X191: 0 | Y191: 16 | Z191: 30 | AA191: 60 | AB191: 0.23 | AC191: 0.23 | AD191: 4 | AE191: L | AF191: 855
A192: 482106 | B192: DODGE CREEK | C192: 41.9672 | D192: -105.5192 | E192: 2025-04-05 | F192: 13 | G192: F | H192: 2 | I192: 16Y1P | J192: 13.23 | K192: 13.1 | L192: 15.72 | M192: 18.25 | N192: -99.99 | O192: 5.4 | P192: 234 | Q192: 2 | R192: 24.2 | S192: 18.5 | T192: 2 | U192: 0 | V192: 0 | W192: 0 | X192: 0 | Y192: 13 | Z192: 30 | AA192: 60 | AB192: 0.2 | AC192: 0.2 | AD192: 2 | AE192: L | AF192: 860
A193: 482106 | B193: DODGE CREEK | C193: 41.9672 | D193: -105.5192 | E193: 2025-04-05 | F193: 13 | G193: F | H193: 5 | I193: 16Y1P | J193: 13.23 | K193: 13.1 | L193: 15.72 | M193: 18.25 | N193: -99.99 | O193: 5.4 | P193: 234 | Q193: 2 | R193: 24.2 | S193: 18.5 | U193: 0 | V193: 0 | W193: 0 | X193: 0 | Y193: 13 | Z193: 30 | AA193: 60 | AB193: 0.2 | AC193: 0.2 | AD193: 2 | AF193: 863
A194: 481801 | B194: MUDDY CREEK | C194: 41.4003 | D194: -110.5514 | E194: 2025-04-04 | F194: 13 | G194: F | H194: 2 | I194: 16Y1P | J194: 32.64 | K194: 25.37 | L194: 24.67 | M194: 23.35 | N194: -99.99 | O194: 0 | P194: 293 | Q194: 0 | R194: 0 | S194: 0 | T194: 1 | U194: 0 | V194: 0 | W194: 0 | X194: 0 | Y194: 0 | Z194: 30 | AA194: 60 | AB194: 0.17 | AC194: 0.17 | AD194: 0 | AE194: L | AF194: 866
A195: 481903 | B195: ANDERSON RIDGE | C195: 42.4372 | D195: -108.9456 | E195: 2025-04-04 | F195: 13 | G195: F | H195: 3 | I195: 16Y1P | J195: 32.64 | K195: 25.28 | L195: 23.74 | M195: 23.19 | N195: -99.99 | O195: 0 | P195: 324 | Q195: 0 | R195: 0.4 | S195: 0 | T195: 1 | U195: 0 | V195: 0 | W195: 0 | X195: 0 | Y195: 0 | Z195: 30 | AA195: 60 | AB195: 0.07 | AC195: 0.07 | AD195: 0 | AE195: L | AF195: 873
A196: 481904 | B196: SNOW SPRING CREEK | C196: 41.4175 | D196: -109.0361 | E196: 2025-04-04 | F196: 13 | G196: F | H196: 2 | I196: 16Y1P | J196: 13.86 | K196: 12.9 | L196: 14.56 | M196: 18.11 | N196: -99.99 | O196: 5.3 | P196: 221 | Q196: 3 | R196: 24.9 | S196: 22.3 | T196: 2 | U196: 0 | V196: 0 | W196: 0 | X196: 0 | Y196: 16 | Z196: 30 | AA196: 60 | AB196: 0.18 | AC196: 0.18 | AD196: 0 | AE196: L | AF196: 877
A197: 482011 | B197: COW CREEK | C197: 41.3091 | D197: -107.5738 | E197: 2025-04-04 | F197: 13 | G197: F | H197: 2 | I197: 16Y2P | J197: 14.73 | K197: 13.1 | L197: 16.52 | M197: 18.65 | N197: -99.99 | O197: 5.1 | P197: 372 | Q197: 4 | R197: 23.3 | S197: 25.5 | T197: 2 | U197: 0 | V197: 0 | W197: 0 | X197: 0 | Y197: 18 | Z197: 30 | AA197: 60 | AB197: 0.23 | AC197: 0.23 | AD197: 2 | AE197: L | AF197: 882
A198: 482106 | B198: DODGE CREEK | C198: 41.9672 | D198: -105.5192 | E198: 2025-04-04 | F198: 13 | G198: F | H198: 2 | I198: 16Y1P | J198: 15.34 | K198: 26 | L198: 16.35 | M198: 18.61 | N198: -99.99 | O198: 3.4 | P198: 234 | Q198: 3 | R198: 17.3 | S198: 18.8 | T198: 1 | U198: 0 | V198: 0 | W198: 0 | X198: 0 | Y198: 13 | Z198: 30 | AA198: 60 | AB198: 0.2 | AC198: 0.2 | AD198: -1 | AE198: L | AF198: 887
A199: 482106 | B199: DODGE CREEK | C199: 41.9672 | D199: -105.5192 | E199: 2025-04-04 | F199: 13 | G199: F | H199: 5 | I199: 16Y1P | J199: 15.34 | K199: 26 | L199: 16.35 | M199: 18.61 | N199: -99.99 | O199: 3.4 | P199: 234 | Q199: 3 | R199: 17.3 | S199: 18.8 | U199: 0 | V199: 0 | W199: 0 | X199: 0 | Y199: 13 | Z199: 30 | AA199: 60 | AB199: 0.2 | AC199: 0.2 | AD199: -1 | AF199: 890
A200: 481801 | B200: MUDDY CREEK | C200: 41.4003 | D200: -110.5514 | E200: 2025-04-03 | F200: 13 | G200: F | H200: 2 | I200: 16Y1P | J200: 32.64 | K200: 26.33 | L200: 24.44 | M200: 23.35 | N200: -99.99 | O200: 0 | P200: 293 | Q200: 0 | R200: 0 | S200: 0 | T200: 1 | U200: 0 | V200: 0 | W200: 0 | X200: 0 | Y200: 0 | Z200: 30 | AA200: 60 | AB200: 0.17 | AC200: 0.17 | AD200: 0 | AE200: L | AF200: 893
... 557 more rows

Sheet WXML EAST_V4
A1: sta_id | B1: sta_nm | C1: latitude | D1: longitude | E1: nfdr_dt | F1: nfdr_tm | G1: nfdr_type | H1: mp | I1: msgc | J1: one_hr | K1: ten_hr | L1: hu_hr | M1: th_hr | N1: xh_hr | O1: ic | P1: kbdi | Q1: sc | R1: ec | S1: bi | T1: sl | U1: lr | V1: lo | W1: hr | X1: ho | Y1: fl | Z1: hrb | AA1: wdy | AB1: herb_gsi | AC1: woody_gsi | AD1: fueltemp | AE1: adj | AF1: Attribute:num
A2: 480501 | B2: ECHETA | C2: 44.4655 | D2: -105.8445 | E2: 2025-05-06 | F2: 13 | G2: F | H2: 1 | I2: 16Y2P | J2: 12.65 | K2: 14.17 | L2: 14.22 | M2: 16.88 | N2: -99.99 | O2: 10.5 | P2: 473 | Q2: 4 | R2: 30.1 | S2: 28.6 | T2: 3 | U2: 0 | V2: 0 | W2: 0 | X2: 0 | Y2: 20 | Z2: 73 | AA2: 88 | AB2: 0.6 | AC2: 0.6 | AD2: 14 | AE2: M | AF2: 1
A3: 480502 | B3: ROCHELLE HILLS | C3: 43.5506 | D3: -105.0922 | E3: 2025-05-06 | F3: 13 | G3: F | H3: 1 | I3: 16Y1P | J3: 12.65 | K3: 14.54 | L3: 14.81 | M3: 16.85 | N3: -99.99 | O3: 9.6 | P3: 418 | Q3: 4 | R3: 29 | S3: 26.1 | T3: 3 | U3: 0 | V3: 0 | W3: 0 | X3: 0 | Y3: 19 | Z3: 53 | AA3: 75 | AB3: 0.55 | AC3: 0.55 | AD3: 13 | AE3: M | AF3: 6
A4: 481003 | B4: POKER | C4: 43.5694 | D4: -106.9783 | E4: 2025-05-06 | F4: 13 | G4: F | H4: 1 | I4: 16Y2P | J4: 32.64 | K4: 26.39 | L4: 23.95 | M4: 23.51 | N4: -99.99 | O4: 0 | P4: 140 | Q4: 0 | R4: 0 | S4: 0 | T4: 1 | U4: 0 | V4: 0 | W4: 0 | X4: 0 | Y4: 0 | Z4: 30 | AA4: 60 | AB4: 0.4 | AC4: 0.4 | AD4: 0 | AE4: L | AF4: 11
A5: 482102 | B5: ESTERBROOK | C5: 42.4158 | D5: -105.3611 | E5: 2025-05-06 | F5: 13 | G5: F | H5: 1 | I5: 16Y1P | J5: 12.31 | K5: 13.3 | L5: 13.75 | M5: 15.76 | N5: -99.99 | O5: 8.2 | P5: 319 | Q5: 2 | R5: 31.9 | S5: 22.5 | T5: 3 | U5: 0 | V5: 0 | W5: 0 | X5: 0 | Y5: 16 | Z5: 30 | AA5: 60 | AB5: 0.47 | AC5: 0.47 | AD5: 11 | AE5: M | AF5: 16
A6: 480501 | B6: ECHETA | C6: 44.4655 | D6: -105.8445 | E6: 2025-05-05 | F6: 13 | G6: F | H6: 1 | I6: 16Y2P | J6: 10.11 | K6: 12.13 | L6: 13.9 | M6: 17.19 | N6: -99.99 | O6: 20.1 | P6: 473 | Q6: 6 | R6: 32 | S6: 34.3 | T6: 3 | U6: 0 | V6: 0 | W6: 0 | X6: 0 | Y6: 24 | Z6: 61 | AA6: 80 | AB6: 0.57 | AC6: 0.57 | AD6: 17 | AE6: M | AF6: 21
A7: 480502 | B7: ROCHELLE HILLS | C7: 43.5506 | D7: -105.0922 | E7: 2025-05-05 | F7: 13 | G7: F | H7: 1 | I7: 16Y1P | J7: 10.65 | K7: 13.2 | L7: 14.7 | M7: 17.1 | N7: -99.99 | O7: 18.2 | P7: 418 | Q7: 5 | R7: 30.2 | S7: 31.2 | T7: 3 | U7: 0 | V7: 0 | W7: 0 | X7: 0 | Y7: 22 | Z7: 38 | AA7: 65 | AB7: 0.52 | AC7: 0.52 | AD7: 18 | AE7: M | AF7: 26
A8: 481003 | B8: POKER | C8: 43.5694 | D8: -106.9783 | E8: 2025-05-05 | F8: 13 | G8: F | H8: 1 | I8: 16Y2P | J8: 32.64 | K8: 26.39 | L8: 23.95 | M8: 23.51 | N8: -99.99 | O8: 0 | P8: 140 | Q8: 0 | R8: 0 | S8: 0 | T8: 1 | U8: 0 | V8: 0 | W8: 0 | X8: 0 | Y8: 0 | Z8: 30 | AA8: 60 | AB8: 0.36 | AC8: 0.36 | AD8: 0 | AE8: L | AF8: 31
A9: 482102 | B9: ESTERBROOK | C9: 42.4158 | D9: -105.3611 | E9: 2025-05-05 | F9: 13 | G9: F | H9: 1 | I9: 16Y1P | J9: 10.45 | K9: 11.87 | L9: 13.74 | M9: 16.01 | N9: -99.99 | O9: 14.7 | P9: 319 | Q9: 3 | R9: 33 | S9: 25.5 | T9: 3 | U9: 0 | V9: 0 | W9: 0 | X9: 0 | Y9: 18 | Z9: 30 | AA9: 60 | AB9: 0.43 | AC9: 0.43 | AD9: 16 | AE9: M | AF9: 36
A10: 480501 | B10: ECHETA | C10: 44.4655 | D10: -105.8445 | E10: 2025-05-04 | F10: 13 | G10: F | H10: 1 | I10: 16Y2P | J10: 8.07 | K10: 10.14 | L10: 14.35 | M10: 17.89 | N10: -99.99 | O10: 31.7 | P10: 473 | Q10: 6 | R10: 32.2 | S10: 35.1 | T10: 3 | U10: 0 | V10: 0 | W10: 0 | X10: 0 | Y10: 25 | Z10: 42 | AA10: 68 | AB10: 0.53 | AC10: 0.53 | AD10: 24 | AE10: M | AF10: 41
A11: 480502 | B11: ROCHELLE HILLS | C11: 43.5506 | D11: -105.0922 | E11: 2025-05-04 | F11: 13 | G11: F | H11: 1 | I11: 16Y1P | J11: 9.48 | K11: 12.24 | L11: 15.11 | M11: 17.58 | N11: -99.99 | O11: 24 | P11: 418 | Q11: 5 | R11: 30 | S11: 29.9 | T11: 3 | U11: 0 | V11: 0 | W11: 0 | X11: 0 | Y11: 21 | Z11: 30 | AA11: 60 | AB11: 0.47 | AC11: 0.47 | AD11: 23 | AE11: M | AF11: 46
A12: 481003 | B12: POKER | C12: 43.5694 | D12: -106.9783 | E12: 2025-05-04 | F12: 13 | G12: F | H12: 1 | I12: 16Y2P | J12: 32.64 | K12: 26.39 | L12: 23.95 | M12: 23.51 | N12: -99.99 | O12: 0 | P12: 140 | Q12: 0 | R12: 0 | S12: 0 | T12: 1 | U12: 0 | V12: 0 | W12: 0 | X12: 0 | Y12: 0 | Z12: 30 | AA12: 60 | AB12: 0.32 | AC12: 0.32 | AD12: 0 | AE12: L | AF12: 51
A13: 482102 | B13: ESTERBROOK | C13: 42.4158 | D13: -105.3611 | E13: 2025-05-04 | F13: 13 | G13: F | H13: 1 | I13: 16Y1P | J13: 9.43 | K13: 11.23 | L13: 14.21 | M13: 16.36 | N13: -99.99 | O13: 18.3 | P13: 319 | Q13: 3 | R13: 32.7 | S13: 25 | T13: 3 | U13: 0 | V13: 0 | W13: 0 | X13: 0 | Y13: 18 | Z13: 30 | AA13: 60 | AB13: 0.39 | AC13: 0.39 | AD13: 19 | AE13: M | AF13: 56
A14: 480501 | B14: ECHETA | C14: 44.4655 | D14: -105.8445 | E14: 2025-05-03 | F14: 13 | G14: F | H14: 1 | I14: 16Y2P | J14: 8.24 | K14: 10.39 | L14: 15.84 | M14: 18.71 | N14: -99.99 | O14: 28.9 | P14: 473 | Q14: 4 | R14: 29 | S14: 28 | T14: 3 | U14: 0 | V14: 0 | W14: 0 | X14: 0 | Y14: 20 | Z14: 38 | AA14: 65 | AB14: 0.52 | AC14: 0.52 | AD14: 24 | AE14: M | AF14: 61
A15: 480502 | B15: ROCHELLE HILLS | C15: 43.5506 | D15: -105.0922 | E15: 2025-05-03 | F15: 13 | G15: F | H15: 1 | I15: 16Y1P | J15: 9.19 | K15: 11.59 | L15: 16.2 | M15: 18.13 | N15: -99.99 | O15: 21.1 | P15: 418 | Q15: 4 | R15: 28.4 | S15: 24.8 | T15: 3 | U15: 0 | V15: 0 | W15: 0 | X15: 0 | Y15: 18 | Z15: 30 | AA15: 60 | AB15: 0.45 | AC15: 0.45 | AD15: 23 | AE15: M | AF15: 66
A16: 481003 | B16: POKER | C16: 43.5694 | D16: -106.9783 | E16: 2025-05-03 | F16: 13 | G16: F | H16: 1 | I16: 16Y2P | J16: 32.64 | K16: 26.39 | L16: 23.95 | M16: 23.51 | N16: -99.99 | O16: 0 | P16: 140 | Q16: 0 | R16: 0 | S16: 0 | T16: 1 | U16: 0 | V16: 0 | W16: 0 | X16: 0 | Y16: 0 | Z16: 30 | AA16: 60 | AB16: 0.29 | AC16: 0.29 | AD16: 0 | AE16: L | AF16: 71
A17: 482102 | B17: ESTERBROOK | C17: 42.4158 | D17: -105.3611 | E17: 2025-05-03 | F17: 13 | G17: F | H17: 1 | I17: 16Y1P | J17: 9.38 | K17: 11.34 | L17: 15.06 | M17: 16.72 | N17: -99.99 | O17: 15.6 | P17: 319 | Q17: 2 | R17: 31.3 | S17: 20.8 | T17: 3 | U17: 0 | V17: 0 | W17: 0 | X17: 0 | Y17: 15 | Z17: 30 | AA17: 60 | AB17: 0.36 | AC17: 0.36 | AD17: 20 | AE17: M | AF17: 76
A18: 480501 | B18: ECHETA | C18: 44.4655 | D18: -105.8445 | E18: 2025-05-02 | F18: 13 | G18: F | H18: 1 | I18: 16Y2P | J18: 10.34 | K18: 12.73 | L18: 17.7 | M18: 18.85 | N18: -99.99 | O18: 15.9 | P18: 473 | Q18: 3 | R18: 25.3 | S18: 22.8 | T18: 2 | U18: 0 | V18: 0 | W18: 0 | X18: 0 | Y18: 16 | Z18: 36 | AA18: 64 | AB18: 0.51 | AC18: 0.51 | AD18: 20 | AE18: L | AF18: 81
A19: 480502 | B19: ROCHELLE HILLS | C19: 43.5506 | D19: -105.0922 | E19: 2025-05-02 | F19: 13 | G19: F | H19: 1 | I19: 16Y1P | J19: 10.93 | K19: 13.39 | L19: 17.81 | M19: 17.89 | N19: -99.99 | O19: 12.1 | P19: 418 | Q19: 2 | R19: 26 | S19: 20.5 | T19: 3 | U19: 0 | V19: 0 | W19: 0 | X19: 0 | Y19: 15 | Z19: 30 | AA19: 60 | AB19: 0.45 | AC19: 0.45 | AD19: 18 | AE19: M | AF19: 86
A20: 481003 | B20: POKER | C20: 43.5694 | D20: -106.9783 | E20: 2025-05-02 | F20: 13 | G20: F | H20: 1 | I20: 16Y2P | J20: 32.64 | K20: 26.39 | L20: 23.95 | M20: 23.51 | N20: -99.99 | O20: 0 | P20: 140 | Q20: 0 | R20: 0 | S20: 0 | T20: 1 | U20: 0 | V20: 0 | W20: 0 | X20: 0 | Y20: 0 | Z20: 30 | AA20: 60 | AB20: 0.29 | AC20: 0.29 | AD20: 0 | AE20: L | AF20: 91
A21: 482102 | B21: ESTERBROOK | C21: 42.4158 | D21: -105.3611 | E21: 2025-05-02 | F21: 13 | G21: F | H21: 1 | I21: 16Y1P | J21: 10.78 | K21: 13.21 | L21: 16.06 | M21: 16.88 | N21: -99.99 | O21: 10.4 | P21: 319 | Q21: 2 | R21: 28.6 | S21: 18.6 | T21: 3 | U21: 0 | V21: 0 | W21: 0 | X21: 0 | Y21: 13 | Z21: 30 | AA21: 60 | AB21: 0.36 | AC21: 0.36 | AD21: 16 | AE21: M | AF21: 96
A22: 480501 | B22: ECHETA | C22: 44.4655 | D22: -105.8445 | E22: 2025-05-01 | F22: 13 | G22: F | H22: 1 | I22: 16Y2P | J22: 12.78 | K22: 14.77 | L22: 19.26 | M22: 19.03 | N22: -99.99 | O22: 10.9 | P22: 473 | Q22: 5 | R22: 21.8 | S22: 26.7 | T22: 2 | U22: 0 | V22: 0 | W22: 0 | X22: 0 | Y22: 19 | Z22: 39 | AA22: 66 | AB22: 0.52 | AC22: 0.52 | AD22: 14 | AE22: L | AF22: 101
A23: 480502 | B23: ROCHELLE HILLS | C23: 43.5506 | D23: -105.0922 | E23: 2025-05-01 | F23: 13 | G23: F | H23: 1 | I23: 16Y1P | J23: 12.86 | K23: 15.14 | L23: 19.22 | M23: 18.03 | N23: -99.99 | O23: 10.2 | P23: 418 | Q23: 5 | R23: 23.1 | S23: 25.7 | T23: 2 | U23: 0 | V23: 0 | W23: 0 | X23: 0 | Y23: 18 | Z23: 30 | AA23: 60 | AB23: 0.46 | AC23: 0.46 | AD23: 14 | AE23: L | AF23: 106
A24: 481003 | B24: POKER | C24: 43.5694 | D24: -106.9783 | E24: 2025-05-01 | F24: 13 | G24: F | H24: 1 | I24: 16Y2P | J24: 32.64 | K24: 26.39 | L24: 23.95 | M24: 23.51 | N24: -99.99 | O24: 0 | P24: 140 | Q24: 0 | R24: 0 | S24: 0 | T24: 1 | U24: 0 | V24: 0 | W24: 0 | X24: 0 | Y24: 0 | Z24: 30 | AA24: 60 | AB24: 0.31 | AC24: 0.31 | AD24: 0 | AE24: L | AF24: 111
A25: 482102 | B25: ESTERBROOK | C25: 42.4158 | D25: -105.3611 | E25: 2025-05-01 | F25: 13 | G25: F | H25: 1 | I25: 16Y1P | J25: 13.61 | K25: 18.37 | L25: 16.61 | M25: 16.82 | N25: -99.99 | O25: 6.1 | P25: 319 | Q25: 3 | R25: 24.7 | S25: 20.3 | T25: 2 | U25: 0 | V25: 0 | W25: 0 | X25: 0 | Y25: 14 | Z25: 30 | AA25: 60 | AB25: 0.38 | AC25: 0.38 | AD25: 10 | AE25: L | AF25: 116
A26: 480501 | B26: ECHETA | C26: 44.4655 | D26: -105.8445 | E26: 2025-04-30 | F26: 13 | G26: F | H26: 1 | I26: 16Y2P | J26: 11.91 | K26: 15.02 | L26: 20.56 | M26: 18.6 | N26: -99.99 | O26: 12.9 | P26: 473 | Q26: 5 | R26: 22 | S26: 26.5 | T26: 2 | U26: 0 | V26: 0 | W26: 0 | X26: 0 | Y26: 19 | Z26: 35 | AA26: 63 | AB26: 0.51 | AC26: 0.51 | AD26: 12 | AE26: L | AF26: 121
A27: 480502 | B27: ROCHELLE HILLS | C27: 43.5506 | D27: -105.0922 | E27: 2025-04-30 | F27: 13 | G27: F | H27: 1 | I27: 16Y1P | J27: 12.97 | K27: 16.3 | L27: 20.4 | M27: 17.39 | N27: -99.99 | O27: 9.8 | P27: 418 | Q27: 5 | R27: 23 | S27: 26.4 | T27: 2 | U27: 0 | V27: 0 | W27: 0 | X27: 0 | Y27: 19 | Z27: 30 | AA27: 60 | AB27: 0.45 | AC27: 0.45 | AD27: 11 | AE27: L | AF27: 126
A28: 481003 | B28: POKER | C28: 43.5694 | D28: -106.9783 | E28: 2025-04-30 | F28: 13 | G28: F | H28: 1 | I28: 16Y2P | J28: 32.64 | K28: 26.39 | L28: 23.95 | M28: 23.51 | N28: -99.99 | O28: 0 | P28: 140 | Q28: 0 | R28: 0 | S28: 0 | T28: 1 | U28: 0 | V28: 0 | W28: 0 | X28: 0 | Y28: 0 | Z28: 30 | AA28: 60 | AB28: 0.31 | AC28: 0.31 | AD28: 0 | AE28: L | AF28: 131
A29: 482102 | B29: ESTERBROOK | C29: 42.4158 | D29: -105.3611 | E29: 2025-04-30 | F29: 13 | G29: F | H29: 1 | I29: 16Y1P | J29: 12.65 | K29: 14.99 | L29: 16.77 | M29: 16.77 | N29: -99.99 | O29: 7.4 | P29: 319 | Q29: 3 | R29: 26.6 | S29: 21.4 | T29: 3 | U29: 0 | V29: 0 | W29: 0 | X29: 0 | Y29: 15 | Z29: 30 | AA29: 60 | AB29: 0.37 | AC29: 0.37 | AD29: 7 | AE29: M | AF29: 136
A30: 480501 | B30: ECHETA | C30: 44.4655 | D30: -105.8445 | E30: 2025-04-29 | F30: 13 | G30: F | H30: 1 | I30: 16Y2P | J30: 15.17 | K30: 20.61 | L30: 22.74 | M30: 17.18 | N30: -99.99 | O30: 5.3 | P30: 479 | Q30: 4 | R30: 19.5 | S30: 21.6 | T30: 2 | U30: 0 | V30: 0 | W30: 0 | X30: 0 | Y30: 15 | Z30: 36 | AA30: 62 | AB30: 0.51 | AC30: 0.51 | AD30: 16 | AE30: L | AF30: 141
A31: 480502 | B31: ROCHELLE HILLS | C31: 43.5506 | D31: -105.0922 | E31: 2025-04-29 | F31: 13 | G31: F | H31: 1 | I31: 16Y1P | J31: 16.06 | K31: 20.88 | L31: 23.02 | M31: 16.8 | N31: -99.99 | O31: 3.6 | P31: 426 | Q31: 3 | R31: 19.2 | S31: 19.4 | T31: 2 | U31: 0 | V31: 0 | W31: 0 | X31: 0 | Y31: 14 | Z31: 30 | AA31: 60 | AB31: 0.44 | AC31: 0.44 | AD31: 14 | AE31: L | AF31: 146
A32: 480502 | B32: ROCHELLE HILLS | C32: 43.5506 | D32: -105.0922 | E32: 2025-04-29 | F32: 13 | G32: N | H32: 1 | I32: 16Y1P | J32: 14 | K32: 18.95 | L32: 20.69 | M32: 16.23 | N32: -99.99 | O32: 6.7 | P32: 418 | Q32: 3 | R32: 23.4 | S32: 22.3 | T32: 2 | U32: 0 | V32: 0 | W32: 0 | X32: 0 | Y32: 16 | Z32: 30 | AA32: 60 | AB32: 0.45 | AC32: 0.45 | AD32: 15 | AE32: L | AF32: 147
A33: 481003 | B33: POKER | C33: 43.5694 | D33: -106.9783 | E33: 2025-04-29 | F33: 13 | G33: F | H33: 1 | I33: 16Y2P | J33: 32.64 | K33: 25.27 | L33: 23.74 | M33: 23.5 | N33: -99.99 | O33: 0 | P33: 140 | Q33: 0 | R33: 0 | S33: 0 | T33: 1 | U33: 0 | V33: 0 | W33: 0 | X33: 0 | Y33: 0 | Z33: 30 | AA33: 60 | AB33: 0.33 | AC33: 0.33 | AD33: 0 | AE33: L | AF33: 156
A34: 482102 | B34: ESTERBROOK | C34: 42.4158 | D34: -105.3611 | E34: 2025-04-29 | F34: 13 | G34: F | H34: 1 | I34: 16Y1P | J34: 14.43 | K34: 17.83 | L34: 17.75 | M34: 16.83 | N34: -99.99 | O34: 4 | P34: 319 | Q34: 2 | R34: 23.7 | S34: 16 | T34: 2 | U34: 0 | V34: 0 | W34: 0 | X34: 0 | Y34: 11 | Z34: 30 | AA34: 60 | AB34: 0.36 | AC34: 0.36 | AD34: 13 | AE34: L | AF34: 161
A35: 480501 | B35: ECHETA | C35: 44.4655 | D35: -105.8445 | E35: 2025-04-28 | F35: 13 | G35: F | H35: 1 | I35: 16Y2P | J35: 12.53 | K35: 17.79 | L35: 19.77 | M35: 16.68 | N35: -99.99 | O35: 10.3 | P35: 510 | Q35: 8 | R35: 25.2 | S35: 35.4 | T35: 2 | U35: 0 | V35: 0 | W35: 0 | X35: 0 | Y35: 25 | Z35: 62 | AA35: 81 | AB35: 0.57 | AC35: 0.57 | AD35: 6 | AE35: L | AF35: 166
A36: 480502 | B36: ROCHELLE HILLS | C36: 43.5506 | D36: -105.0922 | E36: 2025-04-28 | F36: 13 | G36: F | H36: 1 | I36: 16Y1P | J36: 11.13 | K36: 15.04 | L36: 16.74 | M36: 16.13 | N36: -99.99 | O36: 14.6 | P36: 459 | Q36: 9 | R36: 30.1 | S36: 39.5 | T36: 3 | U36: 0 | V36: 0 | W36: 0 | X36: 0 | Y36: 28 | Z36: 35 | AA36: 63 | AB36: 0.51 | AC36: 0.51 | AD36: 9 | AE36: M | AF36: 171
A37: 480502 | B37: ROCHELLE HILLS | C37: 43.5506 | D37: -105.0922 | E37: 2025-04-28 | F37: 13 | G37: N | H37: 1 | I37: 16Y1P | J37: 35 | K37: 28.71 | L37: 18.02 | M37: 16.4 | N37: -99.99 | O37: 0 | P37: 426 | Q37: 0 | R37: 12 | S37: 0 | T37: 2 | U37: 0 | V37: 0 | W37: 0 | X37: 0 | Y37: 0 | Z37: 35 | AA37: 60 | AB37: 0.48 | AC37: 0.48 | AD37: 0 | AE37: L | AF37: 172
A38: 481003 | B38: POKER | C38: 43.5694 | D38: -106.9783 | E38: 2025-04-28 | F38: 13 | G38: F | H38: 1 | I38: 16Y2P | J38: 32.64 | K38: 25.44 | L38: 23.85 | M38: 23.51 | N38: -99.99 | O38: 0 | P38: 139 | Q38: 0 | R38: 0 | S38: 0 | T38: 1 | U38: 0 | V38: 0 | W38: 0 | X38: 0 | Y38: 0 | Z38: 30 | AA38: 60 | AB38: 0.38 | AC38: 0.38 | AD38: 0 | AE38: L | AF38: 181
A39: 482102 | B39: ESTERBROOK | C39: 42.4158 | D39: -105.3611 | E39: 2025-04-28 | F39: 13 | G39: F | H39: 1 | I39: 16Y1P | J39: 9.37 | K39: 13.94 | L39: 16.98 | M39: 16.29 | N39: -99.99 | O39: 21.5 | P39: 317 | Q39: 6 | R39: 29.5 | S39: 32.8 | T39: 3 | U39: 0 | V39: 0 | W39: 0 | X39: 0 | Y39: 23 | Z39: 30 | AA39: 60 | AB39: 0.4 | AC39: 0.4 | AD39: 10 | AE39: M | AF39: 186
A40: 480501 | B40: ECHETA | C40: 44.4655 | D40: -105.8445 | E40: 2025-04-27 | F40: 13 | G40: F | H40: 1 | I40: 16Y2P | J40: 9.95 | K40: 13.9 | L40: 17.07 | M40: 15.55 | N40: -99.99 | O40: 22.3 | P40: 509 | Q40: 5 | R40: 32.8 | S40: 31.3 | T40: 3 | U40: 0 | V40: 0 | W40: 0 | X40: 0 | Y40: 22 | Z40: 56 | AA40: 76 | AB40: 0.56 | AC40: 0.56 | AD40: 24 | AE40: M | AF40: 191
A41: 480502 | B41: ROCHELLE HILLS | C41: 43.5506 | D41: -105.0922 | E41: 2025-04-27 | F41: 13 | G41: F | H41: 1 | I41: 16Y1P | J41: 11.48 | K41: 18.3 | L41: 17.37 | M41: 14.62 | N41: -99.99 | O41: 13.6 | P41: 458 | Q41: 3 | R41: 31.1 | S41: 25.8 | T41: 3 | U41: 0 | V41: 0 | W41: 0 | X41: 0 | Y41: 18 | Z41: 30 | AA41: 60 | AB41: 0.5 | AC41: 0.5 | AD41: 24 | AE41: M | AF41: 196
A42: 480502 | B42: ROCHELLE HILLS | C42: 43.5506 | D42: -105.0922 | E42: 2025-04-27 | F42: 13 | G42: N | H42: 1 | I42: 16Y1P | J42: 12.03 | K42: 17.26 | L42: 17.94 | M42: 14.78 | N42: -99.99 | O42: 9.6 | P42: 459 | Q42: 2 | R42: 30.6 | S42: 20.9 | T42: 3 | U42: 0 | V42: 0 | W42: 0 | X42: 0 | Y42: 15 | Z42: 30 | AA42: 60 | AB42: 0.5 | AC42: 0.5 | AD42: 23 | AE42: M | AF42: 197
A43: 481003 | B43: POKER | C43: 43.5694 | D43: -106.9783 | E43: 2025-04-27 | F43: 13 | G43: F | H43: 1 | I43: 16Y2P | J43: 32.65 | K43: 26.93 | L43: 23.78 | M43: 23.51 | N43: -99.99 | O43: 0 | P43: 138 | Q43: 0 | R43: 0 | S43: 0 | T43: 1 | U43: 0 | V43: 0 | W43: 0 | X43: 0 | Y43: 0 | Z43: 30 | AA43: 60 | AB43: 0.37 | AC43: 0.37 | AD43: 0 | AE43: L | AF43: 206
A44: 482102 | B44: ESTERBROOK | C44: 42.4158 | D44: -105.3611 | E44: 2025-04-27 | F44: 13 | G44: F | H44: 1 | I44: 16Y1P | J44: 9.05 | K44: 12.61 | L44: 18.55 | M44: 15.46 | N44: -99.99 | O44: 18.6 | P44: 315 | Q44: 3 | R44: 30.8 | S44: 22.6 | T44: 3 | U44: 0 | V44: 0 | W44: 0 | X44: 0 | Y44: 16 | Z44: 30 | AA44: 60 | AB44: 0.37 | AC44: 0.37 | AD44: 22 | AE44: M | AF44: 211
A45: 480501 | B45: ECHETA | C45: 44.4655 | D45: -105.8445 | E45: 2025-04-26 | F45: 13 | G45: F | H45: 1 | I45: 16Y2P | J45: 11.71 | K45: 15.98 | L45: 16.72 | M45: 14.65 | N45: -99.99 | O45: 15.2 | P45: 509 | Q45: 6 | R45: 33.2 | S45: 35.7 | T45: 3 | U45: 0 | V45: 0 | W45: 0 | X45: 0 | Y45: 25 | Z45: 48 | AA45: 71 | AB45: 0.54 | AC45: 0.54 | AD45: 22 | AE45: M | AF45: 216
A46: 480502 | B46: ROCHELLE HILLS | C46: 43.5506 | D46: -105.0922 | E46: 2025-04-26 | F46: 13 | G46: F | H46: 1 | I46: 16Y1P | J46: 13.89 | K46: 19.72 | L46: 16.05 | M46: 14.21 | N46: -99.99 | O46: 8.9 | P46: 461 | Q46: 5 | R46: 31.1 | S46: 30 | T46: 3 | U46: 0 | V46: 0 | W46: 0 | X46: 0 | Y46: 21 | Z46: 30 | AA46: 60 | AB46: 0.47 | AC46: 0.47 | AD46: 20 | AE46: M | AF46: 221
A47: 480502 | B47: ROCHELLE HILLS | C47: 43.5506 | D47: -105.0922 | E47: 2025-04-26 | F47: 13 | G47: N | H47: 1 | I47: 16Y1P | J47: 20.24 | K47: 23.62 | L47: 16.16 | M47: 14.19 | N47: -99.99 | O47: 0.6 | P47: 458 | Q47: 2 | R47: 26 | S47: 18.1 | T47: 3 | U47: 0 | V47: 0 | W47: 0 | X47: 0 | Y47: 13 | Z47: 30 | AA47: 60 | AB47: 0.46 | AC47: 0.46 | AD47: 14 | AE47: M | AF47: 222
A48: 481003 | B48: POKER | C48: 43.5694 | D48: -106.9783 | E48: 2025-04-26 | F48: 13 | G48: F | H48: 1 | I48: 16Y2P | J48: 33.54 | K48: 27.76 | L48: 23.68 | M48: 23.5 | N48: -99.99 | O48: 0 | P48: 139 | Q48: 0 | R48: 0 | S48: 0 | T48: 1 | U48: 0 | V48: 0 | W48: 0 | X48: 0 | Y48: 0 | Z48: 30 | AA48: 60 | AB48: 0.33 | AC48: 0.33 | AD48: 0 | AE48: L | AF48: 231
A49: 482102 | B49: ESTERBROOK | C49: 42.4158 | D49: -105.3611 | E49: 2025-04-26 | F49: 13 | G49: F | H49: 1 | I49: 16Y1P | J49: 13.07 | K49: 17.67 | L49: 16.29 | M49: 13.82 | N49: -99.99 | O49: 8.4 | P49: 340 | Q49: 3 | R49: 31.9 | S49: 24.9 | T49: 3 | U49: 0 | V49: 0 | W49: 0 | X49: 0 | Y49: 18 | Z49: 30 | AA49: 60 | AB49: 0.34 | AC49: 0.34 | AD49: 18 | AE49: M | AF49: 236
A50: 480501 | B50: ECHETA | C50: 44.4655 | D50: -105.8445 | E50: 2025-04-25 | F50: 13 | G50: F | H50: 1 | I50: 16Y2P | J50: 18.13 | K50: 21.25 | L50: 16.14 | M50: 14.21 | N50: -99.99 | O50: 1.9 | P50: 509 | Q50: 4 | R50: 28.5 | S50: 27.2 | T50: 3 | U50: 0 | V50: 0 | W50: 0 | X50: 0 | Y50: 19 | Z50: 30 | AA50: 60 | AB50: 0.49 | AC50: 0.49 | AD50: 9 | AE50: M | AF50: 241
A51: 480502 | B51: ROCHELLE HILLS | C51: 43.5506 | D51: -105.0922 | E51: 2025-04-25 | F51: 13 | G51: F | H51: 1 | I51: 16Y1P | J51: 21.34 | K51: 21.35 | L51: 14.43 | M51: 14.2 | N51: -99.99 | O51: 0.3 | P51: 461 | Q51: 3 | R51: 27.7 | S51: 22.2 | T51: 3 | U51: 0 | V51: 0 | W51: 0 | X51: 0 | Y51: 16 | Z51: 30 | AA51: 60 | AB51: 0.44 | AC51: 0.44 | AD51: 5 | AE51: M | AF51: 246
A52: 480502 | B52: ROCHELLE HILLS | C52: 43.5506 | D52: -105.0922 | E52: 2025-04-25 | F52: 13 | G52: N | H52: 1 | I52: 16Y1P | J52: 28.01 | K52: 26.56 | L52: 14.41 | M52: 14.19 | N52: -99.99 | O52: 0 | P52: 461 | Q52: 0 | R52: 22.2 | S52: 0 | T52: 2 | U52: 0 | V52: 0 | W52: 0 | X52: 0 | Y52: 0 | Z52: 30 | AA52: 60 | AB52: 0.44 | AC52: 0.44 | AD52: 1 | AE52: L | AF52: 247
A53: 481003 | B53: POKER | C53: 43.5694 | D53: -106.9783 | E53: 2025-04-25 | F53: 13 | G53: F | H53: 1 | I53: 16Y2P | J53: 34.72 | K53: 25.76 | L53: 23.68 | M53: 23.51 | N53: -99.99 | O53: 0 | P53: 139 | Q53: 0 | R53: 0 | S53: 0 | T53: 1 | U53: 0 | V53: 0 | W53: 0 | X53: 0 | Y53: 0 | Z53: 30 | AA53: 60 | AB53: 0.32 | AC53: 0.32 | AD53: 0 | AE53: L | AF53: 256
A54: 482102 | B54: ESTERBROOK | C54: 42.4158 | D54: -105.3611 | E54: 2025-04-25 | F54: 13 | G54: F | H54: 1 | I54: 16Y1P | J54: 19.45 | K54: 17.91 | L54: 12.94 | M54: 13.83 | N54: -99.99 | O54: 0.7 | P54: 350 | Q54: 2 | R54: 31 | S54: 21.3 | T54: 3 | U54: 0 | V54: 0 | W54: 0 | X54: 0 | Y54: 15 | Z54: 30 | AA54: 60 | AB54: 0.33 | AC54: 0.33 | AD54: 2 | AE54: M | AF54: 261
A55: 480501 | B55: ECHETA | C55: 44.4655 | D55: -105.8445 | E55: 2025-04-24 | F55: 13 | G55: F | H55: 1 | I55: 16Y2P | J55: 14.53 | K55: 19.4 | L55: 15.45 | M55: 14.11 | N55: -99.99 | O55: 5.1 | P55: 509 | Q55: 3 | R55: 32.1 | S55: 26.1 | T55: 3 | U55: 0 | V55: 0 | W55: 0 | X55: 0 | Y55: 18 | Z55: 30 | AA55: 60 | AB55: 0.47 | AC55: 0.47 | AD55: 6 | AE55: M | AF55: 266
A56: 480502 | B56: ROCHELLE HILLS | C56: 43.5506 | D56: -105.0922 | E56: 2025-04-24 | F56: 13 | G56: F | H56: 1 | I56: 16Y1P | J56: 15.91 | K56: 17.41 | L56: 13.18 | M56: 14.16 | N56: -99.99 | O56: 3.3 | P56: 461 | Q56: 3 | R56: 33.5 | S56: 25.5 | T56: 3 | U56: 0 | V56: 0 | W56: 0 | X56: 0 | Y56: 18 | Z56: 30 | AA56: 60 | AB56: 0.43 | AC56: 0.43 | AD56: 6 | AE56: M | AF56: 271
A57: 480502 | B57: ROCHELLE HILLS | C57: 43.5506 | D57: -105.0922 | E57: 2025-04-24 | F57: 13 | G57: N | H57: 1 | I57: 16Y1P | J57: 33.76 | K57: 23.39 | L57: 13.15 | M57: 14.21 | N57: -99.99 | O57: 0 | P57: 461 | Q57: 0 | R57: 21.6 | S57: 0 | T57: 2 | U57: 0 | V57: 0 | W57: 0 | X57: 0 | Y57: 0 | Z57: 30 | AA57: 60 | AB57: 0.42 | AC57: 0.42 | AD57: 3 | AE57: L | AF57: 272
A58: 481003 | B58: POKER | C58: 43.5694 | D58: -106.9783 | E58: 2025-04-24 | F58: 13 | G58: F | H58: 1 | I58: 16Y2P | J58: 32.64 | K58: 25.25 | L58: 23.69 | M58: 23.48 | N58: -99.99 | O58: 0 | P58: 139 | Q58: 0 | R58: 0.1 | S58: 0 | T58: 1 | U58: 0 | V58: 0 | W58: 0 | X58: 0 | Y58: 0 | Z58: 30 | AA58: 60 | AB58: 0.32 | AC58: 0.32 | AD58: 0 | AE58: L | AF58: 281
A59: 482102 | B59: ESTERBROOK | C59: 42.4158 | D59: -105.3611 | E59: 2025-04-24 | F59: 13 | G59: F | H59: 1 | I59: 16Y1P | J59: 14.85 | K59: 15.6 | L59: 11.78 | M59: 13.81 | N59: -99.99 | O59: 3.8 | P59: 350 | Q59: 2 | R59: 35.7 | S59: 21.9 | T59: 3 | U59: 0 | V59: 0 | W59: 0 | X59: 0 | Y59: 16 | Z59: 30 | AA59: 60 | AB59: 0.33 | AC59: 0.33 | AD59: 8 | AE59: M | AF59: 286
A60: 480501 | B60: ECHETA | C60: 44.4655 | D60: -105.8445 | E60: 2025-04-23 | F60: 13 | G60: F | H60: 1 | I60: 16Y2P | J60: 11.21 | K60: 12.75 | L60: 13.22 | M60: 14.1 | N60: -99.99 | O60: 14.1 | P60: 509 | Q60: 4 | R60: 39.5 | S60: 31.4 | T60: 3 | U60: 0 | V60: 0 | W60: 0 | X60: 0 | Y60: 22 | Z60: 30 | AA60: 60 | AB60: 0.43 | AC60: 0.43 | AD60: 14 | AE60: M | AF60: 291
A61: 480502 | B61: ROCHELLE HILLS | C61: 43.5506 | D61: -105.0922 | E61: 2025-04-23 | F61: 13 | G61: F | H61: 1 | I61: 16Y1P | J61: 11.08 | K61: 13 | L61: 13.09 | M61: 14.08 | N61: -99.99 | O61: 15.6 | P61: 461 | Q61: 5 | R61: 38.9 | S61: 34 | T61: 3 | U61: 0 | V61: 0 | W61: 0 | X61: 0 | Y61: 24 | Z61: 30 | AA61: 60 | AB61: 0.39 | AC61: 0.39 | AD61: 13 | AE61: M | AF61: 296
A62: 480502 | B62: ROCHELLE HILLS | C62: 43.5506 | D62: -105.0922 | E62: 2025-04-23 | F62: 13 | G62: N | H62: 1 | I62: 16Y1P | J62: 12.23 | K62: 12.63 | L62: 12.99 | M62: 14.09 | N62: -99.99 | O62: 11.3 | P62: 461 | Q62: 5 | R62: 38.5 | S62: 35.1 | T62: 3 | U62: 0 | V62: 0 | W62: 0 | X62: 0 | Y62: 25 | Z62: 30 | AA62: 60 | AB62: 0.4 | AC62: 0.4 | AD62: 8 | AE62: M | AF62: 297
A63: 481003 | B63: POKER | C63: 43.5694 | D63: -106.9783 | E63: 2025-04-23 | F63: 13 | G63: F | H63: 1 | I63: 16Y2P | J63: 32.64 | K63: 25.28 | L63: 23.83 | M63: 23.47 | N63: -99.99 | O63: 0 | P63: 139 | Q63: 0 | R63: 0 | S63: 0 | T63: 1 | U63: 0 | V63: 0 | W63: 0 | X63: 0 | Y63: 0 | Z63: 30 | AA63: 60 | AB63: 0.31 | AC63: 0.31 | AD63: 0 | AE63: L | AF63: 306
A64: 482102 | B64: ESTERBROOK | C64: 42.4158 | D64: -105.3611 | E64: 2025-04-23 | F64: 13 | G64: F | H64: 1 | I64: 16Y1P | J64: 10.99 | K64: 12.39 | L64: 11.58 | M64: 13.61 | N64: -99.99 | O64: 11.2 | P64: 349 | Q64: 3 | R64: 40.3 | S64: 25.8 | T64: 3 | U64: 0 | V64: 0 | W64: 0 | X64: 0 | Y64: 18 | Z64: 30 | AA64: 60 | AB64: 0.29 | AC64: 0.29 | AD64: 10 | AE64: M | AF64: 311
A65: 480501 | B65: ECHETA | C65: 44.4655 | D65: -105.8445 | E65: 2025-04-22 | F65: 13 | G65: F | H65: 1 | I65: 16Y2P | J65: 12.13 | K65: 13.76 | L65: 12.64 | M65: 13.99 | N65: -99.99 | O65: 9.9 | P65: 509 | Q65: 3 | R65: 39.1 | S65: 28 | T65: 3 | U65: 0 | V65: 0 | W65: 0 | X65: 0 | Y65: 20 | Z65: 30 | AA65: 60 | AB65: 0.42 | AC65: 0.42 | AD65: 12 | AE65: M | AF65: 316
A66: 480502 | B66: ROCHELLE HILLS | C66: 43.5506 | D66: -105.0922 | E66: 2025-04-22 | F66: 13 | G66: F | H66: 1 | I66: 16Y1P | J66: 13.03 | K66: 14.68 | L66: 12.4 | M66: 14.1 | N66: -99.99 | O66: 6.9 | P66: 461 | Q66: 2 | R66: 37.4 | S66: 23.5 | T66: 3 | U66: 0 | V66: 0 | W66: 0 | X66: 0 | Y66: 17 | Z66: 30 | AA66: 60 | AB66: 0.37 | AC66: 0.37 | AD66: 13 | AE66: M | AF66: 321
A67: 480502 | B67: ROCHELLE HILLS | C67: 43.5506 | D67: -105.0922 | E67: 2025-04-22 | F67: 13 | G67: N | H67: 1 | I67: 16Y1P | J67: 10.87 | K67: 15.98 | L67: 12.48 | M67: 14.23 | N67: -99.99 | O67: 10 | P67: 461 | Q67: 2 | R67: 37.6 | S67: 21.5 | T67: 3 | U67: 0 | V67: 0 | W67: 0 | X67: 0 | Y67: 15 | Z67: 30 | AA67: 60 | AB67: 0.38 | AC67: 0.38 | AD67: 12 | AE67: M | AF67: 322
A68: 481003 | B68: POKER | C68: 43.5694 | D68: -106.9783 | E68: 2025-04-22 | F68: 13 | G68: F | H68: 1 | I68: 16Y2P | J68: 32.64 | K68: 25.58 | L68: 23.95 | M68: 23.47 | N68: -99.99 | O68: 0 | P68: 139 | Q68: 0 | R68: 0 | S68: 0 | T68: 1 | U68: 0 | V68: 0 | W68: 0 | X68: 0 | Y68: 0 | Z68: 30 | AA68: 60 | AB68: 0.31 | AC68: 0.31 | AD68: 0 | AE68: L | AF68: 331
A69: 482102 | B69: ESTERBROOK | C69: 42.4158 | D69: -105.3611 | E69: 2025-04-22 | F69: 13 | G69: F | H69: 1 | I69: 16Y1P | J69: 9.43 | K69: 10.96 | L69: 11.21 | M69: 13.71 | N69: -99.99 | O69: 16.7 | P69: 349 | Q69: 3 | R69: 42.1 | S69: 27.2 | T69: 3 | U69: 0 | V69: 0 | W69: 0 | X69: 0 | Y69: 19 | Z69: 30 | AA69: 60 | AB69: 0.28 | AC69: 0.28 | AD69: 14 | AE69: M | AF69: 336
A70: 480501 | B70: ECHETA | C70: 44.4655 | D70: -105.8445 | E70: 2025-04-21 | F70: 13 | G70: F | H70: 1 | I70: 16Y2P | J70: 13.52 | K70: 14.51 | L70: 12.14 | M70: 14.14 | N70: -99.99 | O70: 8.1 | P70: 509 | Q70: 4 | R70: 37.9 | S70: 30.6 | T70: 3 | U70: 0 | V70: 0 | W70: 0 | X70: 0 | Y70: 22 | Z70: 30 | AA70: 60 | AB70: 0.4 | AC70: 0.4 | AD70: 13 | AE70: M | AF70: 341
A71: 480502 | B71: ROCHELLE HILLS | C71: 43.5506 | D71: -105.0922 | E71: 2025-04-21 | F71: 13 | G71: F | H71: 1 | I71: 16Y1P | J71: 12.59 | K71: 14.15 | L71: 11.96 | M71: 14.09 | N71: -99.99 | O71: 11.5 | P71: 461 | Q71: 6 | R71: 38.4 | S71: 36.7 | T71: 3 | U71: 0 | V71: 0 | W71: 0 | X71: 0 | Y71: 26 | Z71: 30 | AA71: 60 | AB71: 0.36 | AC71: 0.36 | AD71: 15 | AE71: M | AF71: 346
A72: 480502 | B72: ROCHELLE HILLS | C72: 43.5506 | D72: -105.0922 | E72: 2025-04-21 | F72: 13 | G72: N | H72: 1 | I72: 16Y1P | J72: 14.31 | K72: 14.9 | L72: 11.99 | M72: 14.11 | N72: -99.99 | O72: 6.1 | P72: 461 | Q72: 4 | R72: 36.9 | S72: 30.4 | T72: 3 | U72: 0 | V72: 0 | W72: 0 | X72: 0 | Y72: 22 | Z72: 30 | AA72: 60 | AB72: 0.38 | AC72: 0.38 | AD72: 8 | AE72: M | AF72: 347
A73: 481003 | B73: POKER | C73: 43.5694 | D73: -106.9783 | E73: 2025-04-21 | F73: 13 | G73: F | H73: 1 | I73: 16Y2P | J73: 33.08 | K73: 26.65 | L73: 23.97 | M73: 23.45 | N73: -99.99 | O73: 0 | P73: 139 | Q73: 0 | R73: 0 | S73: 0 | T73: 1 | U73: 0 | V73: 0 | W73: 0 | X73: 0 | Y73: 0 | Z73: 30 | AA73: 60 | AB73: 0.32 | AC73: 0.32 | AD73: 0 | AE73: L | AF73: 356
A74: 482102 | B74: ESTERBROOK | C74: 42.4158 | D74: -105.3611 | E74: 2025-04-21 | F74: 13 | G74: F | H74: 1 | I74: 16Y1P | J74: 11.38 | K74: 12.53 | L74: 11.04 | M74: 13.83 | N74: -99.99 | O74: 14.4 | P74: 349 | Q74: 5 | R74: 39.9 | S74: 34.6 | T74: 3 | U74: 0 | V74: 0 | W74: 0 | X74: 0 | Y74: 25 | Z74: 30 | AA74: 60 | AB74: 0.27 | AC74: 0.27 | AD74: 12 | AE74: M | AF74: 361
A75: 480501 | B75: ECHETA | C75: 44.4655 | D75: -105.8445 | E75: 2025-04-20 | F75: 13 | G75: F | H75: 1 | I75: 16Y2P | J75: 11.45 | K75: 13.15 | L75: 12.13 | M75: 14.1 | N75: -99.99 | O75: 11.9 | P75: 509 | Q75: 4 | R75: 40.1 | S75: 29.6 | T75: 3 | U75: 0 | V75: 0 | W75: 0 | X75: 0 | Y75: 21 | Z75: 30 | AA75: 60 | AB75: 0.37 | AC75: 0.37 | AD75: 11 | AE75: M | AF75: 366
A76: 480502 | B76: ROCHELLE HILLS | C76: 43.5506 | D76: -105.0922 | E76: 2025-04-20 | F76: 13 | G76: F | H76: 1 | I76: 16Y1P | J76: 11.59 | K76: 12.55 | L76: 11.93 | M76: 14.24 | N76: -99.99 | O76: 10.8 | P76: 461 | Q76: 3 | R76: 39.5 | S76: 27.8 | T76: 3 | U76: 0 | V76: 0 | W76: 0 | X76: 0 | Y76: 20 | Z76: 30 | AA76: 60 | AB76: 0.32 | AC76: 0.32 | AD76: 10 | AE76: M | AF76: 371
A77: 480502 | B77: ROCHELLE HILLS | C77: 43.5506 | D77: -105.0922 | E77: 2025-04-20 | F77: 13 | G77: N | H77: 1 | I77: 16Y1P | J77: 10.36 | K77: 11.37 | L77: 11.85 | M77: 14.23 | N77: -99.99 | O77: 17.3 | P77: 461 | Q77: 4 | R77: 41 | S77: 33.2 | T77: 3 | U77: 0 | V77: 0 | W77: 0 | X77: 0 | Y77: 24 | Z77: 30 | AA77: 60 | AB77: 0.34 | AC77: 0.34 | AD77: 13 | AE77: M | AF77: 372
A78: 481003 | B78: POKER | C78: 43.5694 | D78: -106.9783 | E78: 2025-04-20 | F78: 13 | G78: F | H78: 1 | I78: 16Y2P | J78: 32.64 | K78: 26.43 | L78: 23.7 | M78: 23.46 | N78: -99.99 | O78: 0 | P78: 145 | Q78: 0 | R78: 0 | S78: 0 | T78: 1 | U78: 0 | V78: 0 | W78: 0 | X78: 0 | Y78: 0 | Z78: 30 | AA78: 60 | AB78: 0.28 | AC78: 0.28 | AD78: 0 | AE78: L | AF78: 381
A79: 482102 | B79: ESTERBROOK | C79: 42.4158 | D79: -105.3611 | E79: 2025-04-20 | F79: 13 | G79: F | H79: 1 | I79: 16Y1P | J79: 10.52 | K79: 12.96 | L79: 10.93 | M79: 13.98 | N79: -99.99 | O79: 13.4 | P79: 349 | Q79: 3 | R79: 39.9 | S79: 28 | T79: 3 | U79: 0 | V79: 0 | W79: 0 | X79: 0 | Y79: 20 | Z79: 30 | AA79: 60 | AB79: 0.25 | AC79: 0.25 | AD79: 9 | AE79: M | AF79: 386
A80: 480501 | B80: ECHETA | C80: 44.4655 | D80: -105.8445 | E80: 2025-04-19 | F80: 13 | G80: F | H80: 1 | I80: 16Y2P | J80: 13.04 | K80: 14.67 | L80: 11.75 | M80: 14.17 | N80: -99.99 | O80: 9.6 | P80: 509 | Q80: 5 | R80: 38.4 | S80: 33.7 | T80: 3 | U80: 0 | V80: 0 | W80: 0 | X80: 0 | Y80: 24 | Z80: 30 | AA80: 60 | AB80: 0.36 | AC80: 0.36 | AD80: 10 | AE80: M | AF80: 391
A81: 480502 | B81: ROCHELLE HILLS | C81: 43.5506 | D81: -105.0922 | E81: 2025-04-19 | F81: 13 | G81: F | H81: 1 | I81: 16Y1P | J81: 12.75 | K81: 13.07 | L81: 11.69 | M81: 14.34 | N81: -99.99 | O81: 8.4 | P81: 461 | Q81: 4 | R81: 38.5 | S81: 28.9 | T81: 3 | U81: 0 | V81: 0 | W81: 0 | X81: 0 | Y81: 21 | Z81: 30 | AA81: 60 | AB81: 0.32 | AC81: 0.32 | AD81: 8 | AE81: M | AF81: 396
A82: 480502 | B82: ROCHELLE HILLS | C82: 43.5506 | D82: -105.0922 | E82: 2025-04-19 | F82: 13 | G82: N | H82: 1 | I82: 16Y1P | J82: 11.95 | K82: 14.43 | L82: 11.7 | M82: 14.34 | N82: -99.99 | O82: 10.3 | P82: 461 | Q82: 4 | R82: 38.2 | S82: 29.2 | T82: 3 | U82: 0 | V82: 0 | W82: 0 | X82: 0 | Y82: 21 | Z82: 30 | AA82: 60 | AB82: 0.32 | AC82: 0.32 | AD82: 8 | AE82: M | AF82: 397
A83: 481003 | B83: POKER | C83: 43.5694 | D83: -106.9783 | E83: 2025-04-19 | F83: 13 | G83: F | H83: 1 | I83: 16Y2P | J83: 34.72 | K83: 25.75 | L83: 23.32 | M83: 23.46 | N83: -99.99 | O83: 0 | P83: 156 | Q83: 0 | R83: 0 | S83: 0 | T83: 1 | U83: 0 | V83: 0 | W83: 0 | X83: 0 | Y83: 0 | Z83: 30 | AA83: 60 | AB83: 0.27 | AC83: 0.27 | AD83: 0 | AE83: L | AF83: 406
A84: 482102 | B84: ESTERBROOK | C84: 42.4158 | D84: -105.3611 | E84: 2025-04-19 | F84: 13 | G84: F | H84: 1 | I84: 16Y1P | J84: 14.85 | K84: 16.91 | L84: 10.93 | M84: 14.12 | N84: -99.99 | O84: 3.2 | P84: 349 | Q84: 2 | R84: 35 | S84: 19.9 | T84: 3 | U84: 0 | V84: 0 | W84: 0 | X84: 0 | Y84: 14 | Z84: 30 | AA84: 60 | AB84: 0.25 | AC84: 0.25 | AD84: 4 | AE84: M | AF84: 411
A85: 480501 | B85: ECHETA | C85: 44.4655 | D85: -105.8445 | E85: 2025-04-18 | F85: 13 | G85: F | H85: 1 | I85: 16Y2P | J85: 16.87 | K85: 21.11 | L85: 11.46 | M85: 14.26 | N85: -99.99 | O85: 2.3 | P85: 509 | Q85: 3 | R85: 32.9 | S85: 25.7 | T85: 3 | U85: 0 | V85: 0 | W85: 0 | X85: 0 | Y85: 18 | Z85: 30 | AA85: 60 | AB85: 0.37 | AC85: 0.37 | AD85: 3 | AE85: M | AF85: 416
A86: 480502 | B86: ROCHELLE HILLS | C86: 43.5506 | D86: -105.0922 | E86: 2025-04-18 | F86: 13 | G86: F | H86: 1 | I86: 16Y1P | J86: 18.61 | K86: 23.88 | L86: 11.91 | M86: 14.8 | N86: -99.99 | O86: 1 | P86: 461 | Q86: 2 | R86: 28.6 | S86: 21.5 | T86: 3 | U86: 0 | V86: 0 | W86: 0 | X86: 0 | Y86: 15 | Z86: 30 | AA86: 60 | AB86: 0.34 | AC86: 0.34 | AD86: 1 | AE86: M | AF86: 421
A87: 480502 | B87: ROCHELLE HILLS | C87: 43.5506 | D87: -105.0922 | E87: 2025-04-18 | F87: 13 | G87: N | H87: 1 | I87: 16Y1P | J87: 16.21 | K87: 15.21 | L87: 11.77 | M87: 14.44 | N87: -99.99 | O87: 2.4 | P87: 461 | Q87: 3 | R87: 35 | S87: 24.1 | T87: 3 | U87: 0 | V87: 0 | W87: 0 | X87: 0 | Y87: 17 | Z87: 30 | AA87: 60 | AB87: 0.34 | AC87: 0.34 | AD87: 0 | AE87: M | AF87: 422
A88: 481003 | B88: POKER | C88: 43.5694 | D88: -106.9783 | E88: 2025-04-18 | F88: 13 | G88: F | H88: 1 | I88: 16Y2P | J88: 32.64 | K88: 25.24 | L88: 23.31 | M88: 23.41 | N88: -99.99 | O88: 0 | P88: 156 | Q88: 0 | R88: 0.3 | S88: 0 | T88: 1 | U88: 0 | V88: 0 | W88: 0 | X88: 0 | Y88: 0 | Z88: 30 | AA88: 60 | AB88: 0.28 | AC88: 0.28 | AD88: 0 | AE88: L | AF88: 431
A89: 482102 | B89: ESTERBROOK | C89: 42.4158 | D89: -105.3611 | E89: 2025-04-18 | F89: 13 | G89: F | H89: 1 | I89: 16Y1P | J89: 21.89 | K89: 29.95 | L89: 11 | M89: 14.61 | N89: -99.99 | O89: 0 | P89: 349 | Q89: 1 | R89: 24.3 | S89: 12.6 | T89: 2 | U89: 0 | V89: 0 | W89: 0 | X89: 0 | Y89: 9 | Z89: 30 | AA89: 60 | AB89: 0.27 | AC89: 0.27 | AD89: -2 | AE89: L | AF89: 436
A90: 480501 | B90: ECHETA | C90: 44.4655 | D90: -105.8445 | E90: 2025-04-17 | F90: 13 | G90: F | H90: 1 | I90: 16Y2P | J90: 12.14 | K90: 17.85 | L90: 14.11 | M90: 14.5 | N90: -99.99 | O90: 10.8 | P90: 508 | Q90: 7 | R90: 34.4 | S90: 36.9 | T90: 3 | U90: 0 | V90: 0 | W90: 0 | X90: 0 | Y90: 26 | Z90: 30 | AA90: 60 | AB90: 0.42 | AC90: 0.42 | AD90: 3 | AE90: M | AF90: 441
A91: 480502 | B91: ROCHELLE HILLS | C91: 43.5506 | D91: -105.0922 | E91: 2025-04-17 | F91: 13 | G91: F | H91: 1 | I91: 16Y1P | J91: 12.26 | K91: 15.88 | L91: 11.79 | M91: 14.4 | N91: -99.99 | O91: 10.6 | P91: 460 | Q91: 8 | R91: 37 | S91: 40 | T91: 3 | U91: 0 | V91: 0 | W91: 0 | X91: 0 | Y91: 28 | Z91: 30 | AA91: 60 | AB91: 0.4 | AC91: 0.4 | AD91: 3 | AE91: M | AF91: 446
A92: 480502 | B92: ROCHELLE HILLS | C92: 43.5506 | D92: -105.0922 | E92: 2025-04-17 | F92: 13 | G92: N | H92: 1 | I92: 16Y1P | J92: 21.47 | K92: 11.89 | L92: 11.79 | M92: 14.53 | N92: -99.99 | O92: 0.1 | P92: 461 | Q92: 3 | R92: 33.4 | S92: 24.9 | T92: 3 | U92: 0 | V92: 0 | W92: 0 | X92: 0 | Y92: 18 | Z92: 30 | AA92: 60 | AB92: 0.38 | AC92: 0.38 | AD92: -1 | AE92: M | AF92: 447
A93: 481003 | B93: POKER | C93: 43.5694 | D93: -106.9783 | E93: 2025-04-17 | F93: 13 | G93: F | H93: 1 | I93: 16Y2P | J93: 32.64 | K93: 25.24 | L93: 23.33 | M93: 23.44 | N93: -99.99 | O93: 0 | P93: 155 | Q93: 0 | R93: 0.3 | S93: 0 | T93: 1 | U93: 0 | V93: 0 | W93: 0 | X93: 0 | Y93: 0 | Z93: 30 | AA93: 60 | AB93: 0.33 | AC93: 0.33 | AD93: 0 | AE93: L | AF93: 456
A94: 482102 | B94: ESTERBROOK | C94: 42.4158 | D94: -105.3611 | E94: 2025-04-17 | F94: 13 | G94: F | H94: 1 | I94: 16Y1P | J94: 12.58 | K94: 17.58 | L94: 11.52 | M94: 14.19 | N94: -99.99 | O94: 7.5 | P94: 348 | Q94: 3 | R94: 35.3 | S94: 26.4 | T94: 3 | U94: 0 | V94: 0 | W94: 0 | X94: 0 | Y94: 19 | Z94: 30 | AA94: 60 | AB94: 0.32 | AC94: 0.32 | AD94: 0 | AE94: M | AF94: 461
A95: 480501 | B95: ECHETA | C95: 44.4655 | D95: -105.8445 | E95: 2025-04-16 | F95: 13 | G95: F | H95: 1 | I95: 16Y2P | J95: 6.83 | K95: 8.92 | L95: 11.61 | M95: 14.6 | N95: -99.99 | O95: 35.5 | P95: 507 | Q95: 4 | R95: 44.6 | S95: 33.6 | T95: 3 | U95: 0 | V95: 0 | W95: 0 | X95: 0 | Y95: 24 | Z95: 30 | AA95: 60 | AB95: 0.45 | AC95: 0.45 | AD95: 22 | AE95: M | AF95: 466
A96: 480502 | B96: ROCHELLE HILLS | C96: 43.5506 | D96: -105.0922 | E96: 2025-04-16 | F96: 13 | G96: F | H96: 1 | I96: 16Y1P | J96: 6.89 | K96: 9.11 | L96: 12.13 | M96: 14.83 | N96: -99.99 | O96: 37.1 | P96: 459 | Q96: 5 | R96: 42.7 | S96: 34.5 | T96: 3 | U96: 0 | V96: 0 | W96: 0 | X96: 0 | Y96: 24 | Z96: 30 | AA96: 60 | AB96: 0.41 | AC96: 0.41 | AD96: 22 | AE96: M | AF96: 471
A97: 480502 | B97: ROCHELLE HILLS | C97: 43.5506 | D97: -105.0922 | E97: 2025-04-16 | F97: 13 | G97: N | H97: 1 | I97: 16Y1P | J97: 5.43 | K97: 8 | L97: 12.03 | M97: 14.8 | N97: -99.99 | O97: 46.2 | P97: 460 | Q97: 4 | R97: 44.5 | S97: 34.4 | T97: 3 | U97: 0 | V97: 0 | W97: 0 | X97: 0 | Y97: 24 | Z97: 30 | AA97: 60 | AB97: 0.42 | AC97: 0.42 | AD97: 21 | AE97: H | AF97: 472
A98: 481003 | B98: POKER | C98: 43.5694 | D98: -106.9783 | E98: 2025-04-16 | F98: 13 | G98: F | H98: 1 | I98: 16Y2P | J98: 32.64 | K98: 25.24 | L98: 23.36 | M98: 23.46 | N98: -99.99 | O98: 0 | P98: 154 | Q98: 0 | R98: 0.2 | S98: 0 | T98: 1 | U98: 0 | V98: 0 | W98: 0 | X98: 0 | Y98: 0 | Z98: 30 | AA98: 60 | AB98: 0.37 | AC98: 0.37 | AD98: 0 | AE98: L | AF98: 481
A99: 482102 | B99: ESTERBROOK | C99: 42.4158 | D99: -105.3611 | E99: 2025-04-16 | F99: 13 | G99: F | H99: 1 | I99: 16Y1P | J99: 6.51 | K99: 8.62 | L99: 11.12 | M99: 14.54 | N99: -99.99 | O99: 37.1 | P99: 347 | Q99: 4 | R99: 43.2 | S99: 33.3 | T99: 3 | U99: 0 | V99: 0 | W99: 0 | X99: 0 | Y99: 24 | Z99: 30 | AA99: 60 | AB99: 0.36 | AC99: 0.36 | AD99: 20 | AE99: M | AF99: 486
A100: 480501 | B100: ECHETA | C100: 44.4655 | D100: -105.8445 | E100: 2025-04-15 | F100: 13 | G100: F | H100: 1 | I100: 16Y2P | J100: 8.04 | K100: 9.96 | L100: 12.02 | M100: 14.9 | N100: -99.99 | O100: 24.4 | P100: 506 | Q100: 3 | R100: 42 | S100: 28.5 | T100: 3 | U100: 0 | V100: 0 | W100: 0 | X100: 0 | Y100: 20 | Z100: 30 | AA100: 60 | AB100: 0.45 | AC100: 0.45 | AD100: 20 | AE100: M | AF100: 491
A101: 480502 | B101: ROCHELLE HILLS | C101: 43.5506 | D101: -105.0922 | E101: 2025-04-15 | F101: 13 | G101: F | H101: 1 | I101: 16Y1P | J101: 8.98 | K101: 10.7 | L101: 12.61 | M101: 15.06 | N101: -99.99 | O101: 20.7 | P101: 458 | Q101: 3 | R101: 39.4 | S101: 28.1 | T101: 3 | U101: 0 | V101: 0 | W101: 0 | X101: 0 | Y101: 20 | Z101: 30 | AA101: 60 | AB101: 0.4 | AC101: 0.4 | AD101: 20 | AE101: M | AF101: 496
A102: 480502 | B102: ROCHELLE HILLS | C102: 43.5506 | D102: -105.0922 | E102: 2025-04-15 | F102: 13 | G102: N | H102: 1 | I102: 16Y1P | J102: 7.44 | K102: 10.84 | L102: 12.67 | M102: 15.09 | N102: -99.99 | O102: 26.1 | P102: 459 | Q102: 3 | R102: 40.2 | S102: 27.3 | T102: 3 | U102: 0 | V102: 0 | W102: 0 | X102: 0 | Y102: 19 | Z102: 30 | AA102: 60 | AB102: 0.41 | AC102: 0.41 | AD102: 19 | AE102: M | AF102: 497
A103: 481003 | B103: POKER | C103: 43.5694 | D103: -106.9783 | E103: 2025-04-15 | F103: 13 | G103: F | H103: 1 | I103: 16Y2P | J103: 32.64 | K103: 25.24 | L103: 23.4 | M103: 23.49 | N103: -99.99 | O103: 0 | P103: 153 | Q103: 0 | R103: 0.2 | S103: 0 | T103: 1 | U103: 0 | V103: 0 | W103: 0 | X103: 0 | Y103: 0 | Z103: 30 | AA103: 60 | AB103: 0.37 | AC103: 0.37 | AD103: 0 | AE103: L | AF103: 506
A104: 482102 | B104: ESTERBROOK | C104: 42.4158 | D104: -105.3611 | E104: 2025-04-15 | F104: 13 | G104: F | H104: 1 | I104: 16Y1P | J104: 8.51 | K104: 10.35 | L104: 11.5 | M104: 14.82 | N104: -99.99 | O104: 21.2 | P104: 346 | Q104: 3 | R104: 39.9 | S104: 27.1 | T104: 3 | U104: 0 | V104: 0 | W104: 0 | X104: 0 | Y104: 19 | Z104: 30 | AA104: 60 | AB104: 0.35 | AC104: 0.35 | AD104: 18 | AE104: M | AF104: 511
A105: 480501 | B105: ECHETA | C105: 44.4655 | D105: -105.8445 | E105: 2025-04-14 | F105: 13 | G105: F | H105: 1 | I105: 16Y2P | J105: 10.7 | K105: 12.12 | L105: 12.1 | M105: 15.1 | N105: -99.99 | O105: 16.4 | P105: 506 | Q105: 7 | R105: 38.6 | S105: 39 | T105: 3 | U105: 0 | V105: 0 | W105: 0 | X105: 0 | Y105: 28 | Z105: 30 | AA105: 60 | AB105: 0.48 | AC105: 0.48 | AD105: 10 | AE105: M | AF105: 516
A106: 480502 | B106: ROCHELLE HILLS | C106: 43.5506 | D106: -105.0922 | E106: 2025-04-14 | F106: 13 | G106: F | H106: 1 | I106: 16Y1P | J106: 11.35 | K106: 12.7 | L106: 12.65 | M106: 15.23 | N106: -99.99 | O106: 14.2 | P106: 458 | Q106: 6 | R106: 36.5 | S106: 35.7 | T106: 3 | U106: 0 | V106: 0 | W106: 0 | X106: 0 | Y106: 25 | Z106: 30 | AA106: 60 | AB106: 0.44 | AC106: 0.44 | AD106: 10 | AE106: M | AF106: 521
A107: 480502 | B107: ROCHELLE HILLS | C107: 43.5506 | D107: -105.0922 | E107: 2025-04-14 | F107: 13 | G107: N | H107: 1 | I107: 16Y1P | J107: 9.92 | K107: 12.45 | L107: 12.56 | M107: 15.23 | N107: -99.99 | O107: 18.8 | P107: 458 | Q107: 6 | R107: 37.5 | S107: 37.1 | T107: 3 | U107: 0 | V107: 0 | W107: 0 | X107: 0 | Y107: 26 | Z107: 30 | AA107: 60 | AB107: 0.44 | AC107: 0.44 | AD107: 8 | AE107: M | AF107: 522
A108: 481003 | B108: POKER | C108: 43.5694 | D108: -106.9783 | E108: 2025-04-14 | F108: 13 | G108: F | H108: 1 | I108: 16Y2P | J108: 32.64 | K108: 25.24 | L108: 23.45 | M108: 23.52 | N108: -99.99 | O108: 0 | P108: 153 | Q108: 0 | R108: 0.1 | S108: 0 | T108: 1 | U108: 0 | V108: 0 | W108: 0 | X108: 0 | Y108: 0 | Z108: 30 | AA108: 60 | AB108: 0.4 | AC108: 0.4 | AD108: 0 | AE108: L | AF108: 531
A109: 482102 | B109: ESTERBROOK | C109: 42.4158 | D109: -105.3611 | E109: 2025-04-14 | F109: 13 | G109: F | H109: 1 | I109: 16Y1P | J109: 10.42 | K109: 12.07 | L109: 11.48 | M109: 15.05 | N109: -99.99 | O109: 14.3 | P109: 346 | Q109: 4 | R109: 37.3 | S109: 28.2 | T109: 3 | U109: 0 | V109: 0 | W109: 0 | X109: 0 | Y109: 20 | Z109: 30 | AA109: 60 | AB109: 0.38 | AC109: 0.38 | AD109: 9 | AE109: M | AF109: 536
A110: 480501 | B110: ECHETA | C110: 44.4655 | D110: -105.8445 | E110: 2025-04-13 | F110: 13 | G110: F | H110: 1 | I110: 16Y2P | J110: 11.25 | K110: 12.97 | L110: 12.07 | M110: 15.21 | N110: -99.99 | O110: 14.3 | P110: 505 | Q110: 12 | R110: 37.5 | S110: 49.7 | T110: 3 | U110: 0 | V110: 0 | W110: 0 | X110: 0 | Y110: 35 | Z110: 34 | AA110: 63 | AB110: 0.51 | AC110: 0.51 | AD110: 9 | AE110: M | AF110: 541
A111: 480502 | B111: ROCHELLE HILLS | C111: 43.5506 | D111: -105.0922 | E111: 2025-04-13 | F111: 13 | G111: F | H111: 1 | I111: 16Y1P | J111: 11.52 | K111: 13.73 | L111: 12.54 | M111: 15.34 | N111: -99.99 | O111: 13.8 | P111: 457 | Q111: 9 | R111: 35.6 | S111: 43.4 | T111: 3 | U111: 0 | V111: 0 | W111: 0 | X111: 0 | Y111: 31 | Z111: 30 | AA111: 60 | AB111: 0.48 | AC111: 0.48 | AD111: 11 | AE111: M | AF111: 546
A112: 480502 | B112: ROCHELLE HILLS | C112: 43.5506 | D112: -105.0922 | E112: 2025-04-13 | F112: 13 | G112: N | H112: 1 | I112: 16Y1P | J112: 10.02 | K112: 14.44 | L112: 12.62 | M112: 15.38 | N112: -99.99 | O112: 18.8 | P112: 458 | Q112: 8 | R112: 36 | S112: 40.1 | T112: 3 | U112: 0 | V112: 0 | W112: 0 | X112: 0 | Y112: 28 | Z112: 30 | AA112: 60 | AB112: 0.48 | AC112: 0.48 | AD112: 10 | AE112: M | AF112: 547
A113: 481003 | B113: POKER | C113: 43.5694 | D113: -106.9783 | E113: 2025-04-13 | F113: 13 | G113: F | H113: 1 | I113: 16Y2P | J113: 32.64 | K113: 25.24 | L113: 23.51 | M113: 23.55 | N113: -99.99 | O113: 0 | P113: 151 | Q113: 0 | R113: 0.1 | S113: 0 | T113: 1 | U113: 0 | V113: 0 | W113: 0 | X113: 0 | Y113: 0 | Z113: 30 | AA113: 60 | AB113: 0.42 | AC113: 0.42 | AD113: 0 | AE113: L | AF113: 556
A114: 482102 | B114: ESTERBROOK | C114: 42.4158 | D114: -105.3611 | E114: 2025-04-13 | F114: 13 | G114: F | H114: 1 | I114: 16Y1P | J114: 10.21 | K114: 11.75 | L114: 11.46 | M114: 15.16 | N114: -99.99 | O114: 17.6 | P114: 344 | Q114: 5 | R114: 37.4 | S114: 33.3 | T114: 3 | U114: 0 | V114: 0 | W114: 0 | X114: 0 | Y114: 24 | Z114: 30 | AA114: 60 | AB114: 0.42 | AC114: 0.42 | AD114: 8 | AE114: M | AF114: 561
A115: 480501 | B115: ECHETA | C115: 44.4655 | D115: -105.8445 | E115: 2025-04-12 | F115: 13 | G115: F | H115: 1 | I115: 16Y2P | J115: 8.21 | K115: 10.51 | L115: 12.4 | M115: 15.6 | N115: -99.99 | O115: 28.4 | P115: 503 | Q115: 4 | R115: 39.4 | S115: 32.4 | T115: 3 | U115: 0 | V115: 0 | W115: 0 | X115: 0 | Y115: 23 | Z115: 30 | AA115: 60 | AB115: 0.48 | AC115: 0.48 | AD115: 22 | AE115: M | AF115: 566
A116: 480502 | B116: ROCHELLE HILLS | C116: 43.5506 | D116: -105.0922 | E116: 2025-04-12 | F116: 13 | G116: F | H116: 1 | I116: 16Y1P | J116: 8.3 | K116: 10.73 | L116: 12.97 | M116: 15.75 | N116: -99.99 | O116: 25.6 | P116: 455 | Q116: 4 | R116: 37.8 | S116: 29.1 | T116: 3 | U116: 0 | V116: 0 | W116: 0 | X116: 0 | Y116: 21 | Z116: 30 | AA116: 60 | AB116: 0.46 | AC116: 0.46 | AD116: 23 | AE116: M | AF116: 571
A117: 480502 | B117: ROCHELLE HILLS | C117: 43.5506 | D117: -105.0922 | E117: 2025-04-12 | F117: 13 | G117: N | H117: 1 | I117: 16Y1P | J117: 7.81 | K117: 8.78 | L117: 12.74 | M117: 15.74 | N117: -99.99 | O117: 32.2 | P117: 457 | Q117: 5 | R117: 39.3 | S117: 34.5 | T117: 3 | U117: 0 | V117: 0 | W117: 0 | X117: 0 | Y117: 24 | Z117: 30 | AA117: 60 | AB117: 0.45 | AC117: 0.45 | AD117: 21 | AE117: M | AF117: 572
A118: 481003 | B118: POKER | C118: 43.5694 | D118: -106.9783 | E118: 2025-04-12 | F118: 13 | G118: F | H118: 1 | I118: 16Y2P | J118: 32.64 | K118: 25.24 | L118: 23.6 | M118: 23.57 | N118: -99.99 | O118: 0 | P118: 149 | Q118: 0 | R118: 0 | S118: 0 | T118: 1 | U118: 0 | V118: 0 | W118: 0 | X118: 0 | Y118: 0 | Z118: 30 | AA118: 60 | AB118: 0.4 | AC118: 0.4 | AD118: 0 | AE118: L | AF118: 581
A119: 482102 | B119: ESTERBROOK | C119: 42.4158 | D119: -105.3611 | E119: 2025-04-12 | F119: 13 | G119: F | H119: 1 | I119: 16Y1P | J119: 6.15 | K119: 8.07 | L119: 11.59 | M119: 15.53 | N119: -99.99 | O119: 44.2 | P119: 342 | Q119: 6 | R119: 40.7 | S119: 37.4 | T119: 3 | U119: 0 | V119: 0 | W119: 0 | X119: 0 | Y119: 27 | Z119: 30 | AA119: 60 | AB119: 0.39 | AC119: 0.39 | AD119: 24 | AE119: M | AF119: 586
A120: 480501 | B120: ECHETA | C120: 44.4655 | D120: -105.8445 | E120: 2025-04-11 | F120: 13 | G120: F | H120: 1 | I120: 16Y2P | J120: 6.81 | K120: 8.98 | L120: 12.95 | M120: 16.06 | N120: -99.99 | O120: 38.2 | P120: 501 | Q120: 4 | R120: 39.4 | S120: 32.7 | T120: 3 | U120: 0 | V120: 0 | W120: 0 | X120: 0 | Y120: 23 | Z120: 30 | AA120: 60 | AB120: 0.47 | AC120: 0.47 | AD120: 26 | AE120: M | AF120: 591
A121: 480502 | B121: ROCHELLE HILLS | C121: 43.5506 | D121: -105.0922 | E121: 2025-04-11 | F121: 13 | G121: F | H121: 1 | I121: 16Y1P | J121: 7.67 | K121: 9.64 | L121: 13.78 | M121: 16.16 | N121: -99.99 | O121: 28.7 | P121: 454 | Q121: 4 | R121: 37 | S121: 28.2 | T121: 3 | U121: 0 | V121: 0 | W121: 0 | X121: 0 | Y121: 20 | Z121: 30 | AA121: 60 | AB121: 0.44 | AC121: 0.44 | AD121: 25 | AE121: M | AF121: 596
A122: 480502 | B122: ROCHELLE HILLS | C122: 43.5506 | D122: -105.0922 | E122: 2025-04-11 | F122: 13 | G122: N | H122: 1 | I122: 16Y1P | J122: 6.05 | K122: 9.24 | L122: 13.91 | M122: 16.19 | N122: -99.99 | O122: 36.4 | P122: 455 | Q122: 3 | R122: 38 | S122: 27.8 | T122: 3 | U122: 0 | V122: 0 | W122: 0 | X122: 0 | Y122: 20 | Z122: 30 | AA122: 60 | AB122: 0.45 | AC122: 0.45 | AD122: 24 | AE122: M | AF122: 597
A123: 481003 | B123: POKER | C123: 43.5694 | D123: -106.9783 | E123: 2025-04-11 | F123: 13 | G123: F | H123: 1 | I123: 16Y2P | J123: 32.64 | K123: 25.24 | L123: 23.71 | M123: 23.55 | N123: -99.99 | O123: 0 | P123: 147 | Q123: 0 | R123: 0 | S123: 0 | T123: 1 | U123: 0 | V123: 0 | W123: 0 | X123: 0 | Y123: 0 | Z123: 30 | AA123: 60 | AB123: 0.36 | AC123: 0.36 | AD123: 0 | AE123: L | AF123: 606
A124: 482102 | B124: ESTERBROOK | C124: 42.4158 | D124: -105.3611 | E124: 2025-04-11 | F124: 13 | G124: F | H124: 1 | I124: 16Y1P | J124: 6.65 | K124: 8.83 | L124: 12.42 | M124: 16.05 | N124: -99.99 | O124: 34.1 | P124: 340 | Q124: 4 | R124: 38 | S124: 29 | T124: 3 | U124: 0 | V124: 0 | W124: 0 | X124: 0 | Y124: 21 | Z124: 30 | AA124: 60 | AB124: 0.37 | AC124: 0.37 | AD124: 23 | AE124: M | AF124: 611
A125: 480501 | B125: ECHETA | C125: 44.4655 | D125: -105.8445 | E125: 2025-04-10 | F125: 13 | G125: F | H125: 1 | I125: 16Y2P | J125: 11.39 | K125: 13.55 | L125: 13.63 | M125: 16.58 | N125: -99.99 | O125: 10.4 | P125: 500 | Q125: 2 | R125: 32.5 | S125: 22.8 | T125: 3 | U125: 0 | V125: 0 | W125: 0 | X125: 0 | Y125: 16 | Z125: 30 | AA125: 60 | AB125: 0.43 | AC125: 0.43 | AD125: 14 | AE125: M | AF125: 616
A126: 480502 | B126: ROCHELLE HILLS | C126: 43.5506 | D126: -105.0922 | E126: 2025-04-10 | F126: 13 | G126: F | H126: 1 | I126: 16Y1P | J126: 10.84 | K126: 12.66 | L126: 13.46 | M126: 16.31 | N126: -99.99 | O126: 10.8 | P126: 453 | Q126: 2 | R126: 33.5 | S126: 21.3 | T126: 3 | U126: 0 | V126: 0 | W126: 0 | X126: 0 | Y126: 15 | Z126: 30 | AA126: 60 | AB126: 0.39 | AC126: 0.39 | AD126: 14 | AE126: M | AF126: 621
A127: 480502 | B127: ROCHELLE HILLS | C127: 43.5506 | D127: -105.0922 | E127: 2025-04-10 | F127: 13 | G127: N | H127: 1 | I127: 16Y1P | J127: 7.74 | K127: 11.47 | L127: 14.46 | M127: 16.35 | N127: -99.99 | O127: 30.2 | P127: 454 | Q127: 5 | R127: 35 | S127: 31.6 | T127: 3 | U127: 0 | V127: 0 | W127: 0 | X127: 0 | Y127: 22 | Z127: 30 | AA127: 60 | AB127: 0.41 | AC127: 0.41 | AD127: 16 | AE127: M | AF127: 622
A128: 481003 | B128: POKER | C128: 43.5694 | D128: -106.9783 | E128: 2025-04-10 | F128: 13 | G128: F | H128: 1 | I128: 16Y2P | J128: 32.64 | K128: 25.25 | L128: 24.05 | M128: 23.54 | N128: -99.99 | O128: 0 | P128: 146 | Q128: 0 | R128: 0 | S128: 0 | T128: 1 | U128: 0 | V128: 0 | W128: 0 | X128: 0 | Y128: 0 | Z128: 30 | AA128: 60 | AB128: 0.32 | AC128: 0.32 | AD128: 0 | AE128: L | AF128: 631
A129: 482102 | B129: ESTERBROOK | C129: 42.4158 | D129: -105.3611 | E129: 2025-04-10 | F129: 13 | G129: F | H129: 1 | I129: 16Y1P | J129: 10.38 | K129: 11.32 | L129: 12.82 | M129: 16.58 | N129: -99.99 | O129: 11.6 | P129: 338 | Q129: 2 | R129: 33 | S129: 21 | T129: 3 | U129: 0 | V129: 0 | W129: 0 | X129: 0 | Y129: 15 | Z129: 30 | AA129: 60 | AB129: 0.34 | AC129: 0.34 | AD129: 13 | AE129: M | AF129: 636
A130: 480501 | B130: ECHETA | C130: 44.4655 | D130: -105.8445 | E130: 2025-04-09 | F130: 13 | G130: F | H130: 1 | I130: 16Y2P | J130: 11.73 | K130: 13.47 | L130: 13.82 | M130: 16.65 | N130: -99.99 | O130: 13.7 | P130: 500 | Q130: 6 | R130: 32.1 | S130: 33.4 | T130: 3 | U130: 0 | V130: 0 | W130: 0 | X130: 0 | Y130: 24 | Z130: 30 | AA130: 60 | AB130: 0.42 | AC130: 0.42 | AD130: 14 | AE130: M | AF130: 641
A131: 480502 | B131: ROCHELLE HILLS | C131: 43.5506 | D131: -105.0922 | E131: 2025-04-09 | F131: 13 | G131: F | H131: 1 | I131: 16Y1P | J131: 11.52 | K131: 13.9 | L131: 13.79 | M131: 16.36 | N131: -99.99 | O131: 14.3 | P131: 453 | Q131: 6 | R131: 32.1 | S131: 32.6 | T131: 3 | U131: 0 | V131: 0 | W131: 0 | X131: 0 | Y131: 23 | Z131: 30 | AA131: 60 | AB131: 0.38 | AC131: 0.38 | AD131: 14 | AE131: M | AF131: 646
A132: 480502 | B132: ROCHELLE HILLS | C132: 43.5506 | D132: -105.0922 | E132: 2025-04-09 | F132: 13 | G132: N | H132: 1 | I132: 16Y1P | J132: 10.95 | K132: 15.52 | L132: 14.08 | M132: 16.65 | N132: -99.99 | O132: 16.3 | P132: 454 | Q132: 5 | R132: 30.8 | S132: 31.4 | T132: 3 | U132: 0 | V132: 0 | W132: 0 | X132: 0 | Y132: 22 | Z132: 30 | AA132: 60 | AB132: 0.39 | AC132: 0.39 | AD132: 14 | AE132: M | AF132: 647
A133: 481003 | B133: POKER | C133: 43.5694 | D133: -106.9783 | E133: 2025-04-09 | F133: 13 | G133: F | H133: 1 | I133: 16Y2P | J133: 32.64 | K133: 25.25 | L133: 24.05 | M133: 23.54 | N133: -99.99 | O133: 0 | P133: 146 | Q133: 0 | R133: 0 | S133: 0 | T133: 1 | U133: 0 | V133: 0 | W133: 0 | X133: 0 | Y133: 0 | Z133: 30 | AA133: 60 | AB133: 0.31 | AC133: 0.31 | AD133: 0 | AE133: L | AF133: 656
A134: 482102 | B134: ESTERBROOK | C134: 42.4158 | D134: -105.3611 | E134: 2025-04-09 | F134: 13 | G134: F | H134: 1 | I134: 16Y1P | J134: 9.82 | K134: 10.7 | L134: 12.9 | M134: 16.66 | N134: -99.99 | O134: 20.3 | P134: 338 | Q134: 6 | R134: 33.4 | S134: 34.6 | T134: 3 | U134: 0 | V134: 0 | W134: 0 | X134: 0 | Y134: 25 | Z134: 30 | AA134: 60 | AB134: 0.32 | AC134: 0.32 | AD134: 13 | AE134: M | AF134: 661
A135: 480501 | B135: ECHETA | C135: 44.4655 | D135: -105.8445 | E135: 2025-04-08 | F135: 13 | G135: F | H135: 1 | I135: 16Y2P | J135: 8.77 | K135: 10.93 | L135: 14.23 | M135: 17.05 | N135: -99.99 | O135: 25.1 | P135: 499 | Q135: 5 | R135: 33.7 | S135: 30.7 | T135: 3 | U135: 0 | V135: 0 | W135: 0 | X135: 0 | Y135: 22 | Z135: 30 | AA135: 60 | AB135: 0.38 | AC135: 0.38 | AD135: 18 | AE135: M | AF135: 666
A136: 480502 | B136: ROCHELLE HILLS | C136: 43.5506 | D136: -105.0922 | E136: 2025-04-08 | F136: 13 | G136: F | H136: 1 | I136: 16Y1P | J136: 8.5 | K136: 10.52 | L136: 14.22 | M136: 16.76 | N136: -99.99 | O136: 27.9 | P136: 452 | Q136: 7 | R136: 34.2 | S136: 36.7 | T136: 3 | U136: 0 | V136: 0 | W136: 0 | X136: 0 | Y136: 26 | Z136: 30 | AA136: 60 | AB136: 0.35 | AC136: 0.35 | AD136: 19 | AE136: M | AF136: 671
A137: 480502 | B137: ROCHELLE HILLS | C137: 43.5506 | D137: -105.0922 | E137: 2025-04-08 | F137: 13 | G137: N | H137: 1 | I137: 16Y1P | J137: 7.28 | K137: 9.8 | L137: 14.18 | M137: 16.75 | N137: -99.99 | O137: 34.4 | P137: 453 | Q137: 8 | R137: 35.4 | S137: 39.5 | T137: 3 | U137: 0 | V137: 0 | W137: 0 | X137: 0 | Y137: 28 | Z137: 30 | AA137: 60 | AB137: 0.34 | AC137: 0.34 | AD137: 18 | AE137: M | AF137: 672
A138: 481003 | B138: POKER | C138: 43.5694 | D138: -106.9783 | E138: 2025-04-08 | F138: 13 | G138: F | H138: 1 | I138: 16Y2P | J138: 32.64 | K138: 25.33 | L138: 24.28 | M138: 23.53 | N138: -99.99 | O138: 0 | P138: 145 | Q138: 0 | R138: 0 | S138: 0 | T138: 1 | U138: 0 | V138: 0 | W138: 0 | X138: 0 | Y138: 0 | Z138: 30 | AA138: 60 | AB138: 0.27 | AC138: 0.27 | AD138: 0 | AE138: L | AF138: 681
A139: 482102 | B139: ESTERBROOK | C139: 42.4158 | D139: -105.3611 | E139: 2025-04-08 | F139: 13 | G139: F | H139: 1 | I139: 16Y1P | J139: 7.84 | K139: 9.87 | L139: 13.65 | M139: 17.09 | N139: -99.99 | O139: 30.7 | P139: 337 | Q139: 8 | R139: 33.3 | S139: 40 | T139: 3 | U139: 0 | V139: 0 | W139: 0 | X139: 0 | Y139: 28 | Z139: 30 | AA139: 60 | AB139: 0.29 | AC139: 0.29 | AD139: 17 | AE139: M | AF139: 686
A140: 480501 | B140: ECHETA | C140: 44.4655 | D140: -105.8445 | E140: 2025-04-07 | F140: 13 | G140: F | H140: 1 | I140: 16Y2P | J140: 10.03 | K140: 11.81 | L140: 15.23 | M140: 17.52 | N140: -99.99 | O140: 17.2 | P140: 498 | Q140: 4 | R140: 30.7 | S140: 26 | T140: 3 | U140: 0 | V140: 0 | W140: 0 | X140: 0 | Y140: 18 | Z140: 30 | AA140: 60 | AB140: 0.33 | AC140: 0.33 | AD140: 18 | AE140: M | AF140: 691
A141: 480502 | B141: ROCHELLE HILLS | C141: 43.5506 | D141: -105.0922 | E141: 2025-04-07 | F141: 13 | G141: F | H141: 1 | I141: 16Y1P | J141: 9.93 | K141: 11.41 | L141: 15.28 | M141: 17.15 | N141: -99.99 | O141: 17.1 | P141: 451 | Q141: 3 | R141: 31.2 | S141: 25.7 | T141: 3 | U141: 0 | V141: 0 | W141: 0 | X141: 0 | Y141: 18 | Z141: 30 | AA141: 60 | AB141: 0.3 | AC141: 0.3 | AD141: 17 | AE141: M | AF141: 696
A142: 480502 | B142: ROCHELLE HILLS | C142: 43.5506 | D142: -105.0922 | E142: 2025-04-07 | F142: 13 | G142: N | H142: 1 | I142: 16Y1P | J142: 7.78 | K142: 10.41 | L142: 15.24 | M142: 17.16 | N142: -99.99 | O142: 22.8 | P142: 452 | Q142: 3 | R142: 32.9 | S142: 23.6 | T142: 3 | U142: 0 | V142: 0 | W142: 0 | X142: 0 | Y142: 17 | Z142: 30 | AA142: 60 | AB142: 0.31 | AC142: 0.31 | AD142: 17 | AE142: M | AF142: 697
A143: 481003 | B143: POKER | C143: 43.5694 | D143: -106.9783 | E143: 2025-04-07 | F143: 13 | G143: F | H143: 1 | I143: 16Y2P | J143: 32.64 | K143: 25.98 | L143: 24.21 | M143: 23.49 | N143: -99.99 | O143: 0 | P143: 144 | Q143: 0 | R143: 0 | S143: 0 | T143: 1 | U143: 0 | V143: 0 | W143: 0 | X143: 0 | Y143: 0 | Z143: 30 | AA143: 60 | AB143: 0.23 | AC143: 0.23 | AD143: 0 | AE143: L | AF143: 706
A144: 482102 | B144: ESTERBROOK | C144: 42.4158 | D144: -105.3611 | E144: 2025-04-07 | F144: 13 | G144: F | H144: 1 | I144: 16Y1P | J144: 9.26 | K144: 10.66 | L144: 14.39 | M144: 17.5 | N144: -99.99 | O144: 19.1 | P144: 336 | Q144: 3 | R144: 30.6 | S144: 25.4 | T144: 3 | U144: 0 | V144: 0 | W144: 0 | X144: 0 | Y144: 18 | Z144: 30 | AA144: 60 | AB144: 0.25 | AC144: 0.25 | AD144: 16 | AE144: M | AF144: 711
A145: 480501 | B145: ECHETA | C145: 44.4655 | D145: -105.8445 | E145: 2025-04-06 | F145: 13 | G145: F | H145: 1 | I145: 16Y2P | J145: 9.87 | K145: 12.03 | L145: 16.2 | M145: 17.84 | N145: -99.99 | O145: 19.7 | P145: 498 | Q145: 5 | R145: 29.2 | S145: 28.9 | T145: 3 | U145: 0 | V145: 0 | W145: 0 | X145: 0 | Y145: 20 | Z145: 30 | AA145: 60 | AB145: 0.33 | AC145: 0.33 | AD145: 15 | AE145: M | AF145: 716
A146: 480502 | B146: ROCHELLE HILLS | C146: 43.5506 | D146: -105.0922 | E146: 2025-04-06 | F146: 13 | G146: F | H146: 1 | I146: 16Y1P | J146: 9.8 | K146: 11.4 | L146: 16.34 | M146: 17.14 | N146: -99.99 | O146: 20.4 | P146: 451 | Q146: 5 | R146: 30.5 | S146: 31.1 | T146: 3 | U146: 0 | V146: 0 | W146: 0 | X146: 0 | Y146: 22 | Z146: 30 | AA146: 60 | AB146: 0.32 | AC146: 0.32 | AD146: 13 | AE146: M | AF146: 721
A147: 480502 | B147: ROCHELLE HILLS | C147: 43.5506 | D147: -105.0922 | E147: 2025-04-06 | F147: 13 | G147: N | H147: 1 | I147: 16Y1P | J147: 9.02 | K147: 11.17 | L147: 16.36 | M147: 17.13 | N147: -99.99 | O147: 23.3 | P147: 451 | Q147: 6 | R147: 31.1 | S147: 34.6 | T147: 3 | U147: 0 | V147: 0 | W147: 0 | X147: 0 | Y147: 25 | Z147: 30 | AA147: 60 | AB147: 0.33 | AC147: 0.33 | AD147: 11 | AE147: M | AF147: 722
A148: 481003 | B148: POKER | C148: 43.5694 | D148: -106.9783 | E148: 2025-04-06 | F148: 13 | G148: F | H148: 1 | I148: 16Y2P | J148: 34.97 | K148: 28.47 | L148: 24.12 | M148: 23.48 | N148: -99.99 | O148: 0 | P148: 144 | Q148: 0 | R148: 0 | S148: 0 | T148: 1 | U148: 0 | V148: 0 | W148: 0 | X148: 0 | Y148: 0 | Z148: 30 | AA148: 60 | AB148: 0.24 | AC148: 0.24 | AD148: 0 | AE148: L | AF148: 731
A149: 482102 | B149: ESTERBROOK | C149: 42.4158 | D149: -105.3611 | E149: 2025-04-06 | F149: 13 | G149: F | H149: 1 | I149: 16Y1P | J149: 9.14 | K149: 11.39 | L149: 15.18 | M149: 17.83 | N149: -99.99 | O149: 18.6 | P149: 336 | Q149: 3 | R149: 29.1 | S149: 24.8 | T149: 3 | U149: 0 | V149: 0 | W149: 0 | X149: 0 | Y149: 18 | Z149: 30 | AA149: 60 | AB149: 0.28 | AC149: 0.28 | AD149: 11 | AE149: M | AF149: 736
A150: 480501 | B150: ECHETA | C150: 44.4655 | D150: -105.8445 | E150: 2025-04-05 | F150: 13 | G150: F | H150: 1 | I150: 16Y2P | J150: 11.69 | K150: 15.31 | L150: 17.05 | M150: 17.98 | N150: -99.99 | O150: 10.4 | P150: 498 | Q150: 3 | R150: 25.9 | S150: 23.3 | T150: 2 | U150: 0 | V150: 0 | W150: 0 | X150: 0 | Y150: 17 | Z150: 30 | AA150: 60 | AB150: 0.33 | AC150: 0.33 | AD150: 8 | AE150: L | AF150: 741
A151: 480502 | B151: ROCHELLE HILLS | C151: 43.5506 | D151: -105.0922 | E151: 2025-04-05 | F151: 13 | G151: F | H151: 1 | I151: 16Y1P | J151: 12.58 | K151: 13.59 | L151: 17.19 | M151: 17.1 | N151: -99.99 | O151: 8 | P151: 451 | Q151: 3 | R151: 27.5 | S151: 23.1 | T151: 3 | U151: 0 | V151: 0 | W151: 0 | X151: 0 | Y151: 16 | Z151: 30 | AA151: 60 | AB151: 0.32 | AC151: 0.32 | AD151: 6 | AE151: M | AF151: 746
A152: 480502 | B152: ROCHELLE HILLS | C152: 43.5506 | D152: -105.0922 | E152: 2025-04-05 | F152: 13 | G152: N | H152: 1 | I152: 16Y1P | J152: 11.81 | K152: 14.05 | L152: 17.23 | M152: 17.09 | N152: -99.99 | O152: 8.7 | P152: 451 | Q152: 3 | R152: 27.7 | S152: 21.7 | T152: 3 | U152: 0 | V152: 0 | W152: 0 | X152: 0 | Y152: 15 | Z152: 30 | AA152: 60 | AB152: 0.32 | AC152: 0.32 | AD152: 5 | AE152: M | AF152: 747
A153: 481003 | B153: POKER | C153: 43.5694 | D153: -106.9783 | E153: 2025-04-05 | F153: 13 | G153: F | H153: 1 | I153: 16Y2P | J153: 32.64 | K153: 25.24 | L153: 23.63 | M153: 23.4 | N153: -99.99 | O153: 0 | P153: 144 | Q153: 0 | R153: 0.2 | S153: 0 | T153: 1 | U153: 0 | V153: 0 | W153: 0 | X153: 0 | Y153: 0 | Z153: 30 | AA153: 60 | AB153: 0.24 | AC153: 0.24 | AD153: 0 | AE153: L | AF153: 756
A154: 482102 | B154: ESTERBROOK | C154: 42.4158 | D154: -105.3611 | E154: 2025-04-05 | F154: 13 | G154: F | H154: 1 | I154: 16Y1P | J154: 12.64 | K154: 13.25 | L154: 15.68 | M154: 18.02 | N154: -99.99 | O154: 6 | P154: 336 | Q154: 2 | R154: 25.8 | S154: 18 | T154: 2 | U154: 0 | V154: 0 | W154: 0 | X154: 0 | Y154: 13 | Z154: 30 | AA154: 60 | AB154: 0.28 | AC154: 0.28 | AD154: 4 | AE154: L | AF154: 761
A155: 480501 | B155: ECHETA | C155: 44.4655 | D155: -105.8445 | E155: 2025-04-04 | F155: 13 | G155: F | H155: 1 | I155: 16Y2P | J155: 12.46 | K155: 19.37 | L155: 17.69 | M155: 17.99 | N155: -99.99 | O155: 9.9 | P155: 501 | Q155: 5 | R155: 23.3 | S155: 27 | T155: 2 | U155: 0 | V155: 0 | W155: 0 | X155: 0 | Y155: 19 | Z155: 30 | AA155: 60 | AB155: 0.33 | AC155: 0.33 | AD155: 2 | AE155: L | AF155: 766
A156: 480502 | B156: ROCHELLE HILLS | C156: 43.5506 | D156: -105.0922 | E156: 2025-04-04 | F156: 13 | G156: F | H156: 1 | I156: 16Y1P | J156: 14.11 | K156: 14.95 | L156: 17.37 | M156: 16.96 | N156: -99.99 | O156: 6.4 | P156: 451 | Q156: 6 | R156: 26.3 | S156: 30 | T156: 3 | U156: 0 | V156: 0 | W156: 0 | X156: 0 | Y156: 21 | Z156: 30 | AA156: 60 | AB156: 0.32 | AC156: 0.32 | AD156: 1 | AE156: M | AF156: 771
A157: 480502 | B157: ROCHELLE HILLS | C157: 43.5506 | D157: -105.0922 | E157: 2025-04-04 | F157: 13 | G157: N | H157: 1 | I157: 16Y1P | J157: 16.51 | K157: 16.98 | L157: 17.51 | M157: 17.18 | N157: -99.99 | O157: 2.5 | P157: 451 | Q157: 4 | R157: 23.7 | S157: 24.2 | T157: 2 | U157: 0 | V157: 0 | W157: 0 | X157: 0 | Y157: 17 | Z157: 30 | AA157: 60 | AB157: 0.32 | AC157: 0.32 | AD157: -1 | AE157: L | AF157: 772
A158: 481003 | B158: POKER | C158: 43.5694 | D158: -106.9783 | E158: 2025-04-04 | F158: 13 | G158: F | H158: 1 | I158: 16Y2P | J158: 32.64 | K158: 25.25 | L158: 23.75 | M158: 23.4 | N158: -99.99 | O158: 0 | P158: 144 | Q158: 0 | R158: 0.1 | S158: 0 | T158: 1 | U158: 0 | V158: 0 | W158: 0 | X158: 0 | Y158: 0 | Z158: 30 | AA158: 60 | AB158: 0.24 | AC158: 0.24 | AD158: 0 | AE158: L | AF158: 781
A159: 482102 | B159: ESTERBROOK | C159: 42.4158 | D159: -105.3611 | E159: 2025-04-04 | F159: 13 | G159: F | H159: 1 | I159: 16Y1P | J159: 14 | K159: 20.38 | L159: 16.11 | M159: 18.08 | N159: -99.99 | O159: 5.2 | P159: 336 | Q159: 4 | R159: 21.8 | S159: 22 | T159: 2 | U159: 0 | V159: 0 | W159: 0 | X159: 0 | Y159: 16 | Z159: 30 | AA159: 60 | AB159: 0.28 | AC159: 0.28 | AD159: 0 | AE159: L | AF159: 786
A160: 480501 | B160: ECHETA | C160: 44.4655 | D160: -105.8445 | E160: 2025-04-03 | F160: 13 | G160: F | H160: 1 | I160: 16Y2P | J160: 14.47 | K160: 15.87 | L160: 17.39 | M160: 17.96 | N160: -99.99 | O160: 4.9 | P160: 502 | Q160: 3 | R160: 24.1 | S160: 20.8 | T160: 2 | U160: 0 | V160: 0 | W160: 0 | X160: 0 | Y160: 15 | Z160: 30 | AA160: 60 | AB160: 0.33 | AC160: 0.33 | AD160: 8 | AE160: L | AF160: 791
A161: 480502 | B161: ROCHELLE HILLS | C161: 43.5506 | D161: -105.0922 | E161: 2025-04-03 | F161: 13 | G161: F | H161: 1 | I161: 16Y1P | J161: 14.95 | K161: 15.78 | L161: 17.68 | M161: 16.98 | N161: -99.99 | O161: 3.9 | P161: 451 | Q161: 2 | R161: 25.2 | S161: 19.7 | T161: 3 | U161: 0 | V161: 0 | W161: 0 | X161: 0 | Y161: 14 | Z161: 30 | AA161: 60 | AB161: 0.33 | AC161: 0.33 | AD161: 8 | AE161: M | AF161: 796
A162: 480502 | B162: ROCHELLE HILLS | C162: 43.5506 | D162: -105.0922 | E162: 2025-04-03 | F162: 13 | G162: N | H162: 1 | I162: 16Y1P | J162: 15.39 | K162: 16.77 | L162: 17.84 | M162: 16.98 | N162: -99.99 | O162: 3.7 | P162: 451 | Q162: 3 | R162: 24.5 | S162: 20.7 | T162: 2 | U162: 0 | V162: 0 | W162: 0 | X162: 0 | Y162: 15 | Z162: 30 | AA162: 60 | AB162: 0.33 | AC162: 0.33 | AD162: 7 | AE162: L | AF162: 797
A163: 481003 | B163: POKER | C163: 43.5694 | D163: -106.9783 | E163: 2025-04-03 | F163: 13 | G163: F | H163: 1 | I163: 16Y2P | J163: 32.64 | K163: 25.3 | L163: 23.9 | M163: 23.4 | N163: -99.99 | O163: 0 | P163: 144 | Q163: 0 | R163: 0.1 | S163: 0 | T163: 1 | U163: 0 | V163: 0 | W163: 0 | X163: 0 | Y163: 0 | Z163: 30 | AA163: 60 | AB163: 0.24 | AC163: 0.24 | AD163: 0 | AE163: L | AF163: 806
A164: 482102 | B164: ESTERBROOK | C164: 42.4158 | D164: -105.3611 | E164: 2025-04-03 | F164: 13 | G164: F | H164: 1 | I164: 16Y1P | J164: 11.86 | K164: 13.81 | L164: 16.11 | M164: 18.27 | N164: -99.99 | O164: 8.1 | P164: 336 | Q164: 2 | R164: 25.1 | S164: 19.6 | T164: 2 | U164: 0 | V164: 0 | W164: 0 | X164: 0 | Y164: 14 | Z164: 30 | AA164: 60 | AB164: 0.28 | AC164: 0.28 | AD164: 5 | AE164: L | AF164: 811
A165: 480501 | B165: ECHETA | C165: 44.4655 | D165: -105.8445 | E165: 2025-04-02 | F165: 13 | G165: F | H165: 1 | I165: 16Y2P | J165: 19.84 | K165: 20.25 | L165: 16.92 | M165: 17.97 | N165: -99.99 | O165: 0.7 | P165: 505 | Q165: 4 | R165: 20 | S165: 21.3 | T165: 2 | U165: 0 | V165: 0 | W165: 0 | X165: 0 | Y165: 15 | Z165: 30 | AA165: 60 | AB165: 0.38 | AC165: 0.38 | AD165: 3 | AE165: L | AF165: 816
A166: 480502 | B166: ROCHELLE HILLS | C166: 43.5506 | D166: -105.0922 | E166: 2025-04-02 | F166: 13 | G166: F | H166: 1 | I166: 16Y1P | J166: 19.41 | K166: 19.11 | L166: 17.71 | M166: 16.74 | N166: -99.99 | O166: 0.9 | P166: 452 | Q166: 4 | R166: 22.1 | S166: 23.4 | T166: 2 | U166: 0 | V166: 0 | W166: 0 | X166: 0 | Y166: 17 | Z166: 30 | AA166: 60 | AB166: 0.37 | AC166: 0.37 | AD166: 3 | AE166: L | AF166: 821
A167: 480502 | B167: ROCHELLE HILLS | C167: 43.5506 | D167: -105.0922 | E167: 2025-04-02 | F167: 13 | G167: N | H167: 1 | I167: 16Y1P | J167: 20.27 | K167: 19.82 | L167: 17.75 | M167: 16.73 | N167: -99.99 | O167: 0.5 | P167: 451 | Q167: 4 | R167: 21.4 | S167: 23.1 | T167: 2 | U167: 0 | V167: 0 | W167: 0 | X167: 0 | Y167: 16 | Z167: 30 | AA167: 60 | AB167: 0.37 | AC167: 0.37 | AD167: 2 | AE167: L | AF167: 822
A168: 481003 | B168: POKER | C168: 43.5694 | D168: -106.9783 | E168: 2025-04-02 | F168: 13 | G168: F | H168: 1 | I168: 16Y2P | J168: 32.64 | K168: 25.72 | L168: 23.95 | M168: 23.36 | N168: -99.99 | O168: 0 | P168: 144 | Q168: 0 | R168: 0 | S168: 0 | T168: 1 | U168: 0 | V168: 0 | W168: 0 | X168: 0 | Y168: 0 | Z168: 30 | AA168: 60 | AB168: 0.27 | AC168: 0.27 | AD168: 0 | AE168: L | AF168: 831
A169: 482102 | B169: ESTERBROOK | C169: 42.4158 | D169: -105.3611 | E169: 2025-04-02 | F169: 13 | G169: F | H169: 1 | I169: 16Y1P | J169: 14.67 | K169: 15.15 | L169: 16.47 | M169: 18.37 | N169: -99.99 | O169: 4.8 | P169: 336 | Q169: 4 | R169: 22.8 | S169: 23.7 | T169: 2 | U169: 0 | V169: 0 | W169: 0 | X169: 0 | Y169: 17 | Z169: 30 | AA169: 60 | AB169: 0.32 | AC169: 0.32 | AD169: 0 | AE169: L | AF169: 836
A170: 480501 | B170: ECHETA | C170: 44.4655 | D170: -105.8445 | E170: 2025-04-01 | F170: 13 | G170: F | H170: 1 | I170: 16Y2P | J170: 15.63 | K170: 16.87 | L170: 15.64 | M170: 17.8 | N170: -99.99 | O170: 4.4 | P170: 506 | Q170: 5 | R170: 24.7 | S170: 26.8 | T170: 2 | U170: 0 | V170: 0 | W170: 0 | X170: 0 | Y170: 19 | Z170: 30 | AA170: 60 | AB170: 0.39 | AC170: 0.39 | AD170: 6 | AE170: L | AF170: 841
A171: 480502 | B171: ROCHELLE HILLS | C171: 43.5506 | D171: -105.0922 | E171: 2025-04-01 | F171: 13 | G171: F | H171: 1 | I171: 16Y1P | J171: 17.98 | K171: 19.82 | L171: 17.1 | M171: 16.79 | N171: -99.99 | O171: 1.8 | P171: 458 | Q171: 4 | R171: 22.9 | S171: 23.4 | T171: 2 | U171: 0 | V171: 0 | W171: 0 | X171: 0 | Y171: 17 | Z171: 30 | AA171: 60 | AB171: 0.41 | AC171: 0.41 | AD171: 6 | AE171: L | AF171: 846
A172: 480502 | B172: ROCHELLE HILLS | C172: 43.5506 | D172: -105.0922 | E172: 2025-04-01 | F172: 13 | G172: N | H172: 1 | I172: 16Y1P | J172: 22.39 | K172: 23.3 | L172: 17.44 | M172: 16.47 | N172: -99.99 | O172: 0 | P172: 452 | Q172: 1 | R172: 19.7 | S172: 13.9 | T172: 2 | U172: 0 | V172: 0 | W172: 0 | X172: 0 | Y172: 10 | Z172: 30 | AA172: 60 | AB172: 0.4 | AC172: 0.4 | AD172: 4 | AE172: L | AF172: 847
A173: 481003 | B173: POKER | C173: 43.5694 | D173: -106.9783 | E173: 2025-04-01 | F173: 13 | G173: F | H173: 1 | I173: 16Y2P | J173: 32.64 | K173: 26.14 | L173: 23.91 | M173: 23.34 | N173: -99.99 | O173: 0 | P173: 148 | Q173: 0 | R173: 0 | S173: 0 | T173: 1 | U173: 0 | V173: 0 | W173: 0 | X173: 0 | Y173: 0 | Z173: 30 | AA173: 60 | AB173: 0.3 | AC173: 0.3 | AD173: 0 | AE173: L | AF173: 856
A174: 482102 | B174: ESTERBROOK | C174: 42.4158 | D174: -105.3611 | E174: 2025-04-01 | F174: 13 | G174: F | H174: 1 | I174: 16Y1P | J174: 14.33 | K174: 15.2 | L174: 16.56 | M174: 18.43 | N174: -99.99 | O174: 5.8 | P174: 336 | Q174: 4 | R174: 22.8 | S174: 24.6 | T174: 2 | U174: 0 | V174: 0 | W174: 0 | X174: 0 | Y174: 17 | Z174: 30 | AA174: 60 | AB174: 0.37 | AC174: 0.37 | AD174: 4 | AE174: L | AF174: 861
A175: 480501 | B175: ECHETA | C175: 44.4655 | D175: -105.8445 | E175: 2025-03-31 | F175: 13 | G175: F | H175: 1 | I175: 16Y2P | J175: 14.81 | K175: 19.2 | L175: 16.81 | M175: 17.93 | N175: -99.99 | O175: 6.2 | P175: 511 | Q175: 5 | R175: 23 | S175: 26.4 | T175: 2 | U175: 0 | V175: 0 | W175: 0 | X175: 0 | Y175: 19 | Z175: 30 | AA175: 60 | AB175: 0.37 | AC175: 0.37 | AD175: 11 | AE175: L | AF175: 866
A176: 480502 | B176: ROCHELLE HILLS | C176: 43.5506 | D176: -105.0922 | E176: 2025-03-31 | F176: 13 | G176: F | H176: 1 | I176: 16Y1P | J176: 17.6 | K176: 20.47 | L176: 16.7 | M176: 16.44 | N176: -99.99 | O176: 2 | P176: 458 | Q176: 3 | R176: 23.7 | S176: 21.3 | T176: 2 | U176: 0 | V176: 0 | W176: 0 | X176: 0 | Y176: 15 | Z176: 30 | AA176: 60 | AB176: 0.39 | AC176: 0.39 | AD176: 9 | AE176: L | AF176: 871
A177: 480502 | B177: ROCHELLE HILLS | C177: 43.5506 | D177: -105.0922 | E177: 2025-03-31 | F177: 13 | G177: N | H177: 1 | I177: 16Y1P | J177: 31.19 | K177: 22.8 | L177: 16.62 | M177: 16.46 | N177: -99.99 | O177: 0 | P177: 458 | Q177: 0 | R177: 16.6 | S177: 0 | T177: 2 | U177: 0 | V177: 0 | W177: 0 | X177: 0 | Y177: 0 | Z177: 30 | AA177: 60 | AB177: 0.39 | AC177: 0.39 | AD177: 1 | AE177: L | AF177: 872
A178: 481003 | B178: POKER | C178: 43.5694 | D178: -106.9783 | E178: 2025-03-31 | F178: 13 | G178: F | H178: 1 | I178: 16Y2P | J178: 34.08 | K178: 26.04 | L178: 23.69 | M178: 23.35 | N178: -99.99 | O178: 0 | P178: 153 | Q178: 0 | R178: 0 | S178: 0 | T178: 1 | U178: 0 | V178: 0 | W178: 0 | X178: 0 | Y178: 0 | Z178: 30 | AA178: 60 | AB178: 0.29 | AC178: 0.29 | AD178: 0 | AE178: L | AF178: 881
A179: 482102 | B179: ESTERBROOK | C179: 42.4158 | D179: -105.3611 | E179: 2025-03-31 | F179: 13 | G179: F | H179: 1 | I179: 16Y1P | J179: 14.8 | K179: 16.35 | L179: 16.18 | M179: 18.39 | N179: -99.99 | O179: 4.4 | P179: 336 | Q179: 3 | R179: 22.4 | S179: 19.8 | T179: 2 | U179: 0 | V179: 0 | W179: 0 | X179: 0 | Y179: 14 | Z179: 30 | AA179: 60 | AB179: 0.37 | AC179: 0.37 | AD179: 9 | AE179: L | AF179: 886
A180: 480501 | B180: ECHETA | C180: 44.4655 | D180: -105.8445 | E180: 2025-03-30 | F180: 13 | G180: F | H180: 1 | I180: 16Y2P | J180: 18.96 | K180: 19.32 | L180: 14.29 | M180: 18.05 | N180: -99.99 | O180: 0.8 | P180: 525 | Q180: 2 | R180: 22.6 | S180: 17.7 | T180: 2 | U180: 0 | V180: 0 | W180: 0 | X180: 0 | Y180: 13 | Z180: 30 | AA180: 60 | AB180: 0.42 | AC180: 0.42 | AD180: 3 | AE180: L | AF180: 891
A181: 480502 | B181: ROCHELLE HILLS | C181: 43.5506 | D181: -105.0922 | E181: 2025-03-30 | F181: 13 | G181: F | H181: 1 | I181: 16Y1P | J181: 21.21 | K181: 19.84 | L181: 15.96 | M181: 16.47 | N181: -99.99 | O181: 0.1 | P181: 458 | Q181: 1 | R181: 22.7 | S181: 12.7 | T181: 2 | U181: 0 | V181: 0 | W181: 0 | X181: 0 | Y181: 9 | Z181: 30 | AA181: 60 | AB181: 0.42 | AC181: 0.42 | AD181: 2 | AE181: L | AF181: 896
A182: 480502 | B182: ROCHELLE HILLS | C182: 43.5506 | D182: -105.0922 | E182: 2025-03-30 | F182: 13 | G182: N | H182: 1 | I182: 16Y1P | J182: 25.74 | K182: 22.53 | L182: 15.31 | M182: 16.49 | N182: -99.99 | O182: 0 | P182: 458 | Q182: 0 | R182: 19.9 | S182: 0 | T182: 2 | U182: 0 | V182: 0 | W182: 0 | X182: 0 | Y182: 0 | Z182: 30 | AA182: 60 | AB182: 0.42 | AC182: 0.42 | AD182: 0 | AE182: L | AF182: 897
A183: 481003 | B183: POKER | C183: 43.5694 | D183: -106.9783 | E183: 2025-03-30 | F183: 13 | G183: F | H183: 1 | I183: 16Y2P | J183: 33.55 | K183: 27.88 | L183: 23.35 | M183: 23.33 | N183: -99.99 | O183: 0 | P183: 153 | Q183: 0 | R183: 0 | S183: 0 | T183: 1 | U183: 0 | V183: 0 | W183: 0 | X183: 0 | Y183: 0 | Z183: 30 | AA183: 60 | AB183: 0.32 | AC183: 0.32 | AD183: 0 | AE183: L | AF183: 906
A184: 482102 | B184: ESTERBROOK | C184: 42.4158 | D184: -105.3611 | E184: 2025-03-30 | F184: 13 | G184: F | H184: 1 | I184: 16Y1P | J184: 19.77 | K184: 20.78 | L184: 15.95 | M184: 18.58 | N184: -99.99 | O184: 0.4 | P184: 340 | Q184: 1 | R184: 18.3 | S184: 11.9 | T184: 2 | U184: 0 | V184: 0 | W184: 0 | X184: 0 | Y184: 8 | Z184: 30 | AA184: 60 | AB184: 0.4 | AC184: 0.4 | AD184: 2 | AE184: L | AF184: 911
A185: 480501 | B185: ECHETA | C185: 44.4655 | D185: -105.8445 | E185: 2025-03-29 | F185: 13 | G185: F | H185: 1 | I185: 16Y2P | J185: 14.38 | K185: 21.5 | L185: 15.57 | M185: 18.68 | N185: -99.99 | O185: 5 | P185: 525 | Q185: 3 | R185: 21.8 | S185: 21.2 | T185: 2 | U185: 0 | V185: 0 | W185: 0 | X185: 0 | Y185: 15 | Z185: 30 | AA185: 60 | AB185: 0.45 | AC185: 0.45 | AD185: 5 | AE185: L | AF185: 916
A186: 480502 | B186: ROCHELLE HILLS | C186: 43.5506 | D186: -105.0922 | E186: 2025-03-29 | F186: 13 | G186: F | H186: 1 | I186: 16Y1P | J186: 14.8 | K186: 22.01 | L186: 15.55 | M186: 16.38 | N186: -99.99 | O186: 3.8 | P186: 492 | Q186: 2 | R186: 25.7 | S186: 19.9 | T186: 3 | U186: 0 | V186: 0 | W186: 0 | X186: 0 | Y186: 14 | Z186: 30 | AA186: 60 | AB186: 0.44 | AC186: 0.44 | AD186: 4 | AE186: M | AF186: 921
A187: 480502 | B187: ROCHELLE HILLS | C187: 43.5506 | D187: -105.0922 | E187: 2025-03-29 | F187: 13 | G187: N | H187: 1 | I187: 16Y1P | J187: 33.86 | K187: 30.08 | L187: 12.83 | M187: 16.61 | N187: -99.99 | O187: 0 | P187: 458 | Q187: 0 | R187: 14.8 | S187: 0 | T187: 2 | U187: 0 | V187: 0 | W187: 0 | X187: 0 | Y187: 0 | Z187: 30 | AA187: 60 | AB187: 0.43 | AC187: 0.43 | AD187: 2 | AE187: L | AF187: 922
A188: 481003 | B188: POKER | C188: 43.5694 | D188: -106.9783 | E188: 2025-03-29 | F188: 13 | G188: F | H188: 1 | I188: 16Y2P | J188: 32.64 | K188: 25.24 | L188: 23.33 | M188: 23.33 | N188: -99.99 | O188: 0 | P188: 155 | Q188: 0 | R188: 0.4 | S188: 0 | T188: 1 | U188: 0 | V188: 0 | W188: 0 | X188: 0 | Y188: 0 | Z188: 30 | AA188: 60 | AB188: 0.35 | AC188: 0.35 | AD188: 0 | AE188: L | AF188: 931
A189: 482102 | B189: ESTERBROOK | C189: 42.4158 | D189: -105.3611 | E189: 2025-03-29 | F189: 13 | G189: F | H189: 1 | I189: 16Y1P | J189: 14.11 | K189: 19.58 | L189: 14.21 | M189: 18.16 | N189: -99.99 | O189: 4.8 | P189: 362 | Q189: 3 | R189: 23.4 | S189: 19.8 | T189: 2 | U189: 0 | V189: 0 | W189: 0 | X189: 0 | Y189: 14 | Z189: 30 | AA189: 60 | AB189: 0.4 | AC189: 0.4 | AD189: 4 | AE189: L | AF189: 936
A190: 480501 | B190: ECHETA | C190: 44.4655 | D190: -105.8445 | E190: 2025-03-28 | F190: 13 | G190: F | H190: 1 | I190: 16Y2P | J190: 7.96 | K190: 10.44 | L190: 14.05 | M190: 18.59 | N190: -99.99 | O190: 29.7 | P190: 523 | Q190: 5 | R190: 31.3 | S190: 30.4 | T190: 3 | U190: 0 | V190: 0 | W190: 0 | X190: 0 | Y190: 22 | Z190: 30 | AA190: 60 | AB190: 0.42 | AC190: 0.42 | AD190: 17 | AE190: M | AF190: 941
A191: 480502 | B191: ROCHELLE HILLS | C191: 43.5506 | D191: -105.0922 | E191: 2025-03-28 | F191: 13 | G191: F | H191: 1 | I191: 16Y1P | J191: 7.52 | K191: 9.86 | L191: 12.77 | M191: 16.24 | N191: -99.99 | O191: 27.9 | P191: 491 | Q191: 4 | R191: 38.1 | S191: 28.9 | T191: 3 | U191: 0 | V191: 0 | W191: 0 | X191: 0 | Y191: 21 | Z191: 30 | AA191: 60 | AB191: 0.41 | AC191: 0.41 | AD191: 18 | AE191: M | AF191: 946
A192: 480502 | B192: ROCHELLE HILLS | C192: 43.5506 | D192: -105.0922 | E192: 2025-03-28 | F192: 13 | G192: N | H192: 1 | I192: 16Y1P | J192: 9.11 | K192: 9.24 | L192: 12.76 | M192: 16.28 | N192: -99.99 | O192: 21.9 | P192: 492 | Q192: 4 | R192: 37.4 | S192: 30.7 | T192: 3 | U192: 0 | V192: 0 | W192: 0 | X192: 0 | Y192: 22 | Z192: 30 | AA192: 60 | AB192: 0.42 | AC192: 0.42 | AD192: 16 | AE192: M | AF192: 947
A193: 481003 | B193: POKER | C193: 43.5694 | D193: -106.9783 | E193: 2025-03-28 | F193: 13 | G193: F | H193: 1 | I193: 16Y2P | J193: 32.64 | K193: 25.24 | L193: 23.36 | M193: 23.35 | N193: -99.99 | O193: 0 | P193: 154 | Q193: 0 | R193: 0.4 | S193: 0 | T193: 1 | U193: 0 | V193: 0 | W193: 0 | X193: 0 | Y193: 0 | Z193: 30 | AA193: 60 | AB193: 0.32 | AC193: 0.32 | AD193: 0 | AE193: L | AF193: 956
A194: 482102 | B194: ESTERBROOK | C194: 42.4158 | D194: -105.3611 | E194: 2025-03-28 | F194: 13 | G194: F | H194: 1 | I194: 16Y1P | J194: 7.66 | K194: 9.44 | L194: 13.43 | M194: 18.73 | N194: -99.99 | O194: 21.8 | P194: 360 | Q194: 2 | R194: 30.4 | S194: 21.6 | T194: 3 | U194: 0 | V194: 0 | W194: 0 | X194: 0 | Y194: 15 | Z194: 30 | AA194: 60 | AB194: 0.38 | AC194: 0.38 | AD194: 16 | AE194: M | AF194: 961
A195: 480501 | B195: ECHETA | C195: 44.4655 | D195: -105.8445 | E195: 2025-03-27 | F195: 13 | G195: F | H195: 1 | I195: 16Y2P | J195: 7.75 | K195: 10.33 | L195: 15.04 | M195: 19.42 | N195: -99.99 | O195: 33.9 | P195: 522 | Q195: 6 | R195: 28.9 | S195: 31.2 | T195: 3 | U195: 0 | V195: 0 | W195: 0 | X195: 0 | Y195: 22 | Z195: 30 | AA195: 60 | AB195: 0.38 | AC195: 0.38 | AD195: 25 | AE195: M | AF195: 966
A196: 480502 | B196: ROCHELLE HILLS | C196: 43.5506 | D196: -105.0922 | E196: 2025-03-27 | F196: 13 | G196: F | H196: 1 | I196: 16Y1P | J196: 8.42 | K196: 11.1 | L196: 13.62 | M196: 16.73 | N196: -99.99 | O196: 29.8 | P196: 490 | Q196: 6 | R196: 35 | S196: 36.4 | T196: 3 | U196: 0 | V196: 0 | W196: 0 | X196: 0 | Y196: 26 | Z196: 30 | AA196: 60 | AB196: 0.38 | AC196: 0.38 | AD196: 24 | AE196: M | AF196: 971
A197: 480502 | B197: ROCHELLE HILLS | C197: 43.5506 | D197: -105.0922 | E197: 2025-03-27 | F197: 13 | G197: N | H197: 1 | I197: 16Y1P | J197: 7.47 | K197: 10.37 | L197: 13.59 | M197: 16.73 | N197: -99.99 | O197: 35 | P197: 491 | Q197: 6 | R197: 36 | S197: 35.7 | T197: 3 | U197: 0 | V197: 0 | W197: 0 | X197: 0 | Y197: 25 | Z197: 30 | AA197: 60 | AB197: 0.38 | AC197: 0.38 | AD197: 24 | AE197: M | AF197: 972
A198: 481003 | B198: POKER | C198: 43.5694 | D198: -106.9783 | E198: 2025-03-27 | F198: 13 | G198: F | H198: 1 | I198: 16Y2P | J198: 32.64 | K198: 25.24 | L198: 23.4 | M198: 23.34 | N198: -99.99 | O198: 0 | P198: 153 | Q198: 0 | R198: 0.4 | S198: 0 | T198: 1 | U198: 0 | V198: 0 | W198: 0 | X198: 0 | Y198: 0 | Z198: 30 | AA198: 60 | AB198: 0.27 | AC198: 0.27 | AD198: 0 | AE198: L | AF198: 981
A199: 482102 | B199: ESTERBROOK | C199: 42.4158 | D199: -105.3611 | E199: 2025-03-27 | F199: 13 | G199: F | H199: 1 | I199: 16Y1P | J199: 7.27 | K199: 9.73 | L199: 14.46 | M199: 19.58 | N199: -99.99 | O199: 33.4 | P199: 358 | Q199: 4 | R199: 27.9 | S199: 27.5 | T199: 3 | U199: 0 | V199: 0 | W199: 0 | X199: 0 | Y199: 20 | Z199: 30 | AA199: 60 | AB199: 0.33 | AC199: 0.33 | AD199: 22 | AE199: M | AF199: 986
A200: 480501 | B200: ECHETA | C200: 44.4655 | D200: -105.8445 | E200: 2025-03-26 | F200: 13 | G200: F | H200: 1 | I200: 16Y2P | J200: 11.22 | K200: 15.27 | L200: 15.95 | M200: 20.12 | N200: -99.99 | O200: 12.3 | P200: 521 | Q200: 3 | R200: 22.8 | S200: 20.1 | T200: 2 | U200: 0 | V200: 0 | W200: 0 | X200: 0 | Y200: 14 | Z200: 30 | AA200: 60 | AB200: 0.34 | AC200: 0.34 | AD200: 21 | AE200: L | AF200: 991
... 423 more rows

Sheet WXML LAR_V4
A1: sta_id | B1: sta_nm | C1: latitude | D1: longitude | E1: nfdr_dt | F1: nfdr_tm | G1: nfdr_type | H1: mp | I1: msgc | J1: one_hr | K1: ten_hr | L1: hu_hr | M1: th_hr | N1: xh_hr | O1: ic | P1: kbdi | Q1: sc | R1: ec | S1: bi | T1: sl | U1: lr | V1: lo | W1: hr | X1: ho | Y1: fl | Z1: hrb | AA1: wdy | AB1: herb_gsi | AC1: woody_gsi | AD1: fueltemp | AE1: adj | AF1: Attribute:num
A2: 481502 | B2: CASPER MOUNTAIN | C2: 42.7111 | D2: -106.3472 | E2: 2025-05-06 | F2: 13 | G2: F | H2: 1 | I2: 16Y2P | J2: 34.24 | K2: 30.03 | L2: 24.31 | M2: 23.4 | N2: -99.99 | O2: 0 | P2: 239 | Q2: 0 | R2: 0 | S2: 0 | T2: 1 | U2: 0 | V2: 0 | W2: 0 | X2: 0 | Y2: 0 | Z2: 30 | AA2: 60 | AB2: 0.31 | AC2: 0.31 | AD2: 0 | AE2: L | AF2: 1
A3: 482102 | B3: ESTERBROOK | C3: 42.4158 | D3: -105.3611 | E3: 2025-05-06 | F3: 13 | G3: F | H3: 1 | I3: 16Y1P | J3: 12.31 | K3: 13.3 | L3: 13.75 | M3: 15.76 | N3: -99.99 | O3: 8.2 | P3: 319 | Q3: 2 | R3: 31.9 | S3: 22.5 | T3: 3 | U3: 0 | V3: 0 | W3: 0 | X3: 0 | Y3: 16 | Z3: 30 | AA3: 60 | AB3: 0.47 | AC3: 0.47 | AD3: 11 | AE3: M | AF3: 3
A4: 482106 | B4: DODGE CREEK | C4: 41.9672 | D4: -105.5192 | E4: 2025-05-06 | F4: 13 | G4: F | H4: 2 | I4: 16Y1P | J4: 12.18 | K4: 13.61 | L4: 13.98 | M4: 14.49 | N4: -99.99 | O4: 9.4 | P4: 248 | Q4: 3 | R4: 33.6 | S4: 25.6 | T4: 2 | U4: 0 | V4: 0 | W4: 0 | X4: 0 | Y4: 18 | Z4: 30 | AA4: 60 | AB4: 0.34 | AC4: 0.34 | AD4: 11 | AE4: L | AF4: 9
A5: 482106 | B5: DODGE CREEK | C5: 41.9672 | D5: -105.5192 | E5: 2025-05-06 | F5: 13 | G5: F | H5: 5 | I5: 16Y1P | J5: 12.18 | K5: 13.61 | L5: 13.98 | M5: 14.49 | N5: -99.99 | O5: 9.4 | P5: 248 | Q5: 3 | R5: 33.6 | S5: 25.6 | U5: 0 | V5: 0 | W5: 0 | X5: 0 | Y5: 18 | Z5: 30 | AA5: 60 | AB5: 0.34 | AC5: 0.34 | AD5: 11 | AF5: 12
A6: 481502 | B6: CASPER MOUNTAIN | C6: 42.7111 | D6: -106.3472 | E6: 2025-05-05 | F6: 13 | G6: F | H6: 1 | I6: 16Y2P | J6: 34.24 | K6: 30.03 | L6: 24.31 | M6: 23.4 | N6: -99.99 | O6: 0 | P6: 239 | Q6: 0 | R6: 0 | S6: 0 | T6: 1 | U6: 0 | V6: 0 | W6: 0 | X6: 0 | Y6: 0 | Z6: 30 | AA6: 60 | AB6: 0.28 | AC6: 0.28 | AD6: 0 | AE6: L | AF6: 14
A7: 482102 | B7: ESTERBROOK | C7: 42.4158 | D7: -105.3611 | E7: 2025-05-05 | F7: 13 | G7: F | H7: 1 | I7: 16Y1P | J7: 10.45 | K7: 11.87 | L7: 13.74 | M7: 16.01 | N7: -99.99 | O7: 14.7 | P7: 319 | Q7: 3 | R7: 33 | S7: 25.5 | T7: 3 | U7: 0 | V7: 0 | W7: 0 | X7: 0 | Y7: 18 | Z7: 30 | AA7: 60 | AB7: 0.43 | AC7: 0.43 | AD7: 16 | AE7: M | AF7: 16
A8: 482106 | B8: DODGE CREEK | C8: 41.9672 | D8: -105.5192 | E8: 2025-05-05 | F8: 13 | G8: F | H8: 2 | I8: 16Y1P | J8: 10.61 | K8: 12.42 | L8: 14.02 | M8: 14.46 | N8: -99.99 | O8: 16.7 | P8: 248 | Q8: 4 | R8: 35 | S8: 30.6 | T8: 3 | U8: 0 | V8: 0 | W8: 0 | X8: 0 | Y8: 22 | Z8: 30 | AA8: 60 | AB8: 0.31 | AC8: 0.31 | AD8: 16 | AE8: M | AF8: 22
A9: 482106 | B9: DODGE CREEK | C9: 41.9672 | D9: -105.5192 | E9: 2025-05-05 | F9: 13 | G9: F | H9: 5 | I9: 16Y1P | J9: 10.61 | K9: 12.42 | L9: 14.02 | M9: 14.46 | N9: -99.99 | O9: 16.7 | P9: 248 | Q9: 4 | R9: 35 | S9: 30.6 | U9: 0 | V9: 0 | W9: 0 | X9: 0 | Y9: 22 | Z9: 30 | AA9: 60 | AB9: 0.31 | AC9: 0.31 | AD9: 16 | AF9: 25
A10: 481502 | B10: CASPER MOUNTAIN | C10: 42.7111 | D10: -106.3472 | E10: 2025-05-04 | F10: 13 | G10: F | H10: 1 | I10: 16Y2P | J10: 34.24 | K10: 30.03 | L10: 24.31 | M10: 23.4 | N10: -99.99 | O10: 0 | P10: 239 | Q10: 0 | R10: 0 | S10: 0 | T10: 1 | U10: 0 | V10: 0 | W10: 0 | X10: 0 | Y10: 0 | Z10: 30 | AA10: 60 | AB10: 0.24 | AC10: 0.24 | AD10: 0 | AE10: L | AF10: 27
A11: 482102 | B11: ESTERBROOK | C11: 42.4158 | D11: -105.3611 | E11: 2025-05-04 | F11: 13 | G11: F | H11: 1 | I11: 16Y1P | J11: 9.43 | K11: 11.23 | L11: 14.21 | M11: 16.36 | N11: -99.99 | O11: 18.3 | P11: 319 | Q11: 3 | R11: 32.7 | S11: 25 | T11: 3 | U11: 0 | V11: 0 | W11: 0 | X11: 0 | Y11: 18 | Z11: 30 | AA11: 60 | AB11: 0.39 | AC11: 0.39 | AD11: 19 | AE11: M | AF11: 29
A12: 482106 | B12: DODGE CREEK | C12: 41.9672 | D12: -105.5192 | E12: 2025-05-04 | F12: 13 | G12: F | H12: 2 | I12: 16Y1P | J12: 9.88 | K12: 12.15 | L12: 14.26 | M12: 14.56 | N12: -99.99 | O12: 17.6 | P12: 248 | Q12: 3 | R12: 35.2 | S12: 27.2 | T12: 3 | U12: 0 | V12: 0 | W12: 0 | X12: 0 | Y12: 19 | Z12: 30 | AA12: 60 | AB12: 0.26 | AC12: 0.26 | AD12: 18 | AE12: M | AF12: 35
A13: 482106 | B13: DODGE CREEK | C13: 41.9672 | D13: -105.5192 | E13: 2025-05-04 | F13: 13 | G13: F | H13: 5 | I13: 16Y1P | J13: 9.88 | K13: 12.15 | L13: 14.26 | M13: 14.56 | N13: -99.99 | O13: 17.6 | P13: 248 | Q13: 3 | R13: 35.2 | S13: 27.2 | U13: 0 | V13: 0 | W13: 0 | X13: 0 | Y13: 19 | Z13: 30 | AA13: 60 | AB13: 0.26 | AC13: 0.26 | AD13: 18 | AF13: 38
A14: 481502 | B14: CASPER MOUNTAIN | C14: 42.7111 | D14: -106.3472 | E14: 2025-05-03 | F14: 13 | G14: F | H14: 1 | I14: 16Y2P | J14: 34.24 | K14: 30.03 | L14: 24.31 | M14: 23.4 | N14: -99.99 | O14: 0 | P14: 239 | Q14: 0 | R14: 0 | S14: 0 | T14: 1 | U14: 0 | V14: 0 | W14: 0 | X14: 0 | Y14: 0 | Z14: 30 | AA14: 60 | AB14: 0.2 | AC14: 0.2 | AD14: 0 | AE14: L | AF14: 40
A15: 482102 | B15: ESTERBROOK | C15: 42.4158 | D15: -105.3611 | E15: 2025-05-03 | F15: 13 | G15: F | H15: 1 | I15: 16Y1P | J15: 9.38 | K15: 11.34 | L15: 15.06 | M15: 16.72 | N15: -99.99 | O15: 15.6 | P15: 319 | Q15: 2 | R15: 31.3 | S15: 20.8 | T15: 3 | U15: 0 | V15: 0 | W15: 0 | X15: 0 | Y15: 15 | Z15: 30 | AA15: 60 | AB15: 0.36 | AC15: 0.36 | AD15: 20 | AE15: M | AF15: 42
A16: 482106 | B16: DODGE CREEK | C16: 41.9672 | D16: -105.5192 | E16: 2025-05-03 | F16: 13 | G16: F | H16: 2 | I16: 16Y1P | J16: 9.96 | K16: 12.45 | L16: 14.75 | M16: 14.64 | N16: -99.99 | O16: 15.4 | P16: 248 | Q16: 3 | R16: 34.4 | S16: 24 | T16: 2 | U16: 0 | V16: 0 | W16: 0 | X16: 0 | Y16: 17 | Z16: 30 | AA16: 60 | AB16: 0.26 | AC16: 0.26 | AD16: 19 | AE16: L | AF16: 48
A17: 482106 | B17: DODGE CREEK | C17: 41.9672 | D17: -105.5192 | E17: 2025-05-03 | F17: 13 | G17: F | H17: 5 | I17: 16Y1P | J17: 9.96 | K17: 12.45 | L17: 14.75 | M17: 14.64 | N17: -99.99 | O17: 15.4 | P17: 248 | Q17: 3 | R17: 34.4 | S17: 24 | U17: 0 | V17: 0 | W17: 0 | X17: 0 | Y17: 17 | Z17: 30 | AA17: 60 | AB17: 0.26 | AC17: 0.26 | AD17: 19 | AF17: 51
A18: 481502 | B18: CASPER MOUNTAIN | C18: 42.7111 | D18: -106.3472 | E18: 2025-05-02 | F18: 13 | G18: F | H18: 1 | I18: 16Y2P | J18: 34.24 | K18: 30.03 | L18: 24.31 | M18: 23.4 | N18: -99.99 | O18: 0 | P18: 239 | Q18: 0 | R18: 0 | S18: 0 | T18: 1 | U18: 0 | V18: 0 | W18: 0 | X18: 0 | Y18: 0 | Z18: 30 | AA18: 60 | AB18: 0.22 | AC18: 0.22 | AD18: 0 | AE18: L | AF18: 53
A19: 482102 | B19: ESTERBROOK | C19: 42.4158 | D19: -105.3611 | E19: 2025-05-02 | F19: 13 | G19: F | H19: 1 | I19: 16Y1P | J19: 10.78 | K19: 13.21 | L19: 16.06 | M19: 16.88 | N19: -99.99 | O19: 10.4 | P19: 319 | Q19: 2 | R19: 28.6 | S19: 18.6 | T19: 3 | U19: 0 | V19: 0 | W19: 0 | X19: 0 | Y19: 13 | Z19: 30 | AA19: 60 | AB19: 0.36 | AC19: 0.36 | AD19: 16 | AE19: M | AF19: 55
A20: 482106 | B20: DODGE CREEK | C20: 41.9672 | D20: -105.5192 | E20: 2025-05-02 | F20: 13 | G20: F | H20: 2 | I20: 16Y1P | J20: 11.09 | K20: 14.17 | L20: 15.09 | M20: 14.62 | N20: -99.99 | O20: 10.8 | P20: 248 | Q20: 2 | R20: 32.7 | S20: 22.1 | T20: 2 | U20: 0 | V20: 0 | W20: 0 | X20: 0 | Y20: 16 | Z20: 30 | AA20: 60 | AB20: 0.27 | AC20: 0.27 | AD20: 15 | AE20: L | AF20: 61
A21: 482106 | B21: DODGE CREEK | C21: 41.9672 | D21: -105.5192 | E21: 2025-05-02 | F21: 13 | G21: F | H21: 5 | I21: 16Y1P | J21: 11.09 | K21: 14.17 | L21: 15.09 | M21: 14.62 | N21: -99.99 | O21: 10.8 | P21: 248 | Q21: 2 | R21: 32.7 | S21: 22.1 | U21: 0 | V21: 0 | W21: 0 | X21: 0 | Y21: 16 | Z21: 30 | AA21: 60 | AB21: 0.27 | AC21: 0.27 | AD21: 15 | AF21: 64
A22: 481502 | B22: CASPER MOUNTAIN | C22: 42.7111 | D22: -106.3472 | E22: 2025-05-01 | F22: 13 | G22: F | H22: 1 | I22: 16Y2P | J22: 34.24 | K22: 30.03 | L22: 24.31 | M22: 23.4 | N22: -99.99 | O22: 0 | P22: 239 | Q22: 0 | R22: 0 | S22: 0 | T22: 1 | U22: 0 | V22: 0 | W22: 0 | X22: 0 | Y22: 0 | Z22: 30 | AA22: 60 | AB22: 0.27 | AC22: 0.27 | AD22: 0 | AE22: L | AF22: 66
A23: 482102 | B23: ESTERBROOK | C23: 42.4158 | D23: -105.3611 | E23: 2025-05-01 | F23: 13 | G23: F | H23: 1 | I23: 16Y1P | J23: 13.61 | K23: 18.37 | L23: 16.61 | M23: 16.82 | N23: -99.99 | O23: 6.1 | P23: 319 | Q23: 3 | R23: 24.7 | S23: 20.3 | T23: 2 | U23: 0 | V23: 0 | W23: 0 | X23: 0 | Y23: 14 | Z23: 30 | AA23: 60 | AB23: 0.38 | AC23: 0.38 | AD23: 10 | AE23: L | AF23: 68
A24: 482106 | B24: DODGE CREEK | C24: 41.9672 | D24: -105.5192 | E24: 2025-05-01 | F24: 13 | G24: F | H24: 2 | I24: 16Y1P | J24: 14.06 | K24: 20.09 | L24: 14.61 | M24: 14.67 | N24: -99.99 | O24: 5.4 | P24: 248 | Q24: 3 | R24: 28.7 | S24: 22.2 | T24: 2 | U24: 0 | V24: 0 | W24: 0 | X24: 0 | Y24: 16 | Z24: 30 | AA24: 60 | AB24: 0.3 | AC24: 0.3 | AD24: 10 | AE24: L | AF24: 74
A25: 482106 | B25: DODGE CREEK | C25: 41.9672 | D25: -105.5192 | E25: 2025-05-01 | F25: 13 | G25: F | H25: 5 | I25: 16Y1P | J25: 14.06 | K25: 20.09 | L25: 14.61 | M25: 14.67 | N25: -99.99 | O25: 5.4 | P25: 248 | Q25: 3 | R25: 28.7 | S25: 22.2 | U25: 0 | V25: 0 | W25: 0 | X25: 0 | Y25: 16 | Z25: 30 | AA25: 60 | AB25: 0.3 | AC25: 0.3 | AD25: 10 | AF25: 77
A26: 481502 | B26: CASPER MOUNTAIN | C26: 42.7111 | D26: -106.3472 | E26: 2025-04-30 | F26: 13 | G26: F | H26: 1 | I26: 16Y2P | J26: 34.24 | K26: 30.03 | L26: 24.31 | M26: 23.4 | N26: -99.99 | O26: 0 | P26: 239 | Q26: 0 | R26: 0 | S26: 0 | T26: 1 | U26: 0 | V26: 0 | W26: 0 | X26: 0 | Y26: 0 | Z26: 30 | AA26: 60 | AB26: 0.27 | AC26: 0.27 | AD26: 0 | AE26: L | AF26: 79
A27: 482102 | B27: ESTERBROOK | C27: 42.4158 | D27: -105.3611 | E27: 2025-04-30 | F27: 13 | G27: F | H27: 1 | I27: 16Y1P | J27: 12.65 | K27: 14.99 | L27: 16.77 | M27: 16.77 | N27: -99.99 | O27: 7.4 | P27: 319 | Q27: 3 | R27: 26.6 | S27: 21.4 | T27: 3 | U27: 0 | V27: 0 | W27: 0 | X27: 0 | Y27: 15 | Z27: 30 | AA27: 60 | AB27: 0.37 | AC27: 0.37 | AD27: 7 | AE27: M | AF27: 81
A28: 482106 | B28: DODGE CREEK | C28: 41.9672 | D28: -105.5192 | E28: 2025-04-30 | F28: 13 | G28: F | H28: 2 | I28: 16Y1P | J28: 10.71 | K28: 14.5 | L28: 14.57 | M28: 14.54 | N28: -99.99 | O28: 12.7 | P28: 248 | Q28: 3 | R28: 33.4 | S28: 25.2 | T28: 2 | U28: 0 | V28: 0 | W28: 0 | X28: 0 | Y28: 18 | Z28: 30 | AA28: 60 | AB28: 0.3 | AC28: 0.3 | AD28: 10 | AE28: L | AF28: 87
A29: 482106 | B29: DODGE CREEK | C29: 41.9672 | D29: -105.5192 | E29: 2025-04-30 | F29: 13 | G29: F | H29: 5 | I29: 16Y1P | J29: 10.71 | K29: 14.5 | L29: 14.57 | M29: 14.54 | N29: -99.99 | O29: 12.7 | P29: 248 | Q29: 3 | R29: 33.4 | S29: 25.2 | U29: 0 | V29: 0 | W29: 0 | X29: 0 | Y29: 18 | Z29: 30 | AA29: 60 | AB29: 0.3 | AC29: 0.3 | AD29: 10 | AF29: 90
A30: 481502 | B30: CASPER MOUNTAIN | C30: 42.7111 | D30: -106.3472 | E30: 2025-04-29 | F30: 13 | G30: F | H30: 1 | I30: 16Y2P | J30: 34.72 | K30: 25.76 | L30: 23.67 | M30: 23.37 | N30: -99.99 | O30: 0 | P30: 259 | Q30: 0 | R30: 0 | S30: 0 | T30: 1 | U30: 0 | V30: 0 | W30: 0 | X30: 0 | Y30: 0 | Z30: 30 | AA30: 60 | AB30: 0.26 | AC30: 0.26 | AD30: 0 | AE30: L | AF30: 92
A31: 482102 | B31: ESTERBROOK | C31: 42.4158 | D31: -105.3611 | E31: 2025-04-29 | F31: 13 | G31: F | H31: 1 | I31: 16Y1P | J31: 14.43 | K31: 17.83 | L31: 17.75 | M31: 16.83 | N31: -99.99 | O31: 4 | P31: 319 | Q31: 2 | R31: 23.7 | S31: 16 | T31: 2 | U31: 0 | V31: 0 | W31: 0 | X31: 0 | Y31: 11 | Z31: 30 | AA31: 60 | AB31: 0.36 | AC31: 0.36 | AD31: 13 | AE31: L | AF31: 94
A32: 482106 | B32: DODGE CREEK | C32: 41.9672 | D32: -105.5192 | E32: 2025-04-29 | F32: 13 | G32: F | H32: 2 | I32: 16Y1P | J32: 12.63 | K32: 14.02 | L32: 14.75 | M32: 14.54 | N32: -99.99 | O32: 7.4 | P32: 248 | Q32: 2 | R32: 32.4 | S32: 21.4 | T32: 2 | U32: 0 | V32: 0 | W32: 0 | X32: 0 | Y32: 15 | Z32: 30 | AA32: 60 | AB32: 0.32 | AC32: 0.32 | AD32: 13 | AE32: L | AF32: 100
A33: 482106 | B33: DODGE CREEK | C33: 41.9672 | D33: -105.5192 | E33: 2025-04-29 | F33: 13 | G33: F | H33: 5 | I33: 16Y1P | J33: 12.63 | K33: 14.02 | L33: 14.75 | M33: 14.54 | N33: -99.99 | O33: 7.4 | P33: 248 | Q33: 2 | R33: 32.4 | S33: 21.4 | U33: 0 | V33: 0 | W33: 0 | X33: 0 | Y33: 15 | Z33: 30 | AA33: 60 | AB33: 0.32 | AC33: 0.32 | AD33: 13 | AF33: 103
A34: 481502 | B34: CASPER MOUNTAIN | C34: 42.7111 | D34: -106.3472 | E34: 2025-04-28 | F34: 13 | G34: F | H34: 1 | I34: 16Y2P | J34: 32.64 | K34: 25.3 | L34: 23.68 | M34: 23.37 | N34: -99.99 | O34: 0 | P34: 258 | Q34: 0 | R34: 0.2 | S34: 0 | T34: 1 | U34: 0 | V34: 0 | W34: 0 | X34: 0 | Y34: 0 | Z34: 30 | AA34: 60 | AB34: 0.3 | AC34: 0.3 | AD34: 0 | AE34: L | AF34: 105
A35: 482102 | B35: ESTERBROOK | C35: 42.4158 | D35: -105.3611 | E35: 2025-04-28 | F35: 13 | G35: F | H35: 1 | I35: 16Y1P | J35: 9.37 | K35: 13.94 | L35: 16.98 | M35: 16.29 | N35: -99.99 | O35: 21.5 | P35: 317 | Q35: 6 | R35: 29.5 | S35: 32.8 | T35: 3 | U35: 0 | V35: 0 | W35: 0 | X35: 0 | Y35: 23 | Z35: 30 | AA35: 60 | AB35: 0.4 | AC35: 0.4 | AD35: 10 | AE35: M | AF35: 107
A36: 482106 | B36: DODGE CREEK | C36: 41.9672 | D36: -105.5192 | E36: 2025-04-28 | F36: 13 | G36: F | H36: 2 | I36: 16Y1P | J36: 9.55 | K36: 11.33 | L36: 15.04 | M36: 14.47 | N36: -99.99 | O36: 21 | P36: 247 | Q36: 8 | R36: 35.3 | S36: 39.8 | T36: 3 | U36: 0 | V36: 0 | W36: 0 | X36: 0 | Y36: 28 | Z36: 30 | AA36: 60 | AB36: 0.34 | AC36: 0.34 | AD36: 11 | AE36: M | AF36: 113
A37: 482106 | B37: DODGE CREEK | C37: 41.9672 | D37: -105.5192 | E37: 2025-04-28 | F37: 13 | G37: F | H37: 5 | I37: 16Y1P | J37: 9.55 | K37: 11.33 | L37: 15.04 | M37: 14.47 | N37: -99.99 | O37: 21 | P37: 247 | Q37: 8 | R37: 35.3 | S37: 39.8 | U37: 0 | V37: 0 | W37: 0 | X37: 0 | Y37: 28 | Z37: 30 | AA37: 60 | AB37: 0.34 | AC37: 0.34 | AD37: 11 | AF37: 116
A38: 481502 | B38: CASPER MOUNTAIN | C38: 42.7111 | D38: -106.3472 | E38: 2025-04-27 | F38: 13 | G38: F | H38: 1 | I38: 16Y2P | J38: 32.64 | K38: 25.71 | L38: 23.61 | M38: 23.37 | N38: -99.99 | O38: 0 | P38: 257 | Q38: 0 | R38: 0.1 | S38: 0 | T38: 1 | U38: 0 | V38: 0 | W38: 0 | X38: 0 | Y38: 0 | Z38: 30 | AA38: 60 | AB38: 0.27 | AC38: 0.27 | AD38: 0 | AE38: L | AF38: 118
A39: 482102 | B39: ESTERBROOK | C39: 42.4158 | D39: -105.3611 | E39: 2025-04-27 | F39: 13 | G39: F | H39: 1 | I39: 16Y1P | J39: 9.05 | K39: 12.61 | L39: 18.55 | M39: 15.46 | N39: -99.99 | O39: 18.6 | P39: 315 | Q39: 3 | R39: 30.8 | S39: 22.6 | T39: 3 | U39: 0 | V39: 0 | W39: 0 | X39: 0 | Y39: 16 | Z39: 30 | AA39: 60 | AB39: 0.37 | AC39: 0.37 | AD39: 22 | AE39: M | AF39: 120
A40: 482106 | B40: DODGE CREEK | C40: 41.9672 | D40: -105.5192 | E40: 2025-04-27 | F40: 13 | G40: F | H40: 2 | I40: 16Y1P | J40: 11.62 | K40: 15.74 | L40: 15.7 | M40: 14.03 | N40: -99.99 | O40: 11.4 | P40: 246 | Q40: 3 | R40: 32.5 | S40: 24.5 | T40: 2 | U40: 0 | V40: 0 | W40: 0 | X40: 0 | Y40: 17 | Z40: 30 | AA40: 60 | AB40: 0.3 | AC40: 0.3 | AD40: 18 | AE40: L | AF40: 126
A41: 482106 | B41: DODGE CREEK | C41: 41.9672 | D41: -105.5192 | E41: 2025-04-27 | F41: 13 | G41: F | H41: 5 | I41: 16Y1P | J41: 11.62 | K41: 15.74 | L41: 15.7 | M41: 14.03 | N41: -99.99 | O41: 11.4 | P41: 246 | Q41: 3 | R41: 32.5 | S41: 24.5 | U41: 0 | V41: 0 | W41: 0 | X41: 0 | Y41: 17 | Z41: 30 | AA41: 60 | AB41: 0.3 | AC41: 0.3 | AD41: 18 | AF41: 129
A42: 481502 | B42: CASPER MOUNTAIN | C42: 42.7111 | D42: -106.3472 | E42: 2025-04-26 | F42: 13 | G42: F | H42: 1 | I42: 16Y2P | J42: 33.54 | K42: 27.3 | L42: 23.55 | M42: 23.36 | N42: -99.99 | O42: 0 | P42: 256 | Q42: 0 | R42: 0 | S42: 0 | T42: 1 | U42: 0 | V42: 0 | W42: 0 | X42: 0 | Y42: 0 | Z42: 30 | AA42: 60 | AB42: 0.24 | AC42: 0.24 | AD42: 0 | AE42: L | AF42: 131
A43: 482102 | B43: ESTERBROOK | C43: 42.4158 | D43: -105.3611 | E43: 2025-04-26 | F43: 13 | G43: F | H43: 1 | I43: 16Y1P | J43: 13.07 | K43: 17.67 | L43: 16.29 | M43: 13.82 | N43: -99.99 | O43: 8.4 | P43: 340 | Q43: 3 | R43: 31.9 | S43: 24.9 | T43: 3 | U43: 0 | V43: 0 | W43: 0 | X43: 0 | Y43: 18 | Z43: 30 | AA43: 60 | AB43: 0.34 | AC43: 0.34 | AD43: 18 | AE43: M | AF43: 133
A44: 482106 | B44: DODGE CREEK | C44: 41.9672 | D44: -105.5192 | E44: 2025-04-26 | F44: 13 | G44: F | H44: 2 | I44: 16Y1P | J44: 12.08 | K44: 16.04 | L44: 14.74 | M44: 13.83 | N44: -99.99 | O44: 11.1 | P44: 245 | Q44: 3 | R44: 33.3 | S44: 26.4 | T44: 2 | U44: 0 | V44: 0 | W44: 0 | X44: 0 | Y44: 19 | Z44: 30 | AA44: 60 | AB44: 0.29 | AC44: 0.29 | AD44: 18 | AE44: L | AF44: 139
A45: 482106 | B45: DODGE CREEK | C45: 41.9672 | D45: -105.5192 | E45: 2025-04-26 | F45: 13 | G45: F | H45: 5 | I45: 16Y1P | J45: 12.08 | K45: 16.04 | L45: 14.74 | M45: 13.83 | N45: -99.99 | O45: 11.1 | P45: 245 | Q45: 3 | R45: 33.3 | S45: 26.4 | U45: 0 | V45: 0 | W45: 0 | X45: 0 | Y45: 19 | Z45: 30 | AA45: 60 | AB45: 0.29 | AC45: 0.29 | AD45: 18 | AF45: 142
A46: 481502 | B46: CASPER MOUNTAIN | C46: 42.7111 | D46: -106.3472 | E46: 2025-04-25 | F46: 13 | G46: F | H46: 1 | I46: 16Y2P | J46: 32.64 | K46: 25.25 | L46: 23.55 | M46: 23.36 | N46: -99.99 | O46: 0 | P46: 256 | Q46: 0 | R46: 0.3 | S46: 0 | T46: 1 | U46: 0 | V46: 0 | W46: 0 | X46: 0 | Y46: 0 | Z46: 30 | AA46: 60 | AB46: 0.22 | AC46: 0.22 | AD46: 0 | AE46: L | AF46: 144
A47: 482102 | B47: ESTERBROOK | C47: 42.4158 | D47: -105.3611 | E47: 2025-04-25 | F47: 13 | G47: F | H47: 1 | I47: 16Y1P | J47: 19.45 | K47: 17.91 | L47: 12.94 | M47: 13.83 | N47: -99.99 | O47: 0.7 | P47: 350 | Q47: 2 | R47: 31 | S47: 21.3 | T47: 3 | U47: 0 | V47: 0 | W47: 0 | X47: 0 | Y47: 15 | Z47: 30 | AA47: 60 | AB47: 0.33 | AC47: 0.33 | AD47: 2 | AE47: M | AF47: 146
A48: 482106 | B48: DODGE CREEK | C48: 41.9672 | D48: -105.5192 | E48: 2025-04-25 | F48: 13 | G48: F | H48: 2 | I48: 16Y1P | J48: 18.6 | K48: 21.76 | L48: 13.72 | M48: 13.86 | N48: -99.99 | O48: 1.1 | P48: 245 | Q48: 3 | R48: 28 | S48: 23.5 | T48: 2 | U48: 0 | V48: 0 | W48: 0 | X48: 0 | Y48: 17 | Z48: 30 | AA48: 60 | AB48: 0.27 | AC48: 0.27 | AD48: 2 | AE48: L | AF48: 152
A49: 482106 | B49: DODGE CREEK | C49: 41.9672 | D49: -105.5192 | E49: 2025-04-25 | F49: 13 | G49: F | H49: 5 | I49: 16Y1P | J49: 18.6 | K49: 21.76 | L49: 13.72 | M49: 13.86 | N49: -99.99 | O49: 1.1 | P49: 245 | Q49: 3 | R49: 28 | S49: 23.5 | U49: 0 | V49: 0 | W49: 0 | X49: 0 | Y49: 17 | Z49: 30 | AA49: 60 | AB49: 0.27 | AC49: 0.27 | AD49: 2 | AF49: 155
A50: 481502 | B50: CASPER MOUNTAIN | C50: 42.7111 | D50: -106.3472 | E50: 2025-04-24 | F50: 13 | G50: F | H50: 1 | I50: 16Y2P | J50: 32.64 | K50: 25.3 | L50: 23.58 | M50: 23.36 | N50: -99.99 | O50: 0 | P50: 256 | Q50: 0 | R50: 0.3 | S50: 0 | T50: 1 | U50: 0 | V50: 0 | W50: 0 | X50: 0 | Y50: 0 | Z50: 30 | AA50: 60 | AB50: 0.2 | AC50: 0.2 | AD50: 0 | AE50: L | AF50: 157
A51: 482102 | B51: ESTERBROOK | C51: 42.4158 | D51: -105.3611 | E51: 2025-04-24 | F51: 13 | G51: F | H51: 1 | I51: 16Y1P | J51: 14.85 | K51: 15.6 | L51: 11.78 | M51: 13.81 | N51: -99.99 | O51: 3.8 | P51: 350 | Q51: 2 | R51: 35.7 | S51: 21.9 | T51: 3 | U51: 0 | V51: 0 | W51: 0 | X51: 0 | Y51: 16 | Z51: 30 | AA51: 60 | AB51: 0.33 | AC51: 0.33 | AD51: 8 | AE51: M | AF51: 159
A52: 482106 | B52: DODGE CREEK | C52: 41.9672 | D52: -105.5192 | E52: 2025-04-24 | F52: 13 | G52: F | H52: 2 | I52: 16Y1P | J52: 14.93 | K52: 15.89 | L52: 10.88 | M52: 13.79 | N52: -99.99 | O52: 4.4 | P52: 245 | Q52: 3 | R52: 34.9 | S52: 23.9 | T52: 2 | U52: 0 | V52: 0 | W52: 0 | X52: 0 | Y52: 17 | Z52: 30 | AA52: 60 | AB52: 0.27 | AC52: 0.27 | AD52: 12 | AE52: L | AF52: 165
A53: 482106 | B53: DODGE CREEK | C53: 41.9672 | D53: -105.5192 | E53: 2025-04-24 | F53: 13 | G53: F | H53: 5 | I53: 16Y1P | J53: 14.93 | K53: 15.89 | L53: 10.88 | M53: 13.79 | N53: -99.99 | O53: 4.4 | P53: 245 | Q53: 3 | R53: 34.9 | S53: 23.9 | U53: 0 | V53: 0 | W53: 0 | X53: 0 | Y53: 17 | Z53: 30 | AA53: 60 | AB53: 0.27 | AC53: 0.27 | AD53: 12 | AF53: 168
A54: 481502 | B54: CASPER MOUNTAIN | C54: 42.7111 | D54: -106.3472 | E54: 2025-04-23 | F54: 13 | G54: F | H54: 1 | I54: 16Y2P | J54: 32.64 | K54: 25.78 | L54: 23.54 | M54: 23.37 | N54: -99.99 | O54: 0 | P54: 256 | Q54: 0 | R54: 0.1 | S54: 0 | T54: 1 | U54: 0 | V54: 0 | W54: 0 | X54: 0 | Y54: 0 | Z54: 30 | AA54: 60 | AB54: 0.19 | AC54: 0.19 | AD54: 0 | AE54: L | AF54: 170
A55: 482102 | B55: ESTERBROOK | C55: 42.4158 | D55: -105.3611 | E55: 2025-04-23 | F55: 13 | G55: F | H55: 1 | I55: 16Y1P | J55: 10.99 | K55: 12.39 | L55: 11.58 | M55: 13.61 | N55: -99.99 | O55: 11.2 | P55: 349 | Q55: 3 | R55: 40.3 | S55: 25.8 | T55: 3 | U55: 0 | V55: 0 | W55: 0 | X55: 0 | Y55: 18 | Z55: 30 | AA55: 60 | AB55: 0.29 | AC55: 0.29 | AD55: 10 | AE55: M | AF55: 172
A56: 482106 | B56: DODGE CREEK | C56: 41.9672 | D56: -105.5192 | E56: 2025-04-23 | F56: 13 | G56: F | H56: 2 | I56: 16Y1P | J56: 10.93 | K56: 11.49 | L56: 10.71 | M56: 13.61 | N56: -99.99 | O56: 12.2 | P56: 244 | Q56: 3 | R56: 40.1 | S56: 27.4 | T56: 3 | U56: 0 | V56: 0 | W56: 0 | X56: 0 | Y56: 19 | Z56: 30 | AA56: 60 | AB56: 0.24 | AC56: 0.24 | AD56: 11 | AE56: M | AF56: 178
A57: 482106 | B57: DODGE CREEK | C57: 41.9672 | D57: -105.5192 | E57: 2025-04-23 | F57: 13 | G57: F | H57: 5 | I57: 16Y1P | J57: 10.93 | K57: 11.49 | L57: 10.71 | M57: 13.61 | N57: -99.99 | O57: 12.2 | P57: 244 | Q57: 3 | R57: 40.1 | S57: 27.4 | U57: 0 | V57: 0 | W57: 0 | X57: 0 | Y57: 19 | Z57: 30 | AA57: 60 | AB57: 0.24 | AC57: 0.24 | AD57: 11 | AF57: 181
A58: 481502 | B58: CASPER MOUNTAIN | C58: 42.7111 | D58: -106.3472 | E58: 2025-04-22 | F58: 13 | G58: F | H58: 1 | I58: 16Y2P | J58: 34.91 | K58: 26.61 | L58: 23.36 | M58: 23.42 | N58: -99.99 | O58: 0 | P58: 256 | Q58: 0 | R58: 0 | S58: 0 | T58: 1 | U58: 0 | V58: 0 | W58: 0 | X58: 0 | Y58: 0 | Z58: 30 | AA58: 60 | AB58: 0.18 | AC58: 0.18 | AD58: 0 | AE58: L | AF58: 183
A59: 482102 | B59: ESTERBROOK | C59: 42.4158 | D59: -105.3611 | E59: 2025-04-22 | F59: 13 | G59: F | H59: 1 | I59: 16Y1P | J59: 9.43 | K59: 10.96 | L59: 11.21 | M59: 13.71 | N59: -99.99 | O59: 16.7 | P59: 349 | Q59: 3 | R59: 42.1 | S59: 27.2 | T59: 3 | U59: 0 | V59: 0 | W59: 0 | X59: 0 | Y59: 19 | Z59: 30 | AA59: 60 | AB59: 0.28 | AC59: 0.28 | AD59: 14 | AE59: M | AF59: 185
A60: 482106 | B60: DODGE CREEK | C60: 41.9672 | D60: -105.5192 | E60: 2025-04-22 | F60: 13 | G60: F | H60: 2 | I60: 16Y1P | J60: 10.09 | K60: 11.02 | L60: 10.7 | M60: 13.76 | N60: -99.99 | O60: 18.3 | P60: 244 | Q60: 4 | R60: 40.5 | S60: 33 | T60: 3 | U60: 0 | V60: 0 | W60: 0 | X60: 0 | Y60: 23 | Z60: 30 | AA60: 60 | AB60: 0.23 | AC60: 0.23 | AD60: 14 | AE60: M | AF60: 191
A61: 482106 | B61: DODGE CREEK | C61: 41.9672 | D61: -105.5192 | E61: 2025-04-22 | F61: 13 | G61: F | H61: 5 | I61: 16Y1P | J61: 10.09 | K61: 11.02 | L61: 10.7 | M61: 13.76 | N61: -99.99 | O61: 18.3 | P61: 244 | Q61: 4 | R61: 40.5 | S61: 33 | U61: 0 | V61: 0 | W61: 0 | X61: 0 | Y61: 23 | Z61: 30 | AA61: 60 | AB61: 0.23 | AC61: 0.23 | AD61: 14 | AF61: 194
A62: 481502 | B62: CASPER MOUNTAIN | C62: 42.7111 | D62: -106.3472 | E62: 2025-04-21 | F62: 13 | G62: F | H62: 1 | I62: 16Y2P | J62: 32.64 | K62: 25.28 | L62: 23.35 | M62: 23.37 | N62: -99.99 | O62: 0 | P62: 256 | Q62: 0 | R62: 0.4 | S62: 0 | T62: 1 | U62: 0 | V62: 0 | W62: 0 | X62: 0 | Y62: 0 | Z62: 30 | AA62: 60 | AB62: 0.19 | AC62: 0.19 | AD62: 0 | AE62: L | AF62: 196
A63: 482102 | B63: ESTERBROOK | C63: 42.4158 | D63: -105.3611 | E63: 2025-04-21 | F63: 13 | G63: F | H63: 1 | I63: 16Y1P | J63: 11.38 | K63: 12.53 | L63: 11.04 | M63: 13.83 | N63: -99.99 | O63: 14.4 | P63: 349 | Q63: 5 | R63: 39.9 | S63: 34.6 | T63: 3 | U63: 0 | V63: 0 | W63: 0 | X63: 0 | Y63: 25 | Z63: 30 | AA63: 60 | AB63: 0.27 | AC63: 0.27 | AD63: 12 | AE63: M | AF63: 198
A64: 482106 | B64: DODGE CREEK | C64: 41.9672 | D64: -105.5192 | E64: 2025-04-21 | F64: 13 | G64: F | H64: 2 | I64: 16Y1P | J64: 12.1 | K64: 12.82 | L64: 10.56 | M64: 13.89 | N64: -99.99 | O64: 12 | P64: 244 | Q64: 6 | R64: 38.1 | S64: 37.5 | T64: 3 | U64: 0 | V64: 0 | W64: 0 | X64: 0 | Y64: 27 | Z64: 30 | AA64: 60 | AB64: 0.21 | AC64: 0.21 | AD64: 10 | AE64: M | AF64: 204
A65: 482106 | B65: DODGE CREEK | C65: 41.9672 | D65: -105.5192 | E65: 2025-04-21 | F65: 13 | G65: F | H65: 5 | I65: 16Y1P | J65: 12.1 | K65: 12.82 | L65: 10.56 | M65: 13.89 | N65: -99.99 | O65: 12 | P65: 244 | Q65: 6 | R65: 38.1 | S65: 37.5 | U65: 0 | V65: 0 | W65: 0 | X65: 0 | Y65: 27 | Z65: 30 | AA65: 60 | AB65: 0.21 | AC65: 0.21 | AD65: 10 | AF65: 207
A66: 481502 | B66: CASPER MOUNTAIN | C66: 42.7111 | D66: -106.3472 | E66: 2025-04-20 | F66: 13 | G66: F | H66: 1 | I66: 16Y2P | J66: 32.64 | K66: 25.6 | L66: 23.34 | M66: 23.39 | N66: -99.99 | O66: 0 | P66: 256 | Q66: 0 | R66: 0.3 | S66: 0 | T66: 1 | U66: 0 | V66: 0 | W66: 0 | X66: 0 | Y66: 0 | Z66: 30 | AA66: 60 | AB66: 0.18 | AC66: 0.18 | AD66: 0 | AE66: L | AF66: 209
A67: 482102 | B67: ESTERBROOK | C67: 42.4158 | D67: -105.3611 | E67: 2025-04-20 | F67: 13 | G67: F | H67: 1 | I67: 16Y1P | J67: 10.52 | K67: 12.96 | L67: 10.93 | M67: 13.98 | N67: -99.99 | O67: 13.4 | P67: 349 | Q67: 3 | R67: 39.9 | S67: 28 | T67: 3 | U67: 0 | V67: 0 | W67: 0 | X67: 0 | Y67: 20 | Z67: 30 | AA67: 60 | AB67: 0.25 | AC67: 0.25 | AD67: 9 | AE67: M | AF67: 211
A68: 482106 | B68: DODGE CREEK | C68: 41.9672 | D68: -105.5192 | E68: 2025-04-20 | F68: 13 | G68: F | H68: 2 | I68: 16Y1P | J68: 12.16 | K68: 13.29 | L68: 10.47 | M68: 14.03 | N68: -99.99 | O68: 11.5 | P68: 244 | Q68: 5 | R68: 37.6 | S68: 34.5 | T68: 3 | U68: 0 | V68: 0 | W68: 0 | X68: 0 | Y68: 24 | Z68: 30 | AA68: 60 | AB68: 0.21 | AC68: 0.21 | AD68: 8 | AE68: M | AF68: 217
A69: 482106 | B69: DODGE CREEK | C69: 41.9672 | D69: -105.5192 | E69: 2025-04-20 | F69: 13 | G69: F | H69: 5 | I69: 16Y1P | J69: 12.16 | K69: 13.29 | L69: 10.47 | M69: 14.03 | N69: -99.99 | O69: 11.5 | P69: 244 | Q69: 5 | R69: 37.6 | S69: 34.5 | U69: 0 | V69: 0 | W69: 0 | X69: 0 | Y69: 24 | Z69: 30 | AA69: 60 | AB69: 0.21 | AC69: 0.21 | AD69: 8 | AF69: 220
A70: 481502 | B70: CASPER MOUNTAIN | C70: 42.7111 | D70: -106.3472 | E70: 2025-04-19 | F70: 13 | G70: F | H70: 1 | I70: 16Y2P | J70: 33.5 | K70: 26.52 | L70: 23.29 | M70: 23.42 | N70: -99.99 | O70: 0 | P70: 256 | Q70: 0 | R70: 0 | S70: 0 | T70: 1 | U70: 0 | V70: 0 | W70: 0 | X70: 0 | Y70: 0 | Z70: 30 | AA70: 60 | AB70: 0.18 | AC70: 0.18 | AD70: 0 | AE70: L | AF70: 222
A71: 482102 | B71: ESTERBROOK | C71: 42.4158 | D71: -105.3611 | E71: 2025-04-19 | F71: 13 | G71: F | H71: 1 | I71: 16Y1P | J71: 14.85 | K71: 16.91 | L71: 10.93 | M71: 14.12 | N71: -99.99 | O71: 3.2 | P71: 349 | Q71: 2 | R71: 35 | S71: 19.9 | T71: 3 | U71: 0 | V71: 0 | W71: 0 | X71: 0 | Y71: 14 | Z71: 30 | AA71: 60 | AB71: 0.25 | AC71: 0.25 | AD71: 4 | AE71: M | AF71: 224
A72: 482106 | B72: DODGE CREEK | C72: 41.9672 | D72: -105.5192 | E72: 2025-04-19 | F72: 13 | G72: F | H72: 2 | I72: 16Y1P | J72: 14.86 | K72: 15.34 | L72: 10.36 | M72: 14.15 | N72: -99.99 | O72: 3.1 | P72: 244 | Q72: 2 | R72: 34.8 | S72: 19.5 | T72: 2 | U72: 0 | V72: 0 | W72: 0 | X72: 0 | Y72: 14 | Z72: 30 | AA72: 60 | AB72: 0.21 | AC72: 0.21 | AD72: 4 | AE72: L | AF72: 230
A73: 482106 | B73: DODGE CREEK | C73: 41.9672 | D73: -105.5192 | E73: 2025-04-19 | F73: 13 | G73: F | H73: 5 | I73: 16Y1P | J73: 14.86 | K73: 15.34 | L73: 10.36 | M73: 14.15 | N73: -99.99 | O73: 3.1 | P73: 244 | Q73: 2 | R73: 34.8 | S73: 19.5 | U73: 0 | V73: 0 | W73: 0 | X73: 0 | Y73: 14 | Z73: 30 | AA73: 60 | AB73: 0.21 | AC73: 0.21 | AD73: 4 | AF73: 233
A74: 481502 | B74: CASPER MOUNTAIN | C74: 42.7111 | D74: -106.3472 | E74: 2025-04-18 | F74: 13 | G74: F | H74: 1 | I74: 16Y2P | J74: 32.64 | K74: 25.24 | L74: 23.29 | M74: 23.43 | N74: -99.99 | O74: 0 | P74: 256 | Q74: 0 | R74: 0.3 | S74: 0 | T74: 1 | U74: 0 | V74: 0 | W74: 0 | X74: 0 | Y74: 0 | Z74: 30 | AA74: 60 | AB74: 0.19 | AC74: 0.19 | AD74: 0 | AE74: L | AF74: 235
A75: 482102 | B75: ESTERBROOK | C75: 42.4158 | D75: -105.3611 | E75: 2025-04-18 | F75: 13 | G75: F | H75: 1 | I75: 16Y1P | J75: 21.89 | K75: 29.95 | L75: 11 | M75: 14.61 | N75: -99.99 | O75: 0 | P75: 349 | Q75: 1 | R75: 24.3 | S75: 12.6 | T75: 2 | U75: 0 | V75: 0 | W75: 0 | X75: 0 | Y75: 9 | Z75: 30 | AA75: 60 | AB75: 0.27 | AC75: 0.27 | AD75: -2 | AE75: L | AF75: 237
A76: 482106 | B76: DODGE CREEK | C76: 41.9672 | D76: -105.5192 | E76: 2025-04-18 | F76: 13 | G76: F | H76: 2 | I76: 16Y1P | J76: 20.26 | K76: 29.48 | L76: 10.69 | M76: 14.69 | N76: -99.99 | O76: 0.3 | P76: 244 | Q76: 2 | R76: 24.4 | S76: 16.8 | T76: 2 | U76: 0 | V76: 0 | W76: 0 | X76: 0 | Y76: 12 | Z76: 30 | AA76: 60 | AB76: 0.24 | AC76: 0.24 | AD76: -2 | AE76: L | AF76: 243
A77: 482106 | B77: DODGE CREEK | C77: 41.9672 | D77: -105.5192 | E77: 2025-04-18 | F77: 13 | G77: F | H77: 5 | I77: 16Y1P | J77: 20.26 | K77: 29.48 | L77: 10.69 | M77: 14.69 | N77: -99.99 | O77: 0.3 | P77: 244 | Q77: 2 | R77: 24.4 | S77: 16.8 | U77: 0 | V77: 0 | W77: 0 | X77: 0 | Y77: 12 | Z77: 30 | AA77: 60 | AB77: 0.24 | AC77: 0.24 | AD77: -2 | AF77: 246
A78: 481502 | B78: CASPER MOUNTAIN | C78: 42.7111 | D78: -106.3472 | E78: 2025-04-17 | F78: 13 | G78: F | H78: 1 | I78: 16Y2P | J78: 32.64 | K78: 25.24 | L78: 23.3 | M78: 23.46 | N78: -99.99 | O78: 0 | P78: 255 | Q78: 0 | R78: 0.3 | S78: 0 | T78: 1 | U78: 0 | V78: 0 | W78: 0 | X78: 0 | Y78: 0 | Z78: 30 | AA78: 60 | AB78: 0.24 | AC78: 0.24 | AD78: 0 | AE78: L | AF78: 248
A79: 482102 | B79: ESTERBROOK | C79: 42.4158 | D79: -105.3611 | E79: 2025-04-17 | F79: 13 | G79: F | H79: 1 | I79: 16Y1P | J79: 12.58 | K79: 17.58 | L79: 11.52 | M79: 14.19 | N79: -99.99 | O79: 7.5 | P79: 348 | Q79: 3 | R79: 35.3 | S79: 26.4 | T79: 3 | U79: 0 | V79: 0 | W79: 0 | X79: 0 | Y79: 19 | Z79: 30 | AA79: 60 | AB79: 0.32 | AC79: 0.32 | AD79: 0 | AE79: M | AF79: 250
A80: 482106 | B80: DODGE CREEK | C80: 41.9672 | D80: -105.5192 | E80: 2025-04-17 | F80: 13 | G80: F | H80: 2 | I80: 16Y1P | J80: 11.01 | K80: 15.45 | L80: 10.42 | M80: 14.2 | N80: -99.99 | O80: 11.6 | P80: 243 | Q80: 3 | R80: 36.8 | S80: 27.2 | T80: 3 | U80: 0 | V80: 0 | W80: 0 | X80: 0 | Y80: 19 | Z80: 30 | AA80: 60 | AB80: 0.32 | AC80: 0.32 | AD80: 5 | AE80: M | AF80: 256
A81: 482106 | B81: DODGE CREEK | C81: 41.9672 | D81: -105.5192 | E81: 2025-04-17 | F81: 13 | G81: F | H81: 5 | I81: 16Y1P | J81: 11.01 | K81: 15.45 | L81: 10.42 | M81: 14.2 | N81: -99.99 | O81: 11.6 | P81: 243 | Q81: 3 | R81: 36.8 | S81: 27.2 | U81: 0 | V81: 0 | W81: 0 | X81: 0 | Y81: 19 | Z81: 30 | AA81: 60 | AB81: 0.32 | AC81: 0.32 | AD81: 5 | AF81: 259
A82: 481502 | B82: CASPER MOUNTAIN | C82: 42.7111 | D82: -106.3472 | E82: 2025-04-16 | F82: 13 | G82: F | H82: 1 | I82: 16Y2P | J82: 32.64 | K82: 25.24 | L82: 23.32 | M82: 23.49 | N82: -99.99 | O82: 0 | P82: 254 | Q82: 0 | R82: 0.2 | S82: 0 | T82: 1 | U82: 0 | V82: 0 | W82: 0 | X82: 0 | Y82: 0 | Z82: 30 | AA82: 60 | AB82: 0.27 | AC82: 0.27 | AD82: 0 | AE82: L | AF82: 261
A83: 482102 | B83: ESTERBROOK | C83: 42.4158 | D83: -105.3611 | E83: 2025-04-16 | F83: 13 | G83: F | H83: 1 | I83: 16Y1P | J83: 6.51 | K83: 8.62 | L83: 11.12 | M83: 14.54 | N83: -99.99 | O83: 37.1 | P83: 347 | Q83: 4 | R83: 43.2 | S83: 33.3 | T83: 3 | U83: 0 | V83: 0 | W83: 0 | X83: 0 | Y83: 24 | Z83: 30 | AA83: 60 | AB83: 0.36 | AC83: 0.36 | AD83: 20 | AE83: M | AF83: 263
A84: 482106 | B84: DODGE CREEK | C84: 41.9672 | D84: -105.5192 | E84: 2025-04-16 | F84: 13 | G84: F | H84: 2 | I84: 16Y1P | J84: 7.27 | K84: 8.6 | L84: 10.42 | M84: 14.58 | N84: -99.99 | O84: 34.6 | P84: 242 | Q84: 6 | R84: 41.7 | S84: 38.1 | T84: 3 | U84: 0 | V84: 0 | W84: 0 | X84: 0 | Y84: 27 | Z84: 30 | AA84: 60 | AB84: 0.31 | AC84: 0.31 | AD84: 18 | AE84: M | AF84: 269
A85: 482106 | B85: DODGE CREEK | C85: 41.9672 | D85: -105.5192 | E85: 2025-04-16 | F85: 13 | G85: F | H85: 5 | I85: 16Y1P | J85: 7.27 | K85: 8.6 | L85: 10.42 | M85: 14.58 | N85: -99.99 | O85: 34.6 | P85: 242 | Q85: 6 | R85: 41.7 | S85: 38.1 | U85: 0 | V85: 0 | W85: 0 | X85: 0 | Y85: 27 | Z85: 30 | AA85: 60 | AB85: 0.31 | AC85: 0.31 | AD85: 18 | AF85: 272
A86: 481502 | B86: CASPER MOUNTAIN | C86: 42.7111 | D86: -106.3472 | E86: 2025-04-15 | F86: 13 | G86: F | H86: 1 | I86: 16Y2P | J86: 32.64 | K86: 25.24 | L86: 23.35 | M86: 23.52 | N86: -99.99 | O86: 0 | P86: 254 | Q86: 0 | R86: 0.2 | S86: 0 | T86: 1 | U86: 0 | V86: 0 | W86: 0 | X86: 0 | Y86: 0 | Z86: 30 | AA86: 60 | AB86: 0.27 | AC86: 0.27 | AD86: 0 | AE86: L | AF86: 274
A87: 482102 | B87: ESTERBROOK | C87: 42.4158 | D87: -105.3611 | E87: 2025-04-15 | F87: 13 | G87: F | H87: 1 | I87: 16Y1P | J87: 8.51 | K87: 10.35 | L87: 11.5 | M87: 14.82 | N87: -99.99 | O87: 21.2 | P87: 346 | Q87: 3 | R87: 39.9 | S87: 27.1 | T87: 3 | U87: 0 | V87: 0 | W87: 0 | X87: 0 | Y87: 19 | Z87: 30 | AA87: 60 | AB87: 0.35 | AC87: 0.35 | AD87: 18 | AE87: M | AF87: 276
A88: 482106 | B88: DODGE CREEK | C88: 41.9672 | D88: -105.5192 | E88: 2025-04-15 | F88: 13 | G88: F | H88: 2 | I88: 16Y1P | J88: 8.57 | K88: 9.04 | L88: 10.7 | M88: 14.88 | N88: -99.99 | O88: 24.9 | P88: 241 | Q88: 4 | R88: 39.7 | S88: 31.8 | T88: 3 | U88: 0 | V88: 0 | W88: 0 | X88: 0 | Y88: 23 | Z88: 30 | AA88: 60 | AB88: 0.3 | AC88: 0.3 | AD88: 17 | AE88: M | AF88: 282
A89: 482106 | B89: DODGE CREEK | C89: 41.9672 | D89: -105.5192 | E89: 2025-04-15 | F89: 13 | G89: F | H89: 5 | I89: 16Y1P | J89: 8.57 | K89: 9.04 | L89: 10.7 | M89: 14.88 | N89: -99.99 | O89: 24.9 | P89: 241 | Q89: 4 | R89: 39.7 | S89: 31.8 | U89: 0 | V89: 0 | W89: 0 | X89: 0 | Y89: 23 | Z89: 30 | AA89: 60 | AB89: 0.3 | AC89: 0.3 | AD89: 17 | AF89: 285
A90: 481502 | B90: CASPER MOUNTAIN | C90: 42.7111 | D90: -106.3472 | E90: 2025-04-14 | F90: 13 | G90: F | H90: 1 | I90: 16Y2P | J90: 32.64 | K90: 25.24 | L90: 23.38 | M90: 23.55 | N90: -99.99 | O90: 0 | P90: 254 | Q90: 0 | R90: 0.1 | S90: 0 | T90: 1 | U90: 0 | V90: 0 | W90: 0 | X90: 0 | Y90: 0 | Z90: 30 | AA90: 60 | AB90: 0.28 | AC90: 0.28 | AD90: 0 | AE90: L | AF90: 287
A91: 482102 | B91: ESTERBROOK | C91: 42.4158 | D91: -105.3611 | E91: 2025-04-14 | F91: 13 | G91: F | H91: 1 | I91: 16Y1P | J91: 10.42 | K91: 12.07 | L91: 11.48 | M91: 15.05 | N91: -99.99 | O91: 14.3 | P91: 346 | Q91: 4 | R91: 37.3 | S91: 28.2 | T91: 3 | U91: 0 | V91: 0 | W91: 0 | X91: 0 | Y91: 20 | Z91: 30 | AA91: 60 | AB91: 0.38 | AC91: 0.38 | AD91: 9 | AE91: M | AF91: 289
A92: 482106 | B92: DODGE CREEK | C92: 41.9672 | D92: -105.5192 | E92: 2025-04-14 | F92: 13 | G92: F | H92: 2 | I92: 16Y1P | J92: 10.8 | K92: 9.34 | L92: 10.93 | M92: 15.13 | N92: -99.99 | O92: 14.8 | P92: 241 | Q92: 4 | R92: 37.4 | S92: 31.4 | T92: 3 | U92: 0 | V92: 0 | W92: 0 | X92: 0 | Y92: 22 | Z92: 30 | AA92: 60 | AB92: 0.32 | AC92: 0.32 | AD92: 9 | AE92: M | AF92: 295
A93: 482106 | B93: DODGE CREEK | C93: 41.9672 | D93: -105.5192 | E93: 2025-04-14 | F93: 13 | G93: F | H93: 5 | I93: 16Y1P | J93: 10.8 | K93: 9.34 | L93: 10.93 | M93: 15.13 | N93: -99.99 | O93: 14.8 | P93: 241 | Q93: 4 | R93: 37.4 | S93: 31.4 | U93: 0 | V93: 0 | W93: 0 | X93: 0 | Y93: 22 | Z93: 30 | AA93: 60 | AB93: 0.32 | AC93: 0.32 | AD93: 9 | AF93: 298
A94: 481502 | B94: CASPER MOUNTAIN | C94: 42.7111 | D94: -106.3472 | E94: 2025-04-13 | F94: 13 | G94: F | H94: 1 | I94: 16Y2P | J94: 32.64 | K94: 25.24 | L94: 23.42 | M94: 23.59 | N94: -99.99 | O94: 0 | P94: 253 | Q94: 0 | R94: 0.1 | S94: 0 | T94: 1 | U94: 0 | V94: 0 | W94: 0 | X94: 0 | Y94: 0 | Z94: 30 | AA94: 60 | AB94: 0.29 | AC94: 0.29 | AD94: 0 | AE94: L | AF94: 300
A95: 482102 | B95: ESTERBROOK | C95: 42.4158 | D95: -105.3611 | E95: 2025-04-13 | F95: 13 | G95: F | H95: 1 | I95: 16Y1P | J95: 10.21 | K95: 11.75 | L95: 11.46 | M95: 15.16 | N95: -99.99 | O95: 17.6 | P95: 344 | Q95: 5 | R95: 37.4 | S95: 33.3 | T95: 3 | U95: 0 | V95: 0 | W95: 0 | X95: 0 | Y95: 24 | Z95: 30 | AA95: 60 | AB95: 0.42 | AC95: 0.42 | AD95: 8 | AE95: M | AF95: 302
A96: 482106 | B96: DODGE CREEK | C96: 41.9672 | D96: -105.5192 | E96: 2025-04-13 | F96: 13 | G96: F | H96: 2 | I96: 16Y1P | J96: 8.57 | K96: 9.58 | L96: 11.1 | M96: 15.32 | N96: -99.99 | O96: 24.8 | P96: 239 | Q96: 6 | R96: 37.9 | S96: 37.2 | T96: 3 | U96: 0 | V96: 0 | W96: 0 | X96: 0 | Y96: 26 | Z96: 30 | AA96: 60 | AB96: 0.34 | AC96: 0.34 | AD96: 9 | AE96: M | AF96: 308
A97: 482106 | B97: DODGE CREEK | C97: 41.9672 | D97: -105.5192 | E97: 2025-04-13 | F97: 13 | G97: F | H97: 5 | I97: 16Y1P | J97: 8.57 | K97: 9.58 | L97: 11.1 | M97: 15.32 | N97: -99.99 | O97: 24.8 | P97: 239 | Q97: 6 | R97: 37.9 | S97: 37.2 | U97: 0 | V97: 0 | W97: 0 | X97: 0 | Y97: 26 | Z97: 30 | AA97: 60 | AB97: 0.34 | AC97: 0.34 | AD97: 9 | AF97: 311
A98: 481502 | B98: CASPER MOUNTAIN | C98: 42.7111 | D98: -106.3472 | E98: 2025-04-12 | F98: 13 | G98: F | H98: 1 | I98: 16Y2P | J98: 32.64 | K98: 25.24 | L98: 23.48 | M98: 23.63 | N98: -99.99 | O98: 0 | P98: 252 | Q98: 0 | R98: 0 | S98: 0 | T98: 1 | U98: 0 | V98: 0 | W98: 0 | X98: 0 | Y98: 0 | Z98: 30 | AA98: 60 | AB98: 0.27 | AC98: 0.27 | AD98: 0 | AE98: L | AF98: 313
A99: 482102 | B99: ESTERBROOK | C99: 42.4158 | D99: -105.3611 | E99: 2025-04-12 | F99: 13 | G99: F | H99: 1 | I99: 16Y1P | J99: 6.15 | K99: 8.07 | L99: 11.59 | M99: 15.53 | N99: -99.99 | O99: 44.2 | P99: 342 | Q99: 6 | R99: 40.7 | S99: 37.4 | T99: 3 | U99: 0 | V99: 0 | W99: 0 | X99: 0 | Y99: 27 | Z99: 30 | AA99: 60 | AB99: 0.39 | AC99: 0.39 | AD99: 24 | AE99: M | AF99: 315
A100: 482106 | B100: DODGE CREEK | C100: 41.9672 | D100: -105.5192 | E100: 2025-04-12 | F100: 13 | G100: F | H100: 2 | I100: 16Y1P | J100: 7.19 | K100: 8.76 | L100: 11.59 | M100: 15.76 | N100: -99.99 | O100: 36.1 | P100: 237 | Q100: 8 | R100: 37.7 | S100: 42.5 | T100: 3 | U100: 0 | V100: 0 | W100: 0 | X100: 0 | Y100: 30 | Z100: 30 | AA100: 60 | AB100: 0.3 | AC100: 0.3 | AD100: 22 | AE100: M | AF100: 321
A101: 482106 | B101: DODGE CREEK | C101: 41.9672 | D101: -105.5192 | E101: 2025-04-12 | F101: 13 | G101: F | H101: 5 | I101: 16Y1P | J101: 7.19 | K101: 8.76 | L101: 11.59 | M101: 15.76 | N101: -99.99 | O101: 36.1 | P101: 237 | Q101: 8 | R101: 37.7 | S101: 42.5 | U101: 0 | V101: 0 | W101: 0 | X101: 0 | Y101: 30 | Z101: 30 | AA101: 60 | AB101: 0.3 | AC101: 0.3 | AD101: 22 | AF101: 324
A102: 481502 | B102: CASPER MOUNTAIN | C102: 42.7111 | D102: -106.3472 | E102: 2025-04-11 | F102: 13 | G102: F | H102: 1 | I102: 16Y2P | J102: 32.64 | K102: 25.24 | L102: 23.55 | M102: 23.67 | N102: -99.99 | O102: 0 | P102: 251 | Q102: 0 | R102: 0 | S102: 0 | T102: 1 | U102: 0 | V102: 0 | W102: 0 | X102: 0 | Y102: 0 | Z102: 30 | AA102: 60 | AB102: 0.23 | AC102: 0.23 | AD102: 0 | AE102: L | AF102: 326
A103: 482102 | B103: ESTERBROOK | C103: 42.4158 | D103: -105.3611 | E103: 2025-04-11 | F103: 13 | G103: F | H103: 1 | I103: 16Y1P | J103: 6.65 | K103: 8.83 | L103: 12.42 | M103: 16.05 | N103: -99.99 | O103: 34.1 | P103: 340 | Q103: 4 | R103: 38 | S103: 29 | T103: 3 | U103: 0 | V103: 0 | W103: 0 | X103: 0 | Y103: 21 | Z103: 30 | AA103: 60 | AB103: 0.37 | AC103: 0.37 | AD103: 23 | AE103: M | AF103: 328
A104: 482106 | B104: DODGE CREEK | C104: 41.9672 | D104: -105.5192 | E104: 2025-04-11 | F104: 13 | G104: F | H104: 2 | I104: 16Y1P | J104: 7.89 | K104: 9.07 | L104: 12.2 | M104: 16.24 | N104: -99.99 | O104: 29.7 | P104: 236 | Q104: 4 | R104: 35.5 | S104: 30.7 | T104: 3 | U104: 0 | V104: 0 | W104: 0 | X104: 0 | Y104: 22 | Z104: 30 | AA104: 60 | AB104: 0.25 | AC104: 0.25 | AD104: 21 | AE104: M | AF104: 334
A105: 482106 | B105: DODGE CREEK | C105: 41.9672 | D105: -105.5192 | E105: 2025-04-11 | F105: 13 | G105: F | H105: 5 | I105: 16Y1P | J105: 7.89 | K105: 9.07 | L105: 12.2 | M105: 16.24 | N105: -99.99 | O105: 29.7 | P105: 236 | Q105: 4 | R105: 35.5 | S105: 30.7 | U105: 0 | V105: 0 | W105: 0 | X105: 0 | Y105: 22 | Z105: 30 | AA105: 60 | AB105: 0.25 | AC105: 0.25 | AD105: 21 | AF105: 337
A106: 481502 | B106: CASPER MOUNTAIN | C106: 42.7111 | D106: -106.3472 | E106: 2025-04-10 | F106: 13 | G106: F | H106: 1 | I106: 16Y2P | J106: 32.64 | K106: 25.24 | L106: 23.78 | M106: 23.64 | N106: -99.99 | O106: 0 | P106: 251 | Q106: 0 | R106: 0 | S106: 0 | T106: 1 | U106: 0 | V106: 0 | W106: 0 | X106: 0 | Y106: 0 | Z106: 30 | AA106: 60 | AB106: 0.19 | AC106: 0.19 | AD106: 0 | AE106: L | AF106: 339
A107: 482102 | B107: ESTERBROOK | C107: 42.4158 | D107: -105.3611 | E107: 2025-04-10 | F107: 13 | G107: F | H107: 1 | I107: 16Y1P | J107: 10.38 | K107: 11.32 | L107: 12.82 | M107: 16.58 | N107: -99.99 | O107: 11.6 | P107: 338 | Q107: 2 | R107: 33 | S107: 21 | T107: 3 | U107: 0 | V107: 0 | W107: 0 | X107: 0 | Y107: 15 | Z107: 30 | AA107: 60 | AB107: 0.34 | AC107: 0.34 | AD107: 13 | AE107: M | AF107: 341
A108: 482106 | B108: DODGE CREEK | C108: 41.9672 | D108: -105.5192 | E108: 2025-04-10 | F108: 13 | G108: F | H108: 2 | I108: 16Y1P | J108: 11.25 | K108: 12.21 | L108: 13.15 | M108: 16.89 | N108: -99.99 | O108: 11.6 | P108: 235 | Q108: 3 | R108: 30 | S108: 23.8 | T108: 2 | U108: 0 | V108: 0 | W108: 0 | X108: 0 | Y108: 17 | Z108: 30 | AA108: 60 | AB108: 0.21 | AC108: 0.21 | AD108: 13 | AE108: L | AF108: 347
A109: 482106 | B109: DODGE CREEK | C109: 41.9672 | D109: -105.5192 | E109: 2025-04-10 | F109: 13 | G109: F | H109: 5 | I109: 16Y1P | J109: 11.25 | K109: 12.21 | L109: 13.15 | M109: 16.89 | N109: -99.99 | O109: 11.6 | P109: 235 | Q109: 3 | R109: 30 | S109: 23.8 | U109: 0 | V109: 0 | W109: 0 | X109: 0 | Y109: 17 | Z109: 30 | AA109: 60 | AB109: 0.21 | AC109: 0.21 | AD109: 13 | AF109: 350
A110: 481502 | B110: CASPER MOUNTAIN | C110: 42.7111 | D110: -106.3472 | E110: 2025-04-09 | F110: 13 | G110: F | H110: 1 | I110: 16Y2P | J110: 32.64 | K110: 25.24 | L110: 23.78 | M110: 23.64 | N110: -99.99 | O110: 0 | P110: 251 | Q110: 0 | R110: 0 | S110: 0 | T110: 1 | U110: 0 | V110: 0 | W110: 0 | X110: 0 | Y110: 0 | Z110: 30 | AA110: 60 | AB110: 0.19 | AC110: 0.19 | AD110: 0 | AE110: L | AF110: 352
A111: 482102 | B111: ESTERBROOK | C111: 42.4158 | D111: -105.3611 | E111: 2025-04-09 | F111: 13 | G111: F | H111: 1 | I111: 16Y1P | J111: 9.82 | K111: 10.7 | L111: 12.9 | M111: 16.66 | N111: -99.99 | O111: 20.3 | P111: 338 | Q111: 6 | R111: 33.4 | S111: 34.6 | T111: 3 | U111: 0 | V111: 0 | W111: 0 | X111: 0 | Y111: 25 | Z111: 30 | AA111: 60 | AB111: 0.32 | AC111: 0.32 | AD111: 13 | AE111: M | AF111: 354
A112: 482106 | B112: DODGE CREEK | C112: 41.9672 | D112: -105.5192 | E112: 2025-04-09 | F112: 13 | G112: F | H112: 2 | I112: 16Y1P | J112: 10.22 | K112: 11.38 | L112: 13.21 | M112: 16.97 | N112: -99.99 | O112: 18.6 | P112: 235 | Q112: 8 | R112: 30.7 | S112: 37.6 | T112: 2 | U112: 0 | V112: 0 | W112: 0 | X112: 0 | Y112: 27 | Z112: 30 | AA112: 60 | AB112: 0.21 | AC112: 0.21 | AD112: 13 | AE112: L | AF112: 360
A113: 482106 | B113: DODGE CREEK | C113: 41.9672 | D113: -105.5192 | E113: 2025-04-09 | F113: 13 | G113: F | H113: 5 | I113: 16Y1P | J113: 10.22 | K113: 11.38 | L113: 13.21 | M113: 16.97 | N113: -99.99 | O113: 18.6 | P113: 235 | Q113: 8 | R113: 30.7 | S113: 37.6 | U113: 0 | V113: 0 | W113: 0 | X113: 0 | Y113: 27 | Z113: 30 | AA113: 60 | AB113: 0.21 | AC113: 0.21 | AD113: 13 | AF113: 363
A114: 481502 | B114: CASPER MOUNTAIN | C114: 42.7111 | D114: -106.3472 | E114: 2025-04-08 | F114: 13 | G114: F | H114: 1 | I114: 16Y2P | J114: 32.64 | K114: 25.25 | L114: 23.95 | M114: 23.61 | N114: -99.99 | O114: 0 | P114: 250 | Q114: 0 | R114: 0 | S114: 0 | T114: 1 | U114: 0 | V114: 0 | W114: 0 | X114: 0 | Y114: 0 | Z114: 30 | AA114: 60 | AB114: 0.18 | AC114: 0.18 | AD114: 0 | AE114: L | AF114: 365
A115: 482102 | B115: ESTERBROOK | C115: 42.4158 | D115: -105.3611 | E115: 2025-04-08 | F115: 13 | G115: F | H115: 1 | I115: 16Y1P | J115: 7.84 | K115: 9.87 | L115: 13.65 | M115: 17.09 | N115: -99.99 | O115: 30.7 | P115: 337 | Q115: 8 | R115: 33.3 | S115: 40 | T115: 3 | U115: 0 | V115: 0 | W115: 0 | X115: 0 | Y115: 28 | Z115: 30 | AA115: 60 | AB115: 0.29 | AC115: 0.29 | AD115: 17 | AE115: M | AF115: 367
A116: 482106 | B116: DODGE CREEK | C116: 41.9672 | D116: -105.5192 | E116: 2025-04-08 | F116: 13 | G116: F | H116: 2 | I116: 16Y1P | J116: 9.03 | K116: 10.65 | L116: 13.8 | M116: 17.35 | N116: -99.99 | O116: 24.2 | P116: 234 | Q116: 10 | R116: 30.4 | S116: 40.8 | T116: 2 | U116: 0 | V116: 0 | W116: 0 | X116: 0 | Y116: 29 | Z116: 30 | AA116: 60 | AB116: 0.19 | AC116: 0.19 | AD116: 15 | AE116: M | AF116: 373
A117: 482106 | B117: DODGE CREEK | C117: 41.9672 | D117: -105.5192 | E117: 2025-04-08 | F117: 13 | G117: F | H117: 5 | I117: 16Y1P | J117: 9.03 | K117: 10.65 | L117: 13.8 | M117: 17.35 | N117: -99.99 | O117: 24.2 | P117: 234 | Q117: 10 | R117: 30.4 | S117: 40.8 | U117: 0 | V117: 0 | W117: 0 | X117: 0 | Y117: 29 | Z117: 30 | AA117: 60 | AB117: 0.19 | AC117: 0.19 | AD117: 15 | AF117: 376
A118: 481502 | B118: CASPER MOUNTAIN | C118: 42.7111 | D118: -106.3472 | E118: 2025-04-07 | F118: 13 | G118: F | H118: 1 | I118: 16Y2P | J118: 32.64 | K118: 25.27 | L118: 24.17 | M118: 23.59 | N118: -99.99 | O118: 0 | P118: 250 | Q118: 0 | R118: 0 | S118: 0 | T118: 1 | U118: 0 | V118: 0 | W118: 0 | X118: 0 | Y118: 0 | Z118: 30 | AA118: 60 | AB118: 0.15 | AC118: 0.15 | AD118: 0 | AE118: L | AF118: 378
A119: 482102 | B119: ESTERBROOK | C119: 42.4158 | D119: -105.3611 | E119: 2025-04-07 | F119: 13 | G119: F | H119: 1 | I119: 16Y1P | J119: 9.26 | K119: 10.66 | L119: 14.39 | M119: 17.5 | N119: -99.99 | O119: 19.1 | P119: 336 | Q119: 3 | R119: 30.6 | S119: 25.4 | T119: 3 | U119: 0 | V119: 0 | W119: 0 | X119: 0 | Y119: 18 | Z119: 30 | AA119: 60 | AB119: 0.25 | AC119: 0.25 | AD119: 16 | AE119: M | AF119: 380
A120: 482106 | B120: DODGE CREEK | C120: 41.9672 | D120: -105.5192 | E120: 2025-04-07 | F120: 13 | G120: F | H120: 2 | I120: 16Y1P | J120: 10.17 | K120: 10.76 | L120: 14.48 | M120: 17.73 | N120: -99.99 | O120: 19 | P120: 234 | Q120: 5 | R120: 28.5 | S120: 30.6 | T120: 2 | U120: 0 | V120: 0 | W120: 0 | X120: 0 | Y120: 22 | Z120: 30 | AA120: 60 | AB120: 0.18 | AC120: 0.18 | AD120: 13 | AE120: L | AF120: 386
A121: 482106 | B121: DODGE CREEK | C121: 41.9672 | D121: -105.5192 | E121: 2025-04-07 | F121: 13 | G121: F | H121: 5 | I121: 16Y1P | J121: 10.17 | K121: 10.76 | L121: 14.48 | M121: 17.73 | N121: -99.99 | O121: 19 | P121: 234 | Q121: 5 | R121: 28.5 | S121: 30.6 | U121: 0 | V121: 0 | W121: 0 | X121: 0 | Y121: 22 | Z121: 30 | AA121: 60 | AB121: 0.18 | AC121: 0.18 | AD121: 13 | AF121: 389
A122: 481502 | B122: CASPER MOUNTAIN | C122: 42.7111 | D122: -106.3472 | E122: 2025-04-06 | F122: 13 | G122: F | H122: 1 | I122: 16Y2P | J122: 32.64 | K122: 25.46 | L122: 24.45 | M122: 23.62 | N122: -99.99 | O122: 0 | P122: 250 | Q122: 0 | R122: 0 | S122: 0 | T122: 1 | U122: 0 | V122: 0 | W122: 0 | X122: 0 | Y122: 0 | Z122: 30 | AA122: 60 | AB122: 0.16 | AC122: 0.16 | AD122: 0 | AE122: L | AF122: 391
A123: 482102 | B123: ESTERBROOK | C123: 42.4158 | D123: -105.3611 | E123: 2025-04-06 | F123: 13 | G123: F | H123: 1 | I123: 16Y1P | J123: 9.14 | K123: 11.39 | L123: 15.18 | M123: 17.83 | N123: -99.99 | O123: 18.6 | P123: 336 | Q123: 3 | R123: 29.1 | S123: 24.8 | T123: 3 | U123: 0 | V123: 0 | W123: 0 | X123: 0 | Y123: 18 | Z123: 30 | AA123: 60 | AB123: 0.28 | AC123: 0.28 | AD123: 11 | AE123: M | AF123: 393
A124: 482106 | B124: DODGE CREEK | C124: 41.9672 | D124: -105.5192 | E124: 2025-04-06 | F124: 13 | G124: F | H124: 2 | I124: 16Y1P | J124: 10.51 | K124: 11.31 | L124: 15.22 | M124: 18.05 | N124: -99.99 | O124: 14.2 | P124: 234 | Q124: 4 | R124: 26.9 | S124: 24.6 | T124: 2 | U124: 0 | V124: 0 | W124: 0 | X124: 0 | Y124: 17 | Z124: 30 | AA124: 60 | AB124: 0.2 | AC124: 0.2 | AD124: 9 | AE124: L | AF124: 399
A125: 482106 | B125: DODGE CREEK | C125: 41.9672 | D125: -105.5192 | E125: 2025-04-06 | F125: 13 | G125: F | H125: 5 | I125: 16Y1P | J125: 10.51 | K125: 11.31 | L125: 15.22 | M125: 18.05 | N125: -99.99 | O125: 14.2 | P125: 234 | Q125: 4 | R125: 26.9 | S125: 24.6 | U125: 0 | V125: 0 | W125: 0 | X125: 0 | Y125: 17 | Z125: 30 | AA125: 60 | AB125: 0.2 | AC125: 0.2 | AD125: 9 | AF125: 402
A126: 481502 | B126: CASPER MOUNTAIN | C126: 42.7111 | D126: -106.3472 | E126: 2025-04-05 | F126: 13 | G126: F | H126: 1 | I126: 16Y2P | J126: 34.08 | K126: 25.89 | L126: 24.63 | M126: 23.65 | N126: -99.99 | O126: 0 | P126: 250 | Q126: 0 | R126: 0 | S126: 0 | T126: 1 | U126: 0 | V126: 0 | W126: 0 | X126: 0 | Y126: 0 | Z126: 30 | AA126: 60 | AB126: 0.16 | AC126: 0.16 | AD126: 0 | AE126: L | AF126: 404
A127: 482102 | B127: ESTERBROOK | C127: 42.4158 | D127: -105.3611 | E127: 2025-04-05 | F127: 13 | G127: F | H127: 1 | I127: 16Y1P | J127: 12.64 | K127: 13.25 | L127: 15.68 | M127: 18.02 | N127: -99.99 | O127: 6 | P127: 336 | Q127: 2 | R127: 25.8 | S127: 18 | T127: 2 | U127: 0 | V127: 0 | W127: 0 | X127: 0 | Y127: 13 | Z127: 30 | AA127: 60 | AB127: 0.28 | AC127: 0.28 | AD127: 4 | AE127: L | AF127: 406
A128: 482106 | B128: DODGE CREEK | C128: 41.9672 | D128: -105.5192 | E128: 2025-04-05 | F128: 13 | G128: F | H128: 2 | I128: 16Y1P | J128: 13.23 | K128: 13.1 | L128: 15.72 | M128: 18.25 | N128: -99.99 | O128: 5.4 | P128: 234 | Q128: 2 | R128: 24.2 | S128: 18.5 | T128: 2 | U128: 0 | V128: 0 | W128: 0 | X128: 0 | Y128: 13 | Z128: 30 | AA128: 60 | AB128: 0.2 | AC128: 0.2 | AD128: 2 | AE128: L | AF128: 412
A129: 482106 | B129: DODGE CREEK | C129: 41.9672 | D129: -105.5192 | E129: 2025-04-05 | F129: 13 | G129: F | H129: 5 | I129: 16Y1P | J129: 13.23 | K129: 13.1 | L129: 15.72 | M129: 18.25 | N129: -99.99 | O129: 5.4 | P129: 234 | Q129: 2 | R129: 24.2 | S129: 18.5 | U129: 0 | V129: 0 | W129: 0 | X129: 0 | Y129: 13 | Z129: 30 | AA129: 60 | AB129: 0.2 | AC129: 0.2 | AD129: 2 | AF129: 415
A130: 481502 | B130: CASPER MOUNTAIN | C130: 42.7111 | D130: -106.3472 | E130: 2025-04-04 | F130: 13 | G130: F | H130: 1 | I130: 16Y2P | J130: 32.79 | K130: 28.05 | L130: 24.57 | M130: 23.42 | N130: -99.99 | O130: 0 | P130: 251 | Q130: 0 | R130: 0 | S130: 0 | T130: 1 | U130: 0 | V130: 0 | W130: 0 | X130: 0 | Y130: 0 | Z130: 30 | AA130: 60 | AB130: 0.16 | AC130: 0.16 | AD130: 0 | AE130: L | AF130: 417
A131: 482102 | B131: ESTERBROOK | C131: 42.4158 | D131: -105.3611 | E131: 2025-04-04 | F131: 13 | G131: F | H131: 1 | I131: 16Y1P | J131: 14 | K131: 20.38 | L131: 16.11 | M131: 18.08 | N131: -99.99 | O131: 5.2 | P131: 336 | Q131: 4 | R131: 21.8 | S131: 22 | T131: 2 | U131: 0 | V131: 0 | W131: 0 | X131: 0 | Y131: 16 | Z131: 30 | AA131: 60 | AB131: 0.28 | AC131: 0.28 | AD131: 0 | AE131: L | AF131: 419
A132: 482106 | B132: DODGE CREEK | C132: 41.9672 | D132: -105.5192 | E132: 2025-04-04 | F132: 13 | G132: F | H132: 2 | I132: 16Y1P | J132: 15.34 | K132: 26 | L132: 16.35 | M132: 18.61 | N132: -99.99 | O132: 3.4 | P132: 234 | Q132: 3 | R132: 17.3 | S132: 18.8 | T132: 1 | U132: 0 | V132: 0 | W132: 0 | X132: 0 | Y132: 13 | Z132: 30 | AA132: 60 | AB132: 0.2 | AC132: 0.2 | AD132: -1 | AE132: L | AF132: 425
A133: 482106 | B133: DODGE CREEK | C133: 41.9672 | D133: -105.5192 | E133: 2025-04-04 | F133: 13 | G133: F | H133: 5 | I133: 16Y1P | J133: 15.34 | K133: 26 | L133: 16.35 | M133: 18.61 | N133: -99.99 | O133: 3.4 | P133: 234 | Q133: 3 | R133: 17.3 | S133: 18.8 | U133: 0 | V133: 0 | W133: 0 | X133: 0 | Y133: 13 | Z133: 30 | AA133: 60 | AB133: 0.2 | AC133: 0.2 | AD133: -1 | AF133: 428
A134: 481502 | B134: CASPER MOUNTAIN | C134: 42.7111 | D134: -106.3472 | E134: 2025-04-03 | F134: 13 | G134: F | H134: 1 | I134: 16Y2P | J134: 34.91 | K134: 27.37 | L134: 24.23 | M134: 23.43 | N134: -99.99 | O134: 0 | P134: 263 | Q134: 0 | R134: 0 | S134: 0 | T134: 1 | U134: 0 | V134: 0 | W134: 0 | X134: 0 | Y134: 0 | Z134: 30 | AA134: 60 | AB134: 0.16 | AC134: 0.16 | AD134: 0 | AE134: L | AF134: 430
A135: 482102 | B135: ESTERBROOK | C135: 42.4158 | D135: -105.3611 | E135: 2025-04-03 | F135: 13 | G135: F | H135: 1 | I135: 16Y1P | J135: 11.86 | K135: 13.81 | L135: 16.11 | M135: 18.27 | N135: -99.99 | O135: 8.1 | P135: 336 | Q135: 2 | R135: 25.1 | S135: 19.6 | T135: 2 | U135: 0 | V135: 0 | W135: 0 | X135: 0 | Y135: 14 | Z135: 30 | AA135: 60 | AB135: 0.28 | AC135: 0.28 | AD135: 5 | AE135: L | AF135: 432
A136: 482106 | B136: DODGE CREEK | C136: 41.9672 | D136: -105.5192 | E136: 2025-04-03 | F136: 13 | G136: F | H136: 2 | I136: 16Y1P | J136: 12.81 | K136: 13.47 | L136: 16.31 | M136: 18.48 | N136: -99.99 | O136: 6.9 | P136: 234 | Q136: 3 | R136: 23.4 | S136: 20.6 | T136: 2 | U136: 0 | V136: 0 | W136: 0 | X136: 0 | Y136: 15 | Z136: 30 | AA136: 60 | AB136: 0.2 | AC136: 0.2 | AD136: 4 | AE136: L | AF136: 438
A137: 482106 | B137: DODGE CREEK | C137: 41.9672 | D137: -105.5192 | E137: 2025-04-03 | F137: 13 | G137: F | H137: 5 | I137: 16Y1P | J137: 12.81 | K137: 13.47 | L137: 16.31 | M137: 18.48 | N137: -99.99 | O137: 6.9 | P137: 234 | Q137: 3 | R137: 23.4 | S137: 20.6 | U137: 0 | V137: 0 | W137: 0 | X137: 0 | Y137: 15 | Z137: 30 | AA137: 60 | AB137: 0.2 | AC137: 0.2 | AD137: 4 | AF137: 441
A138: 481502 | B138: CASPER MOUNTAIN | C138: 42.7111 | D138: -106.3472 | E138: 2025-04-02 | F138: 13 | G138: F | H138: 1 | I138: 16Y2P | J138: 34.91 | K138: 26.87 | L138: 23.85 | M138: 23.39 | N138: -99.99 | O138: 0 | P138: 275 | Q138: 0 | R138: 0 | S138: 0 | T138: 1 | U138: 0 | V138: 0 | W138: 0 | X138: 0 | Y138: 0 | Z138: 30 | AA138: 60 | AB138: 0.17 | AC138: 0.17 | AD138: 0 | AE138: L | AF138: 443
A139: 482102 | B139: ESTERBROOK | C139: 42.4158 | D139: -105.3611 | E139: 2025-04-02 | F139: 13 | G139: F | H139: 1 | I139: 16Y1P | J139: 14.67 | K139: 15.15 | L139: 16.47 | M139: 18.37 | N139: -99.99 | O139: 4.8 | P139: 336 | Q139: 4 | R139: 22.8 | S139: 23.7 | T139: 2 | U139: 0 | V139: 0 | W139: 0 | X139: 0 | Y139: 17 | Z139: 30 | AA139: 60 | AB139: 0.32 | AC139: 0.32 | AD139: 0 | AE139: L | AF139: 445
A140: 482106 | B140: DODGE CREEK | C140: 41.9672 | D140: -105.5192 | E140: 2025-04-02 | F140: 13 | G140: F | H140: 2 | I140: 16Y1P | J140: 14.67 | K140: 14.99 | L140: 16.33 | M140: 18.56 | N140: -99.99 | O140: 5.4 | P140: 234 | Q140: 5 | R140: 21.8 | S140: 26.3 | T140: 2 | U140: 0 | V140: 0 | W140: 0 | X140: 0 | Y140: 19 | Z140: 30 | AA140: 60 | AB140: 0.22 | AC140: 0.22 | AD140: 1 | AE140: L | AF140: 451
A141: 482106 | B141: DODGE CREEK | C141: 41.9672 | D141: -105.5192 | E141: 2025-04-02 | F141: 13 | G141: F | H141: 5 | I141: 16Y1P | J141: 14.67 | K141: 14.99 | L141: 16.33 | M141: 18.56 | N141: -99.99 | O141: 5.4 | P141: 234 | Q141: 5 | R141: 21.8 | S141: 26.3 | U141: 0 | V141: 0 | W141: 0 | X141: 0 | Y141: 19 | Z141: 30 | AA141: 60 | AB141: 0.22 | AC141: 0.22 | AD141: 1 | AF141: 454
A142: 481502 | B142: CASPER MOUNTAIN | C142: 42.7111 | D142: -106.3472 | E142: 2025-04-01 | F142: 13 | G142: F | H142: 1 | I142: 16Y2P | J142: 32.64 | K142: 25.54 | L142: 23.82 | M142: 23.3 | N142: -99.99 | O142: 0 | P142: 275 | Q142: 0 | R142: 0.2 | S142: 0 | T142: 1 | U142: 0 | V142: 0 | W142: 0 | X142: 0 | Y142: 0 | Z142: 30 | AA142: 60 | AB142: 0.18 | AC142: 0.18 | AD142: 0 | AE142: L | AF142: 456
A143: 482102 | B143: ESTERBROOK | C143: 42.4158 | D143: -105.3611 | E143: 2025-04-01 | F143: 13 | G143: F | H143: 1 | I143: 16Y1P | J143: 14.33 | K143: 15.2 | L143: 16.56 | M143: 18.43 | N143: -99.99 | O143: 5.8 | P143: 336 | Q143: 4 | R143: 22.8 | S143: 24.6 | T143: 2 | U143: 0 | V143: 0 | W143: 0 | X143: 0 | Y143: 17 | Z143: 30 | AA143: 60 | AB143: 0.37 | AC143: 0.37 | AD143: 4 | AE143: L | AF143: 458
A144: 482106 | B144: DODGE CREEK | C144: 41.9672 | D144: -105.5192 | E144: 2025-04-01 | F144: 13 | G144: F | H144: 2 | I144: 16Y1P | J144: 16.27 | K144: 16.7 | L144: 16.19 | M144: 18.63 | N144: -99.99 | O144: 3.4 | P144: 236 | Q144: 6 | R144: 20.4 | S144: 27 | T144: 2 | U144: 0 | V144: 0 | W144: 0 | X144: 0 | Y144: 19 | Z144: 30 | AA144: 60 | AB144: 0.24 | AC144: 0.24 | AD144: 1 | AE144: L | AF144: 464
A145: 482106 | B145: DODGE CREEK | C145: 41.9672 | D145: -105.5192 | E145: 2025-04-01 | F145: 13 | G145: F | H145: 5 | I145: 16Y1P | J145: 16.27 | K145: 16.7 | L145: 16.19 | M145: 18.63 | N145: -99.99 | O145: 3.4 | P145: 236 | Q145: 6 | R145: 20.4 | S145: 27 | U145: 0 | V145: 0 | W145: 0 | X145: 0 | Y145: 19 | Z145: 30 | AA145: 60 | AB145: 0.24 | AC145: 0.24 | AD145: 1 | AF145: 467
A146: 481502 | B146: CASPER MOUNTAIN | C146: 42.7111 | D146: -106.3472 | E146: 2025-03-31 | F146: 13 | G146: F | H146: 1 | I146: 16Y2P | J146: 33.33 | K146: 26.55 | L146: 23.83 | M146: 23.28 | N146: -99.99 | O146: 0 | P146: 275 | Q146: 0 | R146: 0 | S146: 0 | T146: 1 | U146: 0 | V146: 0 | W146: 0 | X146: 0 | Y146: 0 | Z146: 30 | AA146: 60 | AB146: 0.18 | AC146: 0.18 | AD146: 0 | AE146: L | AF146: 469
A147: 482102 | B147: ESTERBROOK | C147: 42.4158 | D147: -105.3611 | E147: 2025-03-31 | F147: 13 | G147: F | H147: 1 | I147: 16Y1P | J147: 14.8 | K147: 16.35 | L147: 16.18 | M147: 18.39 | N147: -99.99 | O147: 4.4 | P147: 336 | Q147: 3 | R147: 22.4 | S147: 19.8 | T147: 2 | U147: 0 | V147: 0 | W147: 0 | X147: 0 | Y147: 14 | Z147: 30 | AA147: 60 | AB147: 0.37 | AC147: 0.37 | AD147: 9 | AE147: L | AF147: 471
A148: 482106 | B148: DODGE CREEK | C148: 41.9672 | D148: -105.5192 | E148: 2025-03-31 | F148: 13 | G148: F | H148: 2 | I148: 16Y1P | J148: 14.99 | K148: 16.86 | L148: 15.83 | M148: 18.72 | N148: -99.99 | O148: 4.9 | P148: 242 | Q148: 4 | R148: 21 | S148: 22.3 | T148: 2 | U148: 0 | V148: 0 | W148: 0 | X148: 0 | Y148: 16 | Z148: 30 | AA148: 60 | AB148: 0.25 | AC148: 0.25 | AD148: 8 | AE148: L | AF148: 477
A149: 482106 | B149: DODGE CREEK | C149: 41.9672 | D149: -105.5192 | E149: 2025-03-31 | F149: 13 | G149: F | H149: 5 | I149: 16Y1P | J149: 14.99 | K149: 16.86 | L149: 15.83 | M149: 18.72 | N149: -99.99 | O149: 4.9 | P149: 242 | Q149: 4 | R149: 21 | S149: 22.3 | U149: 0 | V149: 0 | W149: 0 | X149: 0 | Y149: 16 | Z149: 30 | AA149: 60 | AB149: 0.25 | AC149: 0.25 | AD149: 8 | AF149: 480
A150: 481502 | B150: CASPER MOUNTAIN | C150: 42.7111 | D150: -106.3472 | E150: 2025-03-30 | F150: 13 | G150: F | H150: 1 | I150: 16Y2P | J150: 32.79 | K150: 30.12 | L150: 23.52 | M150: 23.29 | N150: -99.99 | O150: 0 | P150: 280 | Q150: 0 | R150: 0 | S150: 0 | T150: 1 | U150: 0 | V150: 0 | W150: 0 | X150: 0 | Y150: 0 | Z150: 30 | AA150: 60 | AB150: 0.18 | AC150: 0.18 | AD150: 0 | AE150: L | AF150: 482
A151: 482102 | B151: ESTERBROOK | C151: 42.4158 | D151: -105.3611 | E151: 2025-03-30 | F151: 13 | G151: F | H151: 1 | I151: 16Y1P | J151: 19.77 | K151: 20.78 | L151: 15.95 | M151: 18.58 | N151: -99.99 | O151: 0.4 | P151: 340 | Q151: 1 | R151: 18.3 | S151: 11.9 | T151: 2 | U151: 0 | V151: 0 | W151: 0 | X151: 0 | Y151: 8 | Z151: 30 | AA151: 60 | AB151: 0.4 | AC151: 0.4 | AD151: 2 | AE151: L | AF151: 484
A152: 482106 | B152: DODGE CREEK | C152: 41.9672 | D152: -105.5192 | E152: 2025-03-30 | F152: 13 | G152: F | H152: 2 | I152: 16Y1P | J152: 18.48 | K152: 24.11 | L152: 16.73 | M152: 19.36 | N152: -99.99 | O152: 1 | P152: 254 | Q152: 2 | R152: 15.3 | S152: 14.6 | T152: 1 | U152: 0 | V152: 0 | W152: 0 | X152: 0 | Y152: 10 | Z152: 30 | AA152: 60 | AB152: 0.26 | AC152: 0.26 | AD152: 3 | AE152: L | AF152: 490
A153: 482106 | B153: DODGE CREEK | C153: 41.9672 | D153: -105.5192 | E153: 2025-03-30 | F153: 13 | G153: F | H153: 5 | I153: 16Y1P | J153: 18.48 | K153: 24.11 | L153: 16.73 | M153: 19.36 | N153: -99.99 | O153: 1 | P153: 254 | Q153: 2 | R153: 15.3 | S153: 14.6 | U153: 0 | V153: 0 | W153: 0 | X153: 0 | Y153: 10 | Z153: 30 | AA153: 60 | AB153: 0.26 | AC153: 0.26 | AD153: 3 | AF153: 493
A154: 481502 | B154: CASPER MOUNTAIN | C154: 42.7111 | D154: -106.3472 | E154: 2025-03-29 | F154: 13 | G154: F | H154: 1 | I154: 16Y2P | J154: 32.64 | K154: 25.24 | L154: 23.29 | M154: 23.25 | N154: -99.99 | O154: 0 | P154: 282 | Q154: 0 | R154: 0.6 | S154: 0 | T154: 1 | U154: 0 | V154: 0 | W154: 0 | X154: 0 | Y154: 0 | Z154: 30 | AA154: 60 | AB154: 0.18 | AC154: 0.18 | AD154: 0 | AE154: L | AF154: 495
A155: 482102 | B155: ESTERBROOK | C155: 42.4158 | D155: -105.3611 | E155: 2025-03-29 | F155: 13 | G155: F | H155: 1 | I155: 16Y1P | J155: 14.11 | K155: 19.58 | L155: 14.21 | M155: 18.16 | N155: -99.99 | O155: 4.8 | P155: 362 | Q155: 3 | R155: 23.4 | S155: 19.8 | T155: 2 | U155: 0 | V155: 0 | W155: 0 | X155: 0 | Y155: 14 | Z155: 30 | AA155: 60 | AB155: 0.4 | AC155: 0.4 | AD155: 4 | AE155: L | AF155: 497
A156: 482106 | B156: DODGE CREEK | C156: 41.9672 | D156: -105.5192 | E156: 2025-03-29 | F156: 13 | G156: F | H156: 2 | I156: 16Y1P | J156: 13.46 | K156: 19.51 | L156: 14.88 | M156: 18.77 | N156: -99.99 | O156: 6.1 | P156: 265 | Q156: 3 | R156: 21.4 | S156: 19.6 | T156: 2 | U156: 0 | V156: 0 | W156: 0 | X156: 0 | Y156: 14 | Z156: 30 | AA156: 60 | AB156: 0.26 | AC156: 0.26 | AD156: 6 | AE156: L | AF156: 503
A157: 482106 | B157: DODGE CREEK | C157: 41.9672 | D157: -105.5192 | E157: 2025-03-29 | F157: 13 | G157: F | H157: 5 | I157: 16Y1P | J157: 13.46 | K157: 19.51 | L157: 14.88 | M157: 18.77 | N157: -99.99 | O157: 6.1 | P157: 265 | Q157: 3 | R157: 21.4 | S157: 19.6 | U157: 0 | V157: 0 | W157: 0 | X157: 0 | Y157: 14 | Z157: 30 | AA157: 60 | AB157: 0.26 | AC157: 0.26 | AD157: 6 | AF157: 506
A158: 481502 | B158: CASPER MOUNTAIN | C158: 42.7111 | D158: -106.3472 | E158: 2025-03-28 | F158: 13 | G158: F | H158: 1 | I158: 16Y2P | J158: 32.64 | K158: 25.24 | L158: 23.3 | M158: 23.26 | N158: -99.99 | O158: 0 | P158: 281 | Q158: 0 | R158: 0.6 | S158: 0 | T158: 1 | U158: 0 | V158: 0 | W158: 0 | X158: 0 | Y158: 0 | Z158: 30 | AA158: 60 | AB158: 0.16 | AC158: 0.16 | AD158: 0 | AE158: L | AF158: 508
A159: 482102 | B159: ESTERBROOK | C159: 42.4158 | D159: -105.3611 | E159: 2025-03-28 | F159: 13 | G159: F | H159: 1 | I159: 16Y1P | J159: 7.66 | K159: 9.44 | L159: 13.43 | M159: 18.73 | N159: -99.99 | O159: 21.8 | P159: 360 | Q159: 2 | R159: 30.4 | S159: 21.6 | T159: 3 | U159: 0 | V159: 0 | W159: 0 | X159: 0 | Y159: 15 | Z159: 30 | AA159: 60 | AB159: 0.38 | AC159: 0.38 | AD159: 16 | AE159: M | AF159: 510
A160: 482106 | B160: DODGE CREEK | C160: 41.9672 | D160: -105.5192 | E160: 2025-03-28 | F160: 13 | G160: F | H160: 2 | I160: 16Y1P | J160: 8.72 | K160: 10.42 | L160: 14.23 | M160: 19.35 | N160: -99.99 | O160: 21 | P160: 264 | Q160: 3 | R160: 26.6 | S160: 23.8 | T160: 2 | U160: 0 | V160: 0 | W160: 0 | X160: 0 | Y160: 17 | Z160: 30 | AA160: 60 | AB160: 0.23 | AC160: 0.23 | AD160: 15 | AE160: M | AF160: 516
A161: 482106 | B161: DODGE CREEK | C161: 41.9672 | D161: -105.5192 | E161: 2025-03-28 | F161: 13 | G161: F | H161: 5 | I161: 16Y1P | J161: 8.72 | K161: 10.42 | L161: 14.23 | M161: 19.35 | N161: -99.99 | O161: 21 | P161: 264 | Q161: 3 | R161: 26.6 | S161: 23.8 | U161: 0 | V161: 0 | W161: 0 | X161: 0 | Y161: 17 | Z161: 30 | AA161: 60 | AB161: 0.23 | AC161: 0.23 | AD161: 15 | AF161: 519
A162: 481502 | B162: CASPER MOUNTAIN | C162: 42.7111 | D162: -106.3472 | E162: 2025-03-27 | F162: 13 | G162: F | H162: 1 | I162: 16Y2P | J162: 32.64 | K162: 25.25 | L162: 23.32 | M162: 23.27 | N162: -99.99 | O162: 0 | P162: 280 | Q162: 0 | R162: 0.5 | S162: 0 | T162: 1 | U162: 0 | V162: 0 | W162: 0 | X162: 0 | Y162: 0 | Z162: 30 | AA162: 60 | AB162: 0.12 | AC162: 0.12 | AD162: 0 | AE162: L | AF162: 521
A163: 482102 | B163: ESTERBROOK | C163: 42.4158 | D163: -105.3611 | E163: 2025-03-27 | F163: 13 | G163: F | H163: 1 | I163: 16Y1P | J163: 7.27 | K163: 9.73 | L163: 14.46 | M163: 19.58 | N163: -99.99 | O163: 33.4 | P163: 358 | Q163: 4 | R163: 27.9 | S163: 27.5 | T163: 3 | U163: 0 | V163: 0 | W163: 0 | X163: 0 | Y163: 20 | Z163: 30 | AA163: 60 | AB163: 0.33 | AC163: 0.33 | AD163: 22 | AE163: M | AF163: 523
A164: 482106 | B164: DODGE CREEK | C164: 41.9672 | D164: -105.5192 | E164: 2025-03-27 | F164: 13 | G164: F | H164: 2 | I164: 16Y1P | J164: 8.84 | K164: 11.21 | L164: 15.44 | M164: 20.15 | N164: -99.99 | O164: 26.2 | P164: 263 | Q164: 6 | R164: 23.8 | S164: 28.3 | T164: 2 | U164: 0 | V164: 0 | W164: 0 | X164: 0 | Y164: 20 | Z164: 30 | AA164: 60 | AB164: 0.19 | AC164: 0.19 | AD164: 19 | AE164: M | AF164: 529
A165: 482106 | B165: DODGE CREEK | C165: 41.9672 | D165: -105.5192 | E165: 2025-03-27 | F165: 13 | G165: F | H165: 5 | I165: 16Y1P | J165: 8.84 | K165: 11.21 | L165: 15.44 | M165: 20.15 | N165: -99.99 | O165: 26.2 | P165: 263 | Q165: 6 | R165: 23.8 | S165: 28.3 | U165: 0 | V165: 0 | W165: 0 | X165: 0 | Y165: 20 | Z165: 30 | AA165: 60 | AB165: 0.19 | AC165: 0.19 | AD165: 19 | AF165: 532
A166: 481502 | B166: CASPER MOUNTAIN | C166: 42.7111 | D166: -106.3472 | E166: 2025-03-26 | F166: 13 | G166: F | H166: 1 | I166: 16Y2P | J166: 32.64 | K166: 25.26 | L166: 23.35 | M166: 23.29 | N166: -99.99 | O166: 0 | P166: 279 | Q166: 0 | R166: 0.5 | S166: 0 | T166: 1 | U166: 0 | V166: 0 | W166: 0 | X166: 0 | Y166: 0 | Z166: 30 | AA166: 60 | AB166: 0.08 | AC166: 0.08 | AD166: 0 | AE166: L | AF166: 534
A167: 482102 | B167: ESTERBROOK | C167: 42.4158 | D167: -105.3611 | E167: 2025-03-26 | F167: 13 | G167: F | H167: 1 | I167: 16Y1P | J167: 10.13 | K167: 12.88 | L167: 15.51 | M167: 20.33 | N167: -99.99 | O167: 13.1 | P167: 357 | Q167: 2 | R167: 22.9 | S167: 17.9 | T167: 2 | U167: 0 | V167: 0 | W167: 0 | X167: 0 | Y167: 13 | Z167: 30 | AA167: 60 | AB167: 0.29 | AC167: 0.29 | AD167: 18 | AE167: L | AF167: 536
A168: 482106 | B168: DODGE CREEK | C168: 41.9672 | D168: -105.5192 | E168: 2025-03-26 | F168: 13 | G168: F | H168: 2 | I168: 16Y1P | J168: 10.91 | K168: 13.23 | L168: 16.3 | M168: 20.77 | N168: -99.99 | O168: 13.2 | P168: 262 | Q168: 3 | R168: 20.4 | S168: 20.1 | T168: 2 | U168: 0 | V168: 0 | W168: 0 | X168: 0 | Y168: 14 | Z168: 30 | AA168: 60 | AB168: 0.16 | AC168: 0.16 | AD168: 17 | AE168: L | AF168: 542
A169: 482106 | B169: DODGE CREEK | C169: 41.9672 | D169: -105.5192 | E169: 2025-03-26 | F169: 13 | G169: F | H169: 5 | I169: 16Y1P | J169: 10.91 | K169: 13.23 | L169: 16.3 | M169: 20.77 | N169: -99.99 | O169: 13.2 | P169: 262 | Q169: 3 | R169: 20.4 | S169: 20.1 | U169: 0 | V169: 0 | W169: 0 | X169: 0 | Y169: 14 | Z169: 30 | AA169: 60 | AB169: 0.16 | AC169: 0.16 | AD169: 17 | AF169: 545
A170: 481502 | B170: CASPER MOUNTAIN | C170: 42.7111 | D170: -106.3472 | E170: 2025-03-25 | F170: 13 | G170: F | H170: 1 | I170: 16Y2P | J170: 32.64 | K170: 25.41 | L170: 23.37 | M170: 23.3 | N170: -99.99 | O170: 0 | P170: 279 | Q170: 0 | R170: 0.4 | S170: 0 | T170: 1 | U170: 0 | V170: 0 | W170: 0 | X170: 0 | Y170: 0 | Z170: 30 | AA170: 60 | AB170: 0.06 | AC170: 0.06 | AD170: 0 | AE170: L | AF170: 547
A171: 482102 | B171: ESTERBROOK | C171: 42.4158 | D171: -105.3611 | E171: 2025-03-25 | F171: 13 | G171: F | H171: 1 | I171: 16Y1P | J171: 12.12 | K171: 13.25 | L171: 16.33 | M171: 21.14 | N171: -99.99 | O171: 8.8 | P171: 356 | Q171: 2 | R171: 19.9 | S171: 18.3 | T171: 2 | U171: 0 | V171: 0 | W171: 0 | X171: 0 | Y171: 13 | Z171: 30 | AA171: 60 | AB171: 0.25 | AC171: 0.25 | AD171: 12 | AE171: L | AF171: 549
A172: 482106 | B172: DODGE CREEK | C172: 41.9672 | D172: -105.5192 | E172: 2025-03-25 | F172: 13 | G172: F | H172: 2 | I172: 16Y1P | J172: 13.23 | K172: 14.91 | L172: 17.12 | M172: 21.41 | N172: -99.99 | O172: 7.4 | P172: 262 | Q172: 3 | R172: 17.2 | S172: 18.5 | T172: 1 | U172: 0 | V172: 0 | W172: 0 | X172: 0 | Y172: 13 | Z172: 30 | AA172: 60 | AB172: 0.14 | AC172: 0.14 | AD172: 13 | AE172: L | AF172: 555
A173: 482106 | B173: DODGE CREEK | C173: 41.9672 | D173: -105.5192 | E173: 2025-03-25 | F173: 13 | G173: F | H173: 5 | I173: 16Y1P | J173: 13.23 | K173: 14.91 | L173: 17.12 | M173: 21.41 | N173: -99.99 | O173: 7.4 | P173: 262 | Q173: 3 | R173: 17.2 | S173: 18.5 | U173: 0 | V173: 0 | W173: 0 | X173: 0 | Y173: 13 | Z173: 30 | AA173: 60 | AB173: 0.14 | AC173: 0.14 | AD173: 13 | AF173: 558
A174: 481502 | B174: CASPER MOUNTAIN | C174: 42.7111 | D174: -106.3472 | E174: 2025-03-24 | F174: 13 | G174: F | H174: 1 | I174: 16Y2P | J174: 32.86 | K174: 26.04 | L174: 23.4 | M174: 23.31 | N174: -99.99 | O174: 0 | P174: 279 | Q174: 0 | R174: 0.1 | S174: 0 | T174: 1 | U174: 0 | V174: 0 | W174: 0 | X174: 0 | Y174: 0 | Z174: 30 | AA174: 60 | AB174: 0.05 | AC174: 0.05 | AD174: 0 | AE174: L | AF174: 560
A175: 482102 | B175: ESTERBROOK | C175: 42.4158 | D175: -105.3611 | E175: 2025-03-24 | F175: 13 | G175: F | H175: 1 | I175: 16Y1P | J175: 10.68 | K175: 12.58 | L175: 17.24 | M175: 21.66 | N175: -99.99 | O175: 17.2 | P175: 356 | Q175: 6 | R175: 19.2 | S175: 27.2 | T175: 2 | U175: 0 | V175: 0 | W175: 0 | X175: 0 | Y175: 19 | Z175: 30 | AA175: 60 | AB175: 0.21 | AC175: 0.21 | AD175: 14 | AE175: L | AF175: 562
A176: 482106 | B176: DODGE CREEK | C176: 41.9672 | D176: -105.5192 | E176: 2025-03-24 | F176: 13 | G176: F | H176: 2 | I176: 16Y1P | J176: 12.26 | K176: 13.74 | L176: 17.88 | M176: 21.94 | N176: -99.99 | O176: 11.9 | P176: 262 | Q176: 7 | R176: 16.7 | S176: 27.4 | T176: 1 | U176: 0 | V176: 0 | W176: 0 | X176: 0 | Y176: 19 | Z176: 30 | AA176: 60 | AB176: 0.12 | AC176: 0.12 | AD176: 12 | AE176: L | AF176: 568
A177: 482106 | B177: DODGE CREEK | C177: 41.9672 | D177: -105.5192 | E177: 2025-03-24 | F177: 13 | G177: F | H177: 5 | I177: 16Y1P | J177: 12.26 | K177: 13.74 | L177: 17.88 | M177: 21.94 | N177: -99.99 | O177: 11.9 | P177: 262 | Q177: 7 | R177: 16.7 | S177: 27.4 | U177: 0 | V177: 0 | W177: 0 | X177: 0 | Y177: 19 | Z177: 30 | AA177: 60 | AB177: 0.12 | AC177: 0.12 | AD177: 12 | AF177: 571
A178: 481502 | B178: CASPER MOUNTAIN | C178: 42.7111 | D178: -106.3472 | E178: 2025-03-23 | F178: 13 | G178: F | H178: 1 | I178: 16Y2P | J178: 32.64 | K178: 25.25 | L178: 23.41 | M178: 23.32 | N178: -99.99 | O178: 0 | P178: 279 | Q178: 0 | R178: 0.4 | S178: 0 | T178: 1 | U178: 0 | V178: 0 | W178: 0 | X178: 0 | Y178: 0 | Z178: 30 | AA178: 60 | AB178: 0.06 | AC178: 0.06 | AD178: 0 | AE178: L | AF178: 573
A179: 482102 | B179: ESTERBROOK | C179: 42.4158 | D179: -105.3611 | E179: 2025-03-23 | F179: 13 | G179: F | H179: 1 | I179: 16Y1P | J179: 11.29 | K179: 10.85 | L179: 18.35 | M179: 22.21 | N179: -99.99 | O179: 13.4 | P179: 356 | Q179: 5 | R179: 18 | S179: 23.3 | T179: 2 | U179: 0 | V179: 0 | W179: 0 | X179: 0 | Y179: 17 | Z179: 30 | AA179: 60 | AB179: 0.22 | AC179: 0.22 | AD179: 6 | AE179: L | AF179: 575
A180: 482106 | B180: DODGE CREEK | C180: 41.9672 | D180: -105.5192 | E180: 2025-03-23 | F180: 13 | G180: F | H180: 2 | I180: 16Y1P | J180: 12.56 | K180: 11.47 | L180: 19.08 | M180: 22.42 | N180: -99.99 | O180: 10 | P180: 262 | Q180: 7 | R180: 15.9 | S180: 26.7 | T180: 1 | U180: 0 | V180: 0 | W180: 0 | X180: 0 | Y180: 19 | Z180: 30 | AA180: 60 | AB180: 0.13 | AC180: 0.13 | AD180: 5 | AE180: L | AF180: 581
A181: 482106 | B181: DODGE CREEK | C181: 41.9672 | D181: -105.5192 | E181: 2025-03-23 | F181: 13 | G181: F | H181: 5 | I181: 16Y1P | J181: 12.56 | K181: 11.47 | L181: 19.08 | M181: 22.42 | N181: -99.99 | O181: 10 | P181: 262 | Q181: 7 | R181: 15.9 | S181: 26.7 | U181: 0 | V181: 0 | W181: 0 | X181: 0 | Y181: 19 | Z181: 30 | AA181: 60 | AB181: 0.13 | AC181: 0.13 | AD181: 5 | AF181: 584
A182: 481502 | B182: CASPER MOUNTAIN | C182: 42.7111 | D182: -106.3472 | E182: 2025-03-22 | F182: 13 | G182: F | H182: 1 | I182: 16Y2P | J182: 32.64 | K182: 25.29 | L182: 23.44 | M182: 23.33 | N182: -99.99 | O182: 0 | P182: 279 | Q182: 0 | R182: 0.4 | S182: 0 | T182: 1 | U182: 0 | V182: 0 | W182: 0 | X182: 0 | Y182: 0 | Z182: 30 | AA182: 60 | AB182: 0.07 | AC182: 0.07 | AD182: 0 | AE182: L | AF182: 586
A183: 482102 | B183: ESTERBROOK | C183: 42.4158 | D183: -105.3611 | E183: 2025-03-22 | F183: 13 | G183: F | H183: 1 | I183: 16Y1P | J183: 11.18 | K183: 12.09 | L183: 19.61 | M183: 22.65 | N183: -99.99 | O183: 14.4 | P183: 356 | Q183: 9 | R183: 16 | S183: 29.1 | T183: 2 | U183: 0 | V183: 0 | W183: 0 | X183: 0 | Y183: 21 | Z183: 30 | AA183: 60 | AB183: 0.26 | AC183: 0.26 | AD183: 8 | AE183: L | AF183: 588
A184: 482106 | B184: DODGE CREEK | C184: 41.9672 | D184: -105.5192 | E184: 2025-03-22 | F184: 13 | G184: F | H184: 2 | I184: 16Y1P | J184: 12.37 | K184: 13.19 | L184: 20.17 | M184: 22.73 | N184: -99.99 | O184: 10.7 | P184: 262 | Q184: 9 | R184: 14.2 | S184: 28.2 | T184: 1 | U184: 0 | V184: 0 | W184: 0 | X184: 0 | Y184: 20 | Z184: 30 | AA184: 60 | AB184: 0.13 | AC184: 0.13 | AD184: 6 | AE184: L | AF184: 594
A185: 482106 | B185: DODGE CREEK | C185: 41.9672 | D185: -105.5192 | E185: 2025-03-22 | F185: 13 | G185: F | H185: 5 | I185: 16Y1P | J185: 12.37 | K185: 13.19 | L185: 20.17 | M185: 22.73 | N185: -99.99 | O185: 10.7 | P185: 262 | Q185: 9 | R185: 14.2 | S185: 28.2 | U185: 0 | V185: 0 | W185: 0 | X185: 0 | Y185: 20 | Z185: 30 | AA185: 60 | AB185: 0.13 | AC185: 0.13 | AD185: 6 | AF185: 597
A186: 481502 | B186: CASPER MOUNTAIN | C186: 42.7111 | D186: -106.3472 | E186: 2025-03-21 | F186: 13 | G186: F | H186: 1 | I186: 16Y2P | J186: 32.64 | K186: 25.64 | L186: 23.41 | M186: 23.33 | N186: -99.99 | O186: 0 | P186: 279 | Q186: 0 | R186: 0.3 | S186: 0 | T186: 1 | U186: 0 | V186: 0 | W186: 0 | X186: 0 | Y186: 0 | Z186: 30 | AA186: 60 | AB186: 0.07 | AC186: 0.07 | AD186: 0 | AE186: L | AF186: 599
A187: 482102 | B187: ESTERBROOK | C187: 42.4158 | D187: -105.3611 | E187: 2025-03-21 | F187: 13 | G187: F | H187: 1 | I187: 16Y1P | J187: 11.79 | K187: 12.5 | L187: 21.52 | M187: 23.08 | N187: -99.99 | O187: 11.3 | P187: 356 | Q187: 4 | R187: 13.8 | S187: 19.9 | T187: 2 | U187: 0 | V187: 0 | W187: 0 | X187: 0 | Y187: 14 | Z187: 30 | AA187: 60 | AB187: 0.26 | AC187: 0.26 | AD187: 5 | AE187: L | AF187: 601
A188: 482106 | B188: DODGE CREEK | C188: 41.9672 | D188: -105.5192 | E188: 2025-03-21 | F188: 13 | G188: F | H188: 2 | I188: 16Y1P | J188: 12 | K188: 13.25 | L188: 21.62 | M188: 23.01 | N188: -99.99 | O188: 11.3 | P188: 262 | Q188: 7 | R188: 13.1 | S188: 24.1 | T188: 1 | U188: 0 | V188: 0 | W188: 0 | X188: 0 | Y188: 17 | Z188: 30 | AA188: 60 | AB188: 0.15 | AC188: 0.15 | AD188: 4 | AE188: L | AF188: 607
A189: 482106 | B189: DODGE CREEK | C189: 41.9672 | D189: -105.5192 | E189: 2025-03-21 | F189: 13 | G189: F | H189: 5 | I189: 16Y1P | J189: 12 | K189: 13.25 | L189: 21.62 | M189: 23.01 | N189: -99.99 | O189: 11.3 | P189: 262 | Q189: 7 | R189: 13.1 | S189: 24.1 | U189: 0 | V189: 0 | W189: 0 | X189: 0 | Y189: 17 | Z189: 30 | AA189: 60 | AB189: 0.15 | AC189: 0.15 | AD189: 4 | AF189: 610
A190: 481502 | B190: CASPER MOUNTAIN | C190: 42.7111 | D190: -106.3472 | E190: 2025-03-20 | F190: 13 | G190: F | H190: 1 | I190: 16Y2P | J190: 34.72 | K190: 25.75 | L190: 23.4 | M190: 23.38 | N190: -99.99 | O190: 0 | P190: 279 | Q190: 0 | R190: 0 | S190: 0 | T190: 1 | U190: 0 | V190: 0 | W190: 0 | X190: 0 | Y190: 0 | Z190: 30 | AA190: 60 | AB190: 0.07 | AC190: 0.07 | AD190: 0 | AE190: L | AF190: 612
A191: 482102 | B191: ESTERBROOK | C191: 42.4158 | D191: -105.3611 | E191: 2025-03-20 | F191: 13 | G191: F | H191: 1 | I191: 16Y1P | J191: 10.91 | K191: 14.45 | L191: 22.35 | M191: 23.2 | N191: -99.99 | O191: 15.1 | P191: 356 | Q191: 6 | R191: 12.8 | S191: 21.8 | T191: 1 | U191: 0 | V191: 0 | W191: 0 | X191: 0 | Y191: 15 | Z191: 30 | AA191: 60 | AB191: 0.29 | AC191: 0.29 | AD191: 7 | AE191: L | AF191: 614
A192: 482106 | B192: DODGE CREEK | C192: 41.9672 | D192: -105.5192 | E192: 2025-03-20 | F192: 13 | G192: F | H192: 2 | I192: 16Y1P | J192: 11.39 | K192: 15.2 | L192: 22.66 | M192: 23.12 | N192: -99.99 | O192: 13.3 | P192: 262 | Q192: 9 | R192: 11.9 | S192: 25.4 | T192: 1 | U192: 0 | V192: 0 | W192: 0 | X192: 0 | Y192: 18 | Z192: 30 | AA192: 60 | AB192: 0.15 | AC192: 0.15 | AD192: 6 | AE192: L | AF192: 620
A193: 482106 | B193: DODGE CREEK | C193: 41.9672 | D193: -105.5192 | E193: 2025-03-20 | F193: 13 | G193: F | H193: 5 | I193: 16Y1P | J193: 11.39 | K193: 15.2 | L193: 22.66 | M193: 23.12 | N193: -99.99 | O193: 13.3 | P193: 262 | Q193: 9 | R193: 11.9 | S193: 25.4 | U193: 0 | V193: 0 | W193: 0 | X193: 0 | Y193: 18 | Z193: 30 | AA193: 60 | AB193: 0.15 | AC193: 0.15 | AD193: 6 | AF193: 623
A194: 481502 | B194: CASPER MOUNTAIN | C194: 42.7111 | D194: -106.3472 | E194: 2025-03-19 | F194: 13 | G194: F | H194: 1 | I194: 16Y2P | J194: 32.64 | K194: 25.25 | L194: 23.4 | M194: 23.37 | N194: -99.99 | O194: 0 | P194: 279 | Q194: 0 | R194: 0.4 | S194: 0 | T194: 1 | U194: 0 | V194: 0 | W194: 0 | X194: 0 | Y194: 0 | Z194: 30 | AA194: 60 | AB194: 0.07 | AC194: 0.07 | AD194: 0 | AE194: L | AF194: 625
A195: 482102 | B195: ESTERBROOK | C195: 42.4158 | D195: -105.3611 | E195: 2025-03-19 | F195: 13 | G195: F | H195: 1 | I195: 16Y1P | J195: 32.64 | K195: 25.25 | L195: 23.31 | M195: 23.25 | N195: -99.99 | O195: 0 | P195: 356 | Q195: 0 | R195: 0.6 | S195: 0 | T195: 1 | U195: 0 | V195: 0 | W195: 0 | X195: 0 | Y195: 0 | Z195: 30 | AA195: 60 | AB195: 0.3 | AC195: 0.3 | AD195: 0 | AE195: L | AF195: 627
A196: 482106 | B196: DODGE CREEK | C196: 41.9672 | D196: -105.5192 | E196: 2025-03-19 | F196: 13 | G196: F | H196: 2 | I196: 16Y1P | J196: 32.64 | K196: 25.24 | L196: 23.26 | M196: 23.14 | N196: -99.99 | O196: 0 | P196: 262 | Q196: 0 | R196: 0.8 | S196: 0 | T196: 1 | U196: 0 | V196: 0 | W196: 0 | X196: 0 | Y196: 0 | Z196: 30 | AA196: 60 | AB196: 0.15 | AC196: 0.15 | AD196: 0 | AE196: L | AF196: 633
A197: 482106 | B197: DODGE CREEK | C197: 41.9672 | D197: -105.5192 | E197: 2025-03-19 | F197: 13 | G197: F | H197: 5 | I197: 16Y1P | J197: 32.64 | K197: 25.24 | L197: 23.26 | M197: 23.14 | N197: -99.99 | O197: 0 | P197: 262 | Q197: 0 | R197: 0.8 | S197: 0 | U197: 0 | V197: 0 | W197: 0 | X197: 0 | Y197: 0 | Z197: 30 | AA197: 60 | AB197: 0.15 | AC197: 0.15 | AD197: 0 | AF197: 636
A198: 481502 | B198: CASPER MOUNTAIN | C198: 42.7111 | D198: -106.3472 | E198: 2025-03-18 | F198: 13 | G198: F | H198: 1 | I198: 16Y2P | J198: 32.64 | K198: 25.26 | L198: 23.44 | M198: 23.38 | N198: -99.99 | O198: 0 | P198: 279 | Q198: 0 | R198: 0.3 | S198: 0 | T198: 1 | U198: 0 | V198: 0 | W198: 0 | X198: 0 | Y198: 0 | Z198: 30 | AA198: 60 | AB198: 0.07 | AC198: 0.07 | AD198: 0 | AE198: L | AF198: 638
A199: 482102 | B199: ESTERBROOK | C199: 42.4158 | D199: -105.3611 | E199: 2025-03-18 | F199: 13 | G199: F | H199: 1 | I199: 16Y1P | J199: 32.64 | K199: 25.26 | L199: 23.33 | M199: 23.26 | N199: -99.99 | O199: 0 | P199: 355 | Q199: 0 | R199: 0.6 | S199: 0 | T199: 1 | U199: 0 | V199: 0 | W199: 0 | X199: 0 | Y199: 0 | Z199: 30 | AA199: 60 | AB199: 0.32 | AC199: 0.32 | AD199: 0 | AE199: L | AF199: 640
A200: 482106 | B200: DODGE CREEK | C200: 41.9672 | D200: -105.5192 | E200: 2025-03-18 | F200: 13 | G200: F | H200: 2 | I200: 16Y1P | J200: 32.64 | K200: 25.24 | L200: 23.26 | M200: 23.14 | N200: -99.99 | O200: 0 | P200: 262 | Q200: 0 | R200: 0.8 | S200: 0 | T200: 1 | U200: 0 | V200: 0 | W200: 0 | X200: 0 | Y200: 0 | Z200: 30 | AA200: 60 | AB200: 0.16 | AC200: 0.16 | AD200: 0 | AE200: L | AF200: 646
... 305 more rows

Sheet WXML S_BIG_V4
A1: sta_id | B1: sta_nm | C1: latitude | D1: longitude | E1: nfdr_dt | F1: nfdr_tm | G1: nfdr_type | H1: mp | I1: msgc | J1: one_hr | K1: ten_hr | L1: hu_hr | M1: th_hr | N1: xh_hr | O1: ic | P1: kbdi | Q1: sc | R1: ec | S1: bi | T1: sl | U1: lr | V1: lo | W1: hr | X1: ho | Y1: fl | Z1: hrb | AA1: wdy | AB1: herb_gsi | AC1: woody_gsi | AD1: fueltemp | AE1: adj | AF1: Attribute:num
A2: 481003 | B2: POKER | C2: 43.5694 | D2: -106.9783 | E2: 2025-05-06 | F2: 13 | G2: F | H2: 1 | I2: 16Y2P | J2: 32.64 | K2: 26.39 | L2: 23.95 | M2: 23.51 | N2: -99.99 | O2: 0 | P2: 140 | Q2: 0 | R2: 0 | S2: 0 | T2: 1 | U2: 0 | V2: 0 | W2: 0 | X2: 0 | Y2: 0 | Z2: 30 | AA2: 60 | AB2: 0.4 | AC2: 0.4 | AD2: 0 | AE2: L | AF2: 1
A3: 481502 | B3: CASPER MOUNTAIN | C3: 42.7111 | D3: -106.3472 | E3: 2025-05-06 | F3: 13 | G3: F | H3: 1 | I3: 16Y2P | J3: 34.24 | K3: 30.03 | L3: 24.31 | M3: 23.4 | N3: -99.99 | O3: 0 | P3: 239 | Q3: 0 | R3: 0 | S3: 0 | T3: 1 | U3: 0 | V3: 0 | W3: 0 | X3: 0 | Y3: 0 | Z3: 30 | AA3: 60 | AB3: 0.31 | AC3: 0.31 | AD3: 0 | AE3: L | AF3: 6
A4: 481003 | B4: POKER | C4: 43.5694 | D4: -106.9783 | E4: 2025-05-05 | F4: 13 | G4: F | H4: 1 | I4: 16Y2P | J4: 32.64 | K4: 26.39 | L4: 23.95 | M4: 23.51 | N4: -99.99 | O4: 0 | P4: 140 | Q4: 0 | R4: 0 | S4: 0 | T4: 1 | U4: 0 | V4: 0 | W4: 0 | X4: 0 | Y4: 0 | Z4: 30 | AA4: 60 | AB4: 0.36 | AC4: 0.36 | AD4: 0 | AE4: L | AF4: 8
A5: 481502 | B5: CASPER MOUNTAIN | C5: 42.7111 | D5: -106.3472 | E5: 2025-05-05 | F5: 13 | G5: F | H5: 1 | I5: 16Y2P | J5: 34.24 | K5: 30.03 | L5: 24.31 | M5: 23.4 | N5: -99.99 | O5: 0 | P5: 239 | Q5: 0 | R5: 0 | S5: 0 | T5: 1 | U5: 0 | V5: 0 | W5: 0 | X5: 0 | Y5: 0 | Z5: 30 | AA5: 60 | AB5: 0.28 | AC5: 0.28 | AD5: 0 | AE5: L | AF5: 13
A6: 481003 | B6: POKER | C6: 43.5694 | D6: -106.9783 | E6: 2025-05-04 | F6: 13 | G6: F | H6: 1 | I6: 16Y2P | J6: 32.64 | K6: 26.39 | L6: 23.95 | M6: 23.51 | N6: -99.99 | O6: 0 | P6: 140 | Q6: 0 | R6: 0 | S6: 0 | T6: 1 | U6: 0 | V6: 0 | W6: 0 | X6: 0 | Y6: 0 | Z6: 30 | AA6: 60 | AB6: 0.32 | AC6: 0.32 | AD6: 0 | AE6: L | AF6: 15
A7: 481502 | B7: CASPER MOUNTAIN | C7: 42.7111 | D7: -106.3472 | E7: 2025-05-04 | F7: 13 | G7: F | H7: 1 | I7: 16Y2P | J7: 34.24 | K7: 30.03 | L7: 24.31 | M7: 23.4 | N7: -99.99 | O7: 0 | P7: 239 | Q7: 0 | R7: 0 | S7: 0 | T7: 1 | U7: 0 | V7: 0 | W7: 0 | X7: 0 | Y7: 0 | Z7: 30 | AA7: 60 | AB7: 0.24 | AC7: 0.24 | AD7: 0 | AE7: L | AF7: 20
A8: 481003 | B8: POKER | C8: 43.5694 | D8: -106.9783 | E8: 2025-05-03 | F8: 13 | G8: F | H8: 1 | I8: 16Y2P | J8: 32.64 | K8: 26.39 | L8: 23.95 | M8: 23.51 | N8: -99.99 | O8: 0 | P8: 140 | Q8: 0 | R8: 0 | S8: 0 | T8: 1 | U8: 0 | V8: 0 | W8: 0 | X8: 0 | Y8: 0 | Z8: 30 | AA8: 60 | AB8: 0.29 | AC8: 0.29 | AD8: 0 | AE8: L | AF8: 22
A9: 481502 | B9: CASPER MOUNTAIN | C9: 42.7111 | D9: -106.3472 | E9: 2025-05-03 | F9: 13 | G9: F | H9: 1 | I9: 16Y2P | J9: 34.24 | K9: 30.03 | L9: 24.31 | M9: 23.4 | N9: -99.99 | O9: 0 | P9: 239 | Q9: 0 | R9: 0 | S9: 0 | T9: 1 | U9: 0 | V9: 0 | W9: 0 | X9: 0 | Y9: 0 | Z9: 30 | AA9: 60 | AB9: 0.2 | AC9: 0.2 | AD9: 0 | AE9: L | AF9: 27
A10: 481003 | B10: POKER | C10: 43.5694 | D10: -106.9783 | E10: 2025-05-02 | F10: 13 | G10: F | H10: 1 | I10: 16Y2P | J10: 32.64 | K10: 26.39 | L10: 23.95 | M10: 23.51 | N10: -99.99 | O10: 0 | P10: 140 | Q10: 0 | R10: 0 | S10: 0 | T10: 1 | U10: 0 | V10: 0 | W10: 0 | X10: 0 | Y10: 0 | Z10: 30 | AA10: 60 | AB10: 0.29 | AC10: 0.29 | AD10: 0 | AE10: L | AF10: 29
A11: 481502 | B11: CASPER MOUNTAIN | C11: 42.7111 | D11: -106.3472 | E11: 2025-05-02 | F11: 13 | G11: F | H11: 1 | I11: 16Y2P | J11: 34.24 | K11: 30.03 | L11: 24.31 | M11: 23.4 | N11: -99.99 | O11: 0 | P11: 239 | Q11: 0 | R11: 0 | S11: 0 | T11: 1 | U11: 0 | V11: 0 | W11: 0 | X11: 0 | Y11: 0 | Z11: 30 | AA11: 60 | AB11: 0.22 | AC11: 0.22 | AD11: 0 | AE11: L | AF11: 34
A12: 481003 | B12: POKER | C12: 43.5694 | D12: -106.9783 | E12: 2025-05-01 | F12: 13 | G12: F | H12: 1 | I12: 16Y2P | J12: 32.64 | K12: 26.39 | L12: 23.95 | M12: 23.51 | N12: -99.99 | O12: 0 | P12: 140 | Q12: 0 | R12: 0 | S12: 0 | T12: 1 | U12: 0 | V12: 0 | W12: 0 | X12: 0 | Y12: 0 | Z12: 30 | AA12: 60 | AB12: 0.31 | AC12: 0.31 | AD12: 0 | AE12: L | AF12: 36
A13: 481502 | B13: CASPER MOUNTAIN | C13: 42.7111 | D13: -106.3472 | E13: 2025-05-01 | F13: 13 | G13: F | H13: 1 | I13: 16Y2P | J13: 34.24 | K13: 30.03 | L13: 24.31 | M13: 23.4 | N13: -99.99 | O13: 0 | P13: 239 | Q13: 0 | R13: 0 | S13: 0 | T13: 1 | U13: 0 | V13: 0 | W13: 0 | X13: 0 | Y13: 0 | Z13: 30 | AA13: 60 | AB13: 0.27 | AC13: 0.27 | AD13: 0 | AE13: L | AF13: 41
A14: 481003 | B14: POKER | C14: 43.5694 | D14: -106.9783 | E14: 2025-04-30 | F14: 13 | G14: F | H14: 1 | I14: 16Y2P | J14: 32.64 | K14: 26.39 | L14: 23.95 | M14: 23.51 | N14: -99.99 | O14: 0 | P14: 140 | Q14: 0 | R14: 0 | S14: 0 | T14: 1 | U14: 0 | V14: 0 | W14: 0 | X14: 0 | Y14: 0 | Z14: 30 | AA14: 60 | AB14: 0.31 | AC14: 0.31 | AD14: 0 | AE14: L | AF14: 43
A15: 481502 | B15: CASPER MOUNTAIN | C15: 42.7111 | D15: -106.3472 | E15: 2025-04-30 | F15: 13 | G15: F | H15: 1 | I15: 16Y2P | J15: 34.24 | K15: 30.03 | L15: 24.31 | M15: 23.4 | N15: -99.99 | O15: 0 | P15: 239 | Q15: 0 | R15: 0 | S15: 0 | T15: 1 | U15: 0 | V15: 0 | W15: 0 | X15: 0 | Y15: 0 | Z15: 30 | AA15: 60 | AB15: 0.27 | AC15: 0.27 | AD15: 0 | AE15: L | AF15: 48
A16: 481003 | B16: POKER | C16: 43.5694 | D16: -106.9783 | E16: 2025-04-29 | F16: 13 | G16: F | H16: 1 | I16: 16Y2P | J16: 32.64 | K16: 25.27 | L16: 23.74 | M16: 23.5 | N16: -99.99 | O16: 0 | P16: 140 | Q16: 0 | R16: 0 | S16: 0 | T16: 1 | U16: 0 | V16: 0 | W16: 0 | X16: 0 | Y16: 0 | Z16: 30 | AA16: 60 | AB16: 0.33 | AC16: 0.33 | AD16: 0 | AE16: L | AF16: 50
A17: 481502 | B17: CASPER MOUNTAIN | C17: 42.7111 | D17: -106.3472 | E17: 2025-04-29 | F17: 13 | G17: F | H17: 1 | I17: 16Y2P | J17: 34.72 | K17: 25.76 | L17: 23.67 | M17: 23.37 | N17: -99.99 | O17: 0 | P17: 259 | Q17: 0 | R17: 0 | S17: 0 | T17: 1 | U17: 0 | V17: 0 | W17: 0 | X17: 0 | Y17: 0 | Z17: 30 | AA17: 60 | AB17: 0.26 | AC17: 0.26 | AD17: 0 | AE17: L | AF17: 55
A18: 481003 | B18: POKER | C18: 43.5694 | D18: -106.9783 | E18: 2025-04-28 | F18: 13 | G18: F | H18: 1 | I18: 16Y2P | J18: 32.64 | K18: 25.44 | L18: 23.85 | M18: 23.51 | N18: -99.99 | O18: 0 | P18: 139 | Q18: 0 | R18: 0 | S18: 0 | T18: 1 | U18: 0 | V18: 0 | W18: 0 | X18: 0 | Y18: 0 | Z18: 30 | AA18: 60 | AB18: 0.38 | AC18: 0.38 | AD18: 0 | AE18: L | AF18: 57
A19: 481502 | B19: CASPER MOUNTAIN | C19: 42.7111 | D19: -106.3472 | E19: 2025-04-28 | F19: 13 | G19: F | H19: 1 | I19: 16Y2P | J19: 32.64 | K19: 25.3 | L19: 23.68 | M19: 23.37 | N19: -99.99 | O19: 0 | P19: 258 | Q19: 0 | R19: 0.2 | S19: 0 | T19: 1 | U19: 0 | V19: 0 | W19: 0 | X19: 0 | Y19: 0 | Z19: 30 | AA19: 60 | AB19: 0.3 | AC19: 0.3 | AD19: 0 | AE19: L | AF19: 62
A20: 481003 | B20: POKER | C20: 43.5694 | D20: -106.9783 | E20: 2025-04-27 | F20: 13 | G20: F | H20: 1 | I20: 16Y2P | J20: 32.65 | K20: 26.93 | L20: 23.78 | M20: 23.51 | N20: -99.99 | O20: 0 | P20: 138 | Q20: 0 | R20: 0 | S20: 0 | T20: 1 | U20: 0 | V20: 0 | W20: 0 | X20: 0 | Y20: 0 | Z20: 30 | AA20: 60 | AB20: 0.37 | AC20: 0.37 | AD20: 0 | AE20: L | AF20: 64
A21: 481502 | B21: CASPER MOUNTAIN | C21: 42.7111 | D21: -106.3472 | E21: 2025-04-27 | F21: 13 | G21: F | H21: 1 | I21: 16Y2P | J21: 32.64 | K21: 25.71 | L21: 23.61 | M21: 23.37 | N21: -99.99 | O21: 0 | P21: 257 | Q21: 0 | R21: 0.1 | S21: 0 | T21: 1 | U21: 0 | V21: 0 | W21: 0 | X21: 0 | Y21: 0 | Z21: 30 | AA21: 60 | AB21: 0.27 | AC21: 0.27 | AD21: 0 | AE21: L | AF21: 69
A22: 481003 | B22: POKER | C22: 43.5694 | D22: -106.9783 | E22: 2025-04-26 | F22: 13 | G22: F | H22: 1 | I22: 16Y2P | J22: 33.54 | K22: 27.76 | L22: 23.68 | M22: 23.5 | N22: -99.99 | O22: 0 | P22: 139 | Q22: 0 | R22: 0 | S22: 0 | T22: 1 | U22: 0 | V22: 0 | W22: 0 | X22: 0 | Y22: 0 | Z22: 30 | AA22: 60 | AB22: 0.33 | AC22: 0.33 | AD22: 0 | AE22: L | AF22: 71
A23: 481502 | B23: CASPER MOUNTAIN | C23: 42.7111 | D23: -106.3472 | E23: 2025-04-26 | F23: 13 | G23: F | H23: 1 | I23: 16Y2P | J23: 33.54 | K23: 27.3 | L23: 23.55 | M23: 23.36 | N23: -99.99 | O23: 0 | P23: 256 | Q23: 0 | R23: 0 | S23: 0 | T23: 1 | U23: 0 | V23: 0 | W23: 0 | X23: 0 | Y23: 0 | Z23: 30 | AA23: 60 | AB23: 0.24 | AC23: 0.24 | AD23: 0 | AE23: L | AF23: 76
A24: 481003 | B24: POKER | C24: 43.5694 | D24: -106.9783 | E24: 2025-04-25 | F24: 13 | G24: F | H24: 1 | I24: 16Y2P | J24: 34.72 | K24: 25.76 | L24: 23.68 | M24: 23.51 | N24: -99.99 | O24: 0 | P24: 139 | Q24: 0 | R24: 0 | S24: 0 | T24: 1 | U24: 0 | V24: 0 | W24: 0 | X24: 0 | Y24: 0 | Z24: 30 | AA24: 60 | AB24: 0.32 | AC24: 0.32 | AD24: 0 | AE24: L | AF24: 78
A25: 481502 | B25: CASPER MOUNTAIN | C25: 42.7111 | D25: -106.3472 | E25: 2025-04-25 | F25: 13 | G25: F | H25: 1 | I25: 16Y2P | J25: 32.64 | K25: 25.25 | L25: 23.55 | M25: 23.36 | N25: -99.99 | O25: 0 | P25: 256 | Q25: 0 | R25: 0.3 | S25: 0 | T25: 1 | U25: 0 | V25: 0 | W25: 0 | X25: 0 | Y25: 0 | Z25: 30 | AA25: 60 | AB25: 0.22 | AC25: 0.22 | AD25: 0 | AE25: L | AF25: 83
A26: 481003 | B26: POKER | C26: 43.5694 | D26: -106.9783 | E26: 2025-04-24 | F26: 13 | G26: F | H26: 1 | I26: 16Y2P | J26: 32.64 | K26: 25.25 | L26: 23.69 | M26: 23.48 | N26: -99.99 | O26: 0 | P26: 139 | Q26: 0 | R26: 0.1 | S26: 0 | T26: 1 | U26: 0 | V26: 0 | W26: 0 | X26: 0 | Y26: 0 | Z26: 30 | AA26: 60 | AB26: 0.32 | AC26: 0.32 | AD26: 0 | AE26: L | AF26: 85
A27: 481502 | B27: CASPER MOUNTAIN | C27: 42.7111 | D27: -106.3472 | E27: 2025-04-24 | F27: 13 | G27: F | H27: 1 | I27: 16Y2P | J27: 32.64 | K27: 25.3 | L27: 23.58 | M27: 23.36 | N27: -99.99 | O27: 0 | P27: 256 | Q27: 0 | R27: 0.3 | S27: 0 | T27: 1 | U27: 0 | V27: 0 | W27: 0 | X27: 0 | Y27: 0 | Z27: 30 | AA27: 60 | AB27: 0.2 | AC27: 0.2 | AD27: 0 | AE27: L | AF27: 90
A28: 481003 | B28: POKER | C28: 43.5694 | D28: -106.9783 | E28: 2025-04-23 | F28: 13 | G28: F | H28: 1 | I28: 16Y2P | J28: 32.64 | K28: 25.28 | L28: 23.83 | M28: 23.47 | N28: -99.99 | O28: 0 | P28: 139 | Q28: 0 | R28: 0 | S28: 0 | T28: 1 | U28: 0 | V28: 0 | W28: 0 | X28: 0 | Y28: 0 | Z28: 30 | AA28: 60 | AB28: 0.31 | AC28: 0.31 | AD28: 0 | AE28: L | AF28: 92
A29: 481502 | B29: CASPER MOUNTAIN | C29: 42.7111 | D29: -106.3472 | E29: 2025-04-23 | F29: 13 | G29: F | H29: 1 | I29: 16Y2P | J29: 32.64 | K29: 25.78 | L29: 23.54 | M29: 23.37 | N29: -99.99 | O29: 0 | P29: 256 | Q29: 0 | R29: 0.1 | S29: 0 | T29: 1 | U29: 0 | V29: 0 | W29: 0 | X29: 0 | Y29: 0 | Z29: 30 | AA29: 60 | AB29: 0.19 | AC29: 0.19 | AD29: 0 | AE29: L | AF29: 97
A30: 481003 | B30: POKER | C30: 43.5694 | D30: -106.9783 | E30: 2025-04-22 | F30: 13 | G30: F | H30: 1 | I30: 16Y2P | J30: 32.64 | K30: 25.58 | L30: 23.95 | M30: 23.47 | N30: -99.99 | O30: 0 | P30: 139 | Q30: 0 | R30: 0 | S30: 0 | T30: 1 | U30: 0 | V30: 0 | W30: 0 | X30: 0 | Y30: 0 | Z30: 30 | AA30: 60 | AB30: 0.31 | AC30: 0.31 | AD30: 0 | AE30: L | AF30: 99
A31: 481502 | B31: CASPER MOUNTAIN | C31: 42.7111 | D31: -106.3472 | E31: 2025-04-22 | F31: 13 | G31: F | H31: 1 | I31: 16Y2P | J31: 34.91 | K31: 26.61 | L31: 23.36 | M31: 23.42 | N31: -99.99 | O31: 0 | P31: 256 | Q31: 0 | R31: 0 | S31: 0 | T31: 1 | U31: 0 | V31: 0 | W31: 0 | X31: 0 | Y31: 0 | Z31: 30 | AA31: 60 | AB31: 0.18 | AC31: 0.18 | AD31: 0 | AE31: L | AF31: 104
A32: 481003 | B32: POKER | C32: 43.5694 | D32: -106.9783 | E32: 2025-04-21 | F32: 13 | G32: F | H32: 1 | I32: 16Y2P | J32: 33.08 | K32: 26.65 | L32: 23.97 | M32: 23.45 | N32: -99.99 | O32: 0 | P32: 139 | Q32: 0 | R32: 0 | S32: 0 | T32: 1 | U32: 0 | V32: 0 | W32: 0 | X32: 0 | Y32: 0 | Z32: 30 | AA32: 60 | AB32: 0.32 | AC32: 0.32 | AD32: 0 | AE32: L | AF32: 106
A33: 481502 | B33: CASPER MOUNTAIN | C33: 42.7111 | D33: -106.3472 | E33: 2025-04-21 | F33: 13 | G33: F | H33: 1 | I33: 16Y2P | J33: 32.64 | K33: 25.28 | L33: 23.35 | M33: 23.37 | N33: -99.99 | O33: 0 | P33: 256 | Q33: 0 | R33: 0.4 | S33: 0 | T33: 1 | U33: 0 | V33: 0 | W33: 0 | X33: 0 | Y33: 0 | Z33: 30 | AA33: 60 | AB33: 0.19 | AC33: 0.19 | AD33: 0 | AE33: L | AF33: 111
A34: 481003 | B34: POKER | C34: 43.5694 | D34: -106.9783 | E34: 2025-04-20 | F34: 13 | G34: F | H34: 1 | I34: 16Y2P | J34: 32.64 | K34: 26.43 | L34: 23.7 | M34: 23.46 | N34: -99.99 | O34: 0 | P34: 145 | Q34: 0 | R34: 0 | S34: 0 | T34: 1 | U34: 0 | V34: 0 | W34: 0 | X34: 0 | Y34: 0 | Z34: 30 | AA34: 60 | AB34: 0.28 | AC34: 0.28 | AD34: 0 | AE34: L | AF34: 113
A35: 481502 | B35: CASPER MOUNTAIN | C35: 42.7111 | D35: -106.3472 | E35: 2025-04-20 | F35: 13 | G35: F | H35: 1 | I35: 16Y2P | J35: 32.64 | K35: 25.6 | L35: 23.34 | M35: 23.39 | N35: -99.99 | O35: 0 | P35: 256 | Q35: 0 | R35: 0.3 | S35: 0 | T35: 1 | U35: 0 | V35: 0 | W35: 0 | X35: 0 | Y35: 0 | Z35: 30 | AA35: 60 | AB35: 0.18 | AC35: 0.18 | AD35: 0 | AE35: L | AF35: 118
A36: 481003 | B36: POKER | C36: 43.5694 | D36: -106.9783 | E36: 2025-04-19 | F36: 13 | G36: F | H36: 1 | I36: 16Y2P | J36: 34.72 | K36: 25.75 | L36: 23.32 | M36: 23.46 | N36: -99.99 | O36: 0 | P36: 156 | Q36: 0 | R36: 0 | S36: 0 | T36: 1 | U36: 0 | V36: 0 | W36: 0 | X36: 0 | Y36: 0 | Z36: 30 | AA36: 60 | AB36: 0.27 | AC36: 0.27 | AD36: 0 | AE36: L | AF36: 120
A37: 481502 | B37: CASPER MOUNTAIN | C37: 42.7111 | D37: -106.3472 | E37: 2025-04-19 | F37: 13 | G37: F | H37: 1 | I37: 16Y2P | J37: 33.5 | K37: 26.52 | L37: 23.29 | M37: 23.42 | N37: -99.99 | O37: 0 | P37: 256 | Q37: 0 | R37: 0 | S37: 0 | T37: 1 | U37: 0 | V37: 0 | W37: 0 | X37: 0 | Y37: 0 | Z37: 30 | AA37: 60 | AB37: 0.18 | AC37: 0.18 | AD37: 0 | AE37: L | AF37: 125
A38: 481003 | B38: POKER | C38: 43.5694 | D38: -106.9783 | E38: 2025-04-18 | F38: 13 | G38: F | H38: 1 | I38: 16Y2P | J38: 32.64 | K38: 25.24 | L38: 23.31 | M38: 23.41 | N38: -99.99 | O38: 0 | P38: 156 | Q38: 0 | R38: 0.3 | S38: 0 | T38: 1 | U38: 0 | V38: 0 | W38: 0 | X38: 0 | Y38: 0 | Z38: 30 | AA38: 60 | AB38: 0.28 | AC38: 0.28 | AD38: 0 | AE38: L | AF38: 127
A39: 481502 | B39: CASPER MOUNTAIN | C39: 42.7111 | D39: -106.3472 | E39: 2025-04-18 | F39: 13 | G39: F | H39: 1 | I39: 16Y2P | J39: 32.64 | K39: 25.24 | L39: 23.29 | M39: 23.43 | N39: -99.99 | O39: 0 | P39: 256 | Q39: 0 | R39: 0.3 | S39: 0 | T39: 1 | U39: 0 | V39: 0 | W39: 0 | X39: 0 | Y39: 0 | Z39: 30 | AA39: 60 | AB39: 0.19 | AC39: 0.19 | AD39: 0 | AE39: L | AF39: 132
A40: 481003 | B40: POKER | C40: 43.5694 | D40: -106.9783 | E40: 2025-04-17 | F40: 13 | G40: F | H40: 1 | I40: 16Y2P | J40: 32.64 | K40: 25.24 | L40: 23.33 | M40: 23.44 | N40: -99.99 | O40: 0 | P40: 155 | Q40: 0 | R40: 0.3 | S40: 0 | T40: 1 | U40: 0 | V40: 0 | W40: 0 | X40: 0 | Y40: 0 | Z40: 30 | AA40: 60 | AB40: 0.33 | AC40: 0.33 | AD40: 0 | AE40: L | AF40: 134
A41: 481502 | B41: CASPER MOUNTAIN | C41: 42.7111 | D41: -106.3472 | E41: 2025-04-17 | F41: 13 | G41: F | H41: 1 | I41: 16Y2P | J41: 32.64 | K41: 25.24 | L41: 23.3 | M41: 23.46 | N41: -99.99 | O41: 0 | P41: 255 | Q41: 0 | R41: 0.3 | S41: 0 | T41: 1 | U41: 0 | V41: 0 | W41: 0 | X41: 0 | Y41: 0 | Z41: 30 | AA41: 60 | AB41: 0.24 | AC41: 0.24 | AD41: 0 | AE41: L | AF41: 139
A42: 481003 | B42: POKER | C42: 43.5694 | D42: -106.9783 | E42: 2025-04-16 | F42: 13 | G42: F | H42: 1 | I42: 16Y2P | J42: 32.64 | K42: 25.24 | L42: 23.36 | M42: 23.46 | N42: -99.99 | O42: 0 | P42: 154 | Q42: 0 | R42: 0.2 | S42: 0 | T42: 1 | U42: 0 | V42: 0 | W42: 0 | X42: 0 | Y42: 0 | Z42: 30 | AA42: 60 | AB42: 0.37 | AC42: 0.37 | AD42: 0 | AE42: L | AF42: 141
A43: 481502 | B43: CASPER MOUNTAIN | C43: 42.7111 | D43: -106.3472 | E43: 2025-04-16 | F43: 13 | G43: F | H43: 1 | I43: 16Y2P | J43: 32.64 | K43: 25.24 | L43: 23.32 | M43: 23.49 | N43: -99.99 | O43: 0 | P43: 254 | Q43: 0 | R43: 0.2 | S43: 0 | T43: 1 | U43: 0 | V43: 0 | W43: 0 | X43: 0 | Y43: 0 | Z43: 30 | AA43: 60 | AB43: 0.27 | AC43: 0.27 | AD43: 0 | AE43: L | AF43: 146
A44: 481003 | B44: POKER | C44: 43.5694 | D44: -106.9783 | E44: 2025-04-15 | F44: 13 | G44: F | H44: 1 | I44: 16Y2P | J44: 32.64 | K44: 25.24 | L44: 23.4 | M44: 23.49 | N44: -99.99 | O44: 0 | P44: 153 | Q44: 0 | R44: 0.2 | S44: 0 | T44: 1 | U44: 0 | V44: 0 | W44: 0 | X44: 0 | Y44: 0 | Z44: 30 | AA44: 60 | AB44: 0.37 | AC44: 0.37 | AD44: 0 | AE44: L | AF44: 148
A45: 481502 | B45: CASPER MOUNTAIN | C45: 42.7111 | D45: -106.3472 | E45: 2025-04-15 | F45: 13 | G45: F | H45: 1 | I45: 16Y2P | J45: 32.64 | K45: 25.24 | L45: 23.35 | M45: 23.52 | N45: -99.99 | O45: 0 | P45: 254 | Q45: 0 | R45: 0.2 | S45: 0 | T45: 1 | U45: 0 | V45: 0 | W45: 0 | X45: 0 | Y45: 0 | Z45: 30 | AA45: 60 | AB45: 0.27 | AC45: 0.27 | AD45: 0 | AE45: L | AF45: 153
A46: 481003 | B46: POKER | C46: 43.5694 | D46: -106.9783 | E46: 2025-04-14 | F46: 13 | G46: F | H46: 1 | I46: 16Y2P | J46: 32.64 | K46: 25.24 | L46: 23.45 | M46: 23.52 | N46: -99.99 | O46: 0 | P46: 153 | Q46: 0 | R46: 0.1 | S46: 0 | T46: 1 | U46: 0 | V46: 0 | W46: 0 | X46: 0 | Y46: 0 | Z46: 30 | AA46: 60 | AB46: 0.4 | AC46: 0.4 | AD46: 0 | AE46: L | AF46: 155
A47: 481502 | B47: CASPER MOUNTAIN | C47: 42.7111 | D47: -106.3472 | E47: 2025-04-14 | F47: 13 | G47: F | H47: 1 | I47: 16Y2P | J47: 32.64 | K47: 25.24 | L47: 23.38 | M47: 23.55 | N47: -99.99 | O47: 0 | P47: 254 | Q47: 0 | R47: 0.1 | S47: 0 | T47: 1 | U47: 0 | V47: 0 | W47: 0 | X47: 0 | Y47: 0 | Z47: 30 | AA47: 60 | AB47: 0.28 | AC47: 0.28 | AD47: 0 | AE47: L | AF47: 160
A48: 481003 | B48: POKER | C48: 43.5694 | D48: -106.9783 | E48: 2025-04-13 | F48: 13 | G48: F | H48: 1 | I48: 16Y2P | J48: 32.64 | K48: 25.24 | L48: 23.51 | M48: 23.55 | N48: -99.99 | O48: 0 | P48: 151 | Q48: 0 | R48: 0.1 | S48: 0 | T48: 1 | U48: 0 | V48: 0 | W48: 0 | X48: 0 | Y48: 0 | Z48: 30 | AA48: 60 | AB48: 0.42 | AC48: 0.42 | AD48: 0 | AE48: L | AF48: 162
A49: 481502 | B49: CASPER MOUNTAIN | C49: 42.7111 | D49: -106.3472 | E49: 2025-04-13 | F49: 13 | G49: F | H49: 1 | I49: 16Y2P | J49: 32.64 | K49: 25.24 | L49: 23.42 | M49: 23.59 | N49: -99.99 | O49: 0 | P49: 253 | Q49: 0 | R49: 0.1 | S49: 0 | T49: 1 | U49: 0 | V49: 0 | W49: 0 | X49: 0 | Y49: 0 | Z49: 30 | AA49: 60 | AB49: 0.29 | AC49: 0.29 | AD49: 0 | AE49: L | AF49: 167
A50: 481003 | B50: POKER | C50: 43.5694 | D50: -106.9783 | E50: 2025-04-12 | F50: 13 | G50: F | H50: 1 | I50: 16Y2P | J50: 32.64 | K50: 25.24 | L50: 23.6 | M50: 23.57 | N50: -99.99 | O50: 0 | P50: 149 | Q50: 0 | R50: 0 | S50: 0 | T50: 1 | U50: 0 | V50: 0 | W50: 0 | X50: 0 | Y50: 0 | Z50: 30 | AA50: 60 | AB50: 0.4 | AC50: 0.4 | AD50: 0 | AE50: L | AF50: 169
A51: 481502 | B51: CASPER MOUNTAIN | C51: 42.7111 | D51: -106.3472 | E51: 2025-04-12 | F51: 13 | G51: F | H51: 1 | I51: 16Y2P | J51: 32.64 | K51: 25.24 | L51: 23.48 | M51: 23.63 | N51: -99.99 | O51: 0 | P51: 252 | Q51: 0 | R51: 0 | S51: 0 | T51: 1 | U51: 0 | V51: 0 | W51: 0 | X51: 0 | Y51: 0 | Z51: 30 | AA51: 60 | AB51: 0.27 | AC51: 0.27 | AD51: 0 | AE51: L | AF51: 174
A52: 481003 | B52: POKER | C52: 43.5694 | D52: -106.9783 | E52: 2025-04-11 | F52: 13 | G52: F | H52: 1 | I52: 16Y2P | J52: 32.64 | K52: 25.24 | L52: 23.71 | M52: 23.55 | N52: -99.99 | O52: 0 | P52: 147 | Q52: 0 | R52: 0 | S52: 0 | T52: 1 | U52: 0 | V52: 0 | W52: 0 | X52: 0 | Y52: 0 | Z52: 30 | AA52: 60 | AB52: 0.36 | AC52: 0.36 | AD52: 0 | AE52: L | AF52: 176
A53: 481502 | B53: CASPER MOUNTAIN | C53: 42.7111 | D53: -106.3472 | E53: 2025-04-11 | F53: 13 | G53: F | H53: 1 | I53: 16Y2P | J53: 32.64 | K53: 25.24 | L53: 23.55 | M53: 23.67 | N53: -99.99 | O53: 0 | P53: 251 | Q53: 0 | R53: 0 | S53: 0 | T53: 1 | U53: 0 | V53: 0 | W53: 0 | X53: 0 | Y53: 0 | Z53: 30 | AA53: 60 | AB53: 0.23 | AC53: 0.23 | AD53: 0 | AE53: L | AF53: 181
A54: 481003 | B54: POKER | C54: 43.5694 | D54: -106.9783 | E54: 2025-04-10 | F54: 13 | G54: F | H54: 1 | I54: 16Y2P | J54: 32.64 | K54: 25.25 | L54: 24.05 | M54: 23.54 | N54: -99.99 | O54: 0 | P54: 146 | Q54: 0 | R54: 0 | S54: 0 | T54: 1 | U54: 0 | V54: 0 | W54: 0 | X54: 0 | Y54: 0 | Z54: 30 | AA54: 60 | AB54: 0.32 | AC54: 0.32 | AD54: 0 | AE54: L | AF54: 183
A55: 481502 | B55: CASPER MOUNTAIN | C55: 42.7111 | D55: -106.3472 | E55: 2025-04-10 | F55: 13 | G55: F | H55: 1 | I55: 16Y2P | J55: 32.64 | K55: 25.24 | L55: 23.78 | M55: 23.64 | N55: -99.99 | O55: 0 | P55: 251 | Q55: 0 | R55: 0 | S55: 0 | T55: 1 | U55: 0 | V55: 0 | W55: 0 | X55: 0 | Y55: 0 | Z55: 30 | AA55: 60 | AB55: 0.19 | AC55: 0.19 | AD55: 0 | AE55: L | AF55: 188
A56: 481003 | B56: POKER | C56: 43.5694 | D56: -106.9783 | E56: 2025-04-09 | F56: 13 | G56: F | H56: 1 | I56: 16Y2P | J56: 32.64 | K56: 25.25 | L56: 24.05 | M56: 23.54 | N56: -99.99 | O56: 0 | P56: 146 | Q56: 0 | R56: 0 | S56: 0 | T56: 1 | U56: 0 | V56: 0 | W56: 0 | X56: 0 | Y56: 0 | Z56: 30 | AA56: 60 | AB56: 0.31 | AC56: 0.31 | AD56: 0 | AE56: L | AF56: 190
A57: 481502 | B57: CASPER MOUNTAIN | C57: 42.7111 | D57: -106.3472 | E57: 2025-04-09 | F57: 13 | G57: F | H57: 1 | I57: 16Y2P | J57: 32.64 | K57: 25.24 | L57: 23.78 | M57: 23.64 | N57: -99.99 | O57: 0 | P57: 251 | Q57: 0 | R57: 0 | S57: 0 | T57: 1 | U57: 0 | V57: 0 | W57: 0 | X57: 0 | Y57: 0 | Z57: 30 | AA57: 60 | AB57: 0.19 | AC57: 0.19 | AD57: 0 | AE57: L | AF57: 195
A58: 481003 | B58: POKER | C58: 43.5694 | D58: -106.9783 | E58: 2025-04-08 | F58: 13 | G58: F | H58: 1 | I58: 16Y2P | J58: 32.64 | K58: 25.33 | L58: 24.28 | M58: 23.53 | N58: -99.99 | O58: 0 | P58: 145 | Q58: 0 | R58: 0 | S58: 0 | T58: 1 | U58: 0 | V58: 0 | W58: 0 | X58: 0 | Y58: 0 | Z58: 30 | AA58: 60 | AB58: 0.27 | AC58: 0.27 | AD58: 0 | AE58: L | AF58: 197
A59: 481502 | B59: CASPER MOUNTAIN | C59: 42.7111 | D59: -106.3472 | E59: 2025-04-08 | F59: 13 | G59: F | H59: 1 | I59: 16Y2P | J59: 32.64 | K59: 25.25 | L59: 23.95 | M59: 23.61 | N59: -99.99 | O59: 0 | P59: 250 | Q59: 0 | R59: 0 | S59: 0 | T59: 1 | U59: 0 | V59: 0 | W59: 0 | X59: 0 | Y59: 0 | Z59: 30 | AA59: 60 | AB59: 0.18 | AC59: 0.18 | AD59: 0 | AE59: L | AF59: 202
A60: 481003 | B60: POKER | C60: 43.5694 | D60: -106.9783 | E60: 2025-04-07 | F60: 13 | G60: F | H60: 1 | I60: 16Y2P | J60: 32.64 | K60: 25.98 | L60: 24.21 | M60: 23.49 | N60: -99.99 | O60: 0 | P60: 144 | Q60: 0 | R60: 0 | S60: 0 | T60: 1 | U60: 0 | V60: 0 | W60: 0 | X60: 0 | Y60: 0 | Z60: 30 | AA60: 60 | AB60: 0.23 | AC60: 0.23 | AD60: 0 | AE60: L | AF60: 204
A61: 481502 | B61: CASPER MOUNTAIN | C61: 42.7111 | D61: -106.3472 | E61: 2025-04-07 | F61: 13 | G61: F | H61: 1 | I61: 16Y2P | J61: 32.64 | K61: 25.27 | L61: 24.17 | M61: 23.59 | N61: -99.99 | O61: 0 | P61: 250 | Q61: 0 | R61: 0 | S61: 0 | T61: 1 | U61: 0 | V61: 0 | W61: 0 | X61: 0 | Y61: 0 | Z61: 30 | AA61: 60 | AB61: 0.15 | AC61: 0.15 | AD61: 0 | AE61: L | AF61: 209
A62: 481003 | B62: POKER | C62: 43.5694 | D62: -106.9783 | E62: 2025-04-06 | F62: 13 | G62: F | H62: 1 | I62: 16Y2P | J62: 34.97 | K62: 28.47 | L62: 24.12 | M62: 23.48 | N62: -99.99 | O62: 0 | P62: 144 | Q62: 0 | R62: 0 | S62: 0 | T62: 1 | U62: 0 | V62: 0 | W62: 0 | X62: 0 | Y62: 0 | Z62: 30 | AA62: 60 | AB62: 0.24 | AC62: 0.24 | AD62: 0 | AE62: L | AF62: 211
A63: 481502 | B63: CASPER MOUNTAIN | C63: 42.7111 | D63: -106.3472 | E63: 2025-04-06 | F63: 13 | G63: F | H63: 1 | I63: 16Y2P | J63: 32.64 | K63: 25.46 | L63: 24.45 | M63: 23.62 | N63: -99.99 | O63: 0 | P63: 250 | Q63: 0 | R63: 0 | S63: 0 | T63: 1 | U63: 0 | V63: 0 | W63: 0 | X63: 0 | Y63: 0 | Z63: 30 | AA63: 60 | AB63: 0.16 | AC63: 0.16 | AD63: 0 | AE63: L | AF63: 216
A64: 481003 | B64: POKER | C64: 43.5694 | D64: -106.9783 | E64: 2025-04-05 | F64: 13 | G64: F | H64: 1 | I64: 16Y2P | J64: 32.64 | K64: 25.24 | L64: 23.63 | M64: 23.4 | N64: -99.99 | O64: 0 | P64: 144 | Q64: 0 | R64: 0.2 | S64: 0 | T64: 1 | U64: 0 | V64: 0 | W64: 0 | X64: 0 | Y64: 0 | Z64: 30 | AA64: 60 | AB64: 0.24 | AC64: 0.24 | AD64: 0 | AE64: L | AF64: 218
A65: 481502 | B65: CASPER MOUNTAIN | C65: 42.7111 | D65: -106.3472 | E65: 2025-04-05 | F65: 13 | G65: F | H65: 1 | I65: 16Y2P | J65: 34.08 | K65: 25.89 | L65: 24.63 | M65: 23.65 | N65: -99.99 | O65: 0 | P65: 250 | Q65: 0 | R65: 0 | S65: 0 | T65: 1 | U65: 0 | V65: 0 | W65: 0 | X65: 0 | Y65: 0 | Z65: 30 | AA65: 60 | AB65: 0.16 | AC65: 0.16 | AD65: 0 | AE65: L | AF65: 223
A66: 481003 | B66: POKER | C66: 43.5694 | D66: -106.9783 | E66: 2025-04-04 | F66: 13 | G66: F | H66: 1 | I66: 16Y2P | J66: 32.64 | K66: 25.25 | L66: 23.75 | M66: 23.4 | N66: -99.99 | O66: 0 | P66: 144 | Q66: 0 | R66: 0.1 | S66: 0 | T66: 1 | U66: 0 | V66: 0 | W66: 0 | X66: 0 | Y66: 0 | Z66: 30 | AA66: 60 | AB66: 0.24 | AC66: 0.24 | AD66: 0 | AE66: L | AF66: 225
A67: 481502 | B67: CASPER MOUNTAIN | C67: 42.7111 | D67: -106.3472 | E67: 2025-04-04 | F67: 13 | G67: F | H67: 1 | I67: 16Y2P | J67: 32.79 | K67: 28.05 | L67: 24.57 | M67: 23.42 | N67: -99.99 | O67: 0 | P67: 251 | Q67: 0 | R67: 0 | S67: 0 | T67: 1 | U67: 0 | V67: 0 | W67: 0 | X67: 0 | Y67: 0 | Z67: 30 | AA67: 60 | AB67: 0.16 | AC67: 0.16 | AD67: 0 | AE67: L | AF67: 230
A68: 481003 | B68: POKER | C68: 43.5694 | D68: -106.9783 | E68: 2025-04-03 | F68: 13 | G68: F | H68: 1 | I68: 16Y2P | J68: 32.64 | K68: 25.3 | L68: 23.9 | M68: 23.4 | N68: -99.99 | O68: 0 | P68: 144 | Q68: 0 | R68: 0.1 | S68: 0 | T68: 1 | U68: 0 | V68: 0 | W68: 0 | X68: 0 | Y68: 0 | Z68: 30 | AA68: 60 | AB68: 0.24 | AC68: 0.24 | AD68: 0 | AE68: L | AF68: 232
A69: 481502 | B69: CASPER MOUNTAIN | C69: 42.7111 | D69: -106.3472 | E69: 2025-04-03 | F69: 13 | G69: F | H69: 1 | I69: 16Y2P | J69: 34.91 | K69: 27.37 | L69: 24.23 | M69: 23.43 | N69: -99.99 | O69: 0 | P69: 263 | Q69: 0 | R69: 0 | S69: 0 | T69: 1 | U69: 0 | V69: 0 | W69: 0 | X69: 0 | Y69: 0 | Z69: 30 | AA69: 60 | AB69: 0.16 | AC69: 0.16 | AD69: 0 | AE69: L | AF69: 237
A70: 481003 | B70: POKER | C70: 43.5694 | D70: -106.9783 | E70: 2025-04-02 | F70: 13 | G70: F | H70: 1 | I70: 16Y2P | J70: 32.64 | K70: 25.72 | L70: 23.95 | M70: 23.36 | N70: -99.99 | O70: 0 | P70: 144 | Q70: 0 | R70: 0 | S70: 0 | T70: 1 | U70: 0 | V70: 0 | W70: 0 | X70: 0 | Y70: 0 | Z70: 30 | AA70: 60 | AB70: 0.27 | AC70: 0.27 | AD70: 0 | AE70: L | AF70: 239
A71: 481502 | B71: CASPER MOUNTAIN | C71: 42.7111 | D71: -106.3472 | E71: 2025-04-02 | F71: 13 | G71: F | H71: 1 | I71: 16Y2P | J71: 34.91 | K71: 26.87 | L71: 23.85 | M71: 23.39 | N71: -99.99 | O71: 0 | P71: 275 | Q71: 0 | R71: 0 | S71: 0 | T71: 1 | U71: 0 | V71: 0 | W71: 0 | X71: 0 | Y71: 0 | Z71: 30 | AA71: 60 | AB71: 0.17 | AC71: 0.17 | AD71: 0 | AE71: L | AF71: 244
A72: 481003 | B72: POKER | C72: 43.5694 | D72: -106.9783 | E72: 2025-04-01 | F72: 13 | G72: F | H72: 1 | I72: 16Y2P | J72: 32.64 | K72: 26.14 | L72: 23.91 | M72: 23.34 | N72: -99.99 | O72: 0 | P72: 148 | Q72: 0 | R72: 0 | S72: 0 | T72: 1 | U72: 0 | V72: 0 | W72: 0 | X72: 0 | Y72: 0 | Z72: 30 | AA72: 60 | AB72: 0.3 | AC72: 0.3 | AD72: 0 | AE72: L | AF72: 246
A73: 481502 | B73: CASPER MOUNTAIN | C73: 42.7111 | D73: -106.3472 | E73: 2025-04-01 | F73: 13 | G73: F | H73: 1 | I73: 16Y2P | J73: 32.64 | K73: 25.54 | L73: 23.82 | M73: 23.3 | N73: -99.99 | O73: 0 | P73: 275 | Q73: 0 | R73: 0.2 | S73: 0 | T73: 1 | U73: 0 | V73: 0 | W73: 0 | X73: 0 | Y73: 0 | Z73: 30 | AA73: 60 | AB73: 0.18 | AC73: 0.18 | AD73: 0 | AE73: L | AF73: 251
A74: 481003 | B74: POKER | C74: 43.5694 | D74: -106.9783 | E74: 2025-03-31 | F74: 13 | G74: F | H74: 1 | I74: 16Y2P | J74: 34.08 | K74: 26.04 | L74: 23.69 | M74: 23.35 | N74: -99.99 | O74: 0 | P74: 153 | Q74: 0 | R74: 0 | S74: 0 | T74: 1 | U74: 0 | V74: 0 | W74: 0 | X74: 0 | Y74: 0 | Z74: 30 | AA74: 60 | AB74: 0.29 | AC74: 0.29 | AD74: 0 | AE74: L | AF74: 253
A75: 481502 | B75: CASPER MOUNTAIN | C75: 42.7111 | D75: -106.3472 | E75: 2025-03-31 | F75: 13 | G75: F | H75: 1 | I75: 16Y2P | J75: 33.33 | K75: 26.55 | L75: 23.83 | M75: 23.28 | N75: -99.99 | O75: 0 | P75: 275 | Q75: 0 | R75: 0 | S75: 0 | T75: 1 | U75: 0 | V75: 0 | W75: 0 | X75: 0 | Y75: 0 | Z75: 30 | AA75: 60 | AB75: 0.18 | AC75: 0.18 | AD75: 0 | AE75: L | AF75: 258
A76: 481003 | B76: POKER | C76: 43.5694 | D76: -106.9783 | E76: 2025-03-30 | F76: 13 | G76: F | H76: 1 | I76: 16Y2P | J76: 33.55 | K76: 27.88 | L76: 23.35 | M76: 23.33 | N76: -99.99 | O76: 0 | P76: 153 | Q76: 0 | R76: 0 | S76: 0 | T76: 1 | U76: 0 | V76: 0 | W76: 0 | X76: 0 | Y76: 0 | Z76: 30 | AA76: 60 | AB76: 0.32 | AC76: 0.32 | AD76: 0 | AE76: L | AF76: 260
A77: 481502 | B77: CASPER MOUNTAIN | C77: 42.7111 | D77: -106.3472 | E77: 2025-03-30 | F77: 13 | G77: F | H77: 1 | I77: 16Y2P | J77: 32.79 | K77: 30.12 | L77: 23.52 | M77: 23.29 | N77: -99.99 | O77: 0 | P77: 280 | Q77: 0 | R77: 0 | S77: 0 | T77: 1 | U77: 0 | V77: 0 | W77: 0 | X77: 0 | Y77: 0 | Z77: 30 | AA77: 60 | AB77: 0.18 | AC77: 0.18 | AD77: 0 | AE77: L | AF77: 265
A78: 481003 | B78: POKER | C78: 43.5694 | D78: -106.9783 | E78: 2025-03-29 | F78: 13 | G78: F | H78: 1 | I78: 16Y2P | J78: 32.64 | K78: 25.24 | L78: 23.33 | M78: 23.33 | N78: -99.99 | O78: 0 | P78: 155 | Q78: 0 | R78: 0.4 | S78: 0 | T78: 1 | U78: 0 | V78: 0 | W78: 0 | X78: 0 | Y78: 0 | Z78: 30 | AA78: 60 | AB78: 0.35 | AC78: 0.35 | AD78: 0 | AE78: L | AF78: 267
A79: 481502 | B79: CASPER MOUNTAIN | C79: 42.7111 | D79: -106.3472 | E79: 2025-03-29 | F79: 13 | G79: F | H79: 1 | I79: 16Y2P | J79: 32.64 | K79: 25.24 | L79: 23.29 | M79: 23.25 | N79: -99.99 | O79: 0 | P79: 282 | Q79: 0 | R79: 0.6 | S79: 0 | T79: 1 | U79: 0 | V79: 0 | W79: 0 | X79: 0 | Y79: 0 | Z79: 30 | AA79: 60 | AB79: 0.18 | AC79: 0.18 | AD79: 0 | AE79: L | AF79: 272
A80: 481003 | B80: POKER | C80: 43.5694 | D80: -106.9783 | E80: 2025-03-28 | F80: 13 | G80: F | H80: 1 | I80: 16Y2P | J80: 32.64 | K80: 25.24 | L80: 23.36 | M80: 23.35 | N80: -99.99 | O80: 0 | P80: 154 | Q80: 0 | R80: 0.4 | S80: 0 | T80: 1 | U80: 0 | V80: 0 | W80: 0 | X80: 0 | Y80: 0 | Z80: 30 | AA80: 60 | AB80: 0.32 | AC80: 0.32 | AD80: 0 | AE80: L | AF80: 274
A81: 481502 | B81: CASPER MOUNTAIN | C81: 42.7111 | D81: -106.3472 | E81: 2025-03-28 | F81: 13 | G81: F | H81: 1 | I81: 16Y2P | J81: 32.64 | K81: 25.24 | L81: 23.3 | M81: 23.26 | N81: -99.99 | O81: 0 | P81: 281 | Q81: 0 | R81: 0.6 | S81: 0 | T81: 1 | U81: 0 | V81: 0 | W81: 0 | X81: 0 | Y81: 0 | Z81: 30 | AA81: 60 | AB81: 0.16 | AC81: 0.16 | AD81: 0 | AE81: L | AF81: 279
A82: 481003 | B82: POKER | C82: 43.5694 | D82: -106.9783 | E82: 2025-03-27 | F82: 13 | G82: F | H82: 1 | I82: 16Y2P | J82: 32.64 | K82: 25.24 | L82: 23.4 | M82: 23.34 | N82: -99.99 | O82: 0 | P82: 153 | Q82: 0 | R82: 0.4 | S82: 0 | T82: 1 | U82: 0 | V82: 0 | W82: 0 | X82: 0 | Y82: 0 | Z82: 30 | AA82: 60 | AB82: 0.27 | AC82: 0.27 | AD82: 0 | AE82: L | AF82: 281
A83: 481502 | B83: CASPER MOUNTAIN | C83: 42.7111 | D83: -106.3472 | E83: 2025-03-27 | F83: 13 | G83: F | H83: 1 | I83: 16Y2P | J83: 32.64 | K83: 25.25 | L83: 23.32 | M83: 23.27 | N83: -99.99 | O83: 0 | P83: 280 | Q83: 0 | R83: 0.5 | S83: 0 | T83: 1 | U83: 0 | V83: 0 | W83: 0 | X83: 0 | Y83: 0 | Z83: 30 | AA83: 60 | AB83: 0.12 | AC83: 0.12 | AD83: 0 | AE83: L | AF83: 286
A84: 481003 | B84: POKER | C84: 43.5694 | D84: -106.9783 | E84: 2025-03-26 | F84: 13 | G84: F | H84: 1 | I84: 16Y2P | J84: 32.64 | K84: 25.24 | L84: 23.44 | M84: 23.34 | N84: -99.99 | O84: 0 | P84: 152 | Q84: 0 | R84: 0.4 | S84: 0 | T84: 1 | U84: 0 | V84: 0 | W84: 0 | X84: 0 | Y84: 0 | Z84: 30 | AA84: 60 | AB84: 0.24 | AC84: 0.24 | AD84: 0 | AE84: L | AF84: 288
A85: 481502 | B85: CASPER MOUNTAIN | C85: 42.7111 | D85: -106.3472 | E85: 2025-03-26 | F85: 13 | G85: F | H85: 1 | I85: 16Y2P | J85: 32.64 | K85: 25.26 | L85: 23.35 | M85: 23.29 | N85: -99.99 | O85: 0 | P85: 279 | Q85: 0 | R85: 0.5 | S85: 0 | T85: 1 | U85: 0 | V85: 0 | W85: 0 | X85: 0 | Y85: 0 | Z85: 30 | AA85: 60 | AB85: 0.08 | AC85: 0.08 | AD85: 0 | AE85: L | AF85: 293
A86: 481003 | B86: POKER | C86: 43.5694 | D86: -106.9783 | E86: 2025-03-25 | F86: 13 | G86: F | H86: 1 | I86: 16Y2P | J86: 32.64 | K86: 25.24 | L86: 23.51 | M86: 23.32 | N86: -99.99 | O86: 0 | P86: 152 | Q86: 0 | R86: 0.4 | S86: 0 | T86: 1 | U86: 0 | V86: 0 | W86: 0 | X86: 0 | Y86: 0 | Z86: 30 | AA86: 60 | AB86: 0.19 | AC86: 0.19 | AD86: 0 | AE86: L | AF86: 295
A87: 481502 | B87: CASPER MOUNTAIN | C87: 42.7111 | D87: -106.3472 | E87: 2025-03-25 | F87: 13 | G87: F | H87: 1 | I87: 16Y2P | J87: 32.64 | K87: 25.41 | L87: 23.37 | M87: 23.3 | N87: -99.99 | O87: 0 | P87: 279 | Q87: 0 | R87: 0.4 | S87: 0 | T87: 1 | U87: 0 | V87: 0 | W87: 0 | X87: 0 | Y87: 0 | Z87: 30 | AA87: 60 | AB87: 0.06 | AC87: 0.06 | AD87: 0 | AE87: L | AF87: 300
A88: 481003 | B88: POKER | C88: 43.5694 | D88: -106.9783 | E88: 2025-03-24 | F88: 13 | G88: F | H88: 1 | I88: 16Y2P | J88: 32.64 | K88: 25.24 | L88: 23.59 | M88: 23.32 | N88: -99.99 | O88: 0 | P88: 152 | Q88: 0 | R88: 0.3 | S88: 0 | T88: 1 | U88: 0 | V88: 0 | W88: 0 | X88: 0 | Y88: 0 | Z88: 30 | AA88: 60 | AB88: 0.17 | AC88: 0.17 | AD88: 0 | AE88: L | AF88: 302
A89: 481502 | B89: CASPER MOUNTAIN | C89: 42.7111 | D89: -106.3472 | E89: 2025-03-24 | F89: 13 | G89: F | H89: 1 | I89: 16Y2P | J89: 32.86 | K89: 26.04 | L89: 23.4 | M89: 23.31 | N89: -99.99 | O89: 0 | P89: 279 | Q89: 0 | R89: 0.1 | S89: 0 | T89: 1 | U89: 0 | V89: 0 | W89: 0 | X89: 0 | Y89: 0 | Z89: 30 | AA89: 60 | AB89: 0.05 | AC89: 0.05 | AD89: 0 | AE89: L | AF89: 307
A90: 481003 | B90: POKER | C90: 43.5694 | D90: -106.9783 | E90: 2025-03-23 | F90: 13 | G90: F | H90: 1 | I90: 16Y2P | J90: 32.64 | K90: 25.25 | L90: 23.7 | M90: 23.33 | N90: -99.99 | O90: 0 | P90: 152 | Q90: 0 | R90: 0.3 | S90: 0 | T90: 1 | U90: 0 | V90: 0 | W90: 0 | X90: 0 | Y90: 0 | Z90: 30 | AA90: 60 | AB90: 0.17 | AC90: 0.17 | AD90: 0 | AE90: L | AF90: 309
A91: 481502 | B91: CASPER MOUNTAIN | C91: 42.7111 | D91: -106.3472 | E91: 2025-03-23 | F91: 13 | G91: F | H91: 1 | I91: 16Y2P | J91: 32.64 | K91: 25.25 | L91: 23.41 | M91: 23.32 | N91: -99.99 | O91: 0 | P91: 279 | Q91: 0 | R91: 0.4 | S91: 0 | T91: 1 | U91: 0 | V91: 0 | W91: 0 | X91: 0 | Y91: 0 | Z91: 30 | AA91: 60 | AB91: 0.06 | AC91: 0.06 | AD91: 0 | AE91: L | AF91: 314
A92: 481003 | B92: POKER | C92: 43.5694 | D92: -106.9783 | E92: 2025-03-22 | F92: 13 | G92: F | H92: 1 | I92: 16Y2P | J92: 32.64 | K92: 25.33 | L92: 23.73 | M92: 23.29 | N92: -99.99 | O92: 0 | P92: 152 | Q92: 0 | R92: 0.3 | S92: 0 | T92: 1 | U92: 0 | V92: 0 | W92: 0 | X92: 0 | Y92: 0 | Z92: 30 | AA92: 60 | AB92: 0.19 | AC92: 0.19 | AD92: 0 | AE92: L | AF92: 316
A93: 481502 | B93: CASPER MOUNTAIN | C93: 42.7111 | D93: -106.3472 | E93: 2025-03-22 | F93: 13 | G93: F | H93: 1 | I93: 16Y2P | J93: 32.64 | K93: 25.29 | L93: 23.44 | M93: 23.33 | N93: -99.99 | O93: 0 | P93: 279 | Q93: 0 | R93: 0.4 | S93: 0 | T93: 1 | U93: 0 | V93: 0 | W93: 0 | X93: 0 | Y93: 0 | Z93: 30 | AA93: 60 | AB93: 0.07 | AC93: 0.07 | AD93: 0 | AE93: L | AF93: 321
A94: 481003 | B94: POKER | C94: 43.5694 | D94: -106.9783 | E94: 2025-03-21 | F94: 13 | G94: F | H94: 1 | I94: 16Y2P | J94: 32.64 | K94: 26.01 | L94: 23.69 | M94: 23.26 | N94: -99.99 | O94: 0 | P94: 152 | Q94: 0 | R94: 0.1 | S94: 0 | T94: 1 | U94: 0 | V94: 0 | W94: 0 | X94: 0 | Y94: 0 | Z94: 30 | AA94: 60 | AB94: 0.21 | AC94: 0.21 | AD94: 0 | AE94: L | AF94: 323
A95: 481502 | B95: CASPER MOUNTAIN | C95: 42.7111 | D95: -106.3472 | E95: 2025-03-21 | F95: 13 | G95: F | H95: 1 | I95: 16Y2P | J95: 32.64 | K95: 25.64 | L95: 23.41 | M95: 23.33 | N95: -99.99 | O95: 0 | P95: 279 | Q95: 0 | R95: 0.3 | S95: 0 | T95: 1 | U95: 0 | V95: 0 | W95: 0 | X95: 0 | Y95: 0 | Z95: 30 | AA95: 60 | AB95: 0.07 | AC95: 0.07 | AD95: 0 | AE95: L | AF95: 328
A96: 481003 | B96: POKER | C96: 43.5694 | D96: -106.9783 | E96: 2025-03-20 | F96: 13 | G96: F | H96: 1 | I96: 16Y2P | J96: 34.72 | K96: 25.73 | L96: 23.51 | M96: 23.27 | N96: -99.99 | O96: 0 | P96: 152 | Q96: 0 | R96: 0 | S96: 0 | T96: 1 | U96: 0 | V96: 0 | W96: 0 | X96: 0 | Y96: 0 | Z96: 30 | AA96: 60 | AB96: 0.23 | AC96: 0.23 | AD96: 0 | AE96: L | AF96: 330
A97: 481502 | B97: CASPER MOUNTAIN | C97: 42.7111 | D97: -106.3472 | E97: 2025-03-20 | F97: 13 | G97: F | H97: 1 | I97: 16Y2P | J97: 34.72 | K97: 25.75 | L97: 23.4 | M97: 23.38 | N97: -99.99 | O97: 0 | P97: 279 | Q97: 0 | R97: 0 | S97: 0 | T97: 1 | U97: 0 | V97: 0 | W97: 0 | X97: 0 | Y97: 0 | Z97: 30 | AA97: 60 | AB97: 0.07 | AC97: 0.07 | AD97: 0 | AE97: L | AF97: 335
A98: 481003 | B98: POKER | C98: 43.5694 | D98: -106.9783 | E98: 2025-03-19 | F98: 13 | G98: F | H98: 1 | I98: 16Y2P | J98: 32.64 | K98: 25.24 | L98: 23.52 | M98: 23.23 | N98: -99.99 | O98: 0 | P98: 152 | Q98: 0 | R98: 0.5 | S98: 0 | T98: 1 | U98: 0 | V98: 0 | W98: 0 | X98: 0 | Y98: 0 | Z98: 30 | AA98: 60 | AB98: 0.24 | AC98: 0.24 | AD98: 0 | AE98: L | AF98: 337
A99: 481502 | B99: CASPER MOUNTAIN | C99: 42.7111 | D99: -106.3472 | E99: 2025-03-19 | F99: 13 | G99: F | H99: 1 | I99: 16Y2P | J99: 32.64 | K99: 25.25 | L99: 23.4 | M99: 23.37 | N99: -99.99 | O99: 0 | P99: 279 | Q99: 0 | R99: 0.4 | S99: 0 | T99: 1 | U99: 0 | V99: 0 | W99: 0 | X99: 0 | Y99: 0 | Z99: 30 | AA99: 60 | AB99: 0.07 | AC99: 0.07 | AD99: 0 | AE99: L | AF99: 342
A100: 481003 | B100: POKER | C100: 43.5694 | D100: -106.9783 | E100: 2025-03-18 | F100: 13 | G100: F | H100: 1 | I100: 16Y2P | J100: 32.64 | K100: 25.25 | L100: 23.61 | M100: 23.21 | N100: -99.99 | O100: 0 | P100: 152 | Q100: 0 | R100: 0.5 | S100: 0 | T100: 1 | U100: 0 | V100: 0 | W100: 0 | X100: 0 | Y100: 0 | Z100: 30 | AA100: 60 | AB100: 0.24 | AC100: 0.24 | AD100: 0 | AE100: L | AF100: 344
A101: 481502 | B101: CASPER MOUNTAIN | C101: 42.7111 | D101: -106.3472 | E101: 2025-03-18 | F101: 13 | G101: F | H101: 1 | I101: 16Y2P | J101: 32.64 | K101: 25.26 | L101: 23.44 | M101: 23.38 | N101: -99.99 | O101: 0 | P101: 279 | Q101: 0 | R101: 0.3 | S101: 0 | T101: 1 | U101: 0 | V101: 0 | W101: 0 | X101: 0 | Y101: 0 | Z101: 30 | AA101: 60 | AB101: 0.07 | AC101: 0.07 | AD101: 0 | AE101: L | AF101: 349
A102: 481003 | B102: POKER | C102: 43.5694 | D102: -106.9783 | E102: 2025-03-17 | F102: 13 | G102: F | H102: 1 | I102: 16Y2P | J102: 32.64 | K102: 25.34 | L102: 23.58 | M102: 23.17 | N102: -99.99 | O102: 0 | P102: 152 | Q102: 0 | R102: 0.5 | S102: 0 | T102: 1 | U102: 0 | V102: 0 | W102: 0 | X102: 0 | Y102: 0 | Z102: 30 | AA102: 60 | AB102: 0.25 | AC102: 0.25 | AD102: 0 | AE102: L | AF102: 351
A103: 481502 | B103: CASPER MOUNTAIN | C103: 42.7111 | D103: -106.3472 | E103: 2025-03-17 | F103: 13 | G103: F | H103: 1 | I103: 16Y2P | J103: 32.64 | K103: 25.42 | L103: 23.5 | M103: 23.37 | N103: -99.99 | O103: 0 | P103: 279 | Q103: 0 | R103: 0.3 | S103: 0 | T103: 1 | U103: 0 | V103: 0 | W103: 0 | X103: 0 | Y103: 0 | Z103: 30 | AA103: 60 | AB103: 0.08 | AC103: 0.08 | AD103: 0 | AE103: L | AF103: 356
A104: 481003 | B104: POKER | C104: 43.5694 | D104: -106.9783 | E104: 2025-03-16 | F104: 13 | G104: F | H104: 1 | I104: 16Y2P | J104: 32.64 | K104: 26.07 | L104: 23.51 | M104: 23.16 | N104: -99.99 | O104: 0 | P104: 152 | Q104: 0 | R104: 0.3 | S104: 0 | T104: 1 | U104: 0 | V104: 0 | W104: 0 | X104: 0 | Y104: 0 | Z104: 30 | AA104: 60 | AB104: 0.23 | AC104: 0.23 | AD104: 0 | AE104: L | AF104: 358
A105: 481502 | B105: CASPER MOUNTAIN | C105: 42.7111 | D105: -106.3472 | E105: 2025-03-16 | F105: 13 | G105: F | H105: 1 | I105: 16Y2P | J105: 32.86 | K105: 26.18 | L105: 23.55 | M105: 23.36 | N105: -99.99 | O105: 0 | P105: 279 | Q105: 0 | R105: 0 | S105: 0 | T105: 1 | U105: 0 | V105: 0 | W105: 0 | X105: 0 | Y105: 0 | Z105: 30 | AA105: 60 | AB105: 0.08 | AC105: 0.08 | AD105: 0 | AE105: L | AF105: 363
A106: 481003 | B106: POKER | C106: 43.5694 | D106: -106.9783 | E106: 2025-03-15 | F106: 13 | G106: F | H106: 1 | I106: 16Y2P | J106: 34.08 | K106: 25.27 | L106: 23.3 | M106: 23.15 | N106: -99.99 | O106: 0 | P106: 152 | Q106: 0 | R106: 0.2 | S106: 0 | T106: 1 | U106: 0 | V106: 0 | W106: 0 | X106: 0 | Y106: 0 | Z106: 30 | AA106: 60 | AB106: 0.24 | AC106: 0.24 | AD106: 0 | AE106: L | AF106: 365
A107: 481502 | B107: CASPER MOUNTAIN | C107: 42.7111 | D107: -106.3472 | E107: 2025-03-15 | F107: 13 | G107: F | H107: 1 | I107: 16Y2P | J107: 34.08 | K107: 25.28 | L107: 23.67 | M107: 23.37 | N107: -99.99 | O107: 0 | P107: 279 | Q107: 0 | R107: 0 | S107: 0 | T107: 1 | U107: 0 | V107: 0 | W107: 0 | X107: 0 | Y107: 0 | Z107: 30 | AA107: 60 | AB107: 0.08 | AC107: 0.08 | AD107: 0 | AE107: L | AF107: 370
A108: 481003 | B108: POKER | C108: 43.5694 | D108: -106.9783 | E108: 2025-03-14 | F108: 13 | G108: F | H108: 1 | I108: 16Y2P | J108: 32.64 | K108: 25.24 | L108: 23.3 | M108: 23.14 | N108: -99.99 | O108: 0 | P108: 152 | Q108: 0 | R108: 0.7 | S108: 0 | T108: 1 | U108: 0 | V108: 0 | W108: 0 | X108: 0 | Y108: 0 | Z108: 30 | AA108: 60 | AB108: 0.25 | AC108: 0.25 | AD108: 0 | AE108: L | AF108: 372
A109: 481502 | B109: CASPER MOUNTAIN | C109: 42.7111 | D109: -106.3472 | E109: 2025-03-14 | F109: 13 | G109: F | H109: 1 | I109: 16Y2P | J109: 32.64 | K109: 25.24 | L109: 23.73 | M109: 23.34 | N109: -99.99 | O109: 0 | P109: 279 | Q109: 0 | R109: 0.3 | S109: 0 | T109: 1 | U109: 0 | V109: 0 | W109: 0 | X109: 0 | Y109: 0 | Z109: 30 | AA109: 60 | AB109: 0.08 | AC109: 0.08 | AD109: 0 | AE109: L | AF109: 377
A110: 481003 | B110: POKER | C110: 43.5694 | D110: -106.9783 | E110: 2025-03-13 | F110: 13 | G110: F | H110: 1 | I110: 16Y2P | J110: 32.64 | K110: 25.24 | L110: 23.31 | M110: 23.14 | N110: -99.99 | O110: 0 | P110: 152 | Q110: 0 | R110: 0.7 | S110: 0 | T110: 1 | U110: 0 | V110: 0 | W110: 0 | X110: 0 | Y110: 0 | Z110: 30 | AA110: 60 | AB110: 0.25 | AC110: 0.25 | AD110: 0 | AE110: L | AF110: 379
A111: 481502 | B111: CASPER MOUNTAIN | C111: 42.7111 | D111: -106.3472 | E111: 2025-03-13 | F111: 13 | G111: F | H111: 1 | I111: 16Y2P | J111: 32.64 | K111: 25.25 | L111: 23.88 | M111: 23.34 | N111: -99.99 | O111: 0 | P111: 279 | Q111: 0 | R111: 0.2 | S111: 0 | T111: 1 | U111: 0 | V111: 0 | W111: 0 | X111: 0 | Y111: 0 | Z111: 30 | AA111: 60 | AB111: 0.07 | AC111: 0.07 | AD111: 0 | AE111: L | AF111: 384
A112: 481003 | B112: POKER | C112: 43.5694 | D112: -106.9783 | E112: 2025-03-12 | F112: 13 | G112: F | H112: 1 | I112: 16Y2P | J112: 32.64 | K112: 25.24 | L112: 23.34 | M112: 23.14 | N112: -99.99 | O112: 0 | P112: 152 | Q112: 0 | R112: 0.7 | S112: 0 | T112: 1 | U112: 0 | V112: 0 | W112: 0 | X112: 0 | Y112: 0 | Z112: 30 | AA112: 60 | AB112: 0.21 | AC112: 0.21 | AD112: 0 | AE112: L | AF112: 386
A113: 481502 | B113: CASPER MOUNTAIN | C113: 42.7111 | D113: -106.3472 | E113: 2025-03-12 | F113: 13 | G113: F | H113: 1 | I113: 16Y2P | J113: 32.64 | K113: 25.28 | L113: 24.07 | M113: 23.3 | N113: -99.99 | O113: 0 | P113: 279 | Q113: 0 | R113: 0.1 | S113: 0 | T113: 1 | U113: 0 | V113: 0 | W113: 0 | X113: 0 | Y113: 0 | Z113: 30 | AA113: 60 | AB113: 0.06 | AC113: 0.06 | AD113: 0 | AE113: L | AF113: 391
A114: 481003 | B114: POKER | C114: 43.5694 | D114: -106.9783 | E114: 2025-03-11 | F114: 13 | G114: F | H114: 1 | I114: 16Y2P | J114: 32.64 | K114: 25.25 | L114: 23.36 | M114: 23.14 | N114: -99.99 | O114: 0 | P114: 152 | Q114: 0 | R114: 0.7 | S114: 0 | T114: 1 | U114: 0 | V114: 0 | W114: 0 | X114: 0 | Y114: 0 | Z114: 30 | AA114: 60 | AB114: 0.19 | AC114: 0.19 | AD114: 0 | AE114: L | AF114: 393
A115: 481502 | B115: CASPER MOUNTAIN | C115: 42.7111 | D115: -106.3472 | E115: 2025-03-11 | F115: 13 | G115: F | H115: 1 | I115: 16Y2P | J115: 32.64 | K115: 25.55 | L115: 24.12 | M115: 23.23 | N115: -99.99 | O115: 0 | P115: 279 | Q115: 0 | R115: 0.1 | S115: 0 | T115: 1 | U115: 0 | V115: 0 | W115: 0 | X115: 0 | Y115: 0 | Z115: 30 | AA115: 60 | AB115: 0.06 | AC115: 0.06 | AD115: 0 | AE115: L | AF115: 398
A116: 481003 | B116: POKER | C116: 43.5694 | D116: -106.9783 | E116: 2025-03-10 | F116: 13 | G116: F | H116: 1 | I116: 16Y2P | J116: 32.64 | K116: 25.29 | L116: 23.36 | M116: 23.14 | N116: -99.99 | O116: 0 | P116: 152 | Q116: 0 | R116: 0.7 | S116: 0 | T116: 1 | U116: 0 | V116: 0 | W116: 0 | X116: 0 | Y116: 0 | Z116: 30 | AA116: 60 | AB116: 0.19 | AC116: 0.19 | AD116: 0 | AE116: L | AF116: 400
A117: 481502 | B117: CASPER MOUNTAIN | C117: 42.7111 | D117: -106.3472 | E117: 2025-03-10 | F117: 13 | G117: F | H117: 1 | I117: 16Y2P | J117: 33.33 | K117: 26.78 | L117: 24.03 | M117: 23.21 | N117: -99.99 | O117: 0 | P117: 279 | Q117: 0 | R117: 0 | S117: 0 | T117: 1 | U117: 0 | V117: 0 | W117: 0 | X117: 0 | Y117: 0 | Z117: 30 | AA117: 60 | AB117: 0.05 | AC117: 0.05 | AD117: 0 | AE117: L | AF117: 405
A118: 481003 | B118: POKER | C118: 43.5694 | D118: -106.9783 | E118: 2025-03-09 | F118: 13 | G118: F | H118: 1 | I118: 16Y2P | J118: 32.64 | K118: 25.6 | L118: 23.34 | M118: 23.14 | N118: -99.99 | O118: 0 | P118: 152 | Q118: 0 | R118: 0.6 | S118: 0 | T118: 1 | U118: 0 | V118: 0 | W118: 0 | X118: 0 | Y118: 0 | Z118: 30 | AA118: 60 | AB118: 0.14 | AC118: 0.14 | AD118: 0 | AE118: L | AF118: 407
A119: 481502 | B119: CASPER MOUNTAIN | C119: 42.7111 | D119: -106.3472 | E119: 2025-03-09 | F119: 13 | G119: F | H119: 1 | I119: 16Y2P | J119: 35 | K119: 29.57 | L119: 23.54 | M119: 23.17 | N119: -99.99 | O119: 0 | P119: 281 | Q119: 0 | R119: 0 | S119: 0 | T119: 1 | U119: 0 | V119: 0 | W119: 0 | X119: 0 | Y119: 0 | Z119: 30 | AA119: 60 | AB119: 0.05 | AC119: 0.05 | AD119: 0 | AE119: L | AF119: 412
A120: 481003 | B120: POKER | C120: 43.5694 | D120: -106.9783 | E120: 2025-03-08 | F120: 13 | G120: F | H120: 1 | I120: 16Y2P | J120: 33.5 | K120: 26.55 | L120: 23.25 | M120: 23.14 | N120: -99.99 | O120: 0 | P120: 152 | Q120: 0 | R120: 0.1 | S120: 0 | T120: 1 | U120: 0 | V120: 0 | W120: 0 | X120: 0 | Y120: 0 | Z120: 30 | AA120: 60 | AB120: 0.13 | AC120: 0.13 | AD120: 0 | AE120: L | AF120: 414
A121: 481502 | B121: CASPER MOUNTAIN | C121: 42.7111 | D121: -106.3472 | E121: 2025-03-08 | F121: 13 | G121: F | H121: 1 | I121: 16Y2P | J121: 34.91 | K121: 26.62 | L121: 23.27 | M121: 23.17 | N121: -99.99 | O121: 0 | P121: 281 | Q121: 0 | R121: 0 | S121: 0 | T121: 1 | U121: 0 | V121: 0 | W121: 0 | X121: 0 | Y121: 0 | Z121: 30 | AA121: 60 | AB121: 0.05 | AC121: 0.05 | AD121: 0 | AE121: L | AF121: 419
A122: 481003 | B122: POKER | C122: 43.5694 | D122: -106.9783 | E122: 2025-03-07 | F122: 13 | G122: F | H122: 1 | I122: 16Y2P | J122: 32.64 | K122: 25.24 | L122: 23.25 | M122: 23.13 | N122: -99.99 | O122: 0 | P122: 152 | Q122: 0 | R122: 0.7 | S122: 0 | T122: 1 | U122: 0 | V122: 0 | W122: 0 | X122: 0 | Y122: 0 | Z122: 30 | AA122: 60 | AB122: 0.13 | AC122: 0.13 | AD122: 0 | AE122: L | AF122: 421
A123: 481502 | B123: CASPER MOUNTAIN | C123: 42.7111 | D123: -106.3472 | E123: 2025-03-07 | F123: 13 | G123: F | H123: 1 | I123: 16Y2P | J123: 32.64 | K123: 25.38 | L123: 23.26 | M123: 23.16 | N123: -99.99 | O123: 0 | P123: 281 | Q123: 0 | R123: 0.7 | S123: 0 | T123: 1 | U123: 0 | V123: 0 | W123: 0 | X123: 0 | Y123: 0 | Z123: 30 | AA123: 60 | AB123: 0.05 | AC123: 0.05 | AD123: 0 | AE123: L | AF123: 426
A124: 481003 | B124: POKER | C124: 43.5694 | D124: -106.9783 | E124: 2025-03-06 | F124: 13 | G124: F | H124: 1 | I124: 16Y2P | J124: 32.64 | K124: 25.24 | L124: 23.25 | M124: 23.14 | N124: -99.99 | O124: 0 | P124: 152 | Q124: 0 | R124: 0.7 | S124: 0 | T124: 1 | U124: 0 | V124: 0 | W124: 0 | X124: 0 | Y124: 0 | Z124: 30 | AA124: 60 | AB124: 0.13 | AC124: 0.13 | AD124: 0 | AE124: L | AF124: 428
A125: 481502 | B125: CASPER MOUNTAIN | C125: 42.7111 | D125: -106.3472 | E125: 2025-03-06 | F125: 13 | G125: F | H125: 1 | I125: 16Y2P | J125: 32.77 | K125: 26 | L125: 23.25 | M125: 23.16 | N125: -99.99 | O125: 0 | P125: 281 | Q125: 0 | R125: 0.5 | S125: 0 | T125: 1 | U125: 0 | V125: 0 | W125: 0 | X125: 0 | Y125: 0 | Z125: 30 | AA125: 60 | AB125: 0.05 | AC125: 0.05 | AD125: 0 | AE125: L | AF125: 433
A126: 481003 | B126: POKER | C126: 43.5694 | D126: -106.9783 | E126: 2025-03-05 | F126: 13 | G126: F | H126: 1 | I126: 16Y2P | J126: 32.64 | K126: 25.24 | L126: 23.26 | M126: 23.14 | N126: -99.99 | O126: 0 | P126: 152 | Q126: 0 | R126: 0.7 | S126: 0 | T126: 1 | U126: 0 | V126: 0 | W126: 0 | X126: 0 | Y126: 0 | Z126: 30 | AA126: 60 | AB126: 0.13 | AC126: 0.13 | AD126: 0 | AE126: L | AF126: 435
A127: 481502 | B127: CASPER MOUNTAIN | C127: 42.7111 | D127: -106.3472 | E127: 2025-03-05 | F127: 13 | G127: F | H127: 1 | I127: 16Y2P | J127: 32.64 | K127: 25.24 | L127: 23.25 | M127: 23.16 | N127: -99.99 | O127: 0 | P127: 281 | Q127: 0 | R127: 0.7 | S127: 0 | T127: 1 | U127: 0 | V127: 0 | W127: 0 | X127: 0 | Y127: 0 | Z127: 30 | AA127: 60 | AB127: 0.05 | AC127: 0.05 | AD127: 0 | AE127: L | AF127: 440
A128: 481003 | B128: POKER | C128: 43.5694 | D128: -106.9783 | E128: 2025-03-04 | F128: 13 | G128: F | H128: 1 | I128: 16Y2P | J128: 32.64 | K128: 25.24 | L128: 23.26 | M128: 23.14 | N128: -99.99 | O128: 0 | P128: 152 | Q128: 0 | R128: 0.7 | S128: 0 | T128: 1 | U128: 0 | V128: 0 | W128: 0 | X128: 0 | Y128: 0 | Z128: 30 | AA128: 60 | AB128: 0.13 | AC128: 0.13 | AD128: 0 | AE128: L | AF128: 442
A129: 481502 | B129: CASPER MOUNTAIN | C129: 42.7111 | D129: -106.3472 | E129: 2025-03-04 | F129: 13 | G129: F | H129: 1 | I129: 16Y2P | J129: 32.64 | K129: 25.24 | L129: 23.25 | M129: 23.17 | N129: -99.99 | O129: 0 | P129: 281 | Q129: 0 | R129: 0.7 | S129: 0 | T129: 1 | U129: 0 | V129: 0 | W129: 0 | X129: 0 | Y129: 0 | Z129: 30 | AA129: 60 | AB129: 0.05 | AC129: 0.05 | AD129: 0 | AE129: L | AF129: 447
A130: 481003 | B130: POKER | C130: 43.5694 | D130: -106.9783 | E130: 2025-03-03 | F130: 13 | G130: F | H130: 1 | I130: 16Y2P | J130: 32.64 | K130: 25.24 | L130: 23.26 | M130: 23.14 | N130: -99.99 | O130: 0 | P130: 151 | Q130: 0 | R130: 0.7 | S130: 0 | T130: 1 | U130: 0 | V130: 0 | W130: 0 | X130: 0 | Y130: 0 | Z130: 30 | AA130: 60 | AB130: 0.15 | AC130: 0.15 | AD130: 0 | AE130: L | AF130: 449
A131: 481502 | B131: CASPER MOUNTAIN | C131: 42.7111 | D131: -106.3472 | E131: 2025-03-03 | F131: 13 | G131: F | H131: 1 | I131: 16Y2P | J131: 32.64 | K131: 25.24 | L131: 23.26 | M131: 23.17 | N131: -99.99 | O131: 0 | P131: 281 | Q131: 0 | R131: 0.7 | S131: 0 | T131: 1 | U131: 0 | V131: 0 | W131: 0 | X131: 0 | Y131: 0 | Z131: 30 | AA131: 60 | AB131: 0.05 | AC131: 0.05 | AD131: 0 | AE131: L | AF131: 454
A132: 481003 | B132: POKER | C132: 43.5694 | D132: -106.9783 | E132: 2025-03-02 | F132: 13 | G132: F | H132: 1 | I132: 16Y2P | J132: 32.64 | K132: 25.24 | L132: 23.27 | M132: 23.14 | N132: -99.99 | O132: 0 | P132: 151 | Q132: 0 | R132: 0.7 | S132: 0 | T132: 1 | U132: 0 | V132: 0 | W132: 0 | X132: 0 | Y132: 0 | Z132: 30 | AA132: 60 | AB132: 0.12 | AC132: 0.12 | AD132: 0 | AE132: L | AF132: 456
A133: 481502 | B133: CASPER MOUNTAIN | C133: 42.7111 | D133: -106.3472 | E133: 2025-03-02 | F133: 13 | G133: F | H133: 1 | I133: 16Y2P | J133: 32.64 | K133: 25.24 | L133: 23.26 | M133: 23.18 | N133: -99.99 | O133: 0 | P133: 281 | Q133: 0 | R133: 0.7 | S133: 0 | T133: 1 | U133: 0 | V133: 0 | W133: 0 | X133: 0 | Y133: 0 | Z133: 30 | AA133: 60 | AB133: 0.02 | AC133: 0.02 | AD133: 0 | AE133: L | AF133: 461
A134: 481003 | B134: POKER | C134: 43.5694 | D134: -106.9783 | E134: 2025-03-01 | F134: 13 | G134: F | H134: 1 | I134: 16Y2P | J134: 32.64 | K134: 25.24 | L134: 23.28 | M134: 23.15 | N134: -99.99 | O134: 0 | P134: 151 | Q134: 0 | R134: 0.7 | S134: 0 | T134: 1 | U134: 0 | V134: 0 | W134: 0 | X134: 0 | Y134: 0 | Z134: 30 | AA134: 60 | AB134: 0.09 | AC134: 0.09 | AD134: 0 | AE134: L | AF134: 463
A135: 481502 | B135: CASPER MOUNTAIN | C135: 42.7111 | D135: -106.3472 | E135: 2025-03-01 | F135: 13 | G135: F | H135: 1 | I135: 16Y2P | J135: 32.64 | K135: 25.24 | L135: 23.27 | M135: 23.18 | N135: -99.99 | O135: 0 | P135: 281 | Q135: 0 | R135: 0.7 | S135: 0 | T135: 1 | U135: 0 | V135: 0 | W135: 0 | X135: 0 | Y135: 0 | Z135: 30 | AA135: 60 | AB135: 0.02 | AC135: 0.02 | AD135: 0 | AE135: L | AF135: 468
A136: 481003 | B136: POKER | C136: 43.5694 | D136: -106.9783 | E136: 2025-02-28 | F136: 13 | G136: F | H136: 1 | I136: 16Y2P | J136: 32.64 | K136: 25.24 | L136: 23.29 | M136: 23.14 | N136: -99.99 | O136: 0 | P136: 151 | Q136: 0 | R136: 0.7 | S136: 0 | T136: 1 | U136: 0 | V136: 0 | W136: 0 | X136: 0 | Y136: 0 | Z136: 30 | AA136: 60 | AB136: 0.07 | AC136: 0.07 | AD136: 0 | AE136: L | AF136: 470
A137: 481502 | B137: CASPER MOUNTAIN | C137: 42.7111 | D137: -106.3472 | E137: 2025-02-28 | F137: 13 | G137: F | H137: 1 | I137: 16Y2P | J137: 32.64 | K137: 25.24 | L137: 23.27 | M137: 23.19 | N137: -99.99 | O137: 0 | P137: 281 | Q137: 0 | R137: 0.7 | S137: 0 | T137: 1 | U137: 0 | V137: 0 | W137: 0 | X137: 0 | Y137: 0 | Z137: 30 | AA137: 60 | AB137: 0.02 | AC137: 0.02 | AD137: 0 | AE137: L | AF137: 475
A138: 481003 | B138: POKER | C138: 43.5694 | D138: -106.9783 | E138: 2025-02-27 | F138: 13 | G138: F | H138: 1 | I138: 16Y2P | J138: 32.64 | K138: 25.24 | L138: 23.3 | M138: 23.14 | N138: -99.99 | O138: 0 | P138: 151 | Q138: 0 | R138: 0.7 | S138: 0 | T138: 1 | U138: 0 | V138: 0 | W138: 0 | X138: 0 | Y138: 0 | Z138: 30 | AA138: 60 | AB138: 0.04 | AC138: 0.04 | AD138: 0 | AE138: L | AF138: 477
